Workbook

Sheet TRANSPORTE (hidden)
B8: PERÍODO | C8: (Tudo)
B9: BM | C9: (vazio)
K11: Valores
B12: DATA | C12: DIA | D12: PLANTA | E12: INÍCIO | F12: TÉRMINO | G12: HS | H12: REGIME | I12: ITEM/LINHA TRANSPORTE | J12: PU TRANSPORTE | K12: TRANSPORTE (QTD) | L12: VALOR TRANSPORTE (R$)
B13: 2022-08-08 | C13: 1900-01-02 | D13: CLORO SODA | E13: 07:30 | F13: 17:18 | G13: 8.8035 | H13: GERAL-HN | I13: #N/D | J13: #N/D | K13: 0
B14: 2022-08-09 | C14: 1900-01-03 | D14: CLORO SODA | E14: 07:30 | F14: 17:18 | G14: 8.8035 | H14: GERAL-HN | I14: #N/D | J14: #N/D | K14: 0
B15: 2022-08-10 | C15: 1900-01-04 | D15: CLORO SODA | E15: 07:30 | F15: 17:18 | G15: 8.8035 | H15: GERAL-HN | I15: #N/D | J15: #N/D | K15: 0
B16: 2022-08-11 | C16: 1900-01-05 | D16: CLORO SODA | E16: 07:30 | F16: 17:18 | G16: 8.8035 | H16: GERAL-HN | I16: #N/D | J16: #N/D | K16: 0
B17: (vazio) | C17: (vazio) | D17: (vazio) | E17: (vazio) | F17: (vazio) | G17: (vazio) | H17: (vazio) | I17: (vazio) | J17: (vazio)
B18: Total Geral | K18: 0

Sheet FONTE (hidden)
B3: ENCAREEGADO | C3: TIPO DE HORA | D3: RECURSO | G3: MÃO DE OBRA DIRETA (R$) | N3: ITEM/LINHA | T3: FATOR | U3: MULTIPLICADOR
B4: JAIRO | C4: =F5 -> GERAL-HN | D4: A-710 - FIREPRO | G4: FUNÇÃO >>> | H4: ENC. | I4: FU | J4: IS | K4: RE | L4: SUP | M4: SEG | N4: ENC. | O4: FU | P4: IS | Q4: RE | R4: SUP | S4: SEG
B5: PEDRO LÚCIO | C5: =F6 -> GERAL-HN(NOT.) | D5: A-328 | F5: ="GERAL-"&G5 -> GERAL-HN | G5: HN | H5: =VLOOKUP(N5,$AB$5:$AD$108,3,0) -> 61 | I5: =VLOOKUP(O5,$AB$5:$AD$108,3,0) -> 54.1 | J5: =VLOOKUP(P5,$AB$5:$AD$108,3,0) -> 49.49 | K5: =VLOOKUP(Q5,$AB$5:$AD$108,3,0) -> 51.8 | L5: =VLOOKUP(R5,$AB$5:$AD$108,3,0) -> 80.57 | M5: 56.4 | N5: 100/150 | O5: 100/20 | P5: 100/110 | Q5: 100/120 | R5: 100/130 | S5: 100/140 | T5: 1 | U5: 1
B6: CLEBER | C6: GERAL-Seg-Sex - Normal, Regime de 10hs | D6: CHARUTO 15 | F6: GERAL-HN(NOT.) | G6: HN(NOT.) | H6: 61 | I6: 54.1 | J6: 49.49 | K6: 51.8 | L6: 80.57 | M6: 56.4 | N6: =N5 -> 100/150 | O6: =O5 -> 100/20 | P6: =P5 -> 100/110 | Q6: =Q5 -> 100/120 | R6: =R5 -> 100/130 | S6: 100/140 | T6: 1 | U6: 1 | V6: =T7*H6 -> 79.3 | AB6: 90/50 | AC6: Dias alternados-Dom/Feriado-07h30-16h30 | AD6: 0.8 | AF6: =UPPER(AC6) -> DIAS ALTERNADOS-DOM/FERIADO-07H30-16H30
C7: GERAL-Dias alternados-Normal-10hs-Folga Dom | D7: CHARUTO 14 | F7: ="GERAL-"&G7 -> GERAL-Seg-Sex - Normal, Regime de 10hs | G7: Seg-Sex - Normal, Regime de 10hs | H7: =(VLOOKUP(N7,$AB$5:$AD$108,3,0)*$H$5+$H$5) -> 79.3 | I7: =(VLOOKUP(O7,$AB$5:$AD$108,3,0)*$I$5+$I$5) -> 70.33 | J7: =(VLOOKUP(P7,$AB$5:$AD$108,3,0)*$J$5+$J$5) -> 64.337 | K7: =(VLOOKUP(Q7,$AB$5:$AD$108,3,0)*$K$5+$K$5) -> 67.34 | L7: =(VLOOKUP(R7,$AB$5:$AD$108,3,0)*$L$5+$L$5) -> 104.741 | M7: =(VLOOKUP(S7,$AB$5:$AD$108,3,0)*$M$5+$M$5) -> 73.32 | N7: 90/20 | O7: 90/20 | P7: 90/20 | Q7: 90/20 | R7: 90/20 | S7: 90/20 | T7: 1.3 | U7: 1 | AB7: 90/20 | AC7: Seg-Sex - Normal, Regime de 10hs | AD7: 0.3 | AF7: =UPPER(AC7) -> SEG-SEX - NORMAL, REGIME DE 10HS
B8: FATOR INOX | C8: GERAL-Dias alternados-Sab-07h30-16h30 | D8: CALDEIRA 40 - ISO. | F8: ="GERAL-"&G8 -> GERAL-Dias alternados-Normal-10hs-Folga Dom | G8: Dias alternados-Normal-10hs-Folga Dom | H8: =(VLOOKUP(N8,$AB$5:$AD$108,3,0)*$H$5+$H$5) -> 85.4 | I8: =(VLOOKUP(O8,$AB$5:$AD$108,3,0)*$I$5+$I$5) -> 75.74 | J8: =(VLOOKUP(P8,$AB$5:$AD$108,3,0)*$J$5+$J$5) -> 69.286 | K8: =(VLOOKUP(Q8,$AB$5:$AD$108,3,0)*$K$5+$K$5) -> 72.52 | L8: =(VLOOKUP(R8,$AB$5:$AD$108,3,0)*$L$5+$L$5) -> 112.798 | M8: =(VLOOKUP(S8,$AB$5:$AD$108,3,0)*$M$5+$M$5) -> 78.96 | N8: 90/30 | O8: 90/30 | P8: 90/30 | Q8: 90/30 | R8: 90/30 | S8: 90/30 | T8: 1.4 | U8: 1 | AB8: 90/30 | AC8: Dias alternados-Normal-10hs-Folga Dom | AD8: 0.4 | AF8: DIAS ALTERNADOS-NORMAL-10HS-FOLGA DOM
A9: 304 (espessura 0,7 mm) | B9: 1.3 | C9: GERAL-Seg-Sex-Turno 10 x 10 hs | F9: GERAL-Dias alternados-Sab-07h30-16h30 | G9: Dias alternados-Sab-07h30-16h30 | H9: 103.7 | I9: 91.97 | J9: 84.133 | K9: 88.06 | L9: 136.969 | M9: 95.88 | N9: 90/40 | O9: 90/40 | P9: 90/40 | Q9: 90/40 | R9: 90/40 | S9: 90/40 | T9: 1.7 | U9: 1 | AB9: 90/40 | AC9: Dias alternados-Sab-07h30-16h30 | AD9: 0.7 | AF9: DIAS ALTERNADOS-SAB-07H30-16H30
A10: 304 (espessura 0,5 mm) | B10: 1.2 | C10: GERAL-Seg-Sab -Turno 10 x 10 hs | F10: GERAL-Seg-Sex-Turno 10 x 10 hs | G10: Seg-Sex-Turno 10 x 10 hs | H10: 79.3 | I10: 70.33 | J10: 64.337 | K10: 67.34 | L10: 104.741 | M10: 73.32 | N10: 90/60 | O10: 90/60 | P10: 90/60 | Q10: 90/60 | R10: 90/60 | S10: 90/60 | T10: 1.3 | U10: 1 | AB10: 90/60 | AC10: Seg-Sex-Turno 10 x 10 hs | AD10: 0.3 | AF10: SEG-SEX-TURNO 10 X 10 HS
A11: 304 (espessura 0,3 mm) | B11: 0.8 | C11: GERAL-Seg-Dom - Turno 10 x 10 hs | F11: GERAL-Seg-Sab -Turno 10 x 10 hs | G11: Seg-Sab -Turno 10 x 10 hs | H11: 85.4 | I11: 75.74 | J11: 69.286 | K11: 72.52 | L11: 112.798 | M11: 78.96 | N11: 90/70 | O11: 90/70 | P11: 90/70 | Q11: 90/70 | R11: 90/70 | S11: 90/70 | T11: 1.4 | U11: 1 | AB11: 90/70 | AC11: Seg-Sab -Turno 10 x 10 hs | AD11: 0.4 | AF11: SEG-SAB -TURNO 10 X 10 HS
B12: 1 | C12: GERAL-Dom/Feriado-07h30-16h30 | F12: GERAL-Seg-Dom - Turno 10 x 10 hs | G12: Seg-Dom - Turno 10 x 10 hs | H12: 97.6 | I12: 86.56 | J12: 79.184 | K12: 82.88 | L12: 128.912 | M12: 90.24 | N12: 90/80 | O12: 90/80 | P12: 90/80 | Q12: 90/80 | R12: 90/80 | S12: 90/80 | T12: 1.6 | U12: 1 | AB12: 90/80 | AC12: Seg-Dom - Turno 10 x 10 hs | AD12: 0.6 | AF12: SEG-DOM - TURNO 10 X 10 HS
B13: HORAS DIA | C13: =F17 -> SPOT-HN | F13: ="GERAL-"&G13 -> GERAL-Dom/Feriado-07h30-16h30 | G13: Dom/Feriado-07h30-16h30 | H13: 109.8 | I13: 97.38 | J13: 89.082 | K13: 93.24 | L13: 145.026 | M13: 101.52 | N13: 90/50 | O13: 90/50 | P13: 90/50 | Q13: 90/50 | R13: 90/50 | S13: 90/50 | T13: 1.8 | U13: 1 | AB13: 90/100 | AC13: 304 (espessura 0,7 mm) | AD13: 1.3 | AF13: 304 (ESPESSURA 0,7 MM)
B14: 8.8 | C14: =F18 -> SPOT-HN(NOT.) | G14: HE-S.D.F.(NOT.) | H14: 0.8 | I14: 0.8 | J14: 0.8 | K14: 0.8 | L14: 0.8 | M14: 0.8 | N14: =N13 -> 90/50 | O14: =O13 -> 90/50 | P14: =P13 -> 90/50 | Q14: =Q13 -> 90/50 | R14: =R13 -> 90/50 | S14: 90/50 | T14: 1 | U14: 1 | AB14: 90/110 | AC14: 304 (espessura 0,5 mm) | AD14: 1.2 | AF14: 304 (ESPESSURA 0,5 MM)
B15: 9.1 | C15: SPOT-Seg-Sex - Normal, Regime de 10hs | G15: ADN(HN) | L15: =VLOOKUP(R15,$AB$5:$AD$108,3,0) ->  | M15: =VLOOKUP(S15,$AB$5:$AD$108,3,0) ->  | T15: 1 | U15: 1 | AB15: 90/120 | AC15: 304 (espessura 0,3 mm) | AD15: 0.8 | AF15: 304 (ESPESSURA 0,3 MM)
B16: 10 | C16: SPOT-Dias alternados-Normal-10hs-Folga Dom | G16: F.TURNO | H16: 61 | I16: 54.1 | J16: 49.49 | K16: 51.8 | L16: 80.57 | M16: 56.4 | N16: =N5 -> 100/150 | O16: =O5 -> 100/20 | P16: =P5 -> 100/110 | Q16: =Q5 -> 100/120 | R16: =R5 -> 100/130 | S16: 100/140 | T16: 1 | U16: 1 | AB16: 90/180 | AC16: Aplicar Cobertura | AD16: 0.2 | AF16: APLICAR COBERTURA
C17: SPOT-Dias alternados-Sab-07h30-16h30 | F17: ="SPOT-"&G17 -> SPOT-HN | G17: HN | H17: 108.24 | I17: 96.77 | J17: 87.42 | K17: 91.27 | L17: 142.83 | M17: 99.67 | N17: 100/250 | O17: 100/200 | P17: 100/210 | Q17: 100/220 | R17: 100/230 | S17: 100/240 | T17: 1 | U17: 1 | V17: =H17/H5 -> 1.77442623 | X17: =J5*1.1 -> 54.439 | Y17: =X17-J17 -> -32.981 | AB17: 90/150 | AC17: Remover Cobertura | AD17: 0.1 | AF17: REMOVER COBERTURA
B18: TIPO DE SERVIÇO | C18: SPOT-Seg-Sex-Turno 10 x 10 hs | F18: ="SPOT-"&G18 -> SPOT-HN(NOT.) | G18: HN(NOT.) | H18: 108.24 | I18: 96.77 | J18: 87.42 | K18: 91.27 | L18: 142.83 | M18: 99.67 | N18: =N17 -> 100/250 | O18: =O17 -> 100/200 | P18: =P17 -> 100/210 | Q18: =Q17 -> 100/220 | R18: =R17 -> 100/230 | S18: 100/240 | T18: 1 | U18: 1 | V18: =H18/H6 -> 1.77442623 | X18: =J6*1.1 -> 54.439 | Y18: -32.981 | AB18: 90/160 | AC18: Remover Isolamento | AD18: 0.1 | AF18: REMOVER ISOLAMENTO
B19: Horas Normal | C19: SPOT-Seg-Sab -Turno 10 x 10 hs | F19: SPOT-Seg-Sex - Normal, Regime de 10hs | G19: Seg-Sex - Normal, Regime de 10hs | H19: =VLOOKUP(N19,$AB$5:$AD$108,3,0)*$H$17+$H$17 -> 140.712 | I19: =VLOOKUP(O19,$AB$5:$AD$108,3,0)*$I$17+$I$17 -> 125.801 | J19: =VLOOKUP(P19,$AB$5:$AD$108,3,0)*$J$17+$J$17 -> 113.646 | K19: =VLOOKUP(Q19,$AB$5:$AD$108,3,0)*$K$17+$K$17 -> 118.651 | L19: =VLOOKUP(R19,$AB$5:$AD$108,3,0)*$L$17+$L$17 -> 185.679 | M19: =VLOOKUP(S19,$AB$5:$AD$108,3,0)*$M$17+$M$17 -> 129.571 | N19: 90/20 | O19: 90/20 | P19: 90/20 | Q19: 90/20 | R19: 90/20 | S19: 90/20 | T19: 1.3 | U19: 1 | V19: =H19/H7 -> 1.77442623 | X19: =J7*1.1 -> 70.7707 | Y19: -42.8753 | AB19: 90/170 | AC19: Aplicar Isolamento | AD19: 0.6 | AF19: APLICAR ISOLAMENTO
B20: Serv Curta Duração 90d | C20: SPOT-Seg-Dom - Turno 10 x 10 hs | F20: SPOT-Dias alternados-Normal-10hs-Folga Dom | G20: Dias alternados-Normal-10hs-Folga Dom | H20: 0.4 | I20: 0.4 | J20: 0.4 | K20: 0.4 | L20: 0.4 | M20: 0.4 | N20: 90/30 | O20: 90/30 | P20: 90/30 | Q20: 90/30 | R20: 90/30 | S20: 90/30 | T20: 1.4 | U20: 1 | AB20: 90/200 | AC20: Aplicar Isolamento | AD20: 0.5 | AF20: APLICAR ISOLAMENTO
C21: SPOT-Dom/Feriado-07h30-16h30 | F21: SPOT-Dias alternados-Sab-07h30-16h30 | G21: Dias alternados-Sab-07h30-16h30 | H21: 0.7 | I21: 0.7 | J21: 0.7 | K21: 0.7 | L21: 0.7 | M21: 0.7 | N21: 90/40 | O21: 90/40 | P21: 90/40 | Q21: 90/40 | R21: 90/40 | S21: 90/40 | T21: 1.7 | U21: 1 | AB21: 90/210 | AC21: Aplicar Cobertura | AD21: 0.5 | AF21: APLICAR COBERTURA
F22: SPOT-Seg-Sex-Turno 10 x 10 hs | G22: Seg-Sex-Turno 10 x 10 hs | H22: 0.3 | I22: 0.3 | J22: 0.3 | K22: 0.3 | L22: 0.3 | M22: 0.3 | N22: 90/60 | O22: 90/60 | P22: 90/60 | Q22: 90/60 | R22: 90/60 | S22: 90/60 | T22: 1.3 | U22: 1 | AB22: 90/230 | AC22: Remover Cobertura | AD22: 0.1 | AF22: REMOVER COBERTURA
F23: SPOT-Seg-Sab -Turno 10 x 10 hs | G23: Seg-Sab -Turno 10 x 10 hs | H23: 0.4 | I23: 0.4 | J23: 0.4 | K23: 0.4 | L23: 0.4 | M23: 0.4 | N23: 90/70 | O23: 90/70 | P23: 90/70 | Q23: 90/70 | R23: 90/70 | S23: 90/70 | T23: 1.4 | U23: 1 | AB23: 90/240 | AC23: Remover Isolamento | AD23: 0.1 | AF23: REMOVER ISOLAMENTO
B24: RESPONSÁVEL | C24: PLANTA | F24: SPOT-Seg-Dom - Turno 10 x 10 hs | G24: Seg-Dom - Turno 10 x 10 hs | H24: 0.6 | I24: 0.6 | J24: 0.6 | K24: 0.6 | L24: 0.6 | M24: 0.6 | N24: 90/80 | O24: 90/80 | P24: 90/80 | Q24: 90/80 | R24: 90/80 | S24: 90/80 | T24: 1.6 | U24: 1 | AB24: 90/250 | AC24: Aplicar Isolamento | AD24: 0.6 | AF24: APLICAR ISOLAMENTO
B25: VICENTE | C25: PVC | F25: SPOT-Dom/Feriado-07h30-16h30 | G25: Dom/Feriado-07h30-16h30 | H25: 0.8 | I25: 0.8 | J25: 0.8 | K25: 0.8 | L25: 0.8 | M25: 0.8 | N25: 90/50 | O25: 90/50 | P25: 90/50 | Q25: 90/50 | R25: 90/50 | S25: 90/50 | T25: 1.8 | U25: 1 | AB25: 90/260 | AC25: Aplicar Cobertura | AD25: 0.2 | AF25: APLICAR COBERTURA
B26: LUCIANO | C26: CLORO SODA | G26: Container ADM - Mês | H26: =VLOOKUP(N26,$AB$5:$AD$108,3,0) -> 3800 | I26: 0 | J26: 0 | K26: 0 | N26: 100/270 | T26: 1 | U26: 1 | AB26: 90/270 | AC26: Remoção e Aplicação de Caixa Removível | AD26: 0.05 | AF26: REMOÇÃO E APLICAÇÃO DE CAIXA REMOVÍVEL
G27: Container Almox - Mês | H27: 2550 | I27: 0 | J27: 0 | K27: 0 | N27: 100/280 | T27: 1 | U27: 1 | AB27: 90/310 | AC27: Aplicar Cobertura | AD27: 0.6 | AF27: APLICAR COBERTURA
G28: Toldo 4x4 - Mês | H28: 1800 | I28: 0 | J28: 0 | K28: 0 | N28: 100/290 | T28: 1 | U28: 1 | AB28: 90/280 | AC28: Aplicação de Caixa Removível | AD28: 0.1 | AF28: APLICAÇÃO DE CAIXA REMOVÍVEL
I29: 0 | J29: 0 | K29: 0 | T29: 1 | U29: 1 | AB29: 90/300 | AC29: Aplicar Isolamento | AD29: 0.4 | AF29: APLICAR ISOLAMENTO
AB30: 90/330 | AC30: Remover Cobertura | AD30: 0.1 | AF30: REMOVER COBERTURA
AB31: 90/340 | AC31: Remover Isolamento | AD31: 0.1 | AF31: REMOVER ISOLAMENTO
AB32: 90/350 | AC32: Aplicar Isolamento | AD32: 0.6 | AF32: APLICAR ISOLAMENTO
B33: ... | AB33: 90/360 | AC33: Aplicar Cobertura | AD33: 0.2 | AF33: APLICAR COBERTURA
AB34: 90/370 | AC34: Remoção e Aplicação de Caixa Removível | AD34: 0.05 | AF34: REMOÇÃO E APLICAÇÃO DE CAIXA REMOVÍVEL
AB35: 90/380 | AC35: Aplicação de Caixa Removível | AD35: 0.1 | AF35: APLICAÇÃO DE CAIXA REMOVÍVEL
AB36: 90/400 | AC36: Aplicar Isolamento | AD36: 0.6 | AF36: APLICAR ISOLAMENTO
AB37: 90/440 | AC37: Remover Isolamento | AD37: 0.1 | AF37: REMOVER ISOLAMENTO
AB38: 90/410 | AC38: Aplicar Cobertura | AD38: 0.4 | AF38: APLICAR COBERTURA
AB39: 90/430 | AC39: Remover Cobertura | AD39: 0.1 | AF39: REMOVER COBERTURA
AB40: 90/450 | AC40: Aplicar Isolamento | AD40: 0.6 | AF40: APLICAR ISOLAMENTO
AB41: 90/460 | AC41: Aplicar Barreira de Vapor | AD41: 0.1 | AF41: APLICAR BARREIRA DE VAPOR
AB42: 90/470 | AC42: Aplicar Cobertura | AD42: 0.1 | AF42: APLICAR COBERTURA
AB43: 90/490 | AC43: Aplicar Isolamento | AD43: 0.6 | AF43: APLICAR ISOLAMENTO
AB44: 90/500 | AC44: Aplicar Barreira de Vapor | AD44: 0.1 | AF44: APLICAR BARREIRA DE VAPOR
AB45: 90/510 | AC45: Aplicar Cobertura | AD45: 0.3 | AF45: APLICAR COBERTURA
B46: Container ADM - Mês | AB46: 90/530 | AC46: Remover Cobertura | AD46: 0.1 | AF46: REMOVER COBERTURA
B47: Container Almox - Mês | AB47: 90/570 | AC47: Aplicar Cobertura | AD47: 0.2 | AF47: APLICAR COBERTURA
B48: Toldo 4x4 - Mês | AB48: 90/540 | AC48: Remover Isolamento | AD48: 0.1 | AF48: REMOVER ISOLAMENTO
AB49: 90/550 | AC49: Aplicar Isolamento | AD49: 0.5 | AF49: APLICAR ISOLAMENTO
AB50: 90/560 | AC50: Aplicar Barreira de Vapor | AD50: 0.1 | AF50: APLICAR BARREIRA DE VAPOR
B51: ... | AB51: 90/590 | AC51: Aplicar Isolamento | AD51: 0.6 | AF51: APLICAR ISOLAMENTO
AB52: 90/600 | AC52: Aplicar Barreira de Vapor | AD52: 0.1 | AF52: APLICAR BARREIRA DE VAPOR
B53: TIPO DE TRANSPORTE | AB53: 90/610 | AC53: Aplicar Cobertura | AD53: 0.3 | AF53: APLICAR COBERTURA
B54: VAN(AP.&RET.) | AA54: Horas Normal | AB54: 100/150 | AC54: Encarregado | AD54: 61 | AF54: ENCARREGADO
B55: VAN(RET.) | AA55: Horas Normal | AB55: 100/20 | AC55: Funilaria | AD55: 54.1 | AF55: FUNILARIA
B56: TAXI(AP.&RET.) | AA56: Horas Normal | AB56: 100/110 | AC56: Isolamento | AD56: 49.49 | AF56: ISOLAMENTO
B57: TAXI(RET.) | AA57: Horas Normal | AB57: 100/120 | AC57: Refratamento | AD57: 51.8 | AF57: REFRATAMENTO
B58: ... | AA58: Horas Normal | AB58: 100/130 | AC58: Supervisão | AD58: 80.57 | AF58: SUPERVISÃO
AA59: Horas Normal | AB59: 100/140 | AC59: Segurança | AD59: 56.4 | AF59: SEGURANÇA
AB60: 100/160 | AC60: Acesso por Corda (N1) | AD60: 378.3 | AF60: ACESSO POR CORDA (N1)
AB61: 100/170 | AC61: Acesso por Corda (N2) | AD61: 378.3 | AF61: ACESSO POR CORDA (N2)
AB62: 100/180 | AC62: Acesso por Corda (N3) | AD62: 378.3 | AF62: ACESSO POR CORDA (N3)
AA63: Serv Curta Duração 90d | AB63: 100/200 | AC63: Funilaria | AD63: 96.77 | AF63: FUNILARIA
AA64: Serv Curta Duração 90d | AB64: 100/210 | AC64: Isolamento | AD64: 87.42 | AF64: ISOLAMENTO
AA65: Serv Curta Duração 90d | AB65: 100/220 | AC65: Refratamento | AD65: 91.27 | AF65: REFRATAMENTO
AA66: Serv Curta Duração 90d | AB66: 100/230 | AC66: Supervisão | AD66: 142.83 | AF66: SUPERVISÃO
AA67: Serv Curta Duração 90d | AB67: 100/240 | AC67: Segurança | AD67: 99.67 | AF67: SEGURANÇA
AA68: Serv Curta Duração 90d | AB68: 100/250 | AC68: Encarregado | AD68: 108.24 | AF68: ENCARREGADO
D69: ... | AB69: 100/270 | AC69: Container ADM - Mês | AD69: 3800 | AF69: CONTAINER ADM - MÊS
AB70: 100/280 | AC70: Container Almox - Mês | AD70: 2550 | AF70: CONTAINER ALMOX - MÊS
AB71: 100/290 | AC71: Toldo 4x4 - Mês | AD71: 1800 | AF71: =UPPER(AC71) -> TOLDO 4X4 - MÊS
F131: MODALIDADE
B140: EQUIPES
B496: PACOTES
B518: ÁREA
B527: ANDAIME PARA
B541: UNIDADE
B551: COBRANÇA
B552: MM
B553: HH
B554: ...
B574: ATIVIDADE
B575: MTG
B576: DTG
B577: APOIO
B578: ...
B580: TIPO DE ANDAIME
B581: BALANCINHO
B582: BANCADA
B583: CABANA
B584: ESCADA DE ACESSO
B585: ESCADA DE FUGA
B586: ESCORAMENTO
B587: GUARDA-CORPO
B588: PASSARELA
B589: PAU DE CARGA
B590: TORRE
B591: TORRE DE RODÍZIO
B592: TORRE P/ ELEVADOR
B593: ACESSO
B594: CAVALETE
B595: CERCADO
B596: CORRIMÃO
B597: ESCADA
B598: LINHA DE VIDA
B599: PLATAFORMA
B600: RAMPA
B601: SUPORTE
B602: TRAVAMENTO
B603: ...
B605: FISCALIZAÇÃO
B606: ADRIANO OLIVEIRA
B607: CLÁUDIO MARCELO
B608: EDIVALDO JÚNIOR
B609: FRANCISCO
B610: JOEL BOMFIM
B611: JOEL VELLOZO
B612: JOSÉ ANTÔNIO
B613: JOSÉ RICARDO
B614: OSMAR NAZARÉ
B615: RAIMUNDO TEIXEIRA
B616: HENRIQUE MAGNO
B617: ...
B619: SIM OU NÃO
B620: SIM
B621: NÃO
B624: DATA | C624: PERÍODO | D624: TIPO DIA
B625: 2020-08-21 | C625: 2020.09 | D625: NORMAL
B626: 2020-08-22 | C626: 2020.09 | D626: SAB
B627: 2020-08-23 | C627: 2020.09 | D627: DOM
B628: 2020-08-24 | C628: 2020.09 | D628: NORMAL
B629: 2020-08-25 | C629: 2020.09 | D629: NORMAL
B630: 2020-08-26 | C630: 2020.09 | D630: NORMAL
B631: 2020-08-27 | C631: 2020.09 | D631: NORMAL
B632: 2020-08-28 | C632: 2020.09 | D632: FOLGA
B633: 2020-08-29 | C633: 2020.09 | D633: SAB
B634: 2020-08-30 | C634: 2020.09 | D634: DOM
B635: 2020-08-31 | C635: 2020.09 | D635: NORMAL
B636: 2020-09-01 | C636: 2020.09 | D636: NORMAL
B637: 2020-09-02 | C637: 2020.09 | D637: NORMAL
B638: 2020-09-03 | C638: 2020.09 | D638: NORMAL
B639: 2020-09-04 | C639: 2020.09 | D639: NORMAL
B640: 2020-09-05 | C640: 2020.09 | D640: SAB
B641: 2020-09-06 | C641: 2020.09 | D641: DOM
B642: 2020-09-07 | C642: 2020.09 | D642: FERIADO
B643: 2020-09-08 | C643: 2020.09 | D643: NORMAL
B644: 2020-09-09 | C644: 2020.09 | D644: NORMAL
B645: 2020-09-10 | C645: 2020.09 | D645: NORMAL
B646: 2020-09-11 | C646: 2020.09 | D646: NORMAL
B647: 2020-09-12 | C647: 2020.09 | D647: SAB
B648: 2020-09-13 | C648: 2020.09 | D648: DOM
B649: 2020-09-14 | C649: 2020.09 | D649: NORMAL
B650: 2020-09-15 | C650: 2020.09 | D650: NORMAL
B651: 2020-09-16 | C651: 2020.09 | D651: NORMAL
B652: 2020-09-17 | C652: 2020.09 | D652: NORMAL
B653: 2020-09-18 | C653: 2020.09 | D653: NORMAL
B654: 2020-09-19 | C654: 2020.09 | D654: SAB
B655: 2020-09-20 | C655: 2020.09 | D655: DOM
B656: 2020-09-21 | C656: 2020.10 | D656: NORMAL
B657: 2020-09-22 | C657: 2020.10 | D657: NORMAL
B658: 2020-09-23 | C658: 2020.10 | D658: NORMAL
B659: 2020-09-24 | C659: 2020.10 | D659: NORMAL
B660: 2020-09-25 | C660: 2020.10 | D660: NORMAL
B661: 2020-09-26 | C661: 2020.10 | D661: SAB
B662: 2020-09-27 | C662: 2020.10 | D662: DOM
B663: 2020-09-28 | C663: 2020.10 | D663: FERIADO
B664: 2020-09-29 | C664: 2020.10 | D664: NORMAL
B665: 2020-09-30 | C665: 2020.10 | D665: NORMAL
B666: 2020-10-01 | C666: 2020.10 | D666: NORMAL
B667: 2020-10-02 | C667: 2020.10 | D667: NORMAL
B668: 2020-10-03 | C668: 2020.10 | D668: SAB
B669: 2020-10-04 | C669: 2020.10 | D669: DOM
B670: 2020-10-05 | C670: 2020.10 | D670: NORMAL
B671: 2020-10-06 | C671: 2020.10 | D671: NORMAL
B672: 2020-10-07 | C672: 2020.10 | D672: NORMAL
B673: 2020-10-08 | C673: 2020.10 | D673: NORMAL
B674: 2020-10-09 | C674: 2020.10 | D674: NORMAL
B675: 2020-10-10 | C675: 2020.10 | D675: SAB
B676: 2020-10-11 | C676: 2020.10 | D676: DOM
B677: 2020-10-12 | C677: 2020.10 | D677: FERIADO
B678: 2020-10-13 | C678: 2020.10 | D678: NORMAL
B679: 2020-10-14 | C679: 2020.10 | D679: NORMAL
B680: 2020-10-15 | C680: 2020.10 | D680: NORMAL
B681: 2020-10-16 | C681: 2020.10 | D681: NORMAL
B682: 2020-10-17 | C682: 2020.10 | D682: SAB
B683: 2020-10-18 | C683: 2020.10 | D683: DOM
B684: 2020-10-19 | C684: 2020.10 | D684: NORMAL
B685: 2020-10-20 | C685: 2020.10 | D685: NORMAL
B686: 2020-10-21 | C686: 2020.11 | D686: NORMAL
B687: 2020-10-22 | C687: 2020.11 | D687: NORMAL
B688: 2020-10-23 | C688: 2020.11 | D688: NORMAL
B689: 2020-10-24 | C689: 2020.11 | D689: SAB
B690: 2020-10-25 | C690: 2020.11 | D690: DOM
B691: 2020-10-26 | C691: 2020.11 | D691: NORMAL
B692: 2020-10-27 | C692: 2020.11 | D692: NORMAL
B693: 2020-10-28 | C693: 2020.11 | D693: NORMAL
B694: 2020-10-29 | C694: 2020.11 | D694: NORMAL
B695: 2020-10-30 | C695: 2020.11 | D695: NORMAL
B696: 2020-10-31 | C696: 2020.11 | D696: SAB
B697: 2020-11-01 | C697: 2020.11 | D697: DOM
B698: 2020-11-02 | C698: 2020.11 | D698: FERIADO
B699: 2020-11-03 | C699: 2020.11 | D699: NORMAL
... 1158 more rows

Sheet RESUMO_CAPA oficial (hidden)
A1: RESUMO DO ORÇAMENTO
A2: ESCOPO DO SERVIÇO: | F2: =INFO!C22 -> RECOMPOSIÇÃO DE ISOLAMENTO | S2: RESPONSÁVEL BRASKEM: | X2: CONTRATO: | AA2: DATA: | AC2: N. ORC
S3: =INFO!C28 -> 0 | X3: =INFO!C2 -> 4600022713 | AA3: =INFO!C32 -> 2023-10-30 | AC3: =INFO!C6 -> 102
A4: VALOR GLOBAL: | F4: =ASM!K1007 -> 120197.168 | N4: NOME DO PROJETO | X4: PLANTA: | AA4: LOCAL:
N5: =INFO!C16 -> 0 | X5: =INFO!C18 -> 0 | AA5: =INFO!C20 -> 94
X8: QTD (m²): | AB8: =EQUIP!AP502+TUB!U502 -> 3067.154461
X9: INÍCIO PREVISTO: | AB9: =TIMELINE!M6 -> 2022-09-14
X10: FIM PREVISTO | AB10: =TIMELINE!S6 -> 2022-09-20
X11: EFETIVO MÉDIO | AB11: =TIMELINE!EE37 -> 1.180952381
X12: ÍNDICE DE PRODUTIVIDADE: m²/hh | AB12: =TIMELINE!J47 -> 2
X13: QTD DIAS TOTAIS | AB13: =IFERROR((AB8/(AB11*AB12)),0) -> 1298.593622
X14: QTD HORAS TOTAIS | AB14: =AB13*8.8*AB11 -> 13495.47963
X33: =INFO!C14 -> 0
A36: NORMAS / PROCEDIMENTOS APLICÁVEIS | M36: DADOS DE MATERIAIS
A37: PN - BRASKEM | M37: ISOLANTE 01: POLIURETANO INJETADO | X37: REQUISITOS DE SSMA
A38: IT-I-01 (Rev.10) Fabricação de Chapas de Proteção | M38: REVESTIMENTO 01: CHAPA AL 0,8 e 1,0 mm | X38: NR-33 (ESPAÇO CONFINADO)
A39: IT-I-03 (Rev.09) Aplic. de Isol. Térm. Frio em Equip. e Tub | M39: ISOLANTE 02: CRYOGEL | X39: NR-35 (TRABALHO EM ALTURA)
A40: IT-I-05 (Rev.01) Remoção e Acond. do Isol. Térm. | M40: ISOLANTE 03: MANTA DE FIBRA CERÂMICA | X40: NR-20 (LÍQUIDOS INFLAMÁVEIS)
A41: PQO-004 (Rev.12) PQO-004 Braskem AL | M41: OUTROS: | O41: TUBO DE LÃ DE ROCHA | X41: TREINAMENTOS BÁSICOS DE SEGURANÇA
X42: APOIOS NECESSÁRIOS:
X43: =INFO!C42 -> 0
X44: =INFO!C43 -> 0
X45: =INFO!C44 -> 0
X46: =INFO!C45 -> 0
A47: Assinatura RMT / Eng. Responsável Braskem | M47: Assinatura Responsável - Risoterm | X47: =INFO!C46 -> 0
X49: =IF(X43>=0," ") -> 

Sheet FOLHA DE ROSTO (hidden)
B6: Contratante: Marque a Unidade da Braskem para qual prestou os serviços!
B8: Unidades Bahia
B12: Unidades Alagoas
G14: =INFO!C6 -> 102
G17: =INFO!C10 -> 0 | K17: Periodo de medição
J19: de | K19: de: 01/08/2022
B21: Objeto: | D21: =INFO!C14 -> 0 | K21: a: 31/08/2022
B25: Solicitante(s): | D25: =INFO!C28 -> 0
B28: Informe a descrição do Serviço (descrever o serviço realizado no campo abaixo) e/ou observações:
B30: =INFO!C30 -> REMOÇÃO E RECOMPOSIÇÃO DE ISOLAMENTO
B33: Serviços executados:
A37: INTEMLINHA | B37: Item | C37: Linha | D37: Descrição | E37: Un | F37: Quant. | G37: Valor Unit./Fator | H37: Total
B38: =IFERROR(VLOOKUP(A38,BMM!$B$19:$I$1005,2,FALSE)," ") ->  | C38: =IFERROR(VLOOKUP(A38,BMM!$B$19:$I$1005,3,FALSE)," ") ->  | D38: =IFERROR(VLOOKUP(A38,BMM!$B$19:$I$1005,4,FALSE)," ") ->  | E38: =IFERROR(VLOOKUP(A38,BMM!$B$19:$I$1005,6,FALSE)," ") ->  | F38: =IFERROR(VLOOKUP(A38,BMM!$B$19:$I$1005,7,FALSE),0) -> 0 | G38: =IFERROR(VLOOKUP(A38,BMM!$B$19:$I$1005,8,FALSE),0) -> 0 | H38: =F38*G38 -> 0
B39: =IFERROR(VLOOKUP(A39,BMM!$B$19:$I$1005,2,FALSE)," ") ->  | C39: =IFERROR(VLOOKUP(A39,BMM!$B$19:$I$1005,3,FALSE)," ") ->  | D39: =IFERROR(VLOOKUP(A39,BMM!$B$19:$I$1005,4,FALSE)," ") ->  | E39: =IFERROR(VLOOKUP(A39,BMM!$B$19:$I$1005,6,FALSE)," ") ->  | F39: =IFERROR(VLOOKUP(A39,BMM!$B$19:$I$1005,7,FALSE),0) -> 0 | G39: =IFERROR(VLOOKUP(A39,BMM!$B$19:$I$1005,8,FALSE),0) -> 0 | H39: =F39*G39 -> 0
B40: =IFERROR(VLOOKUP(A40,BMM!$B$19:$I$1005,2,FALSE)," ") ->  | C40: =IFERROR(VLOOKUP(A40,BMM!$B$19:$I$1005,3,FALSE)," ") ->  | D40: =IFERROR(VLOOKUP(A40,BMM!$B$19:$I$1005,4,FALSE)," ") ->  | E40: =IFERROR(VLOOKUP(A40,BMM!$B$19:$I$1005,6,FALSE)," ") ->  | F40: =IFERROR(VLOOKUP(A40,BMM!$B$19:$I$1005,7,FALSE),0) -> 0 | G40: =IFERROR(VLOOKUP(A40,BMM!$B$19:$I$1005,8,FALSE),0) -> 0 | H40: 0
B41: =IFERROR(VLOOKUP(A41,BMM!$B$19:$I$1005,2,FALSE)," ") ->  | C41: =IFERROR(VLOOKUP(A41,BMM!$B$19:$I$1005,3,FALSE)," ") ->  | D41: =IFERROR(VLOOKUP(A41,BMM!$B$19:$I$1005,4,FALSE)," ") ->  | E41: =IFERROR(VLOOKUP(A41,BMM!$B$19:$I$1005,6,FALSE)," ") ->  | F41: =IFERROR(VLOOKUP(A41,BMM!$B$19:$I$1005,7,FALSE),0) -> 0 | G41: =IFERROR(VLOOKUP(A41,BMM!$B$19:$I$1005,8,FALSE),0) -> 0 | H41: 0
B42: =IFERROR(VLOOKUP(A42,BMM!$B$19:$I$1005,2,FALSE)," ") ->  | C42: =IFERROR(VLOOKUP(A42,BMM!$B$19:$I$1005,3,FALSE)," ") ->  | D42: =IFERROR(VLOOKUP(A42,BMM!$B$19:$I$1005,4,FALSE)," ") ->  | E42: =IFERROR(VLOOKUP(A42,BMM!$B$19:$I$1005,6,FALSE)," ") ->  | F42: =IFERROR(VLOOKUP(A42,BMM!$B$19:$I$1005,7,FALSE),0) -> 0 | G42: =IFERROR(VLOOKUP(A42,BMM!$B$19:$I$1005,8,FALSE),0) -> 0 | H42: 0
B43: =IFERROR(VLOOKUP(A43,BMM!$B$19:$I$1005,2,FALSE)," ") ->  | C43: =IFERROR(VLOOKUP(A43,BMM!$B$19:$I$1005,3,FALSE)," ") ->  | D43: =IFERROR(VLOOKUP(A43,BMM!$B$19:$I$1005,4,FALSE)," ") ->  | E43: =IFERROR(VLOOKUP(A43,BMM!$B$19:$I$1005,6,FALSE)," ") ->  | F43: =IFERROR(VLOOKUP(A43,BMM!$B$19:$I$1005,7,FALSE),0) -> 0 | G43: =IFERROR(VLOOKUP(A43,BMM!$B$19:$I$1005,8,FALSE),0) -> 0 | H43: 0
B44: =IFERROR(VLOOKUP(A44,BMM!$B$19:$I$1005,2,FALSE)," ") ->  | C44: =IFERROR(VLOOKUP(A44,BMM!$B$19:$I$1005,3,FALSE)," ") ->  | D44: =IFERROR(VLOOKUP(A44,BMM!$B$19:$I$1005,4,FALSE)," ") ->  | E44: =IFERROR(VLOOKUP(A44,BMM!$B$19:$I$1005,6,FALSE)," ") ->  | F44: =IFERROR(VLOOKUP(A44,BMM!$B$19:$I$1005,7,FALSE),0) -> 0 | G44: =IFERROR(VLOOKUP(A44,BMM!$B$19:$I$1005,8,FALSE),0) -> 0 | H44: 0
B45: =IFERROR(VLOOKUP(A45,BMM!$B$19:$I$1005,2,FALSE)," ") ->  | C45: =IFERROR(VLOOKUP(A45,BMM!$B$19:$I$1005,3,FALSE)," ") ->  | D45: =IFERROR(VLOOKUP(A45,BMM!$B$19:$I$1005,4,FALSE)," ") ->  | E45: =IFERROR(VLOOKUP(A45,BMM!$B$19:$I$1005,6,FALSE)," ") ->  | F45: =IFERROR(VLOOKUP(A45,BMM!$B$19:$I$1005,7,FALSE),0) -> 0 | G45: =IFERROR(VLOOKUP(A45,BMM!$B$19:$I$1005,8,FALSE),0) -> 0 | H45: 0
B46: =IFERROR(VLOOKUP(A46,BMM!$B$19:$I$1005,2,FALSE)," ") ->  | C46: =IFERROR(VLOOKUP(A46,BMM!$B$19:$I$1005,3,FALSE)," ") ->  | D46: =IFERROR(VLOOKUP(A46,BMM!$B$19:$I$1005,4,FALSE)," ") ->  | E46: =IFERROR(VLOOKUP(A46,BMM!$B$19:$I$1005,6,FALSE)," ") ->  | F46: =IFERROR(VLOOKUP(A46,BMM!$B$19:$I$1005,7,FALSE),0) -> 0 | G46: =IFERROR(VLOOKUP(A46,BMM!$B$19:$I$1005,8,FALSE),0) -> 0 | H46: 0
B47: =IFERROR(VLOOKUP(A47,BMM!$B$19:$I$1005,2,FALSE)," ") ->  | C47: =IFERROR(VLOOKUP(A47,BMM!$B$19:$I$1005,3,FALSE)," ") ->  | D47: =IFERROR(VLOOKUP(A47,BMM!$B$19:$I$1005,4,FALSE)," ") ->  | E47: =IFERROR(VLOOKUP(A47,BMM!$B$19:$I$1005,6,FALSE)," ") ->  | F47: =IFERROR(VLOOKUP(A47,BMM!$B$19:$I$1005,7,FALSE),0) -> 0 | G47: =IFERROR(VLOOKUP(A47,BMM!$B$19:$I$1005,8,FALSE),0) -> 0 | H47: 0
B48: =IFERROR(VLOOKUP(A48,BMM!$B$19:$I$1005,2,FALSE)," ") ->  | C48: =IFERROR(VLOOKUP(A48,BMM!$B$19:$I$1005,3,FALSE)," ") ->  | D48: =IFERROR(VLOOKUP(A48,BMM!$B$19:$I$1005,4,FALSE)," ") ->  | E48: =IFERROR(VLOOKUP(A48,BMM!$B$19:$I$1005,6,FALSE)," ") ->  | F48: =IFERROR(VLOOKUP(A48,BMM!$B$19:$I$1005,7,FALSE),0) -> 0 | G48: =IFERROR(VLOOKUP(A48,BMM!$B$19:$I$1005,8,FALSE),0) -> 0 | H48: 0
B49: =IFERROR(VLOOKUP(A49,BMM!$B$19:$I$1005,2,FALSE)," ") ->  | C49: =IFERROR(VLOOKUP(A49,BMM!$B$19:$I$1005,3,FALSE)," ") ->  | D49: =IFERROR(VLOOKUP(A49,BMM!$B$19:$I$1005,4,FALSE)," ") ->  | E49: =IFERROR(VLOOKUP(A49,BMM!$B$19:$I$1005,6,FALSE)," ") ->  | F49: =IFERROR(VLOOKUP(A49,BMM!$B$19:$I$1005,7,FALSE),0) -> 0 | G49: =IFERROR(VLOOKUP(A49,BMM!$B$19:$I$1005,8,FALSE),0) -> 0 | H49: 0
B50: =IFERROR(VLOOKUP(A50,BMM!$B$19:$I$1005,2,FALSE)," ") ->  | C50: =IFERROR(VLOOKUP(A50,BMM!$B$19:$I$1005,3,FALSE)," ") ->  | D50: =IFERROR(VLOOKUP(A50,BMM!$B$19:$I$1005,4,FALSE)," ") ->  | E50: =IFERROR(VLOOKUP(A50,BMM!$B$19:$I$1005,6,FALSE)," ") ->  | F50: =IFERROR(VLOOKUP(A50,BMM!$B$19:$I$1005,7,FALSE),0) -> 0 | G50: =IFERROR(VLOOKUP(A50,BMM!$B$19:$I$1005,8,FALSE),0) -> 0 | H50: 0
B51: =IFERROR(VLOOKUP(A51,BMM!$B$19:$I$1005,2,FALSE)," ") ->  | C51: =IFERROR(VLOOKUP(A51,BMM!$B$19:$I$1005,3,FALSE)," ") ->  | D51: =IFERROR(VLOOKUP(A51,BMM!$B$19:$I$1005,4,FALSE)," ") ->  | E51: =IFERROR(VLOOKUP(A51,BMM!$B$19:$I$1005,6,FALSE)," ") ->  | F51: =IFERROR(VLOOKUP(A51,BMM!$B$19:$I$1005,7,FALSE),0) -> 0 | G51: =IFERROR(VLOOKUP(A51,BMM!$B$19:$I$1005,8,FALSE),0) -> 0 | H51: 0
B52: =IFERROR(VLOOKUP(A52,BMM!$B$19:$I$1005,2,FALSE)," ") ->  | C52: =IFERROR(VLOOKUP(A52,BMM!$B$19:$I$1005,3,FALSE)," ") ->  | D52: =IFERROR(VLOOKUP(A52,BMM!$B$19:$I$1005,4,FALSE)," ") ->  | E52: =IFERROR(VLOOKUP(A52,BMM!$B$19:$I$1005,6,FALSE)," ") ->  | F52: =IFERROR(VLOOKUP(A52,BMM!$B$19:$I$1005,7,FALSE),0) -> 0 | G52: =IFERROR(VLOOKUP(A52,BMM!$B$19:$I$1005,8,FALSE),0) -> 0 | H52: 0
B53: =IFERROR(VLOOKUP(A53,BMM!$B$19:$I$1005,2,FALSE)," ") ->  | C53: =IFERROR(VLOOKUP(A53,BMM!$B$19:$I$1005,3,FALSE)," ") ->  | D53: =IFERROR(VLOOKUP(A53,BMM!$B$19:$I$1005,4,FALSE)," ") ->  | E53: =IFERROR(VLOOKUP(A53,BMM!$B$19:$I$1005,6,FALSE)," ") ->  | F53: =IFERROR(VLOOKUP(A53,BMM!$B$19:$I$1005,7,FALSE),0) -> 0 | G53: =IFERROR(VLOOKUP(A53,BMM!$B$19:$I$1005,8,FALSE),0) -> 0 | H53: 0
B54: =IFERROR(VLOOKUP(A54,BMM!$B$19:$I$1005,2,FALSE)," ") ->  | C54: =IFERROR(VLOOKUP(A54,BMM!$B$19:$I$1005,3,FALSE)," ") ->  | D54: =IFERROR(VLOOKUP(A54,BMM!$B$19:$I$1005,4,FALSE)," ") ->  | E54: =IFERROR(VLOOKUP(A54,BMM!$B$19:$I$1005,6,FALSE)," ") ->  | F54: =IFERROR(VLOOKUP(A54,BMM!$B$19:$I$1005,7,FALSE),0) -> 0 | G54: =IFERROR(VLOOKUP(A54,BMM!$B$19:$I$1005,8,FALSE),0) -> 0 | H54: 0
B55: =IFERROR(VLOOKUP(A55,BMM!$B$19:$I$1005,2,FALSE)," ") ->  | C55: =IFERROR(VLOOKUP(A55,BMM!$B$19:$I$1005,3,FALSE)," ") ->  | D55: =IFERROR(VLOOKUP(A55,BMM!$B$19:$I$1005,4,FALSE)," ") ->  | E55: =IFERROR(VLOOKUP(A55,BMM!$B$19:$I$1005,6,FALSE)," ") ->  | F55: =IFERROR(VLOOKUP(A55,BMM!$B$19:$I$1005,7,FALSE),0) -> 0 | G55: =IFERROR(VLOOKUP(A55,BMM!$B$19:$I$1005,8,FALSE),0) -> 0 | H55: 0
B56: =IFERROR(VLOOKUP(A56,BMM!$B$19:$I$1005,2,FALSE)," ") ->  | C56: =IFERROR(VLOOKUP(A56,BMM!$B$19:$I$1005,3,FALSE)," ") ->  | D56: =IFERROR(VLOOKUP(A56,BMM!$B$19:$I$1005,4,FALSE)," ") ->  | E56: =IFERROR(VLOOKUP(A56,BMM!$B$19:$I$1005,6,FALSE)," ") ->  | F56: =IFERROR(VLOOKUP(A56,BMM!$B$19:$I$1005,7,FALSE),0) -> 0 | G56: =IFERROR(VLOOKUP(A56,BMM!$B$19:$I$1005,8,FALSE),0) -> 0 | H56: 0
B57: =IFERROR(VLOOKUP(A57,BMM!$B$19:$I$1005,2,FALSE)," ") ->  | C57: =IFERROR(VLOOKUP(A57,BMM!$B$19:$I$1005,3,FALSE)," ") ->  | D57: =IFERROR(VLOOKUP(A57,BMM!$B$19:$I$1005,4,FALSE)," ") ->  | E57: =IFERROR(VLOOKUP(A57,BMM!$B$19:$I$1005,6,FALSE)," ") ->  | F57: =IFERROR(VLOOKUP(A57,BMM!$B$19:$I$1005,7,FALSE),0) -> 0 | G57: =IFERROR(VLOOKUP(A57,BMM!$B$19:$I$1005,8,FALSE),0) -> 0 | H57: 0
B58: =IFERROR(VLOOKUP(A58,BMM!$B$19:$I$1005,2,FALSE)," ") ->  | C58: =IFERROR(VLOOKUP(A58,BMM!$B$19:$I$1005,3,FALSE)," ") ->  | D58: =IFERROR(VLOOKUP(A58,BMM!$B$19:$I$1005,4,FALSE)," ") ->  | E58: =IFERROR(VLOOKUP(A58,BMM!$B$19:$I$1005,6,FALSE)," ") ->  | F58: =IFERROR(VLOOKUP(A58,BMM!$B$19:$I$1005,7,FALSE),0) -> 0 | G58: =IFERROR(VLOOKUP(A58,BMM!$B$19:$I$1005,8,FALSE),0) -> 0 | H58: 0
H59: =F59*G59 -> 0
B61: nº Ordem(s): | G61: =SUM(H38:H59) -> 0
E63: Valor Contratual | G63: =ASM!H8 -> 120197.168 | H63: 1
E64: Medição Anterior | G64: =MC!L63 -> 0 | H64: =IF(G64>0,G64/$G$63,0) -> 0
E65: Medição do Período | G65: =G61 -> 0 | H65: =IF(G65>0,G65/$G$63,0) -> 0
E66: Medição Acumulada | G66: =SUM(G64:G65) -> 0 | H66: =IF(G66>0,G66/$G$63,0) -> 0
E67: Saldo do Contrato | G67: =G63-G66 -> 120197.168 | H67: =H63-H66 -> 1

Sheet ASM. (hidden)
J1: AS - Autorização de Serviço
B3: AS/SCS | N3: DATA DE EMISSÃO
B5: =INFO!C6 -> 102 | N5: =INFO!C32 -> 2023-10-30
N7: =IFERROR(VLOOKUP(M7,BMM!$B$19:$I$1005,2,FALSE)," ") -> 
B8: CONTRATADA: | G8: Risoterm Isolantes Térmicos Ltda
B9: CONTRATO | G9: 4600022713 | M9: CNPJ: | O9: 01.974.371/0002-18 | W9: EMAIL: | Z9: planejamento@risoterm.com.br
B10: CONTATO: | G10: Zenon Brito | W10: FONE: | Z10: 75 - 9.9101-7078
B13: DESCRIÇÃO DO SERVIÇO: | I13: =INFO!C30 -> REMOÇÃO E RECOMPOSIÇÃO DE ISOLAMENTO
B15: Item | E15: Linha | H15: Descrição | Z15: Un | AC15: Quant. | AF15: Valor Unit./Fator | AL15: Total
A16: 100/150 | B16: 1 | C16: =IFERROR(VLOOKUP(A16,ASM!$C$18:$K$1006,2,FALSE)," ") -> 100 | E16: =IFERROR(VLOOKUP(A16,ASM!$C$18:$K$1006,3,FALSE)," ") -> 150 | H16: =IFERROR(VLOOKUP(A16,ASM!$C$18:$K$1006,4,FALSE)," ") -> ENCARREGADO | Z16: =IFERROR(VLOOKUP(A16,ASM!$C$18:$K$1006,6,FALSE)," ") -> HH | AC16: =IFERROR(VLOOKUP(A16,ASM!$C$18:$K$1006,7,FALSE)," ") -> 282.1 | AF16: =IFERROR(VLOOKUP(A16,ASM!$C$18:$K$1006,8,FALSE),0) -> 61 | AL16: =IFERROR(AF16*AC16," ") -> 17208.1
A17: 100/220 | B17: 2 | C17: =IFERROR(VLOOKUP(A17,ASM!$C$18:$K$1006,2,FALSE)," ") -> 100 | E17: =IFERROR(VLOOKUP(A17,ASM!$C$18:$K$1006,3,FALSE)," ") -> 220 | H17: =IFERROR(VLOOKUP(A17,ASM!$C$18:$K$1006,4,FALSE)," ") -> REFRATAMENTO- SPOT | Z17: =IFERROR(VLOOKUP(A17,ASM!$C$18:$K$1006,6,FALSE)," ") -> HH | AC17: =IFERROR(VLOOKUP(A17,ASM!$C$18:$K$1006,7,FALSE)," ") -> 1128.4 | AF17: =IFERROR(VLOOKUP(A17,ASM!$C$18:$K$1006,8,FALSE),0) -> 91.27 | AL17: 102989.068
B18: 3 | C18: =IFERROR(VLOOKUP(A18,ASM!$C$18:$K$1006,2,FALSE)," ") ->  | E18: =IFERROR(VLOOKUP(A18,ASM!$C$18:$K$1006,3,FALSE)," ") ->  | H18: =IFERROR(VLOOKUP(A18,ASM!$C$18:$K$1006,4,FALSE)," ") ->  | Z18: =IFERROR(VLOOKUP(A18,ASM!$C$18:$K$1006,6,FALSE)," ") ->  | AC18: =IFERROR(VLOOKUP(A18,ASM!$C$18:$K$1006,7,FALSE)," ") ->  | AF18: =IFERROR(VLOOKUP(A18,ASM!$C$18:$K$1006,8,FALSE),0) -> 0
B19: 4 | C19: =IFERROR(VLOOKUP(A19,ASM!$C$18:$K$1006,2,FALSE)," ") ->  | E19: =IFERROR(VLOOKUP(A19,ASM!$C$18:$K$1006,3,FALSE)," ") ->  | H19: =IFERROR(VLOOKUP(A19,ASM!$C$18:$K$1006,4,FALSE)," ") ->  | Z19: =IFERROR(VLOOKUP(A19,ASM!$C$18:$K$1006,6,FALSE)," ") ->  | AC19: =IFERROR(VLOOKUP(A19,ASM!$C$18:$K$1006,7,FALSE)," ") ->  | AF19: =IFERROR(VLOOKUP(A19,ASM!$C$18:$K$1006,8,FALSE),0) -> 0
B20: 5 | C20: =IFERROR(VLOOKUP(A20,ASM!$C$18:$K$1006,2,FALSE)," ") ->  | E20: =IFERROR(VLOOKUP(A20,ASM!$C$18:$K$1006,3,FALSE)," ") ->  | H20: =IFERROR(VLOOKUP(A20,ASM!$C$18:$K$1006,4,FALSE)," ") ->  | Z20: =IFERROR(VLOOKUP(A20,ASM!$C$18:$K$1006,6,FALSE)," ") ->  | AC20: =IFERROR(VLOOKUP(A20,ASM!$C$18:$K$1006,7,FALSE)," ") ->  | AF20: =IFERROR(VLOOKUP(A20,ASM!$C$18:$K$1006,8,FALSE),0) -> 0
B21: 7 | C21: =IFERROR(VLOOKUP(A21,ASM!$C$18:$K$1006,2,FALSE)," ") ->  | E21: =IFERROR(VLOOKUP(A21,ASM!$C$18:$K$1006,3,FALSE)," ") ->  | H21: =IFERROR(VLOOKUP(A21,ASM!$C$18:$K$1006,4,FALSE)," ") ->  | Z21: =IFERROR(VLOOKUP(A21,ASM!$C$18:$K$1006,6,FALSE)," ") ->  | AC21: =IFERROR(VLOOKUP(A21,ASM!$C$18:$K$1006,7,FALSE)," ") ->  | AF21: =IFERROR(VLOOKUP(A21,ASM!$C$18:$K$1006,8,FALSE),0) -> 0
B22: 8 | E22: =IFERROR(VLOOKUP(A22,ASM!$C$18:$K$1006,3,FALSE)," ") ->  | H22: =IFERROR(VLOOKUP(A22,ASM!$C$18:$K$1006,4,FALSE)," ") ->  | Z22: =IFERROR(VLOOKUP(A22,ASM!$C$18:$K$1006,6,FALSE)," ") ->  | AC22: =IFERROR(VLOOKUP(A22,ASM!$C$18:$K$1006,7,FALSE)," ") ->  | AF22: =IFERROR(VLOOKUP(A22,ASM!$C$18:$K$1006,8,FALSE),0) -> 0
B23: 9 | C23: =IFERROR(VLOOKUP(A23,ASM!$C$18:$K$1006,2,FALSE)," ") ->  | E23: =IFERROR(VLOOKUP(A23,ASM!$C$18:$K$1006,3,FALSE)," ") ->  | H23: =IFERROR(VLOOKUP(A23,ASM!$C$18:$K$1006,4,FALSE)," ") ->  | Z23: =IFERROR(VLOOKUP(A23,ASM!$C$18:$K$1006,6,FALSE)," ") ->  | AC23: =IFERROR(VLOOKUP(A23,ASM!$C$18:$K$1006,7,FALSE)," ") ->  | AF23: =IFERROR(VLOOKUP(A23,ASM!$C$18:$K$1006,8,FALSE),0) -> 0
B24: 10 | C24: =IFERROR(VLOOKUP(A24,ASM!$C$18:$K$1006,2,FALSE)," ") ->  | E24: =IFERROR(VLOOKUP(A24,ASM!$C$18:$K$1006,3,FALSE)," ") ->  | H24: =IFERROR(VLOOKUP(A24,ASM!$C$18:$K$1006,4,FALSE)," ") ->  | Z24: =IFERROR(VLOOKUP(A24,ASM!$C$18:$K$1006,6,FALSE)," ") ->  | AC24: =IFERROR(VLOOKUP(A24,ASM!$C$18:$K$1006,7,FALSE)," ") ->  | AF24: =IFERROR(VLOOKUP(A24,ASM!$C$18:$K$1006,8,FALSE),0) -> 0
B25: 11 | C25: =IFERROR(VLOOKUP(A25,ASM!$C$18:$K$1006,2,FALSE)," ") ->  | E25: =IFERROR(VLOOKUP(A25,ASM!$C$18:$K$1006,3,FALSE)," ") ->  | H25: =IFERROR(VLOOKUP(A25,ASM!$C$18:$K$1006,4,FALSE)," ") ->  | Z25: =IFERROR(VLOOKUP(A25,ASM!$C$18:$K$1006,6,FALSE)," ") ->  | AC25: =IFERROR(VLOOKUP(A25,ASM!$C$18:$K$1006,7,FALSE)," ") ->  | AF25: =IFERROR(VLOOKUP(A25,ASM!$C$18:$K$1006,8,FALSE),0) -> 0
B26: 12 | E26: =IFERROR(VLOOKUP(A26,ASM!$C$18:$K$1006,3,FALSE)," ") ->  | H26: =IFERROR(VLOOKUP(A26,ASM!$C$18:$K$1006,4,FALSE)," ") ->  | Z26: =IFERROR(VLOOKUP(A26,ASM!$C$18:$K$1006,6,FALSE)," ") ->  | AC26: =IFERROR(VLOOKUP(A26,ASM!$C$18:$K$1006,7,FALSE)," ") ->  | AF26: =IFERROR(VLOOKUP(A26,ASM!$C$18:$K$1006,8,FALSE),0) -> 0
B27: 13 | C27: =IFERROR(VLOOKUP(A27,ASM!$C$18:$K$1006,2,FALSE)," ") ->  | E27: =IFERROR(VLOOKUP(A27,ASM!$C$18:$K$1006,3,FALSE)," ") ->  | H27: =IFERROR(VLOOKUP(A27,ASM!$C$18:$K$1006,4,FALSE)," ") ->  | Z27: =IFERROR(VLOOKUP(A27,ASM!$C$18:$K$1006,6,FALSE)," ") ->  | AC27: =IFERROR(VLOOKUP(A27,ASM!$C$18:$K$1006,7,FALSE)," ") ->  | AF27: =IFERROR(VLOOKUP(A27,ASM!$C$18:$K$1006,8,FALSE),0) -> 0
B28: 14 | C28: =IFERROR(VLOOKUP(A28,ASM!$C$18:$K$1006,2,FALSE)," ") ->  | E28: =IFERROR(VLOOKUP(A28,ASM!$C$18:$K$1006,3,FALSE)," ") ->  | H28: =IFERROR(VLOOKUP(A28,ASM!$C$18:$K$1006,4,FALSE)," ") ->  | Z28: =IFERROR(VLOOKUP(A28,ASM!$C$18:$K$1006,6,FALSE)," ") ->  | AC28: =IFERROR(VLOOKUP(A28,ASM!$C$18:$K$1006,7,FALSE)," ") ->  | AF28: =IFERROR(VLOOKUP(A28,ASM!$C$18:$K$1006,8,FALSE),0) -> 0
B29: 15 | C29: =IFERROR(VLOOKUP(A29,ASM!$C$18:$K$1006,2,FALSE)," ") ->  | E29: =IFERROR(VLOOKUP(A29,ASM!$C$18:$K$1006,3,FALSE)," ") ->  | H29: =IFERROR(VLOOKUP(A29,ASM!$C$18:$K$1006,4,FALSE)," ") ->  | Z29: =IFERROR(VLOOKUP(A29,ASM!$C$18:$K$1006,6,FALSE)," ") ->  | AC29: =IFERROR(VLOOKUP(A29,ASM!$C$18:$K$1006,7,FALSE)," ") ->  | AF29: =IFERROR(VLOOKUP(A29,ASM!$C$18:$K$1006,8,FALSE),0) -> 0
B30: 16 | E30: =IFERROR(VLOOKUP(A30,ASM!$C$18:$K$1006,3,FALSE)," ") ->  | H30: =IFERROR(VLOOKUP(A30,ASM!$C$18:$K$1006,4,FALSE)," ") ->  | Z30: =IFERROR(VLOOKUP(A30,ASM!$C$18:$K$1006,6,FALSE)," ") ->  | AC30: =IFERROR(VLOOKUP(A30,ASM!$C$18:$K$1006,7,FALSE)," ") ->  | AF30: =IFERROR(VLOOKUP(A30,ASM!$C$18:$K$1006,8,FALSE),0) -> 0
B31: 17 | C31: =IFERROR(VLOOKUP(A31,ASM!$C$18:$K$1006,2,FALSE)," ") ->  | E31: =IFERROR(VLOOKUP(A31,ASM!$C$18:$K$1006,3,FALSE)," ") ->  | H31: =IFERROR(VLOOKUP(A31,ASM!$C$18:$K$1006,4,FALSE)," ") ->  | Z31: =IFERROR(VLOOKUP(A31,ASM!$C$18:$K$1006,6,FALSE)," ") ->  | AC31: =IFERROR(VLOOKUP(A31,ASM!$C$18:$K$1006,7,FALSE)," ") ->  | AF31: =IFERROR(VLOOKUP(A31,ASM!$C$18:$K$1006,8,FALSE),0) -> 0
B32: 18 | C32: =IFERROR(VLOOKUP(A32,ASM!$C$18:$K$1006,2,FALSE)," ") ->  | E32: =IFERROR(VLOOKUP(A32,ASM!$C$18:$K$1006,3,FALSE)," ") ->  | H32: =IFERROR(VLOOKUP(A32,ASM!$C$18:$K$1006,4,FALSE)," ") ->  | Z32: =IFERROR(VLOOKUP(A32,ASM!$C$18:$K$1006,6,FALSE)," ") ->  | AC32: =IFERROR(VLOOKUP(A32,ASM!$C$18:$K$1006,7,FALSE)," ") ->  | AF32: =IFERROR(VLOOKUP(A32,ASM!$C$18:$K$1006,8,FALSE),0) -> 0
B33: 19 | C33: =IFERROR(VLOOKUP(A33,ASM!$C$18:$K$1006,2,FALSE)," ") ->  | E33: =IFERROR(VLOOKUP(A33,ASM!$C$18:$K$1006,3,FALSE)," ") ->  | H33: =IFERROR(VLOOKUP(A33,ASM!$C$18:$K$1006,4,FALSE)," ") ->  | Z33: =IFERROR(VLOOKUP(A33,ASM!$C$18:$K$1006,6,FALSE)," ") ->  | AC33: =IFERROR(VLOOKUP(A33,ASM!$C$18:$K$1006,7,FALSE)," ") ->  | AF33: =IFERROR(VLOOKUP(A33,ASM!$C$18:$K$1006,8,FALSE),0) -> 0
B34: 20 | E34: =IFERROR(VLOOKUP(A34,ASM!$C$18:$K$1006,3,FALSE)," ") ->  | H34: =IFERROR(VLOOKUP(A34,ASM!$C$18:$K$1006,4,FALSE)," ") ->  | Z34: =IFERROR(VLOOKUP(A34,ASM!$C$18:$K$1006,6,FALSE)," ") ->  | AC34: =IFERROR(VLOOKUP(A34,ASM!$C$18:$K$1006,7,FALSE)," ") ->  | AF34: =IFERROR(VLOOKUP(A34,ASM!$C$18:$K$1006,8,FALSE),0) -> 0
B35: 21 | C35: =IFERROR(VLOOKUP(A35,ASM!$C$18:$K$1006,2,FALSE)," ") ->  | E35: =IFERROR(VLOOKUP(A35,ASM!$C$18:$K$1006,3,FALSE)," ") ->  | H35: =IFERROR(VLOOKUP(A35,ASM!$C$18:$K$1006,4,FALSE)," ") ->  | Z35: =IFERROR(VLOOKUP(A35,ASM!$C$18:$K$1006,6,FALSE)," ") ->  | AC35: =IFERROR(VLOOKUP(A35,ASM!$C$18:$K$1006,7,FALSE)," ") ->  | AF35: =IFERROR(VLOOKUP(A35,ASM!$C$18:$K$1006,8,FALSE),0) -> 0
B36: 22 | C36: =IFERROR(VLOOKUP(A36,ASM!$C$18:$K$1006,2,FALSE)," ") ->  | E36: =IFERROR(VLOOKUP(A36,ASM!$C$18:$K$1006,3,FALSE)," ") ->  | H36: =IFERROR(VLOOKUP(A36,ASM!$C$18:$K$1006,4,FALSE)," ") ->  | Z36: =IFERROR(VLOOKUP(A36,ASM!$C$18:$K$1006,6,FALSE)," ") ->  | AC36: =IFERROR(VLOOKUP(A36,ASM!$C$18:$K$1006,7,FALSE)," ") ->  | AF36: =IFERROR(VLOOKUP(A36,ASM!$C$18:$K$1006,8,FALSE),0) -> 0
B38: OBSERVAÇÕES | Z38: TOTAL DA "AS" | AL38: =SUM(AL16:AQ37) -> 120197.168
B44: N°
B46: APROVAÇÃO DA A.S
C52: ASS.: | R52: ASS.: | AH52: ASS.:
C53: EMPRESA | R53: SOLICITANTE | AH53: APROVADOR BRASKEM
C55: Data: _____/_____/_____ | R55: Data: _____/_____/_____ | AH55: Data: _____/_____/_____

Sheet ASM (hidden)
H2: AS - Autorização de Serviço | K2: =INFO!C6 -> 102
K3: =INFO!C12 -> 0.4
K4: ="UNIDADE: "&INFO!C20 -> UNIDADE: 94
K5: ="EMISSÃO: "&TEXT(MAX(INFO!C32),"DD/mm/aa") -> EMISSÃO: 30/10/23
C7: CONTRATO Nº: | H7: VALOR TOTAL (R$): | J7: CONDIÇÃO DE EXECUÇÃO DO SERVIÇO:
C8: 4600019864 | H8: =K1007 -> 120197.168 | J8: 1. ( X ) Normal
C9: EMPRESA: | H9: PRAZO DE EXECUÇÃO: | J9: 2. ( ) Emergência
C10: MONSERTEC ENGENHARIA LTDA | H10: ="21/"&TEXT(INFO!E32-30,"mm/AA")&" A "&"20/"&TEXT(MAX(INFO!E32),"mm/aa") -> 21/12/21 A 20/01/22 | J10: 3. ( ) Parada
C11: ESCOPO DO SERVIÇO / LOCAL DE EXECUÇÃO (CENTRO DE PRODUÇÃO):
C12: =INFO!C24 -> ISOLAMENTO
C13: =INFO!C34 -> REMOÇÃO E RECOMPOSIÇÃO DE ISOLAMENTO
C14: ="AS-"&INFO!C6&"/22" -> AS-102/22
C16: COMPOSIÇÃO DO VALOR CONFORME ITENS CONTRATUAIS
A17: ITEM | B17: LINHA | C17: Item do Contrato | F17: Descrição | G17: Fator | H17: Und. | I17: Qtde. | J17: P. Unitário | K17: Total (R$)
A18: 10 | B18: 1010 | C18: =D18&"/"&E18 -> 10/1010 | D18: 10 | E18: 1010 | F18: =VLOOKUP(C18,PREÇOS!$W$2:$AA$1918,5,FALSE) -> APLICAÇÃO SILICATO DE CÁLCIO 1/2''X25,4 | G18: 1 | H18: =VLOOKUP(C18,PREÇOS!$W$2:$AB$1918,6,FALSE) -> m | I18: =IF(H18="m",SUMIFS(TUB!W:W,TUB!AU:AU,ASM!C18)+SUMIFS(TUB!AC:AC,TUB!AV:AV,ASM!C18)+SUMIFS(TUB!AI:AI,TUB!AW:AW,ASM!C18),SUMIFS(TUB!X:X,TUB!AU:AU,ASM!C18)+SUMIFS(TUB!AD:AD,TUB!AV:AV,ASM!C18)+SUMIFS(TUB!AJ:AJ,TUB!AW:AW,ASM!C18))+SUMIFS(EQUIP!AR:AR,EQUIP!BM:BM,ASM!C18)+SUMIFS(EQUIP!AV:AV,EQUIP!BN:BN,ASM!C18)+SUMIFS(EQUIP!AZ:AZ,EQUIP!BO:BO,ASM!C18) -> 0 | J18: =VLOOKUP(C18,PREÇOS!$W$2:$AA$1918,2,FALSE) -> 34.57 | K18: =J18*I18*G18 -> 0 | M18: APL
A19: 10 | B19: 1020 | C19: =D19&"/"&E19 -> 10/1020 | D19: 10 | E19: 1020 | F19: =VLOOKUP(C19,PREÇOS!$W$2:$AA$1918,5,FALSE) -> APLICAÇÃO SILICATO DE CÁLCIO 1/2''X38,1 | G19: 1 | H19: =VLOOKUP(C19,PREÇOS!$W$2:$AB$1918,6,FALSE) -> m | I19: =IF(H19="m",SUMIFS(TUB!W:W,TUB!AU:AU,ASM!C19)+SUMIFS(TUB!AC:AC,TUB!AV:AV,ASM!C19)+SUMIFS(TUB!AI:AI,TUB!AW:AW,ASM!C19),SUMIFS(TUB!X:X,TUB!AU:AU,ASM!C19)+SUMIFS(TUB!AD:AD,TUB!AV:AV,ASM!C19)+SUMIFS(TUB!AJ:AJ,TUB!AW:AW,ASM!C19))+SUMIFS(EQUIP!AR:AR,EQUIP!BM:BM,ASM!C19)+SUMIFS(EQUIP!AV:AV,EQUIP!BN:BN,ASM!C19)+SUMIFS(EQUIP!AZ:AZ,EQUIP!BO:BO,ASM!C19) -> 0 | J19: =VLOOKUP(C19,PREÇOS!$W$2:$AA$1918,2,FALSE) -> 40.13 | K19: =J19*I19*G19 -> 0 | M19: APL
A20: 10 | B20: 1030 | C20: 10/1030 | D20: 10 | E20: 1030 | F20: =VLOOKUP(C20,PREÇOS!$W$2:$AA$1918,5,FALSE) -> APLICAÇÃO SILICATO DE CÁLCIO 1/2''X50,8 | G20: 1 | H20: =VLOOKUP(C20,PREÇOS!$W$2:$AB$1918,6,FALSE) -> m | I20: =IF(H20="m",SUMIFS(TUB!W:W,TUB!AU:AU,ASM!C20)+SUMIFS(TUB!AC:AC,TUB!AV:AV,ASM!C20)+SUMIFS(TUB!AI:AI,TUB!AW:AW,ASM!C20),SUMIFS(TUB!X:X,TUB!AU:AU,ASM!C20)+SUMIFS(TUB!AD:AD,TUB!AV:AV,ASM!C20)+SUMIFS(TUB!AJ:AJ,TUB!AW:AW,ASM!C20))+SUMIFS(EQUIP!AR:AR,EQUIP!BM:BM,ASM!C20)+SUMIFS(EQUIP!AV:AV,EQUIP!BN:BN,ASM!C20)+SUMIFS(EQUIP!AZ:AZ,EQUIP!BO:BO,ASM!C20) -> 0 | J20: =VLOOKUP(C20,PREÇOS!$W$2:$AA$1918,2,FALSE) -> 43.84 | K20: 0 | M20: APL
A21: 10 | B21: 1040 | C21: 10/1040 | D21: 10 | E21: 1040 | F21: =VLOOKUP(C21,PREÇOS!$W$2:$AA$1918,5,FALSE) -> APLICAÇÃO SILICATO DE CÁLCIO 3/4''X25,4 | G21: 1 | H21: =VLOOKUP(C21,PREÇOS!$W$2:$AB$1918,6,FALSE) -> m | I21: =IF(H21="m",SUMIFS(TUB!W:W,TUB!AU:AU,ASM!C21)+SUMIFS(TUB!AC:AC,TUB!AV:AV,ASM!C21)+SUMIFS(TUB!AI:AI,TUB!AW:AW,ASM!C21),SUMIFS(TUB!X:X,TUB!AU:AU,ASM!C21)+SUMIFS(TUB!AD:AD,TUB!AV:AV,ASM!C21)+SUMIFS(TUB!AJ:AJ,TUB!AW:AW,ASM!C21))+SUMIFS(EQUIP!AR:AR,EQUIP!BM:BM,ASM!C21)+SUMIFS(EQUIP!AV:AV,EQUIP!BN:BN,ASM!C21)+SUMIFS(EQUIP!AZ:AZ,EQUIP!BO:BO,ASM!C21) -> 0 | J21: =VLOOKUP(C21,PREÇOS!$W$2:$AA$1918,2,FALSE) -> 40.13 | K21: 0 | M21: APL
A22: 10 | B22: 1050 | C22: 10/1050 | D22: 10 | E22: 1050 | F22: =VLOOKUP(C22,PREÇOS!$W$2:$AA$1918,5,FALSE) -> APLICAÇÃO SILICATO DE CÁLCIO 3/4''X38,1 | G22: 1 | H22: =VLOOKUP(C22,PREÇOS!$W$2:$AB$1918,6,FALSE) -> m | I22: =IF(H22="m",SUMIFS(TUB!W:W,TUB!AU:AU,ASM!C22)+SUMIFS(TUB!AC:AC,TUB!AV:AV,ASM!C22)+SUMIFS(TUB!AI:AI,TUB!AW:AW,ASM!C22),SUMIFS(TUB!X:X,TUB!AU:AU,ASM!C22)+SUMIFS(TUB!AD:AD,TUB!AV:AV,ASM!C22)+SUMIFS(TUB!AJ:AJ,TUB!AW:AW,ASM!C22))+SUMIFS(EQUIP!AR:AR,EQUIP!BM:BM,ASM!C22)+SUMIFS(EQUIP!AV:AV,EQUIP!BN:BN,ASM!C22)+SUMIFS(EQUIP!AZ:AZ,EQUIP!BO:BO,ASM!C22) -> 0 | J22: =VLOOKUP(C22,PREÇOS!$W$2:$AA$1918,2,FALSE) -> 51.86 | K22: 0 | M22: APL
A23: 10 | B23: 1060 | C23: 10/1060 | D23: 10 | E23: 1060 | F23: =VLOOKUP(C23,PREÇOS!$W$2:$AA$1918,5,FALSE) -> APLICAÇÃO SILICATO DE CÁLCIO 3/4''X50,8 | G23: 1 | H23: =VLOOKUP(C23,PREÇOS!$W$2:$AB$1918,6,FALSE) -> m | I23: =IF(H23="m",SUMIFS(TUB!W:W,TUB!AU:AU,ASM!C23)+SUMIFS(TUB!AC:AC,TUB!AV:AV,ASM!C23)+SUMIFS(TUB!AI:AI,TUB!AW:AW,ASM!C23),SUMIFS(TUB!X:X,TUB!AU:AU,ASM!C23)+SUMIFS(TUB!AD:AD,TUB!AV:AV,ASM!C23)+SUMIFS(TUB!AJ:AJ,TUB!AW:AW,ASM!C23))+SUMIFS(EQUIP!AR:AR,EQUIP!BM:BM,ASM!C23)+SUMIFS(EQUIP!AV:AV,EQUIP!BN:BN,ASM!C23)+SUMIFS(EQUIP!AZ:AZ,EQUIP!BO:BO,ASM!C23) -> 0 | J23: =VLOOKUP(C23,PREÇOS!$W$2:$AA$1918,2,FALSE) -> 61.74 | K23: 0 | M23: APL
A24: 10 | B24: 1070 | C24: 10/1070 | D24: 10 | E24: 1070 | F24: =VLOOKUP(C24,PREÇOS!$W$2:$AA$1918,5,FALSE) -> APLICAÇÃO SILICATO DE CÁLCIO 3/4''X63,5 | G24: 1 | H24: =VLOOKUP(C24,PREÇOS!$W$2:$AB$1918,6,FALSE) -> m | I24: =IF(H24="m",SUMIFS(TUB!W:W,TUB!AU:AU,ASM!C24)+SUMIFS(TUB!AC:AC,TUB!AV:AV,ASM!C24)+SUMIFS(TUB!AI:AI,TUB!AW:AW,ASM!C24),SUMIFS(TUB!X:X,TUB!AU:AU,ASM!C24)+SUMIFS(TUB!AD:AD,TUB!AV:AV,ASM!C24)+SUMIFS(TUB!AJ:AJ,TUB!AW:AW,ASM!C24))+SUMIFS(EQUIP!AR:AR,EQUIP!BM:BM,ASM!C24)+SUMIFS(EQUIP!AV:AV,EQUIP!BN:BN,ASM!C24)+SUMIFS(EQUIP!AZ:AZ,EQUIP!BO:BO,ASM!C24) -> 0 | J24: =VLOOKUP(C24,PREÇOS!$W$2:$AA$1918,2,FALSE) -> 64.83 | K24: 0 | M24: APL
A25: 10 | B25: 1080 | C25: 10/1080 | D25: 10 | E25: 1080 | F25: =VLOOKUP(C25,PREÇOS!$W$2:$AA$1918,5,FALSE) -> APLICAÇÃO SILICATO DE CÁLCIO 1''X25,4 | G25: 1 | H25: =VLOOKUP(C25,PREÇOS!$W$2:$AB$1918,6,FALSE) -> m | I25: =IF(H25="m",SUMIFS(TUB!W:W,TUB!AU:AU,ASM!C25)+SUMIFS(TUB!AC:AC,TUB!AV:AV,ASM!C25)+SUMIFS(TUB!AI:AI,TUB!AW:AW,ASM!C25),SUMIFS(TUB!X:X,TUB!AU:AU,ASM!C25)+SUMIFS(TUB!AD:AD,TUB!AV:AV,ASM!C25)+SUMIFS(TUB!AJ:AJ,TUB!AW:AW,ASM!C25))+SUMIFS(EQUIP!AR:AR,EQUIP!BM:BM,ASM!C25)+SUMIFS(EQUIP!AV:AV,EQUIP!BN:BN,ASM!C25)+SUMIFS(EQUIP!AZ:AZ,EQUIP!BO:BO,ASM!C25) -> 0 | J25: =VLOOKUP(C25,PREÇOS!$W$2:$AA$1918,2,FALSE) -> 49.39 | K25: 0 | M25: APL
A26: 10 | B26: 1090 | C26: 10/1090 | D26: 10 | E26: 1090 | F26: =VLOOKUP(C26,PREÇOS!$W$2:$AA$1918,5,FALSE) -> APLICAÇÃO SILICATO DE CÁLCIO 1''X38,1 | G26: 1 | H26: =VLOOKUP(C26,PREÇOS!$W$2:$AB$1918,6,FALSE) -> m | I26: =IF(H26="m",SUMIFS(TUB!W:W,TUB!AU:AU,ASM!C26)+SUMIFS(TUB!AC:AC,TUB!AV:AV,ASM!C26)+SUMIFS(TUB!AI:AI,TUB!AW:AW,ASM!C26),SUMIFS(TUB!X:X,TUB!AU:AU,ASM!C26)+SUMIFS(TUB!AD:AD,TUB!AV:AV,ASM!C26)+SUMIFS(TUB!AJ:AJ,TUB!AW:AW,ASM!C26))+SUMIFS(EQUIP!AR:AR,EQUIP!BM:BM,ASM!C26)+SUMIFS(EQUIP!AV:AV,EQUIP!BN:BN,ASM!C26)+SUMIFS(EQUIP!AZ:AZ,EQUIP!BO:BO,ASM!C26) -> 0 | J26: =VLOOKUP(C26,PREÇOS!$W$2:$AA$1918,2,FALSE) -> 53.1 | K26: 0 | M26: APL
A27: 10 | B27: 1100 | C27: 10/1100 | D27: 10 | E27: 1100 | F27: =VLOOKUP(C27,PREÇOS!$W$2:$AA$1918,5,FALSE) -> APLICAÇÃO SILICATO DE CÁLCIO 1''X50,8 | G27: 1 | H27: =VLOOKUP(C27,PREÇOS!$W$2:$AB$1918,6,FALSE) -> m | I27: =IF(H27="m",SUMIFS(TUB!W:W,TUB!AU:AU,ASM!C27)+SUMIFS(TUB!AC:AC,TUB!AV:AV,ASM!C27)+SUMIFS(TUB!AI:AI,TUB!AW:AW,ASM!C27),SUMIFS(TUB!X:X,TUB!AU:AU,ASM!C27)+SUMIFS(TUB!AD:AD,TUB!AV:AV,ASM!C27)+SUMIFS(TUB!AJ:AJ,TUB!AW:AW,ASM!C27))+SUMIFS(EQUIP!AR:AR,EQUIP!BM:BM,ASM!C27)+SUMIFS(EQUIP!AV:AV,EQUIP!BN:BN,ASM!C27)+SUMIFS(EQUIP!AZ:AZ,EQUIP!BO:BO,ASM!C27) -> 0 | J27: =VLOOKUP(C27,PREÇOS!$W$2:$AA$1918,2,FALSE) -> 55.57 | K27: 0 | M27: APL
A28: 10 | B28: 1110 | C28: 10/1110 | D28: 10 | E28: 1110 | F28: =VLOOKUP(C28,PREÇOS!$W$2:$AA$1918,5,FALSE) -> APLICAÇÃO SILICATO DE CÁLCIO 1''X63,5 | G28: 1 | H28: =VLOOKUP(C28,PREÇOS!$W$2:$AB$1918,6,FALSE) -> m | I28: =IF(H28="m",SUMIFS(TUB!W:W,TUB!AU:AU,ASM!C28)+SUMIFS(TUB!AC:AC,TUB!AV:AV,ASM!C28)+SUMIFS(TUB!AI:AI,TUB!AW:AW,ASM!C28),SUMIFS(TUB!X:X,TUB!AU:AU,ASM!C28)+SUMIFS(TUB!AD:AD,TUB!AV:AV,ASM!C28)+SUMIFS(TUB!AJ:AJ,TUB!AW:AW,ASM!C28))+SUMIFS(EQUIP!AR:AR,EQUIP!BM:BM,ASM!C28)+SUMIFS(EQUIP!AV:AV,EQUIP!BN:BN,ASM!C28)+SUMIFS(EQUIP!AZ:AZ,EQUIP!BO:BO,ASM!C28) -> 0 | J28: =VLOOKUP(C28,PREÇOS!$W$2:$AA$1918,2,FALSE) -> 59.27 | K28: 0 | M28: APL
A29: 10 | B29: 1120 | C29: 10/1120 | D29: 10 | E29: 1120 | F29: =VLOOKUP(C29,PREÇOS!$W$2:$AA$1918,5,FALSE) -> APLICAÇÃO SILICATO DE CÁLCIO 1''X76,3 | G29: 1 | H29: =VLOOKUP(C29,PREÇOS!$W$2:$AB$1918,6,FALSE) -> m | I29: =IF(H29="m",SUMIFS(TUB!W:W,TUB!AU:AU,ASM!C29)+SUMIFS(TUB!AC:AC,TUB!AV:AV,ASM!C29)+SUMIFS(TUB!AI:AI,TUB!AW:AW,ASM!C29),SUMIFS(TUB!X:X,TUB!AU:AU,ASM!C29)+SUMIFS(TUB!AD:AD,TUB!AV:AV,ASM!C29)+SUMIFS(TUB!AJ:AJ,TUB!AW:AW,ASM!C29))+SUMIFS(EQUIP!AR:AR,EQUIP!BM:BM,ASM!C29)+SUMIFS(EQUIP!AV:AV,EQUIP!BN:BN,ASM!C29)+SUMIFS(EQUIP!AZ:AZ,EQUIP!BO:BO,ASM!C29) -> 0 | J29: =VLOOKUP(C29,PREÇOS!$W$2:$AA$1918,2,FALSE) -> 62.97 | K29: 0 | M29: APL
A30: 10 | B30: 1130 | C30: 10/1130 | D30: 10 | E30: 1130 | F30: =VLOOKUP(C30,PREÇOS!$W$2:$AA$1918,5,FALSE) -> APLICAÇÃO SILICATO DE CÁLCIO 1 1/2''X25,4 | G30: 1 | H30: =VLOOKUP(C30,PREÇOS!$W$2:$AB$1918,6,FALSE) -> m | I30: =IF(H30="m",SUMIFS(TUB!W:W,TUB!AU:AU,ASM!C30)+SUMIFS(TUB!AC:AC,TUB!AV:AV,ASM!C30)+SUMIFS(TUB!AI:AI,TUB!AW:AW,ASM!C30),SUMIFS(TUB!X:X,TUB!AU:AU,ASM!C30)+SUMIFS(TUB!AD:AD,TUB!AV:AV,ASM!C30)+SUMIFS(TUB!AJ:AJ,TUB!AW:AW,ASM!C30))+SUMIFS(EQUIP!AR:AR,EQUIP!BM:BM,ASM!C30)+SUMIFS(EQUIP!AV:AV,EQUIP!BN:BN,ASM!C30)+SUMIFS(EQUIP!AZ:AZ,EQUIP!BO:BO,ASM!C30) -> 0 | J30: =VLOOKUP(C30,PREÇOS!$W$2:$AA$1918,2,FALSE) -> 56.8 | K30: 0 | M30: APL
A31: 10 | B31: 1140 | C31: 10/1140 | D31: 10 | E31: 1140 | F31: =VLOOKUP(C31,PREÇOS!$W$2:$AA$1918,5,FALSE) -> APLICAÇÃO SILICATO DE CÁLCIO 1 1/2''X38,1 | G31: 1 | H31: =VLOOKUP(C31,PREÇOS!$W$2:$AB$1918,6,FALSE) -> m | I31: =IF(H31="m",SUMIFS(TUB!W:W,TUB!AU:AU,ASM!C31)+SUMIFS(TUB!AC:AC,TUB!AV:AV,ASM!C31)+SUMIFS(TUB!AI:AI,TUB!AW:AW,ASM!C31),SUMIFS(TUB!X:X,TUB!AU:AU,ASM!C31)+SUMIFS(TUB!AD:AD,TUB!AV:AV,ASM!C31)+SUMIFS(TUB!AJ:AJ,TUB!AW:AW,ASM!C31))+SUMIFS(EQUIP!AR:AR,EQUIP!BM:BM,ASM!C31)+SUMIFS(EQUIP!AV:AV,EQUIP!BN:BN,ASM!C31)+SUMIFS(EQUIP!AZ:AZ,EQUIP!BO:BO,ASM!C31) -> 0 | J31: =VLOOKUP(C31,PREÇOS!$W$2:$AA$1918,2,FALSE) -> 65.44 | K31: 0 | M31: APL
A32: 10 | B32: 1150 | C32: 10/1150 | D32: 10 | E32: 1150 | F32: =VLOOKUP(C32,PREÇOS!$W$2:$AA$1918,5,FALSE) -> APLICAÇÃO SILICATO DE CÁLCIO 1 1/2''X50,8 | G32: 1 | H32: =VLOOKUP(C32,PREÇOS!$W$2:$AB$1918,6,FALSE) -> m | I32: =IF(H32="m",SUMIFS(TUB!W:W,TUB!AU:AU,ASM!C32)+SUMIFS(TUB!AC:AC,TUB!AV:AV,ASM!C32)+SUMIFS(TUB!AI:AI,TUB!AW:AW,ASM!C32),SUMIFS(TUB!X:X,TUB!AU:AU,ASM!C32)+SUMIFS(TUB!AD:AD,TUB!AV:AV,ASM!C32)+SUMIFS(TUB!AJ:AJ,TUB!AW:AW,ASM!C32))+SUMIFS(EQUIP!AR:AR,EQUIP!BM:BM,ASM!C32)+SUMIFS(EQUIP!AV:AV,EQUIP!BN:BN,ASM!C32)+SUMIFS(EQUIP!AZ:AZ,EQUIP!BO:BO,ASM!C32) -> 0 | J32: =VLOOKUP(C32,PREÇOS!$W$2:$AA$1918,2,FALSE) -> 76.56 | K32: 0 | M32: APL
A33: 10 | B33: 1160 | C33: 10/1160 | D33: 10 | E33: 1160 | F33: =VLOOKUP(C33,PREÇOS!$W$2:$AA$1918,5,FALSE) -> APLICAÇÃO SILICATO DE CÁLCIO 1 1/2''X63,5 | G33: 1 | H33: =VLOOKUP(C33,PREÇOS!$W$2:$AB$1918,6,FALSE) -> m | I33: =IF(H33="m",SUMIFS(TUB!W:W,TUB!AU:AU,ASM!C33)+SUMIFS(TUB!AC:AC,TUB!AV:AV,ASM!C33)+SUMIFS(TUB!AI:AI,TUB!AW:AW,ASM!C33),SUMIFS(TUB!X:X,TUB!AU:AU,ASM!C33)+SUMIFS(TUB!AD:AD,TUB!AV:AV,ASM!C33)+SUMIFS(TUB!AJ:AJ,TUB!AW:AW,ASM!C33))+SUMIFS(EQUIP!AR:AR,EQUIP!BM:BM,ASM!C33)+SUMIFS(EQUIP!AV:AV,EQUIP!BN:BN,ASM!C33)+SUMIFS(EQUIP!AZ:AZ,EQUIP!BO:BO,ASM!C33) -> 0 | J33: =VLOOKUP(C33,PREÇOS!$W$2:$AA$1918,2,FALSE) -> 85.82 | K33: 0 | M33: APL
A34: 10 | B34: 1170 | C34: 10/1170 | D34: 10 | E34: 1170 | F34: =VLOOKUP(C34,PREÇOS!$W$2:$AA$1918,5,FALSE) -> APLICAÇÃO SILICATO DE CÁLCIO 1 1/2''X76,3 | G34: 1 | H34: =VLOOKUP(C34,PREÇOS!$W$2:$AB$1918,6,FALSE) -> m | I34: =IF(H34="m",SUMIFS(TUB!W:W,TUB!AU:AU,ASM!C34)+SUMIFS(TUB!AC:AC,TUB!AV:AV,ASM!C34)+SUMIFS(TUB!AI:AI,TUB!AW:AW,ASM!C34),SUMIFS(TUB!X:X,TUB!AU:AU,ASM!C34)+SUMIFS(TUB!AD:AD,TUB!AV:AV,ASM!C34)+SUMIFS(TUB!AJ:AJ,TUB!AW:AW,ASM!C34))+SUMIFS(EQUIP!AR:AR,EQUIP!BM:BM,ASM!C34)+SUMIFS(EQUIP!AV:AV,EQUIP!BN:BN,ASM!C34)+SUMIFS(EQUIP!AZ:AZ,EQUIP!BO:BO,ASM!C34) -> 0 | J34: =VLOOKUP(C34,PREÇOS!$W$2:$AA$1918,2,FALSE) -> 95.08 | K34: 0 | M34: APL
A35: 10 | B35: 1180 | C35: 10/1180 | D35: 10 | E35: 1180 | F35: =VLOOKUP(C35,PREÇOS!$W$2:$AA$1918,5,FALSE) -> APLICAÇÃO SILICATO DE CÁLCIO 2''X25,4 | G35: 1 | H35: =VLOOKUP(C35,PREÇOS!$W$2:$AB$1918,6,FALSE) -> m | I35: =IF(H35="m",SUMIFS(TUB!W:W,TUB!AU:AU,ASM!C35)+SUMIFS(TUB!AC:AC,TUB!AV:AV,ASM!C35)+SUMIFS(TUB!AI:AI,TUB!AW:AW,ASM!C35),SUMIFS(TUB!X:X,TUB!AU:AU,ASM!C35)+SUMIFS(TUB!AD:AD,TUB!AV:AV,ASM!C35)+SUMIFS(TUB!AJ:AJ,TUB!AW:AW,ASM!C35))+SUMIFS(EQUIP!AR:AR,EQUIP!BM:BM,ASM!C35)+SUMIFS(EQUIP!AV:AV,EQUIP!BN:BN,ASM!C35)+SUMIFS(EQUIP!AZ:AZ,EQUIP!BO:BO,ASM!C35) -> 0 | J35: =VLOOKUP(C35,PREÇOS!$W$2:$AA$1918,2,FALSE) -> 67.3 | K35: 0 | M35: APL
A36: 10 | B36: 1190 | C36: 10/1190 | D36: 10 | E36: 1190 | F36: =VLOOKUP(C36,PREÇOS!$W$2:$AA$1918,5,FALSE) -> APLICAÇÃO SILICATO DE CÁLCIO 2''X38,1 | G36: 1 | H36: =VLOOKUP(C36,PREÇOS!$W$2:$AB$1918,6,FALSE) -> m | I36: =IF(H36="m",SUMIFS(TUB!W:W,TUB!AU:AU,ASM!C36)+SUMIFS(TUB!AC:AC,TUB!AV:AV,ASM!C36)+SUMIFS(TUB!AI:AI,TUB!AW:AW,ASM!C36),SUMIFS(TUB!X:X,TUB!AU:AU,ASM!C36)+SUMIFS(TUB!AD:AD,TUB!AV:AV,ASM!C36)+SUMIFS(TUB!AJ:AJ,TUB!AW:AW,ASM!C36))+SUMIFS(EQUIP!AR:AR,EQUIP!BM:BM,ASM!C36)+SUMIFS(EQUIP!AV:AV,EQUIP!BN:BN,ASM!C36)+SUMIFS(EQUIP!AZ:AZ,EQUIP!BO:BO,ASM!C36) -> 0 | J36: =VLOOKUP(C36,PREÇOS!$W$2:$AA$1918,2,FALSE) -> 75.94 | K36: 0 | M36: APL
A37: 10 | B37: 1200 | C37: 10/1200 | D37: 10 | E37: 1200 | F37: =VLOOKUP(C37,PREÇOS!$W$2:$AA$1918,5,FALSE) -> APLICAÇÃO SILICATO DE CÁLCIO 2''X50,8 | G37: 1 | H37: =VLOOKUP(C37,PREÇOS!$W$2:$AB$1918,6,FALSE) -> m | I37: =IF(H37="m",SUMIFS(TUB!W:W,TUB!AU:AU,ASM!C37)+SUMIFS(TUB!AC:AC,TUB!AV:AV,ASM!C37)+SUMIFS(TUB!AI:AI,TUB!AW:AW,ASM!C37),SUMIFS(TUB!X:X,TUB!AU:AU,ASM!C37)+SUMIFS(TUB!AD:AD,TUB!AV:AV,ASM!C37)+SUMIFS(TUB!AJ:AJ,TUB!AW:AW,ASM!C37))+SUMIFS(EQUIP!AR:AR,EQUIP!BM:BM,ASM!C37)+SUMIFS(EQUIP!AV:AV,EQUIP!BN:BN,ASM!C37)+SUMIFS(EQUIP!AZ:AZ,EQUIP!BO:BO,ASM!C37) -> 0 | J37: =VLOOKUP(C37,PREÇOS!$W$2:$AA$1918,2,FALSE) -> 85.2 | K37: 0 | M37: APL
A38: 10 | B38: 1210 | C38: 10/1210 | D38: 10 | E38: 1210 | F38: =VLOOKUP(C38,PREÇOS!$W$2:$AA$1918,5,FALSE) -> APLICAÇÃO SILICATO DE CÁLCIO 2''X63,5 | G38: 1 | H38: =VLOOKUP(C38,PREÇOS!$W$2:$AB$1918,6,FALSE) -> m | I38: =IF(H38="m",SUMIFS(TUB!W:W,TUB!AU:AU,ASM!C38)+SUMIFS(TUB!AC:AC,TUB!AV:AV,ASM!C38)+SUMIFS(TUB!AI:AI,TUB!AW:AW,ASM!C38),SUMIFS(TUB!X:X,TUB!AU:AU,ASM!C38)+SUMIFS(TUB!AD:AD,TUB!AV:AV,ASM!C38)+SUMIFS(TUB!AJ:AJ,TUB!AW:AW,ASM!C38))+SUMIFS(EQUIP!AR:AR,EQUIP!BM:BM,ASM!C38)+SUMIFS(EQUIP!AV:AV,EQUIP!BN:BN,ASM!C38)+SUMIFS(EQUIP!AZ:AZ,EQUIP!BO:BO,ASM!C38) -> 0 | J38: =VLOOKUP(C38,PREÇOS!$W$2:$AA$1918,2,FALSE) -> 87.67 | K38: 0 | M38: APL
A39: 10 | B39: 1220 | C39: 10/1220 | D39: 10 | E39: 1220 | F39: =VLOOKUP(C39,PREÇOS!$W$2:$AA$1918,5,FALSE) -> APLICAÇÃO SILICATO DE CÁLCIO 2''X76,3 | G39: 1 | H39: =VLOOKUP(C39,PREÇOS!$W$2:$AB$1918,6,FALSE) -> m | I39: =IF(H39="m",SUMIFS(TUB!W:W,TUB!AU:AU,ASM!C39)+SUMIFS(TUB!AC:AC,TUB!AV:AV,ASM!C39)+SUMIFS(TUB!AI:AI,TUB!AW:AW,ASM!C39),SUMIFS(TUB!X:X,TUB!AU:AU,ASM!C39)+SUMIFS(TUB!AD:AD,TUB!AV:AV,ASM!C39)+SUMIFS(TUB!AJ:AJ,TUB!AW:AW,ASM!C39))+SUMIFS(EQUIP!AR:AR,EQUIP!BM:BM,ASM!C39)+SUMIFS(EQUIP!AV:AV,EQUIP!BN:BN,ASM!C39)+SUMIFS(EQUIP!AZ:AZ,EQUIP!BO:BO,ASM!C39) -> 0 | J39: =VLOOKUP(C39,PREÇOS!$W$2:$AA$1918,2,FALSE) -> 89.52 | K39: 0 | M39: APL
A40: 10 | B40: 1230 | C40: 10/1230 | D40: 10 | E40: 1230 | F40: =VLOOKUP(C40,PREÇOS!$W$2:$AA$1918,5,FALSE) -> APLICAÇÃO SILICATO DE CÁLCIO 2 1/2''X25,4 | G40: 1 | H40: =VLOOKUP(C40,PREÇOS!$W$2:$AB$1918,6,FALSE) -> m | I40: =IF(H40="m",SUMIFS(TUB!W:W,TUB!AU:AU,ASM!C40)+SUMIFS(TUB!AC:AC,TUB!AV:AV,ASM!C40)+SUMIFS(TUB!AI:AI,TUB!AW:AW,ASM!C40),SUMIFS(TUB!X:X,TUB!AU:AU,ASM!C40)+SUMIFS(TUB!AD:AD,TUB!AV:AV,ASM!C40)+SUMIFS(TUB!AJ:AJ,TUB!AW:AW,ASM!C40))+SUMIFS(EQUIP!AR:AR,EQUIP!BM:BM,ASM!C40)+SUMIFS(EQUIP!AV:AV,EQUIP!BN:BN,ASM!C40)+SUMIFS(EQUIP!AZ:AZ,EQUIP!BO:BO,ASM!C40) -> 0 | J40: =VLOOKUP(C40,PREÇOS!$W$2:$AA$1918,2,FALSE) -> 77.79 | K40: 0 | M40: APL
A41: 10 | B41: 1240 | C41: 10/1240 | D41: 10 | E41: 1240 | F41: =VLOOKUP(C41,PREÇOS!$W$2:$AA$1918,5,FALSE) -> APLICAÇÃO SILICATO DE CÁLCIO 2 1/2''X38,1 | G41: 1 | H41: =VLOOKUP(C41,PREÇOS!$W$2:$AB$1918,6,FALSE) -> m | I41: =IF(H41="m",SUMIFS(TUB!W:W,TUB!AU:AU,ASM!C41)+SUMIFS(TUB!AC:AC,TUB!AV:AV,ASM!C41)+SUMIFS(TUB!AI:AI,TUB!AW:AW,ASM!C41),SUMIFS(TUB!X:X,TUB!AU:AU,ASM!C41)+SUMIFS(TUB!AD:AD,TUB!AV:AV,ASM!C41)+SUMIFS(TUB!AJ:AJ,TUB!AW:AW,ASM!C41))+SUMIFS(EQUIP!AR:AR,EQUIP!BM:BM,ASM!C41)+SUMIFS(EQUIP!AV:AV,EQUIP!BN:BN,ASM!C41)+SUMIFS(EQUIP!AZ:AZ,EQUIP!BO:BO,ASM!C41) -> 0 | J41: =VLOOKUP(C41,PREÇOS!$W$2:$AA$1918,2,FALSE) -> 87.05 | K41: 0 | M41: APL
A42: 10 | B42: 1250 | C42: 10/1250 | D42: 10 | E42: 1250 | F42: =VLOOKUP(C42,PREÇOS!$W$2:$AA$1918,5,FALSE) -> APLICAÇÃO SILICATO DE CÁLCIO 2 1/2''X50,8 | G42: 1 | H42: =VLOOKUP(C42,PREÇOS!$W$2:$AB$1918,6,FALSE) -> m | I42: =IF(H42="m",SUMIFS(TUB!W:W,TUB!AU:AU,ASM!C42)+SUMIFS(TUB!AC:AC,TUB!AV:AV,ASM!C42)+SUMIFS(TUB!AI:AI,TUB!AW:AW,ASM!C42),SUMIFS(TUB!X:X,TUB!AU:AU,ASM!C42)+SUMIFS(TUB!AD:AD,TUB!AV:AV,ASM!C42)+SUMIFS(TUB!AJ:AJ,TUB!AW:AW,ASM!C42))+SUMIFS(EQUIP!AR:AR,EQUIP!BM:BM,ASM!C42)+SUMIFS(EQUIP!AV:AV,EQUIP!BN:BN,ASM!C42)+SUMIFS(EQUIP!AZ:AZ,EQUIP!BO:BO,ASM!C42) -> 0 | J42: =VLOOKUP(C42,PREÇOS!$W$2:$AA$1918,2,FALSE) -> 97.55 | K42: 0 | M42: APL
A43: 10 | B43: 1260 | C43: 10/1260 | D43: 10 | E43: 1260 | F43: =VLOOKUP(C43,PREÇOS!$W$2:$AA$1918,5,FALSE) -> APLICAÇÃO SILICATO DE CÁLCIO 2 1/2''X63,5 | G43: 1 | H43: =VLOOKUP(C43,PREÇOS!$W$2:$AB$1918,6,FALSE) -> m | I43: =IF(H43="m",SUMIFS(TUB!W:W,TUB!AU:AU,ASM!C43)+SUMIFS(TUB!AC:AC,TUB!AV:AV,ASM!C43)+SUMIFS(TUB!AI:AI,TUB!AW:AW,ASM!C43),SUMIFS(TUB!X:X,TUB!AU:AU,ASM!C43)+SUMIFS(TUB!AD:AD,TUB!AV:AV,ASM!C43)+SUMIFS(TUB!AJ:AJ,TUB!AW:AW,ASM!C43))+SUMIFS(EQUIP!AR:AR,EQUIP!BM:BM,ASM!C43)+SUMIFS(EQUIP!AV:AV,EQUIP!BN:BN,ASM!C43)+SUMIFS(EQUIP!AZ:AZ,EQUIP!BO:BO,ASM!C43) -> 0 | J43: =VLOOKUP(C43,PREÇOS!$W$2:$AA$1918,2,FALSE) -> 98.78 | K43: 0 | M43: APL
A44: 10 | B44: 1270 | C44: 10/1270 | D44: 10 | E44: 1270 | F44: =VLOOKUP(C44,PREÇOS!$W$2:$AA$1918,5,FALSE) -> APLICAÇÃO SILICATO DE CÁLCIO 2 1/2''X76,3 | G44: 1 | H44: =VLOOKUP(C44,PREÇOS!$W$2:$AB$1918,6,FALSE) -> m | I44: =IF(H44="m",SUMIFS(TUB!W:W,TUB!AU:AU,ASM!C44)+SUMIFS(TUB!AC:AC,TUB!AV:AV,ASM!C44)+SUMIFS(TUB!AI:AI,TUB!AW:AW,ASM!C44),SUMIFS(TUB!X:X,TUB!AU:AU,ASM!C44)+SUMIFS(TUB!AD:AD,TUB!AV:AV,ASM!C44)+SUMIFS(TUB!AJ:AJ,TUB!AW:AW,ASM!C44))+SUMIFS(EQUIP!AR:AR,EQUIP!BM:BM,ASM!C44)+SUMIFS(EQUIP!AV:AV,EQUIP!BN:BN,ASM!C44)+SUMIFS(EQUIP!AZ:AZ,EQUIP!BO:BO,ASM!C44) -> 0 | J44: =VLOOKUP(C44,PREÇOS!$W$2:$AA$1918,2,FALSE) -> 101.87 | K44: 0 | M44: APL
A45: 10 | B45: 1280 | C45: 10/1280 | D45: 10 | E45: 1280 | F45: =VLOOKUP(C45,PREÇOS!$W$2:$AA$1918,5,FALSE) -> APLICAÇÃO SILICATO DE CÁLCIO 3''X25,4 | G45: 1 | H45: =VLOOKUP(C45,PREÇOS!$W$2:$AB$1918,6,FALSE) -> m | I45: =IF(H45="m",SUMIFS(TUB!W:W,TUB!AU:AU,ASM!C45)+SUMIFS(TUB!AC:AC,TUB!AV:AV,ASM!C45)+SUMIFS(TUB!AI:AI,TUB!AW:AW,ASM!C45),SUMIFS(TUB!X:X,TUB!AU:AU,ASM!C45)+SUMIFS(TUB!AD:AD,TUB!AV:AV,ASM!C45)+SUMIFS(TUB!AJ:AJ,TUB!AW:AW,ASM!C45))+SUMIFS(EQUIP!AR:AR,EQUIP!BM:BM,ASM!C45)+SUMIFS(EQUIP!AV:AV,EQUIP!BN:BN,ASM!C45)+SUMIFS(EQUIP!AZ:AZ,EQUIP!BO:BO,ASM!C45) -> 0 | J45: =VLOOKUP(C45,PREÇOS!$W$2:$AA$1918,2,FALSE) -> 90.14 | K45: 0 | M45: APL
A46: 10 | B46: 1290 | C46: 10/1290 | D46: 10 | E46: 1290 | F46: =VLOOKUP(C46,PREÇOS!$W$2:$AA$1918,5,FALSE) -> APLICAÇÃO SILICATO DE CÁLCIO 3''X38,1 | G46: 1 | H46: =VLOOKUP(C46,PREÇOS!$W$2:$AB$1918,6,FALSE) -> m | I46: =IF(H46="m",SUMIFS(TUB!W:W,TUB!AU:AU,ASM!C46)+SUMIFS(TUB!AC:AC,TUB!AV:AV,ASM!C46)+SUMIFS(TUB!AI:AI,TUB!AW:AW,ASM!C46),SUMIFS(TUB!X:X,TUB!AU:AU,ASM!C46)+SUMIFS(TUB!AD:AD,TUB!AV:AV,ASM!C46)+SUMIFS(TUB!AJ:AJ,TUB!AW:AW,ASM!C46))+SUMIFS(EQUIP!AR:AR,EQUIP!BM:BM,ASM!C46)+SUMIFS(EQUIP!AV:AV,EQUIP!BN:BN,ASM!C46)+SUMIFS(EQUIP!AZ:AZ,EQUIP!BO:BO,ASM!C46) -> 0 | J46: =VLOOKUP(C46,PREÇOS!$W$2:$AA$1918,2,FALSE) -> 95.7 | K46: 0 | M46: APL
A47: 10 | B47: 1300 | C47: 10/1300 | D47: 10 | E47: 1300 | F47: =VLOOKUP(C47,PREÇOS!$W$2:$AA$1918,5,FALSE) -> APLICAÇÃO SILICATO DE CÁLCIO 3''X50,8 | G47: 1 | H47: =VLOOKUP(C47,PREÇOS!$W$2:$AB$1918,6,FALSE) -> m | I47: =IF(H47="m",SUMIFS(TUB!W:W,TUB!AU:AU,ASM!C47)+SUMIFS(TUB!AC:AC,TUB!AV:AV,ASM!C47)+SUMIFS(TUB!AI:AI,TUB!AW:AW,ASM!C47),SUMIFS(TUB!X:X,TUB!AU:AU,ASM!C47)+SUMIFS(TUB!AD:AD,TUB!AV:AV,ASM!C47)+SUMIFS(TUB!AJ:AJ,TUB!AW:AW,ASM!C47))+SUMIFS(EQUIP!AR:AR,EQUIP!BM:BM,ASM!C47)+SUMIFS(EQUIP!AV:AV,EQUIP!BN:BN,ASM!C47)+SUMIFS(EQUIP!AZ:AZ,EQUIP!BO:BO,ASM!C47) -> 0 | J47: =VLOOKUP(C47,PREÇOS!$W$2:$AA$1918,2,FALSE) -> 97.55 | K47: 0 | M47: APL
A48: 10 | B48: 1310 | C48: 10/1310 | D48: 10 | E48: 1310 | F48: =VLOOKUP(C48,PREÇOS!$W$2:$AA$1918,5,FALSE) -> APLICAÇÃO SILICATO DE CÁLCIO 3''X63,5 | G48: 1 | H48: =VLOOKUP(C48,PREÇOS!$W$2:$AB$1918,6,FALSE) -> m | I48: =IF(H48="m",SUMIFS(TUB!W:W,TUB!AU:AU,ASM!C48)+SUMIFS(TUB!AC:AC,TUB!AV:AV,ASM!C48)+SUMIFS(TUB!AI:AI,TUB!AW:AW,ASM!C48),SUMIFS(TUB!X:X,TUB!AU:AU,ASM!C48)+SUMIFS(TUB!AD:AD,TUB!AV:AV,ASM!C48)+SUMIFS(TUB!AJ:AJ,TUB!AW:AW,ASM!C48))+SUMIFS(EQUIP!AR:AR,EQUIP!BM:BM,ASM!C48)+SUMIFS(EQUIP!AV:AV,EQUIP!BN:BN,ASM!C48)+SUMIFS(EQUIP!AZ:AZ,EQUIP!BO:BO,ASM!C48) -> 0 | J48: =VLOOKUP(C48,PREÇOS!$W$2:$AA$1918,2,FALSE) -> 103.11 | K48: 0 | M48: APL
A49: 10 | B49: 1320 | C49: 10/1320 | D49: 10 | E49: 1320 | F49: =VLOOKUP(C49,PREÇOS!$W$2:$AA$1918,5,FALSE) -> APLICAÇÃO SILICATO DE CÁLCIO 3''X76,3 | G49: 1 | H49: =VLOOKUP(C49,PREÇOS!$W$2:$AB$1918,6,FALSE) -> m | I49: =IF(H49="m",SUMIFS(TUB!W:W,TUB!AU:AU,ASM!C49)+SUMIFS(TUB!AC:AC,TUB!AV:AV,ASM!C49)+SUMIFS(TUB!AI:AI,TUB!AW:AW,ASM!C49),SUMIFS(TUB!X:X,TUB!AU:AU,ASM!C49)+SUMIFS(TUB!AD:AD,TUB!AV:AV,ASM!C49)+SUMIFS(TUB!AJ:AJ,TUB!AW:AW,ASM!C49))+SUMIFS(EQUIP!AR:AR,EQUIP!BM:BM,ASM!C49)+SUMIFS(EQUIP!AV:AV,EQUIP!BN:BN,ASM!C49)+SUMIFS(EQUIP!AZ:AZ,EQUIP!BO:BO,ASM!C49) -> 0 | J49: =VLOOKUP(C49,PREÇOS!$W$2:$AA$1918,2,FALSE) -> 103.72 | K49: 0 | M49: APL
A50: 10 | B50: 1330 | C50: 10/1330 | D50: 10 | E50: 1330 | F50: =VLOOKUP(C50,PREÇOS!$W$2:$AA$1918,5,FALSE) -> APLICAÇÃO SILICATO DE CÁLCIO 4''X25,4 | G50: 1 | H50: =VLOOKUP(C50,PREÇOS!$W$2:$AB$1918,6,FALSE) -> m | I50: =IF(H50="m",SUMIFS(TUB!W:W,TUB!AU:AU,ASM!C50)+SUMIFS(TUB!AC:AC,TUB!AV:AV,ASM!C50)+SUMIFS(TUB!AI:AI,TUB!AW:AW,ASM!C50),SUMIFS(TUB!X:X,TUB!AU:AU,ASM!C50)+SUMIFS(TUB!AD:AD,TUB!AV:AV,ASM!C50)+SUMIFS(TUB!AJ:AJ,TUB!AW:AW,ASM!C50))+SUMIFS(EQUIP!AR:AR,EQUIP!BM:BM,ASM!C50)+SUMIFS(EQUIP!AV:AV,EQUIP!BN:BN,ASM!C50)+SUMIFS(EQUIP!AZ:AZ,EQUIP!BO:BO,ASM!C50) -> 0 | J50: =VLOOKUP(C50,PREÇOS!$W$2:$AA$1918,2,FALSE) -> 88.91 | K50: 0 | M50: APL
A51: 10 | B51: 1340 | C51: 10/1340 | D51: 10 | E51: 1340 | F51: =VLOOKUP(C51,PREÇOS!$W$2:$AA$1918,5,FALSE) -> APLICAÇÃO SILICATO DE CÁLCIO 4''X38,1 | G51: 1 | H51: =VLOOKUP(C51,PREÇOS!$W$2:$AB$1918,6,FALSE) -> m | I51: =IF(H51="m",SUMIFS(TUB!W:W,TUB!AU:AU,ASM!C51)+SUMIFS(TUB!AC:AC,TUB!AV:AV,ASM!C51)+SUMIFS(TUB!AI:AI,TUB!AW:AW,ASM!C51),SUMIFS(TUB!X:X,TUB!AU:AU,ASM!C51)+SUMIFS(TUB!AD:AD,TUB!AV:AV,ASM!C51)+SUMIFS(TUB!AJ:AJ,TUB!AW:AW,ASM!C51))+SUMIFS(EQUIP!AR:AR,EQUIP!BM:BM,ASM!C51)+SUMIFS(EQUIP!AV:AV,EQUIP!BN:BN,ASM!C51)+SUMIFS(EQUIP!AZ:AZ,EQUIP!BO:BO,ASM!C51) -> 0 | J51: =VLOOKUP(C51,PREÇOS!$W$2:$AA$1918,2,FALSE) -> 89.52 | K51: 0 | M51: APL
A52: 10 | B52: 1350 | C52: 10/1350 | D52: 10 | E52: 1350 | F52: =VLOOKUP(C52,PREÇOS!$W$2:$AA$1918,5,FALSE) -> APLICAÇÃO SILICATO DE CÁLCIO 4''X50,8 | G52: 1 | H52: =VLOOKUP(C52,PREÇOS!$W$2:$AB$1918,6,FALSE) -> m | I52: =IF(H52="m",SUMIFS(TUB!W:W,TUB!AU:AU,ASM!C52)+SUMIFS(TUB!AC:AC,TUB!AV:AV,ASM!C52)+SUMIFS(TUB!AI:AI,TUB!AW:AW,ASM!C52),SUMIFS(TUB!X:X,TUB!AU:AU,ASM!C52)+SUMIFS(TUB!AD:AD,TUB!AV:AV,ASM!C52)+SUMIFS(TUB!AJ:AJ,TUB!AW:AW,ASM!C52))+SUMIFS(EQUIP!AR:AR,EQUIP!BM:BM,ASM!C52)+SUMIFS(EQUIP!AV:AV,EQUIP!BN:BN,ASM!C52)+SUMIFS(EQUIP!AZ:AZ,EQUIP!BO:BO,ASM!C52) -> 0 | J52: =VLOOKUP(C52,PREÇOS!$W$2:$AA$1918,2,FALSE) -> 111.13 | K52: 0 | M52: APL
A53: 10 | B53: 1360 | C53: 10/1360 | D53: 10 | E53: 1360 | F53: =VLOOKUP(C53,PREÇOS!$W$2:$AA$1918,5,FALSE) -> APLICAÇÃO SILICATO DE CÁLCIO 4''X63,5 | G53: 1 | H53: =VLOOKUP(C53,PREÇOS!$W$2:$AB$1918,6,FALSE) -> m | I53: =IF(H53="m",SUMIFS(TUB!W:W,TUB!AU:AU,ASM!C53)+SUMIFS(TUB!AC:AC,TUB!AV:AV,ASM!C53)+SUMIFS(TUB!AI:AI,TUB!AW:AW,ASM!C53),SUMIFS(TUB!X:X,TUB!AU:AU,ASM!C53)+SUMIFS(TUB!AD:AD,TUB!AV:AV,ASM!C53)+SUMIFS(TUB!AJ:AJ,TUB!AW:AW,ASM!C53))+SUMIFS(EQUIP!AR:AR,EQUIP!BM:BM,ASM!C53)+SUMIFS(EQUIP!AV:AV,EQUIP!BN:BN,ASM!C53)+SUMIFS(EQUIP!AZ:AZ,EQUIP!BO:BO,ASM!C53) -> 0 | J53: =VLOOKUP(C53,PREÇOS!$W$2:$AA$1918,2,FALSE) -> 98.78 | K53: 0 | M53: APL
A54: 10 | B54: 1370 | C54: 10/1370 | D54: 10 | E54: 1370 | F54: =VLOOKUP(C54,PREÇOS!$W$2:$AA$1918,5,FALSE) -> APLICAÇÃO SILICATO DE CÁLCIO 4''X76,3 | G54: 1 | H54: =VLOOKUP(C54,PREÇOS!$W$2:$AB$1918,6,FALSE) -> m | I54: =IF(H54="m",SUMIFS(TUB!W:W,TUB!AU:AU,ASM!C54)+SUMIFS(TUB!AC:AC,TUB!AV:AV,ASM!C54)+SUMIFS(TUB!AI:AI,TUB!AW:AW,ASM!C54),SUMIFS(TUB!X:X,TUB!AU:AU,ASM!C54)+SUMIFS(TUB!AD:AD,TUB!AV:AV,ASM!C54)+SUMIFS(TUB!AJ:AJ,TUB!AW:AW,ASM!C54))+SUMIFS(EQUIP!AR:AR,EQUIP!BM:BM,ASM!C54)+SUMIFS(EQUIP!AV:AV,EQUIP!BN:BN,ASM!C54)+SUMIFS(EQUIP!AZ:AZ,EQUIP!BO:BO,ASM!C54) -> 0 | J54: =VLOOKUP(C54,PREÇOS!$W$2:$AA$1918,2,FALSE) -> 111.38 | K54: 0 | M54: APL
A55: 10 | B55: 1380 | C55: 10/1380 | D55: 10 | E55: 1380 | F55: =VLOOKUP(C55,PREÇOS!$W$2:$AA$1918,5,FALSE) -> APLICAÇÃO SILICATO DE CÁLCIO 6''X25,4 | G55: 1 | H55: =VLOOKUP(C55,PREÇOS!$W$2:$AB$1918,6,FALSE) -> m | I55: =IF(H55="m",SUMIFS(TUB!W:W,TUB!AU:AU,ASM!C55)+SUMIFS(TUB!AC:AC,TUB!AV:AV,ASM!C55)+SUMIFS(TUB!AI:AI,TUB!AW:AW,ASM!C55),SUMIFS(TUB!X:X,TUB!AU:AU,ASM!C55)+SUMIFS(TUB!AD:AD,TUB!AV:AV,ASM!C55)+SUMIFS(TUB!AJ:AJ,TUB!AW:AW,ASM!C55))+SUMIFS(EQUIP!AR:AR,EQUIP!BM:BM,ASM!C55)+SUMIFS(EQUIP!AV:AV,EQUIP!BN:BN,ASM!C55)+SUMIFS(EQUIP!AZ:AZ,EQUIP!BO:BO,ASM!C55) -> 0 | J55: =VLOOKUP(C55,PREÇOS!$W$2:$AA$1918,2,FALSE) -> 117.8 | K55: 0 | M55: APL
A56: 10 | B56: 1390 | C56: 10/1390 | D56: 10 | E56: 1390 | F56: =VLOOKUP(C56,PREÇOS!$W$2:$AA$1918,5,FALSE) -> APLICAÇÃO SILICATO DE CÁLCIO 6''X38,1 | G56: 1 | H56: =VLOOKUP(C56,PREÇOS!$W$2:$AB$1918,6,FALSE) -> m | I56: =IF(H56="m",SUMIFS(TUB!W:W,TUB!AU:AU,ASM!C56)+SUMIFS(TUB!AC:AC,TUB!AV:AV,ASM!C56)+SUMIFS(TUB!AI:AI,TUB!AW:AW,ASM!C56),SUMIFS(TUB!X:X,TUB!AU:AU,ASM!C56)+SUMIFS(TUB!AD:AD,TUB!AV:AV,ASM!C56)+SUMIFS(TUB!AJ:AJ,TUB!AW:AW,ASM!C56))+SUMIFS(EQUIP!AR:AR,EQUIP!BM:BM,ASM!C56)+SUMIFS(EQUIP!AV:AV,EQUIP!BN:BN,ASM!C56)+SUMIFS(EQUIP!AZ:AZ,EQUIP!BO:BO,ASM!C56) -> 0 | J56: =VLOOKUP(C56,PREÇOS!$W$2:$AA$1918,2,FALSE) -> 124.71 | K56: 0 | M56: APL
A57: 10 | B57: 1400 | C57: 10/1400 | D57: 10 | E57: 1400 | F57: =VLOOKUP(C57,PREÇOS!$W$2:$AA$1918,5,FALSE) -> APLICAÇÃO SILICATO DE CÁLCIO 6''X50,8 | G57: 1 | H57: =VLOOKUP(C57,PREÇOS!$W$2:$AB$1918,6,FALSE) -> m | I57: =IF(H57="m",SUMIFS(TUB!W:W,TUB!AU:AU,ASM!C57)+SUMIFS(TUB!AC:AC,TUB!AV:AV,ASM!C57)+SUMIFS(TUB!AI:AI,TUB!AW:AW,ASM!C57),SUMIFS(TUB!X:X,TUB!AU:AU,ASM!C57)+SUMIFS(TUB!AD:AD,TUB!AV:AV,ASM!C57)+SUMIFS(TUB!AJ:AJ,TUB!AW:AW,ASM!C57))+SUMIFS(EQUIP!AR:AR,EQUIP!BM:BM,ASM!C57)+SUMIFS(EQUIP!AV:AV,EQUIP!BN:BN,ASM!C57)+SUMIFS(EQUIP!AZ:AZ,EQUIP!BO:BO,ASM!C57) -> 0 | J57: =VLOOKUP(C57,PREÇOS!$W$2:$AA$1918,2,FALSE) -> 142 | K57: 0 | M57: APL
A58: 10 | B58: 1410 | C58: 10/1410 | D58: 10 | E58: 1410 | F58: =VLOOKUP(C58,PREÇOS!$W$2:$AA$1918,5,FALSE) -> APLICAÇÃO SILICATO DE CÁLCIO 6''X63,5 | G58: 1 | H58: =VLOOKUP(C58,PREÇOS!$W$2:$AB$1918,6,FALSE) -> m | I58: =IF(H58="m",SUMIFS(TUB!W:W,TUB!AU:AU,ASM!C58)+SUMIFS(TUB!AC:AC,TUB!AV:AV,ASM!C58)+SUMIFS(TUB!AI:AI,TUB!AW:AW,ASM!C58),SUMIFS(TUB!X:X,TUB!AU:AU,ASM!C58)+SUMIFS(TUB!AD:AD,TUB!AV:AV,ASM!C58)+SUMIFS(TUB!AJ:AJ,TUB!AW:AW,ASM!C58))+SUMIFS(EQUIP!AR:AR,EQUIP!BM:BM,ASM!C58)+SUMIFS(EQUIP!AV:AV,EQUIP!BN:BN,ASM!C58)+SUMIFS(EQUIP!AZ:AZ,EQUIP!BO:BO,ASM!C58) -> 0 | J58: =VLOOKUP(C58,PREÇOS!$W$2:$AA$1918,2,FALSE) -> 129.65 | K58: 0 | M58: APL
A59: 10 | B59: 1420 | C59: 10/1420 | D59: 10 | E59: 1420 | F59: =VLOOKUP(C59,PREÇOS!$W$2:$AA$1918,5,FALSE) -> APLICAÇÃO SILICATO DE CÁLCIO 6''X76,3 | G59: 1 | H59: =VLOOKUP(C59,PREÇOS!$W$2:$AB$1918,6,FALSE) -> m | I59: =IF(H59="m",SUMIFS(TUB!W:W,TUB!AU:AU,ASM!C59)+SUMIFS(TUB!AC:AC,TUB!AV:AV,ASM!C59)+SUMIFS(TUB!AI:AI,TUB!AW:AW,ASM!C59),SUMIFS(TUB!X:X,TUB!AU:AU,ASM!C59)+SUMIFS(TUB!AD:AD,TUB!AV:AV,ASM!C59)+SUMIFS(TUB!AJ:AJ,TUB!AW:AW,ASM!C59))+SUMIFS(EQUIP!AR:AR,EQUIP!BM:BM,ASM!C59)+SUMIFS(EQUIP!AV:AV,EQUIP!BN:BN,ASM!C59)+SUMIFS(EQUIP!AZ:AZ,EQUIP!BO:BO,ASM!C59) -> 0 | J59: =VLOOKUP(C59,PREÇOS!$W$2:$AA$1918,2,FALSE) -> 135.83 | K59: 0 | M59: APL
A60: 10 | B60: 1430 | C60: 10/1430 | D60: 10 | E60: 1430 | F60: =VLOOKUP(C60,PREÇOS!$W$2:$AA$1918,5,FALSE) -> APLICAÇÃO SILICATO DE CÁLCIO 8''X25,4 | G60: 1 | H60: =VLOOKUP(C60,PREÇOS!$W$2:$AB$1918,6,FALSE) -> m | I60: =IF(H60="m",SUMIFS(TUB!W:W,TUB!AU:AU,ASM!C60)+SUMIFS(TUB!AC:AC,TUB!AV:AV,ASM!C60)+SUMIFS(TUB!AI:AI,TUB!AW:AW,ASM!C60),SUMIFS(TUB!X:X,TUB!AU:AU,ASM!C60)+SUMIFS(TUB!AD:AD,TUB!AV:AV,ASM!C60)+SUMIFS(TUB!AJ:AJ,TUB!AW:AW,ASM!C60))+SUMIFS(EQUIP!AR:AR,EQUIP!BM:BM,ASM!C60)+SUMIFS(EQUIP!AV:AV,EQUIP!BN:BN,ASM!C60)+SUMIFS(EQUIP!AZ:AZ,EQUIP!BO:BO,ASM!C60) -> 0 | J60: =VLOOKUP(C60,PREÇOS!$W$2:$AA$1918,2,FALSE) -> 143.98 | K60: 0 | M60: APL
A61: 10 | B61: 1440 | C61: 10/1440 | D61: 10 | E61: 1440 | F61: =VLOOKUP(C61,PREÇOS!$W$2:$AA$1918,5,FALSE) -> APLICAÇÃO SILICATO DE CÁLCIO 8''X38,1 | G61: 1 | H61: =VLOOKUP(C61,PREÇOS!$W$2:$AB$1918,6,FALSE) -> m | I61: =IF(H61="m",SUMIFS(TUB!W:W,TUB!AU:AU,ASM!C61)+SUMIFS(TUB!AC:AC,TUB!AV:AV,ASM!C61)+SUMIFS(TUB!AI:AI,TUB!AW:AW,ASM!C61),SUMIFS(TUB!X:X,TUB!AU:AU,ASM!C61)+SUMIFS(TUB!AD:AD,TUB!AV:AV,ASM!C61)+SUMIFS(TUB!AJ:AJ,TUB!AW:AW,ASM!C61))+SUMIFS(EQUIP!AR:AR,EQUIP!BM:BM,ASM!C61)+SUMIFS(EQUIP!AV:AV,EQUIP!BN:BN,ASM!C61)+SUMIFS(EQUIP!AZ:AZ,EQUIP!BO:BO,ASM!C61) -> 0 | J61: =VLOOKUP(C61,PREÇOS!$W$2:$AA$1918,2,FALSE) -> 150.89 | K61: 0 | M61: APL
A62: 10 | B62: 1450 | C62: 10/1450 | D62: 10 | E62: 1450 | F62: =VLOOKUP(C62,PREÇOS!$W$2:$AA$1918,5,FALSE) -> APLICAÇÃO SILICATO DE CÁLCIO 8''X50,8 | G62: 1 | H62: =VLOOKUP(C62,PREÇOS!$W$2:$AB$1918,6,FALSE) -> m | I62: =IF(H62="m",SUMIFS(TUB!W:W,TUB!AU:AU,ASM!C62)+SUMIFS(TUB!AC:AC,TUB!AV:AV,ASM!C62)+SUMIFS(TUB!AI:AI,TUB!AW:AW,ASM!C62),SUMIFS(TUB!X:X,TUB!AU:AU,ASM!C62)+SUMIFS(TUB!AD:AD,TUB!AV:AV,ASM!C62)+SUMIFS(TUB!AJ:AJ,TUB!AW:AW,ASM!C62))+SUMIFS(EQUIP!AR:AR,EQUIP!BM:BM,ASM!C62)+SUMIFS(EQUIP!AV:AV,EQUIP!BN:BN,ASM!C62)+SUMIFS(EQUIP!AZ:AZ,EQUIP!BO:BO,ASM!C62) -> 0 | J62: =VLOOKUP(C62,PREÇOS!$W$2:$AA$1918,2,FALSE) -> 166.7 | K62: 0 | M62: APL
A63: 10 | B63: 1460 | C63: 10/1460 | D63: 10 | E63: 1460 | F63: =VLOOKUP(C63,PREÇOS!$W$2:$AA$1918,5,FALSE) -> APLICAÇÃO SILICATO DE CÁLCIO 8''X63,5 | G63: 1 | H63: =VLOOKUP(C63,PREÇOS!$W$2:$AB$1918,6,FALSE) -> m | I63: =IF(H63="m",SUMIFS(TUB!W:W,TUB!AU:AU,ASM!C63)+SUMIFS(TUB!AC:AC,TUB!AV:AV,ASM!C63)+SUMIFS(TUB!AI:AI,TUB!AW:AW,ASM!C63),SUMIFS(TUB!X:X,TUB!AU:AU,ASM!C63)+SUMIFS(TUB!AD:AD,TUB!AV:AV,ASM!C63)+SUMIFS(TUB!AJ:AJ,TUB!AW:AW,ASM!C63))+SUMIFS(EQUIP!AR:AR,EQUIP!BM:BM,ASM!C63)+SUMIFS(EQUIP!AV:AV,EQUIP!BN:BN,ASM!C63)+SUMIFS(EQUIP!AZ:AZ,EQUIP!BO:BO,ASM!C63) -> 0 | J63: =VLOOKUP(C63,PREÇOS!$W$2:$AA$1918,2,FALSE) -> 168.24 | K63: 0 | M63: APL
A64: 10 | B64: 1470 | C64: 10/1470 | D64: 10 | E64: 1470 | F64: =VLOOKUP(C64,PREÇOS!$W$2:$AA$1918,5,FALSE) -> APLICAÇÃO SILICATO DE CÁLCIO 8''X76,3 | G64: 1 | H64: =VLOOKUP(C64,PREÇOS!$W$2:$AB$1918,6,FALSE) -> m | I64: =IF(H64="m",SUMIFS(TUB!W:W,TUB!AU:AU,ASM!C64)+SUMIFS(TUB!AC:AC,TUB!AV:AV,ASM!C64)+SUMIFS(TUB!AI:AI,TUB!AW:AW,ASM!C64),SUMIFS(TUB!X:X,TUB!AU:AU,ASM!C64)+SUMIFS(TUB!AD:AD,TUB!AV:AV,ASM!C64)+SUMIFS(TUB!AJ:AJ,TUB!AW:AW,ASM!C64))+SUMIFS(EQUIP!AR:AR,EQUIP!BM:BM,ASM!C64)+SUMIFS(EQUIP!AV:AV,EQUIP!BN:BN,ASM!C64)+SUMIFS(EQUIP!AZ:AZ,EQUIP!BO:BO,ASM!C64) -> 0 | J64: =VLOOKUP(C64,PREÇOS!$W$2:$AA$1918,2,FALSE) -> 169.79 | K64: 0 | M64: APL
A65: 10 | B65: 1480 | C65: 10/1480 | D65: 10 | E65: 1480 | F65: =VLOOKUP(C65,PREÇOS!$W$2:$AA$1918,5,FALSE) -> APLICAÇÃO SILICATO DE CÁLCIO 10''X25,4 | G65: 1 | H65: =VLOOKUP(C65,PREÇOS!$W$2:$AB$1918,6,FALSE) -> m | I65: =IF(H65="m",SUMIFS(TUB!W:W,TUB!AU:AU,ASM!C65)+SUMIFS(TUB!AC:AC,TUB!AV:AV,ASM!C65)+SUMIFS(TUB!AI:AI,TUB!AW:AW,ASM!C65),SUMIFS(TUB!X:X,TUB!AU:AU,ASM!C65)+SUMIFS(TUB!AD:AD,TUB!AV:AV,ASM!C65)+SUMIFS(TUB!AJ:AJ,TUB!AW:AW,ASM!C65))+SUMIFS(EQUIP!AR:AR,EQUIP!BM:BM,ASM!C65)+SUMIFS(EQUIP!AV:AV,EQUIP!BN:BN,ASM!C65)+SUMIFS(EQUIP!AZ:AZ,EQUIP!BO:BO,ASM!C65) -> 0 | J65: =VLOOKUP(C65,PREÇOS!$W$2:$AA$1918,2,FALSE) -> 174.25 | K65: 0 | M65: APL
A66: 10 | B66: 1490 | C66: 10/1490 | D66: 10 | E66: 1490 | F66: =VLOOKUP(C66,PREÇOS!$W$2:$AA$1918,5,FALSE) -> APLICAÇÃO SILICATO DE CÁLCIO 10''X38,1 | G66: 1 | H66: =VLOOKUP(C66,PREÇOS!$W$2:$AB$1918,6,FALSE) -> m | I66: =IF(H66="m",SUMIFS(TUB!W:W,TUB!AU:AU,ASM!C66)+SUMIFS(TUB!AC:AC,TUB!AV:AV,ASM!C66)+SUMIFS(TUB!AI:AI,TUB!AW:AW,ASM!C66),SUMIFS(TUB!X:X,TUB!AU:AU,ASM!C66)+SUMIFS(TUB!AD:AD,TUB!AV:AV,ASM!C66)+SUMIFS(TUB!AJ:AJ,TUB!AW:AW,ASM!C66))+SUMIFS(EQUIP!AR:AR,EQUIP!BM:BM,ASM!C66)+SUMIFS(EQUIP!AV:AV,EQUIP!BN:BN,ASM!C66)+SUMIFS(EQUIP!AZ:AZ,EQUIP!BO:BO,ASM!C66) -> 0 | J66: =VLOOKUP(C66,PREÇOS!$W$2:$AA$1918,2,FALSE) -> 189.49 | K66: 0 | M66: APL
A67: 10 | B67: 1500 | C67: 10/1500 | D67: 10 | E67: 1500 | F67: =VLOOKUP(C67,PREÇOS!$W$2:$AA$1918,5,FALSE) -> APLICAÇÃO SILICATO DE CÁLCIO 10''X50,8 | G67: 1 | H67: =VLOOKUP(C67,PREÇOS!$W$2:$AB$1918,6,FALSE) -> m | I67: =IF(H67="m",SUMIFS(TUB!W:W,TUB!AU:AU,ASM!C67)+SUMIFS(TUB!AC:AC,TUB!AV:AV,ASM!C67)+SUMIFS(TUB!AI:AI,TUB!AW:AW,ASM!C67),SUMIFS(TUB!X:X,TUB!AU:AU,ASM!C67)+SUMIFS(TUB!AD:AD,TUB!AV:AV,ASM!C67)+SUMIFS(TUB!AJ:AJ,TUB!AW:AW,ASM!C67))+SUMIFS(EQUIP!AR:AR,EQUIP!BM:BM,ASM!C67)+SUMIFS(EQUIP!AV:AV,EQUIP!BN:BN,ASM!C67)+SUMIFS(EQUIP!AZ:AZ,EQUIP!BO:BO,ASM!C67) -> 0 | J67: =VLOOKUP(C67,PREÇOS!$W$2:$AA$1918,2,FALSE) -> 199.11 | K67: 0 | M67: APL
A68: 10 | B68: 1510 | C68: 10/1510 | D68: 10 | E68: 1510 | F68: =VLOOKUP(C68,PREÇOS!$W$2:$AA$1918,5,FALSE) -> APLICAÇÃO SILICATO DE CÁLCIO 10''X63,5 | G68: 1 | H68: =VLOOKUP(C68,PREÇOS!$W$2:$AB$1918,6,FALSE) -> m | I68: =IF(H68="m",SUMIFS(TUB!W:W,TUB!AU:AU,ASM!C68)+SUMIFS(TUB!AC:AC,TUB!AV:AV,ASM!C68)+SUMIFS(TUB!AI:AI,TUB!AW:AW,ASM!C68),SUMIFS(TUB!X:X,TUB!AU:AU,ASM!C68)+SUMIFS(TUB!AD:AD,TUB!AV:AV,ASM!C68)+SUMIFS(TUB!AJ:AJ,TUB!AW:AW,ASM!C68))+SUMIFS(EQUIP!AR:AR,EQUIP!BM:BM,ASM!C68)+SUMIFS(EQUIP!AV:AV,EQUIP!BN:BN,ASM!C68)+SUMIFS(EQUIP!AZ:AZ,EQUIP!BO:BO,ASM!C68) -> 0 | J68: =VLOOKUP(C68,PREÇOS!$W$2:$AA$1918,2,FALSE) -> 203.25 | K68: 0 | M68: APL
A69: 10 | B69: 1520 | C69: 10/1520 | D69: 10 | E69: 1520 | F69: =VLOOKUP(C69,PREÇOS!$W$2:$AA$1918,5,FALSE) -> APLICAÇÃO SILICATO DE CÁLCIO 10''X76,3 | G69: 1 | H69: =VLOOKUP(C69,PREÇOS!$W$2:$AB$1918,6,FALSE) -> m | I69: =IF(H69="m",SUMIFS(TUB!W:W,TUB!AU:AU,ASM!C69)+SUMIFS(TUB!AC:AC,TUB!AV:AV,ASM!C69)+SUMIFS(TUB!AI:AI,TUB!AW:AW,ASM!C69),SUMIFS(TUB!X:X,TUB!AU:AU,ASM!C69)+SUMIFS(TUB!AD:AD,TUB!AV:AV,ASM!C69)+SUMIFS(TUB!AJ:AJ,TUB!AW:AW,ASM!C69))+SUMIFS(EQUIP!AR:AR,EQUIP!BM:BM,ASM!C69)+SUMIFS(EQUIP!AV:AV,EQUIP!BN:BN,ASM!C69)+SUMIFS(EQUIP!AZ:AZ,EQUIP!BO:BO,ASM!C69) -> 0 | J69: =VLOOKUP(C69,PREÇOS!$W$2:$AA$1918,2,FALSE) -> 210.16 | K69: 0 | M69: APL
A70: 10 | B70: 1530 | C70: 10/1530 | D70: 10 | E70: 1530 | F70: =VLOOKUP(C70,PREÇOS!$W$2:$AA$1918,5,FALSE) -> APLICAÇÃO SILICATO DE CÁLCIO 12''X25,4 | G70: 1 | H70: =VLOOKUP(C70,PREÇOS!$W$2:$AB$1918,6,FALSE) -> m | I70: =IF(H70="m",SUMIFS(TUB!W:W,TUB!AU:AU,ASM!C70)+SUMIFS(TUB!AC:AC,TUB!AV:AV,ASM!C70)+SUMIFS(TUB!AI:AI,TUB!AW:AW,ASM!C70),SUMIFS(TUB!X:X,TUB!AU:AU,ASM!C70)+SUMIFS(TUB!AD:AD,TUB!AV:AV,ASM!C70)+SUMIFS(TUB!AJ:AJ,TUB!AW:AW,ASM!C70))+SUMIFS(EQUIP!AR:AR,EQUIP!BM:BM,ASM!C70)+SUMIFS(EQUIP!AV:AV,EQUIP!BN:BN,ASM!C70)+SUMIFS(EQUIP!AZ:AZ,EQUIP!BO:BO,ASM!C70) -> 0 | J70: =VLOOKUP(C70,PREÇOS!$W$2:$AA$1918,2,FALSE) -> 206.04 | K70: 0 | M70: APL
A71: 10 | B71: 1540 | C71: 10/1540 | D71: 10 | E71: 1540 | F71: =VLOOKUP(C71,PREÇOS!$W$2:$AA$1918,5,FALSE) -> APLICAÇÃO SILICATO DE CÁLCIO 12''X38,1 | G71: 1 | H71: =VLOOKUP(C71,PREÇOS!$W$2:$AB$1918,6,FALSE) -> m | I71: =IF(H71="m",SUMIFS(TUB!W:W,TUB!AU:AU,ASM!C71)+SUMIFS(TUB!AC:AC,TUB!AV:AV,ASM!C71)+SUMIFS(TUB!AI:AI,TUB!AW:AW,ASM!C71),SUMIFS(TUB!X:X,TUB!AU:AU,ASM!C71)+SUMIFS(TUB!AD:AD,TUB!AV:AV,ASM!C71)+SUMIFS(TUB!AJ:AJ,TUB!AW:AW,ASM!C71))+SUMIFS(EQUIP!AR:AR,EQUIP!BM:BM,ASM!C71)+SUMIFS(EQUIP!AV:AV,EQUIP!BN:BN,ASM!C71)+SUMIFS(EQUIP!AZ:AZ,EQUIP!BO:BO,ASM!C71) -> 0 | J71: =VLOOKUP(C71,PREÇOS!$W$2:$AA$1918,2,FALSE) -> 219.06 | K71: 0 | M71: APL
A72: 10 | B72: 1550 | C72: 10/1550 | D72: 10 | E72: 1550 | F72: =VLOOKUP(C72,PREÇOS!$W$2:$AA$1918,5,FALSE) -> APLICAÇÃO SILICATO DE CÁLCIO 12''X50,8 | G72: 1 | H72: =VLOOKUP(C72,PREÇOS!$W$2:$AB$1918,6,FALSE) -> m | I72: =IF(H72="m",SUMIFS(TUB!W:W,TUB!AU:AU,ASM!C72)+SUMIFS(TUB!AC:AC,TUB!AV:AV,ASM!C72)+SUMIFS(TUB!AI:AI,TUB!AW:AW,ASM!C72),SUMIFS(TUB!X:X,TUB!AU:AU,ASM!C72)+SUMIFS(TUB!AD:AD,TUB!AV:AV,ASM!C72)+SUMIFS(TUB!AJ:AJ,TUB!AW:AW,ASM!C72))+SUMIFS(EQUIP!AR:AR,EQUIP!BM:BM,ASM!C72)+SUMIFS(EQUIP!AV:AV,EQUIP!BN:BN,ASM!C72)+SUMIFS(EQUIP!AZ:AZ,EQUIP!BO:BO,ASM!C72) -> 0 | J72: =VLOOKUP(C72,PREÇOS!$W$2:$AA$1918,2,FALSE) -> 228.68 | K72: 0 | M72: APL
A73: 10 | B73: 1560 | C73: 10/1560 | D73: 10 | E73: 1560 | F73: =VLOOKUP(C73,PREÇOS!$W$2:$AA$1918,5,FALSE) -> APLICAÇÃO SILICATO DE CÁLCIO 12''X63,5 | G73: 1 | H73: =VLOOKUP(C73,PREÇOS!$W$2:$AB$1918,6,FALSE) -> m | I73: =IF(H73="m",SUMIFS(TUB!W:W,TUB!AU:AU,ASM!C73)+SUMIFS(TUB!AC:AC,TUB!AV:AV,ASM!C73)+SUMIFS(TUB!AI:AI,TUB!AW:AW,ASM!C73),SUMIFS(TUB!X:X,TUB!AU:AU,ASM!C73)+SUMIFS(TUB!AD:AD,TUB!AV:AV,ASM!C73)+SUMIFS(TUB!AJ:AJ,TUB!AW:AW,ASM!C73))+SUMIFS(EQUIP!AR:AR,EQUIP!BM:BM,ASM!C73)+SUMIFS(EQUIP!AV:AV,EQUIP!BN:BN,ASM!C73)+SUMIFS(EQUIP!AZ:AZ,EQUIP!BO:BO,ASM!C73) -> 0 | J73: =VLOOKUP(C73,PREÇOS!$W$2:$AA$1918,2,FALSE) -> 235.6 | K73: 0 | M73: APL
A74: 10 | B74: 1570 | C74: 10/1570 | D74: 10 | E74: 1570 | F74: =VLOOKUP(C74,PREÇOS!$W$2:$AA$1918,5,FALSE) -> APLICAÇÃO SILICATO DE CÁLCIO 12''X76,3 | G74: 1 | H74: =VLOOKUP(C74,PREÇOS!$W$2:$AB$1918,6,FALSE) -> m | I74: =IF(H74="m",SUMIFS(TUB!W:W,TUB!AU:AU,ASM!C74)+SUMIFS(TUB!AC:AC,TUB!AV:AV,ASM!C74)+SUMIFS(TUB!AI:AI,TUB!AW:AW,ASM!C74),SUMIFS(TUB!X:X,TUB!AU:AU,ASM!C74)+SUMIFS(TUB!AD:AD,TUB!AV:AV,ASM!C74)+SUMIFS(TUB!AJ:AJ,TUB!AW:AW,ASM!C74))+SUMIFS(EQUIP!AR:AR,EQUIP!BM:BM,ASM!C74)+SUMIFS(EQUIP!AV:AV,EQUIP!BN:BN,ASM!C74)+SUMIFS(EQUIP!AZ:AZ,EQUIP!BO:BO,ASM!C74) -> 0 | J74: =VLOOKUP(C74,PREÇOS!$W$2:$AA$1918,2,FALSE) -> 242.51 | K74: 0 | M74: APL
A75: 10 | B75: 1580 | C75: 10/1580 | D75: 10 | E75: 1580 | F75: =VLOOKUP(C75,PREÇOS!$W$2:$AA$1918,5,FALSE) -> APLICAÇÃO SILICATO DE CÁLCIO 14''X25,4 | G75: 1 | H75: =VLOOKUP(C75,PREÇOS!$W$2:$AB$1918,6,FALSE) -> m | I75: =IF(H75="m",SUMIFS(TUB!W:W,TUB!AU:AU,ASM!C75)+SUMIFS(TUB!AC:AC,TUB!AV:AV,ASM!C75)+SUMIFS(TUB!AI:AI,TUB!AW:AW,ASM!C75),SUMIFS(TUB!X:X,TUB!AU:AU,ASM!C75)+SUMIFS(TUB!AD:AD,TUB!AV:AV,ASM!C75)+SUMIFS(TUB!AJ:AJ,TUB!AW:AW,ASM!C75))+SUMIFS(EQUIP!AR:AR,EQUIP!BM:BM,ASM!C75)+SUMIFS(EQUIP!AV:AV,EQUIP!BN:BN,ASM!C75)+SUMIFS(EQUIP!AZ:AZ,EQUIP!BO:BO,ASM!C75) -> 0 | J75: =VLOOKUP(C75,PREÇOS!$W$2:$AA$1918,2,FALSE) -> 222.51 | K75: 0 | M75: APL
A76: 10 | B76: 1590 | C76: 10/1590 | D76: 10 | E76: 1590 | F76: =VLOOKUP(C76,PREÇOS!$W$2:$AA$1918,5,FALSE) -> APLICAÇÃO SILICATO DE CÁLCIO 14''X38,1 | G76: 1 | H76: =VLOOKUP(C76,PREÇOS!$W$2:$AB$1918,6,FALSE) -> m | I76: =IF(H76="m",SUMIFS(TUB!W:W,TUB!AU:AU,ASM!C76)+SUMIFS(TUB!AC:AC,TUB!AV:AV,ASM!C76)+SUMIFS(TUB!AI:AI,TUB!AW:AW,ASM!C76),SUMIFS(TUB!X:X,TUB!AU:AU,ASM!C76)+SUMIFS(TUB!AD:AD,TUB!AV:AV,ASM!C76)+SUMIFS(TUB!AJ:AJ,TUB!AW:AW,ASM!C76))+SUMIFS(EQUIP!AR:AR,EQUIP!BM:BM,ASM!C76)+SUMIFS(EQUIP!AV:AV,EQUIP!BN:BN,ASM!C76)+SUMIFS(EQUIP!AZ:AZ,EQUIP!BO:BO,ASM!C76) -> 0 | J76: =VLOOKUP(C76,PREÇOS!$W$2:$AA$1918,2,FALSE) -> 233.5 | K76: 0 | M76: APL
A77: 10 | B77: 1600 | C77: 10/1600 | D77: 10 | E77: 1600 | F77: =VLOOKUP(C77,PREÇOS!$W$2:$AA$1918,5,FALSE) -> APLICAÇÃO SILICATO DE CÁLCIO 14''X50,8 | G77: 1 | H77: =VLOOKUP(C77,PREÇOS!$W$2:$AB$1918,6,FALSE) -> m | I77: =IF(H77="m",SUMIFS(TUB!W:W,TUB!AU:AU,ASM!C77)+SUMIFS(TUB!AC:AC,TUB!AV:AV,ASM!C77)+SUMIFS(TUB!AI:AI,TUB!AW:AW,ASM!C77),SUMIFS(TUB!X:X,TUB!AU:AU,ASM!C77)+SUMIFS(TUB!AD:AD,TUB!AV:AV,ASM!C77)+SUMIFS(TUB!AJ:AJ,TUB!AW:AW,ASM!C77))+SUMIFS(EQUIP!AR:AR,EQUIP!BM:BM,ASM!C77)+SUMIFS(EQUIP!AV:AV,EQUIP!BN:BN,ASM!C77)+SUMIFS(EQUIP!AZ:AZ,EQUIP!BO:BO,ASM!C77) -> 0 | J77: =VLOOKUP(C77,PREÇOS!$W$2:$AA$1918,2,FALSE) -> 243.5 | K77: 0 | M77: APL
A78: 10 | B78: 1610 | C78: 10/1610 | D78: 10 | E78: 1610 | F78: =VLOOKUP(C78,PREÇOS!$W$2:$AA$1918,5,FALSE) -> APLICAÇÃO SILICATO DE CÁLCIO 14''X63,5 | G78: 1 | H78: =VLOOKUP(C78,PREÇOS!$W$2:$AB$1918,6,FALSE) -> m | I78: =IF(H78="m",SUMIFS(TUB!W:W,TUB!AU:AU,ASM!C78)+SUMIFS(TUB!AC:AC,TUB!AV:AV,ASM!C78)+SUMIFS(TUB!AI:AI,TUB!AW:AW,ASM!C78),SUMIFS(TUB!X:X,TUB!AU:AU,ASM!C78)+SUMIFS(TUB!AD:AD,TUB!AV:AV,ASM!C78)+SUMIFS(TUB!AJ:AJ,TUB!AW:AW,ASM!C78))+SUMIFS(EQUIP!AR:AR,EQUIP!BM:BM,ASM!C78)+SUMIFS(EQUIP!AV:AV,EQUIP!BN:BN,ASM!C78)+SUMIFS(EQUIP!AZ:AZ,EQUIP!BO:BO,ASM!C78) -> 0 | J78: =VLOOKUP(C78,PREÇOS!$W$2:$AA$1918,2,FALSE) -> 262.77 | K78: 0 | M78: APL
A79: 10 | B79: 1620 | C79: 10/1620 | D79: 10 | E79: 1620 | F79: =VLOOKUP(C79,PREÇOS!$W$2:$AA$1918,5,FALSE) -> APLICAÇÃO SILICATO DE CÁLCIO 14''X76,3 | G79: 1 | H79: =VLOOKUP(C79,PREÇOS!$W$2:$AB$1918,6,FALSE) -> m | I79: =IF(H79="m",SUMIFS(TUB!W:W,TUB!AU:AU,ASM!C79)+SUMIFS(TUB!AC:AC,TUB!AV:AV,ASM!C79)+SUMIFS(TUB!AI:AI,TUB!AW:AW,ASM!C79),SUMIFS(TUB!X:X,TUB!AU:AU,ASM!C79)+SUMIFS(TUB!AD:AD,TUB!AV:AV,ASM!C79)+SUMIFS(TUB!AJ:AJ,TUB!AW:AW,ASM!C79))+SUMIFS(EQUIP!AR:AR,EQUIP!BM:BM,ASM!C79)+SUMIFS(EQUIP!AV:AV,EQUIP!BN:BN,ASM!C79)+SUMIFS(EQUIP!AZ:AZ,EQUIP!BO:BO,ASM!C79) -> 0 | J79: =VLOOKUP(C79,PREÇOS!$W$2:$AA$1918,2,FALSE) -> 269.68 | K79: 0 | M79: APL
A80: 10 | B80: 1630 | C80: 10/1630 | D80: 10 | E80: 1630 | F80: =VLOOKUP(C80,PREÇOS!$W$2:$AA$1918,5,FALSE) -> APLICAÇÃO SILICATO DE CÁLCIO 16''X38,1 | G80: 1 | H80: =VLOOKUP(C80,PREÇOS!$W$2:$AB$1918,6,FALSE) -> m | I80: =IF(H80="m",SUMIFS(TUB!W:W,TUB!AU:AU,ASM!C80)+SUMIFS(TUB!AC:AC,TUB!AV:AV,ASM!C80)+SUMIFS(TUB!AI:AI,TUB!AW:AW,ASM!C80),SUMIFS(TUB!X:X,TUB!AU:AU,ASM!C80)+SUMIFS(TUB!AD:AD,TUB!AV:AV,ASM!C80)+SUMIFS(TUB!AJ:AJ,TUB!AW:AW,ASM!C80))+SUMIFS(EQUIP!AR:AR,EQUIP!BM:BM,ASM!C80)+SUMIFS(EQUIP!AV:AV,EQUIP!BN:BN,ASM!C80)+SUMIFS(EQUIP!AZ:AZ,EQUIP!BO:BO,ASM!C80) -> 0 | J80: =VLOOKUP(C80,PREÇOS!$W$2:$AA$1918,2,FALSE) -> 256.59 | K80: 0 | M80: APL
A81: 10 | B81: 1640 | C81: 10/1640 | D81: 10 | E81: 1640 | F81: =VLOOKUP(C81,PREÇOS!$W$2:$AA$1918,5,FALSE) -> APLICAÇÃO SILICATO DE CÁLCIO 16''X50,8 | G81: 1 | H81: =VLOOKUP(C81,PREÇOS!$W$2:$AB$1918,6,FALSE) -> m | I81: =IF(H81="m",SUMIFS(TUB!W:W,TUB!AU:AU,ASM!C81)+SUMIFS(TUB!AC:AC,TUB!AV:AV,ASM!C81)+SUMIFS(TUB!AI:AI,TUB!AW:AW,ASM!C81),SUMIFS(TUB!X:X,TUB!AU:AU,ASM!C81)+SUMIFS(TUB!AD:AD,TUB!AV:AV,ASM!C81)+SUMIFS(TUB!AJ:AJ,TUB!AW:AW,ASM!C81))+SUMIFS(EQUIP!AR:AR,EQUIP!BM:BM,ASM!C81)+SUMIFS(EQUIP!AV:AV,EQUIP!BN:BN,ASM!C81)+SUMIFS(EQUIP!AZ:AZ,EQUIP!BO:BO,ASM!C81) -> 0 | J81: =VLOOKUP(C81,PREÇOS!$W$2:$AA$1918,2,FALSE) -> 269.68 | K81: 0 | M81: APL
A82: 10 | B82: 1650 | C82: 10/1650 | D82: 10 | E82: 1650 | F82: =VLOOKUP(C82,PREÇOS!$W$2:$AA$1918,5,FALSE) -> APLICAÇÃO SILICATO DE CÁLCIO 16''X63,5 | G82: 1 | H82: =VLOOKUP(C82,PREÇOS!$W$2:$AB$1918,6,FALSE) -> m | I82: =IF(H82="m",SUMIFS(TUB!W:W,TUB!AU:AU,ASM!C82)+SUMIFS(TUB!AC:AC,TUB!AV:AV,ASM!C82)+SUMIFS(TUB!AI:AI,TUB!AW:AW,ASM!C82),SUMIFS(TUB!X:X,TUB!AU:AU,ASM!C82)+SUMIFS(TUB!AD:AD,TUB!AV:AV,ASM!C82)+SUMIFS(TUB!AJ:AJ,TUB!AW:AW,ASM!C82))+SUMIFS(EQUIP!AR:AR,EQUIP!BM:BM,ASM!C82)+SUMIFS(EQUIP!AV:AV,EQUIP!BN:BN,ASM!C82)+SUMIFS(EQUIP!AZ:AZ,EQUIP!BO:BO,ASM!C82) -> 0 | J82: =VLOOKUP(C82,PREÇOS!$W$2:$AA$1918,2,FALSE) -> 276.6 | K82: 0 | M82: APL
A83: 10 | B83: 1660 | C83: =D83&"/"&E83 -> 10/1660 | D83: 10 | E83: 1660 | F83: =VLOOKUP(C83,PREÇOS!$W$2:$AA$1918,5,FALSE) -> APLICAÇÃO SILICATO DE CÁLCIO 16''X76,3 | G83: 1 | H83: =VLOOKUP(C83,PREÇOS!$W$2:$AB$1918,6,FALSE) -> m | I83: =IF(H83="m",SUMIFS(TUB!W:W,TUB!AU:AU,ASM!C83)+SUMIFS(TUB!AC:AC,TUB!AV:AV,ASM!C83)+SUMIFS(TUB!AI:AI,TUB!AW:AW,ASM!C83),SUMIFS(TUB!X:X,TUB!AU:AU,ASM!C83)+SUMIFS(TUB!AD:AD,TUB!AV:AV,ASM!C83)+SUMIFS(TUB!AJ:AJ,TUB!AW:AW,ASM!C83))+SUMIFS(EQUIP!AR:AR,EQUIP!BM:BM,ASM!C83)+SUMIFS(EQUIP!AV:AV,EQUIP!BN:BN,ASM!C83)+SUMIFS(EQUIP!AZ:AZ,EQUIP!BO:BO,ASM!C83) -> 0 | J83: =VLOOKUP(C83,PREÇOS!$W$2:$AA$1918,2,FALSE) -> 295.86 | K83: =J83*I83*G83 -> 0 | M83: APL
A84: 10 | B84: 1670 | C84: 10/1670 | D84: 10 | E84: 1670 | F84: =VLOOKUP(C84,PREÇOS!$W$2:$AA$1918,5,FALSE) -> APLICAÇÃO SILICATO DE CÁLCIO 18''X38,1 | G84: 1 | H84: =VLOOKUP(C84,PREÇOS!$W$2:$AB$1918,6,FALSE) -> m | I84: =IF(H84="m",SUMIFS(TUB!W:W,TUB!AU:AU,ASM!C84)+SUMIFS(TUB!AC:AC,TUB!AV:AV,ASM!C84)+SUMIFS(TUB!AI:AI,TUB!AW:AW,ASM!C84),SUMIFS(TUB!X:X,TUB!AU:AU,ASM!C84)+SUMIFS(TUB!AD:AD,TUB!AV:AV,ASM!C84)+SUMIFS(TUB!AJ:AJ,TUB!AW:AW,ASM!C84))+SUMIFS(EQUIP!AR:AR,EQUIP!BM:BM,ASM!C84)+SUMIFS(EQUIP!AV:AV,EQUIP!BN:BN,ASM!C84)+SUMIFS(EQUIP!AZ:AZ,EQUIP!BO:BO,ASM!C84) -> 0 | J84: =VLOOKUP(C84,PREÇOS!$W$2:$AA$1918,2,FALSE) -> 259.31 | K84: 0 | M84: APL
A85: 10 | B85: 1680 | C85: 10/1680 | D85: 10 | E85: 1680 | F85: =VLOOKUP(C85,PREÇOS!$W$2:$AA$1918,5,FALSE) -> APLICAÇÃO SILICATO DE CÁLCIO 18''X50,8 | G85: 1 | H85: =VLOOKUP(C85,PREÇOS!$W$2:$AB$1918,6,FALSE) -> m | I85: =IF(H85="m",SUMIFS(TUB!W:W,TUB!AU:AU,ASM!C85)+SUMIFS(TUB!AC:AC,TUB!AV:AV,ASM!C85)+SUMIFS(TUB!AI:AI,TUB!AW:AW,ASM!C85),SUMIFS(TUB!X:X,TUB!AU:AU,ASM!C85)+SUMIFS(TUB!AD:AD,TUB!AV:AV,ASM!C85)+SUMIFS(TUB!AJ:AJ,TUB!AW:AW,ASM!C85))+SUMIFS(EQUIP!AR:AR,EQUIP!BM:BM,ASM!C85)+SUMIFS(EQUIP!AV:AV,EQUIP!BN:BN,ASM!C85)+SUMIFS(EQUIP!AZ:AZ,EQUIP!BO:BO,ASM!C85) -> 0 | J85: =VLOOKUP(C85,PREÇOS!$W$2:$AA$1918,2,FALSE) -> 271.66 | K85: 0 | M85: APL
A86: 10 | B86: 1690 | C86: 10/1690 | D86: 10 | E86: 1690 | F86: =VLOOKUP(C86,PREÇOS!$W$2:$AA$1918,5,FALSE) -> APLICAÇÃO SILICATO DE CÁLCIO 18''X63,5 | G86: 1 | H86: =VLOOKUP(C86,PREÇOS!$W$2:$AB$1918,6,FALSE) -> m | I86: =IF(H86="m",SUMIFS(TUB!W:W,TUB!AU:AU,ASM!C86)+SUMIFS(TUB!AC:AC,TUB!AV:AV,ASM!C86)+SUMIFS(TUB!AI:AI,TUB!AW:AW,ASM!C86),SUMIFS(TUB!X:X,TUB!AU:AU,ASM!C86)+SUMIFS(TUB!AD:AD,TUB!AV:AV,ASM!C86)+SUMIFS(TUB!AJ:AJ,TUB!AW:AW,ASM!C86))+SUMIFS(EQUIP!AR:AR,EQUIP!BM:BM,ASM!C86)+SUMIFS(EQUIP!AV:AV,EQUIP!BN:BN,ASM!C86)+SUMIFS(EQUIP!AZ:AZ,EQUIP!BO:BO,ASM!C86) -> 0 | J86: =VLOOKUP(C86,PREÇOS!$W$2:$AA$1918,2,FALSE) -> 274.74 | K86: 0 | M86: APL
A87: 10 | B87: 1700 | C87: 10/1700 | D87: 10 | E87: 1700 | F87: =VLOOKUP(C87,PREÇOS!$W$2:$AA$1918,5,FALSE) -> APLICAÇÃO SILICATO DE CÁLCIO 18''X76,3 | G87: 1 | H87: =VLOOKUP(C87,PREÇOS!$W$2:$AB$1918,6,FALSE) -> m | I87: =IF(H87="m",SUMIFS(TUB!W:W,TUB!AU:AU,ASM!C87)+SUMIFS(TUB!AC:AC,TUB!AV:AV,ASM!C87)+SUMIFS(TUB!AI:AI,TUB!AW:AW,ASM!C87),SUMIFS(TUB!X:X,TUB!AU:AU,ASM!C87)+SUMIFS(TUB!AD:AD,TUB!AV:AV,ASM!C87)+SUMIFS(TUB!AJ:AJ,TUB!AW:AW,ASM!C87))+SUMIFS(EQUIP!AR:AR,EQUIP!BM:BM,ASM!C87)+SUMIFS(EQUIP!AV:AV,EQUIP!BN:BN,ASM!C87)+SUMIFS(EQUIP!AZ:AZ,EQUIP!BO:BO,ASM!C87) -> 0 | J87: =VLOOKUP(C87,PREÇOS!$W$2:$AA$1918,2,FALSE) -> 275.36 | K87: 0 | M87: APL
A88: 10 | B88: 1710 | C88: 10/1710 | D88: 10 | E88: 1710 | F88: =VLOOKUP(C88,PREÇOS!$W$2:$AA$1918,5,FALSE) -> APLICAÇÃO SILICATO DE CÁLCIO 20''X38,1 | G88: 1 | H88: =VLOOKUP(C88,PREÇOS!$W$2:$AB$1918,6,FALSE) -> m | I88: =IF(H88="m",SUMIFS(TUB!W:W,TUB!AU:AU,ASM!C88)+SUMIFS(TUB!AC:AC,TUB!AV:AV,ASM!C88)+SUMIFS(TUB!AI:AI,TUB!AW:AW,ASM!C88),SUMIFS(TUB!X:X,TUB!AU:AU,ASM!C88)+SUMIFS(TUB!AD:AD,TUB!AV:AV,ASM!C88)+SUMIFS(TUB!AJ:AJ,TUB!AW:AW,ASM!C88))+SUMIFS(EQUIP!AR:AR,EQUIP!BM:BM,ASM!C88)+SUMIFS(EQUIP!AV:AV,EQUIP!BN:BN,ASM!C88)+SUMIFS(EQUIP!AZ:AZ,EQUIP!BO:BO,ASM!C88) -> 0 | J88: =VLOOKUP(C88,PREÇOS!$W$2:$AA$1918,2,FALSE) -> 277.83 | K88: 0 | M88: APL
A89: 10 | B89: 1720 | C89: 10/1720 | D89: 10 | E89: 1720 | F89: =VLOOKUP(C89,PREÇOS!$W$2:$AA$1918,5,FALSE) -> APLICAÇÃO SILICATO DE CÁLCIO 20''X50,8 | G89: 1 | H89: =VLOOKUP(C89,PREÇOS!$W$2:$AB$1918,6,FALSE) -> m | I89: =IF(H89="m",SUMIFS(TUB!W:W,TUB!AU:AU,ASM!C89)+SUMIFS(TUB!AC:AC,TUB!AV:AV,ASM!C89)+SUMIFS(TUB!AI:AI,TUB!AW:AW,ASM!C89),SUMIFS(TUB!X:X,TUB!AU:AU,ASM!C89)+SUMIFS(TUB!AD:AD,TUB!AV:AV,ASM!C89)+SUMIFS(TUB!AJ:AJ,TUB!AW:AW,ASM!C89))+SUMIFS(EQUIP!AR:AR,EQUIP!BM:BM,ASM!C89)+SUMIFS(EQUIP!AV:AV,EQUIP!BN:BN,ASM!C89)+SUMIFS(EQUIP!AZ:AZ,EQUIP!BO:BO,ASM!C89) -> 0 | J89: =VLOOKUP(C89,PREÇOS!$W$2:$AA$1918,2,FALSE) -> 296.35 | K89: 0 | M89: APL
A90: 10 | B90: 1730 | C90: 10/1730 | D90: 10 | E90: 1730 | F90: =VLOOKUP(C90,PREÇOS!$W$2:$AA$1918,5,FALSE) -> APLICAÇÃO SILICATO DE CÁLCIO 20''X63,5 | G90: 1 | H90: =VLOOKUP(C90,PREÇOS!$W$2:$AB$1918,6,FALSE) -> m | I90: =IF(H90="m",SUMIFS(TUB!W:W,TUB!AU:AU,ASM!C90)+SUMIFS(TUB!AC:AC,TUB!AV:AV,ASM!C90)+SUMIFS(TUB!AI:AI,TUB!AW:AW,ASM!C90),SUMIFS(TUB!X:X,TUB!AU:AU,ASM!C90)+SUMIFS(TUB!AD:AD,TUB!AV:AV,ASM!C90)+SUMIFS(TUB!AJ:AJ,TUB!AW:AW,ASM!C90))+SUMIFS(EQUIP!AR:AR,EQUIP!BM:BM,ASM!C90)+SUMIFS(EQUIP!AV:AV,EQUIP!BN:BN,ASM!C90)+SUMIFS(EQUIP!AZ:AZ,EQUIP!BO:BO,ASM!C90) -> 0 | J90: =VLOOKUP(C90,PREÇOS!$W$2:$AA$1918,2,FALSE) -> 299.44 | K90: 0 | M90: APL
A91: 10 | B91: 1740 | C91: 10/1740 | D91: 10 | E91: 1740 | F91: =VLOOKUP(C91,PREÇOS!$W$2:$AA$1918,5,FALSE) -> APLICAÇÃO SILICATO DE CÁLCIO 20''X76,3 | G91: 1 | H91: =VLOOKUP(C91,PREÇOS!$W$2:$AB$1918,6,FALSE) -> m | I91: =IF(H91="m",SUMIFS(TUB!W:W,TUB!AU:AU,ASM!C91)+SUMIFS(TUB!AC:AC,TUB!AV:AV,ASM!C91)+SUMIFS(TUB!AI:AI,TUB!AW:AW,ASM!C91),SUMIFS(TUB!X:X,TUB!AU:AU,ASM!C91)+SUMIFS(TUB!AD:AD,TUB!AV:AV,ASM!C91)+SUMIFS(TUB!AJ:AJ,TUB!AW:AW,ASM!C91))+SUMIFS(EQUIP!AR:AR,EQUIP!BM:BM,ASM!C91)+SUMIFS(EQUIP!AV:AV,EQUIP!BN:BN,ASM!C91)+SUMIFS(EQUIP!AZ:AZ,EQUIP!BO:BO,ASM!C91) -> 0 | J91: =VLOOKUP(C91,PREÇOS!$W$2:$AA$1918,2,FALSE) -> 302.53 | K91: 0 | M91: APL
A92: 10 | B92: 1750 | C92: 10/1750 | D92: 10 | E92: 1750 | F92: =VLOOKUP(C92,PREÇOS!$W$2:$AA$1918,5,FALSE) -> APLICAÇÃO SILICATO DE CÁLCIO 22''X38,1 | G92: 1 | H92: =VLOOKUP(C92,PREÇOS!$W$2:$AB$1918,6,FALSE) -> m | I92: =IF(H92="m",SUMIFS(TUB!W:W,TUB!AU:AU,ASM!C92)+SUMIFS(TUB!AC:AC,TUB!AV:AV,ASM!C92)+SUMIFS(TUB!AI:AI,TUB!AW:AW,ASM!C92),SUMIFS(TUB!X:X,TUB!AU:AU,ASM!C92)+SUMIFS(TUB!AD:AD,TUB!AV:AV,ASM!C92)+SUMIFS(TUB!AJ:AJ,TUB!AW:AW,ASM!C92))+SUMIFS(EQUIP!AR:AR,EQUIP!BM:BM,ASM!C92)+SUMIFS(EQUIP!AV:AV,EQUIP!BN:BN,ASM!C92)+SUMIFS(EQUIP!AZ:AZ,EQUIP!BO:BO,ASM!C92) -> 0 | J92: =VLOOKUP(C92,PREÇOS!$W$2:$AA$1918,2,FALSE) -> 311.79 | K92: 0 | M92: APL
A93: 10 | B93: 1760 | C93: 10/1760 | D93: 10 | E93: 1760 | F93: =VLOOKUP(C93,PREÇOS!$W$2:$AA$1918,5,FALSE) -> APLICAÇÃO SILICATO DE CÁLCIO 22''X50,8 | G93: 1 | H93: =VLOOKUP(C93,PREÇOS!$W$2:$AB$1918,6,FALSE) -> m | I93: =IF(H93="m",SUMIFS(TUB!W:W,TUB!AU:AU,ASM!C93)+SUMIFS(TUB!AC:AC,TUB!AV:AV,ASM!C93)+SUMIFS(TUB!AI:AI,TUB!AW:AW,ASM!C93),SUMIFS(TUB!X:X,TUB!AU:AU,ASM!C93)+SUMIFS(TUB!AD:AD,TUB!AV:AV,ASM!C93)+SUMIFS(TUB!AJ:AJ,TUB!AW:AW,ASM!C93))+SUMIFS(EQUIP!AR:AR,EQUIP!BM:BM,ASM!C93)+SUMIFS(EQUIP!AV:AV,EQUIP!BN:BN,ASM!C93)+SUMIFS(EQUIP!AZ:AZ,EQUIP!BO:BO,ASM!C93) -> 0 | J93: =VLOOKUP(C93,PREÇOS!$W$2:$AA$1918,2,FALSE) -> 327.22 | K93: 0 | M93: APL
A94: 10 | B94: 1770 | C94: 10/1770 | D94: 10 | E94: 1770 | F94: =VLOOKUP(C94,PREÇOS!$W$2:$AA$1918,5,FALSE) -> APLICAÇÃO SILICATO DE CÁLCIO 22''X63,5 | G94: 1 | H94: =VLOOKUP(C94,PREÇOS!$W$2:$AB$1918,6,FALSE) -> m | I94: =IF(H94="m",SUMIFS(TUB!W:W,TUB!AU:AU,ASM!C94)+SUMIFS(TUB!AC:AC,TUB!AV:AV,ASM!C94)+SUMIFS(TUB!AI:AI,TUB!AW:AW,ASM!C94),SUMIFS(TUB!X:X,TUB!AU:AU,ASM!C94)+SUMIFS(TUB!AD:AD,TUB!AV:AV,ASM!C94)+SUMIFS(TUB!AJ:AJ,TUB!AW:AW,ASM!C94))+SUMIFS(EQUIP!AR:AR,EQUIP!BM:BM,ASM!C94)+SUMIFS(EQUIP!AV:AV,EQUIP!BN:BN,ASM!C94)+SUMIFS(EQUIP!AZ:AZ,EQUIP!BO:BO,ASM!C94) -> 0 | J94: =VLOOKUP(C94,PREÇOS!$W$2:$AA$1918,2,FALSE) -> 299.44 | K94: 0 | M94: APL
A95: 10 | B95: 1780 | C95: 10/1780 | D95: 10 | E95: 1780 | F95: =VLOOKUP(C95,PREÇOS!$W$2:$AA$1918,5,FALSE) -> APLICAÇÃO SILICATO DE CÁLCIO 22''X76,3 | G95: 1 | H95: =VLOOKUP(C95,PREÇOS!$W$2:$AB$1918,6,FALSE) -> m | I95: =IF(H95="m",SUMIFS(TUB!W:W,TUB!AU:AU,ASM!C95)+SUMIFS(TUB!AC:AC,TUB!AV:AV,ASM!C95)+SUMIFS(TUB!AI:AI,TUB!AW:AW,ASM!C95),SUMIFS(TUB!X:X,TUB!AU:AU,ASM!C95)+SUMIFS(TUB!AD:AD,TUB!AV:AV,ASM!C95)+SUMIFS(TUB!AJ:AJ,TUB!AW:AW,ASM!C95))+SUMIFS(EQUIP!AR:AR,EQUIP!BM:BM,ASM!C95)+SUMIFS(EQUIP!AV:AV,EQUIP!BN:BN,ASM!C95)+SUMIFS(EQUIP!AZ:AZ,EQUIP!BO:BO,ASM!C95) -> 0 | J95: =VLOOKUP(C95,PREÇOS!$W$2:$AA$1918,2,FALSE) -> 309.93 | K95: 0 | M95: APL
A96: 10 | B96: 1790 | C96: 10/1790 | D96: 10 | E96: 1790 | F96: =VLOOKUP(C96,PREÇOS!$W$2:$AA$1918,5,FALSE) -> APLICAÇÃO SILICATO DE CÁLCIO 24''X38,1 | G96: 1 | H96: =VLOOKUP(C96,PREÇOS!$W$2:$AB$1918,6,FALSE) -> m | I96: =IF(H96="m",SUMIFS(TUB!W:W,TUB!AU:AU,ASM!C96)+SUMIFS(TUB!AC:AC,TUB!AV:AV,ASM!C96)+SUMIFS(TUB!AI:AI,TUB!AW:AW,ASM!C96),SUMIFS(TUB!X:X,TUB!AU:AU,ASM!C96)+SUMIFS(TUB!AD:AD,TUB!AV:AV,ASM!C96)+SUMIFS(TUB!AJ:AJ,TUB!AW:AW,ASM!C96))+SUMIFS(EQUIP!AR:AR,EQUIP!BM:BM,ASM!C96)+SUMIFS(EQUIP!AV:AV,EQUIP!BN:BN,ASM!C96)+SUMIFS(EQUIP!AZ:AZ,EQUIP!BO:BO,ASM!C96) -> 0 | J96: =VLOOKUP(C96,PREÇOS!$W$2:$AA$1918,2,FALSE) -> 336.61 | K96: 0 | M96: APL
A97: 10 | B97: 1800 | C97: 10/1800 | D97: 10 | E97: 1800 | F97: =VLOOKUP(C97,PREÇOS!$W$2:$AA$1918,5,FALSE) -> APLICAÇÃO SILICATO DE CÁLCIO 24''X50,8 | G97: 1 | H97: =VLOOKUP(C97,PREÇOS!$W$2:$AB$1918,6,FALSE) -> m | I97: =IF(H97="m",SUMIFS(TUB!W:W,TUB!AU:AU,ASM!C97)+SUMIFS(TUB!AC:AC,TUB!AV:AV,ASM!C97)+SUMIFS(TUB!AI:AI,TUB!AW:AW,ASM!C97),SUMIFS(TUB!X:X,TUB!AU:AU,ASM!C97)+SUMIFS(TUB!AD:AD,TUB!AV:AV,ASM!C97)+SUMIFS(TUB!AJ:AJ,TUB!AW:AW,ASM!C97))+SUMIFS(EQUIP!AR:AR,EQUIP!BM:BM,ASM!C97)+SUMIFS(EQUIP!AV:AV,EQUIP!BN:BN,ASM!C97)+SUMIFS(EQUIP!AZ:AZ,EQUIP!BO:BO,ASM!C97) -> 0 | J97: =VLOOKUP(C97,PREÇOS!$W$2:$AA$1918,2,FALSE) -> 337.35 | K97: 0 | M97: APL
A98: 10 | B98: 1810 | C98: 10/1810 | D98: 10 | E98: 1810 | F98: =VLOOKUP(C98,PREÇOS!$W$2:$AA$1918,5,FALSE) -> APLICAÇÃO SILICATO DE CÁLCIO 24''X63,5 | G98: 1 | H98: =VLOOKUP(C98,PREÇOS!$W$2:$AB$1918,6,FALSE) -> m | I98: =IF(H98="m",SUMIFS(TUB!W:W,TUB!AU:AU,ASM!C98)+SUMIFS(TUB!AC:AC,TUB!AV:AV,ASM!C98)+SUMIFS(TUB!AI:AI,TUB!AW:AW,ASM!C98),SUMIFS(TUB!X:X,TUB!AU:AU,ASM!C98)+SUMIFS(TUB!AD:AD,TUB!AV:AV,ASM!C98)+SUMIFS(TUB!AJ:AJ,TUB!AW:AW,ASM!C98))+SUMIFS(EQUIP!AR:AR,EQUIP!BM:BM,ASM!C98)+SUMIFS(EQUIP!AV:AV,EQUIP!BN:BN,ASM!C98)+SUMIFS(EQUIP!AZ:AZ,EQUIP!BO:BO,ASM!C98) -> 0 | J98: =VLOOKUP(C98,PREÇOS!$W$2:$AA$1918,2,FALSE) -> 344.26 | K98: 0 | M98: APL
A99: 10 | B99: 1820 | C99: 10/1820 | D99: 10 | E99: 1820 | F99: =VLOOKUP(C99,PREÇOS!$W$2:$AA$1918,5,FALSE) -> APLICAÇÃO SILICATO DE CÁLCIO 24''X76,3 | G99: 1 | H99: =VLOOKUP(C99,PREÇOS!$W$2:$AB$1918,6,FALSE) -> m | I99: =IF(H99="m",SUMIFS(TUB!W:W,TUB!AU:AU,ASM!C99)+SUMIFS(TUB!AC:AC,TUB!AV:AV,ASM!C99)+SUMIFS(TUB!AI:AI,TUB!AW:AW,ASM!C99),SUMIFS(TUB!X:X,TUB!AU:AU,ASM!C99)+SUMIFS(TUB!AD:AD,TUB!AV:AV,ASM!C99)+SUMIFS(TUB!AJ:AJ,TUB!AW:AW,ASM!C99))+SUMIFS(EQUIP!AR:AR,EQUIP!BM:BM,ASM!C99)+SUMIFS(EQUIP!AV:AV,EQUIP!BN:BN,ASM!C99)+SUMIFS(EQUIP!AZ:AZ,EQUIP!BO:BO,ASM!C99) -> 0 | J99: =VLOOKUP(C99,PREÇOS!$W$2:$AA$1918,2,FALSE) -> 357.35 | K99: 0 | M99: APL
A100: 10 | B100: 1830 | C100: 10/1830 | D100: 10 | E100: 1830 | F100: =VLOOKUP(C100,PREÇOS!$W$2:$AA$1918,5,FALSE) -> APLICAÇÃO SILICATO DE CÁLCIO 26''X38,1 | G100: 1 | H100: =VLOOKUP(C100,PREÇOS!$W$2:$AB$1918,6,FALSE) -> m | I100: =IF(H100="m",SUMIFS(TUB!W:W,TUB!AU:AU,ASM!C100)+SUMIFS(TUB!AC:AC,TUB!AV:AV,ASM!C100)+SUMIFS(TUB!AI:AI,TUB!AW:AW,ASM!C100),SUMIFS(TUB!X:X,TUB!AU:AU,ASM!C100)+SUMIFS(TUB!AD:AD,TUB!AV:AV,ASM!C100)+SUMIFS(TUB!AJ:AJ,TUB!AW:AW,ASM!C100))+SUMIFS(EQUIP!AR:AR,EQUIP!BM:BM,ASM!C100)+SUMIFS(EQUIP!AV:AV,EQUIP!BN:BN,ASM!C100)+SUMIFS(EQUIP!AZ:AZ,EQUIP!BO:BO,ASM!C100) -> 0 | J100: =VLOOKUP(C100,PREÇOS!$W$2:$AA$1918,2,FALSE) -> 350.44 | K100: 0 | M100: APL
A101: 10 | B101: 1840 | C101: 10/1840 | D101: 10 | E101: 1840 | F101: =VLOOKUP(C101,PREÇOS!$W$2:$AA$1918,5,FALSE) -> APLICAÇÃO SILICATO DE CÁLCIO 26''X50,8 | G101: 1 | H101: =VLOOKUP(C101,PREÇOS!$W$2:$AB$1918,6,FALSE) -> m | I101: =IF(H101="m",SUMIFS(TUB!W:W,TUB!AU:AU,ASM!C101)+SUMIFS(TUB!AC:AC,TUB!AV:AV,ASM!C101)+SUMIFS(TUB!AI:AI,TUB!AW:AW,ASM!C101),SUMIFS(TUB!X:X,TUB!AU:AU,ASM!C101)+SUMIFS(TUB!AD:AD,TUB!AV:AV,ASM!C101)+SUMIFS(TUB!AJ:AJ,TUB!AW:AW,ASM!C101))+SUMIFS(EQUIP!AR:AR,EQUIP!BM:BM,ASM!C101)+SUMIFS(EQUIP!AV:AV,EQUIP!BN:BN,ASM!C101)+SUMIFS(EQUIP!AZ:AZ,EQUIP!BO:BO,ASM!C101) -> 0 | J101: =VLOOKUP(C101,PREÇOS!$W$2:$AA$1918,2,FALSE) -> 357.97 | K101: 0 | M101: APL
A102: 10 | B102: 1850 | C102: 10/1850 | D102: 10 | E102: 1850 | F102: =VLOOKUP(C102,PREÇOS!$W$2:$AA$1918,5,FALSE) -> APLICAÇÃO SILICATO DE CÁLCIO 26''X63,5 | G102: 1 | H102: =VLOOKUP(C102,PREÇOS!$W$2:$AB$1918,6,FALSE) -> m | I102: =IF(H102="m",SUMIFS(TUB!W:W,TUB!AU:AU,ASM!C102)+SUMIFS(TUB!AC:AC,TUB!AV:AV,ASM!C102)+SUMIFS(TUB!AI:AI,TUB!AW:AW,ASM!C102),SUMIFS(TUB!X:X,TUB!AU:AU,ASM!C102)+SUMIFS(TUB!AD:AD,TUB!AV:AV,ASM!C102)+SUMIFS(TUB!AJ:AJ,TUB!AW:AW,ASM!C102))+SUMIFS(EQUIP!AR:AR,EQUIP!BM:BM,ASM!C102)+SUMIFS(EQUIP!AV:AV,EQUIP!BN:BN,ASM!C102)+SUMIFS(EQUIP!AZ:AZ,EQUIP!BO:BO,ASM!C102) -> 0 | J102: =VLOOKUP(C102,PREÇOS!$W$2:$AA$1918,2,FALSE) -> 365.5 | K102: 0 | M102: APL
A103: 10 | B103: 1860 | C103: 10/1860 | D103: 10 | E103: 1860 | F103: =VLOOKUP(C103,PREÇOS!$W$2:$AA$1918,5,FALSE) -> APLICAÇÃO SILICATO DE CÁLCIO 26''X76,3 | G103: 1 | H103: =VLOOKUP(C103,PREÇOS!$W$2:$AB$1918,6,FALSE) -> m | I103: =IF(H103="m",SUMIFS(TUB!W:W,TUB!AU:AU,ASM!C103)+SUMIFS(TUB!AC:AC,TUB!AV:AV,ASM!C103)+SUMIFS(TUB!AI:AI,TUB!AW:AW,ASM!C103),SUMIFS(TUB!X:X,TUB!AU:AU,ASM!C103)+SUMIFS(TUB!AD:AD,TUB!AV:AV,ASM!C103)+SUMIFS(TUB!AJ:AJ,TUB!AW:AW,ASM!C103))+SUMIFS(EQUIP!AR:AR,EQUIP!BM:BM,ASM!C103)+SUMIFS(EQUIP!AV:AV,EQUIP!BN:BN,ASM!C103)+SUMIFS(EQUIP!AZ:AZ,EQUIP!BO:BO,ASM!C103) -> 0 | J103: =VLOOKUP(C103,PREÇOS!$W$2:$AA$1918,2,FALSE) -> 377.35 | K103: 0 | M103: APL
A104: 10 | B104: 1870 | C104: 10/1870 | D104: 10 | E104: 1870 | F104: =VLOOKUP(C104,PREÇOS!$W$2:$AA$1918,5,FALSE) -> APLICAÇÃO SILICATO DE CÁLCIO 30''X38,1 | G104: 1 | H104: =VLOOKUP(C104,PREÇOS!$W$2:$AB$1918,6,FALSE) -> m | I104: =IF(H104="m",SUMIFS(TUB!W:W,TUB!AU:AU,ASM!C104)+SUMIFS(TUB!AC:AC,TUB!AV:AV,ASM!C104)+SUMIFS(TUB!AI:AI,TUB!AW:AW,ASM!C104),SUMIFS(TUB!X:X,TUB!AU:AU,ASM!C104)+SUMIFS(TUB!AD:AD,TUB!AV:AV,ASM!C104)+SUMIFS(TUB!AJ:AJ,TUB!AW:AW,ASM!C104))+SUMIFS(EQUIP!AR:AR,EQUIP!BM:BM,ASM!C104)+SUMIFS(EQUIP!AV:AV,EQUIP!BN:BN,ASM!C104)+SUMIFS(EQUIP!AZ:AZ,EQUIP!BO:BO,ASM!C104) -> 0 | J104: =VLOOKUP(C104,PREÇOS!$W$2:$AA$1918,2,FALSE) -> 384.27 | K104: 0 | M104: APL
A105: 10 | B105: 1880 | C105: 10/1880 | D105: 10 | E105: 1880 | F105: =VLOOKUP(C105,PREÇOS!$W$2:$AA$1918,5,FALSE) -> APLICAÇÃO SILICATO DE CÁLCIO 30''X50,8 | G105: 1 | H105: =VLOOKUP(C105,PREÇOS!$W$2:$AB$1918,6,FALSE) -> m | I105: =IF(H105="m",SUMIFS(TUB!W:W,TUB!AU:AU,ASM!C105)+SUMIFS(TUB!AC:AC,TUB!AV:AV,ASM!C105)+SUMIFS(TUB!AI:AI,TUB!AW:AW,ASM!C105),SUMIFS(TUB!X:X,TUB!AU:AU,ASM!C105)+SUMIFS(TUB!AD:AD,TUB!AV:AV,ASM!C105)+SUMIFS(TUB!AJ:AJ,TUB!AW:AW,ASM!C105))+SUMIFS(EQUIP!AR:AR,EQUIP!BM:BM,ASM!C105)+SUMIFS(EQUIP!AV:AV,EQUIP!BN:BN,ASM!C105)+SUMIFS(EQUIP!AZ:AZ,EQUIP!BO:BO,ASM!C105) -> 0 | J105: =VLOOKUP(C105,PREÇOS!$W$2:$AA$1918,2,FALSE) -> 397.36 | K105: 0 | M105: APL
A106: 10 | B106: 1890 | C106: 10/1890 | D106: 10 | E106: 1890 | F106: =VLOOKUP(C106,PREÇOS!$W$2:$AA$1918,5,FALSE) -> APLICAÇÃO SILICATO DE CÁLCIO 30''X63,5 | G106: 1 | H106: =VLOOKUP(C106,PREÇOS!$W$2:$AB$1918,6,FALSE) -> m | I106: =IF(H106="m",SUMIFS(TUB!W:W,TUB!AU:AU,ASM!C106)+SUMIFS(TUB!AC:AC,TUB!AV:AV,ASM!C106)+SUMIFS(TUB!AI:AI,TUB!AW:AW,ASM!C106),SUMIFS(TUB!X:X,TUB!AU:AU,ASM!C106)+SUMIFS(TUB!AD:AD,TUB!AV:AV,ASM!C106)+SUMIFS(TUB!AJ:AJ,TUB!AW:AW,ASM!C106))+SUMIFS(EQUIP!AR:AR,EQUIP!BM:BM,ASM!C106)+SUMIFS(EQUIP!AV:AV,EQUIP!BN:BN,ASM!C106)+SUMIFS(EQUIP!AZ:AZ,EQUIP!BO:BO,ASM!C106) -> 0 | J106: =VLOOKUP(C106,PREÇOS!$W$2:$AA$1918,2,FALSE) -> 404.27 | K106: 0 | M106: APL
A107: 10 | B107: 1900 | C107: 10/1900 | D107: 10 | E107: 1900 | F107: =VLOOKUP(C107,PREÇOS!$W$2:$AA$1918,5,FALSE) -> APLICAÇÃO SILICATO DE CÁLCIO 30''X76,3 | G107: 1 | H107: =VLOOKUP(C107,PREÇOS!$W$2:$AB$1918,6,FALSE) -> m | I107: =IF(H107="m",SUMIFS(TUB!W:W,TUB!AU:AU,ASM!C107)+SUMIFS(TUB!AC:AC,TUB!AV:AV,ASM!C107)+SUMIFS(TUB!AI:AI,TUB!AW:AW,ASM!C107),SUMIFS(TUB!X:X,TUB!AU:AU,ASM!C107)+SUMIFS(TUB!AD:AD,TUB!AV:AV,ASM!C107)+SUMIFS(TUB!AJ:AJ,TUB!AW:AW,ASM!C107))+SUMIFS(EQUIP!AR:AR,EQUIP!BM:BM,ASM!C107)+SUMIFS(EQUIP!AV:AV,EQUIP!BN:BN,ASM!C107)+SUMIFS(EQUIP!AZ:AZ,EQUIP!BO:BO,ASM!C107) -> 0 | J107: =VLOOKUP(C107,PREÇOS!$W$2:$AA$1918,2,FALSE) -> 414.89 | K107: 0 | M107: APL
A108: 10 | B108: 1910 | C108: 10/1910 | D108: 10 | E108: 1910 | F108: =VLOOKUP(C108,PREÇOS!$W$2:$AA$1918,5,FALSE) -> APLICAÇÃO SILICATO DE CÁLCIO 32''X38,1 | G108: 1 | H108: =VLOOKUP(C108,PREÇOS!$W$2:$AB$1918,6,FALSE) -> m | I108: =IF(H108="m",SUMIFS(TUB!W:W,TUB!AU:AU,ASM!C108)+SUMIFS(TUB!AC:AC,TUB!AV:AV,ASM!C108)+SUMIFS(TUB!AI:AI,TUB!AW:AW,ASM!C108),SUMIFS(TUB!X:X,TUB!AU:AU,ASM!C108)+SUMIFS(TUB!AD:AD,TUB!AV:AV,ASM!C108)+SUMIFS(TUB!AJ:AJ,TUB!AW:AW,ASM!C108))+SUMIFS(EQUIP!AR:AR,EQUIP!BM:BM,ASM!C108)+SUMIFS(EQUIP!AV:AV,EQUIP!BN:BN,ASM!C108)+SUMIFS(EQUIP!AZ:AZ,EQUIP!BO:BO,ASM!C108) -> 0 | J108: =VLOOKUP(C108,PREÇOS!$W$2:$AA$1918,2,FALSE) -> 410.57 | K108: 0 | M108: APL
A109: 10 | B109: 1920 | C109: 10/1920 | D109: 10 | E109: 1920 | F109: =VLOOKUP(C109,PREÇOS!$W$2:$AA$1918,5,FALSE) -> APLICAÇÃO SILICATO DE CÁLCIO 32''X50,8 | G109: 1 | H109: =VLOOKUP(C109,PREÇOS!$W$2:$AB$1918,6,FALSE) -> m | I109: =IF(H109="m",SUMIFS(TUB!W:W,TUB!AU:AU,ASM!C109)+SUMIFS(TUB!AC:AC,TUB!AV:AV,ASM!C109)+SUMIFS(TUB!AI:AI,TUB!AW:AW,ASM!C109),SUMIFS(TUB!X:X,TUB!AU:AU,ASM!C109)+SUMIFS(TUB!AD:AD,TUB!AV:AV,ASM!C109)+SUMIFS(TUB!AJ:AJ,TUB!AW:AW,ASM!C109))+SUMIFS(EQUIP!AR:AR,EQUIP!BM:BM,ASM!C109)+SUMIFS(EQUIP!AV:AV,EQUIP!BN:BN,ASM!C109)+SUMIFS(EQUIP!AZ:AZ,EQUIP!BO:BO,ASM!C109) -> 0 | J109: =VLOOKUP(C109,PREÇOS!$W$2:$AA$1918,2,FALSE) -> 417.36 | K109: 0 | M109: APL
A110: 10 | B110: 1930 | C110: 10/1930 | D110: 10 | E110: 1930 | F110: =VLOOKUP(C110,PREÇOS!$W$2:$AA$1918,5,FALSE) -> APLICAÇÃO SILICATO DE CÁLCIO 32''X63,5 | G110: 1 | H110: =VLOOKUP(C110,PREÇOS!$W$2:$AB$1918,6,FALSE) -> m | I110: =IF(H110="m",SUMIFS(TUB!W:W,TUB!AU:AU,ASM!C110)+SUMIFS(TUB!AC:AC,TUB!AV:AV,ASM!C110)+SUMIFS(TUB!AI:AI,TUB!AW:AW,ASM!C110),SUMIFS(TUB!X:X,TUB!AU:AU,ASM!C110)+SUMIFS(TUB!AD:AD,TUB!AV:AV,ASM!C110)+SUMIFS(TUB!AJ:AJ,TUB!AW:AW,ASM!C110))+SUMIFS(EQUIP!AR:AR,EQUIP!BM:BM,ASM!C110)+SUMIFS(EQUIP!AV:AV,EQUIP!BN:BN,ASM!C110)+SUMIFS(EQUIP!AZ:AZ,EQUIP!BO:BO,ASM!C110) -> 0 | J110: =VLOOKUP(C110,PREÇOS!$W$2:$AA$1918,2,FALSE) -> 422.92 | K110: 0 | M110: APL
A111: 10 | B111: 1940 | C111: 10/1940 | D111: 10 | E111: 1940 | F111: =VLOOKUP(C111,PREÇOS!$W$2:$AA$1918,5,FALSE) -> APLICAÇÃO SILICATO DE CÁLCIO 32''X76,3 | G111: 1 | H111: =VLOOKUP(C111,PREÇOS!$W$2:$AB$1918,6,FALSE) -> m | I111: =IF(H111="m",SUMIFS(TUB!W:W,TUB!AU:AU,ASM!C111)+SUMIFS(TUB!AC:AC,TUB!AV:AV,ASM!C111)+SUMIFS(TUB!AI:AI,TUB!AW:AW,ASM!C111),SUMIFS(TUB!X:X,TUB!AU:AU,ASM!C111)+SUMIFS(TUB!AD:AD,TUB!AV:AV,ASM!C111)+SUMIFS(TUB!AJ:AJ,TUB!AW:AW,ASM!C111))+SUMIFS(EQUIP!AR:AR,EQUIP!BM:BM,ASM!C111)+SUMIFS(EQUIP!AV:AV,EQUIP!BN:BN,ASM!C111)+SUMIFS(EQUIP!AZ:AZ,EQUIP!BO:BO,ASM!C111) -> 0 | J111: =VLOOKUP(C111,PREÇOS!$W$2:$AA$1918,2,FALSE) -> 429.09 | K111: 0 | M111: APL
A112: 10 | B112: 1950 | C112: 10/1950 | D112: 10 | E112: 1950 | F112: =VLOOKUP(C112,PREÇOS!$W$2:$AA$1918,5,FALSE) -> APLICAÇÃO SILICATO DE CÁLCIO 36''X38,1 | G112: 1 | H112: =VLOOKUP(C112,PREÇOS!$W$2:$AB$1918,6,FALSE) -> m | I112: =IF(H112="m",SUMIFS(TUB!W:W,TUB!AU:AU,ASM!C112)+SUMIFS(TUB!AC:AC,TUB!AV:AV,ASM!C112)+SUMIFS(TUB!AI:AI,TUB!AW:AW,ASM!C112),SUMIFS(TUB!X:X,TUB!AU:AU,ASM!C112)+SUMIFS(TUB!AD:AD,TUB!AV:AV,ASM!C112)+SUMIFS(TUB!AJ:AJ,TUB!AW:AW,ASM!C112))+SUMIFS(EQUIP!AR:AR,EQUIP!BM:BM,ASM!C112)+SUMIFS(EQUIP!AV:AV,EQUIP!BN:BN,ASM!C112)+SUMIFS(EQUIP!AZ:AZ,EQUIP!BO:BO,ASM!C112) -> 0 | J112: =VLOOKUP(C112,PREÇOS!$W$2:$AA$1918,2,FALSE) -> 437.12 | K112: 0 | M112: APL
A113: 10 | B113: 1960 | C113: 10/1960 | D113: 10 | E113: 1960 | F113: =VLOOKUP(C113,PREÇOS!$W$2:$AA$1918,5,FALSE) -> APLICAÇÃO SILICATO DE CÁLCIO 36''X50,8 | G113: 1 | H113: =VLOOKUP(C113,PREÇOS!$W$2:$AB$1918,6,FALSE) -> m | I113: =IF(H113="m",SUMIFS(TUB!W:W,TUB!AU:AU,ASM!C113)+SUMIFS(TUB!AC:AC,TUB!AV:AV,ASM!C113)+SUMIFS(TUB!AI:AI,TUB!AW:AW,ASM!C113),SUMIFS(TUB!X:X,TUB!AU:AU,ASM!C113)+SUMIFS(TUB!AD:AD,TUB!AV:AV,ASM!C113)+SUMIFS(TUB!AJ:AJ,TUB!AW:AW,ASM!C113))+SUMIFS(EQUIP!AR:AR,EQUIP!BM:BM,ASM!C113)+SUMIFS(EQUIP!AV:AV,EQUIP!BN:BN,ASM!C113)+SUMIFS(EQUIP!AZ:AZ,EQUIP!BO:BO,ASM!C113) -> 0 | J113: =VLOOKUP(C113,PREÇOS!$W$2:$AA$1918,2,FALSE) -> 443.29 | K113: 0 | M113: APL
A114: 10 | B114: 1970 | C114: 10/1970 | D114: 10 | E114: 1970 | F114: =VLOOKUP(C114,PREÇOS!$W$2:$AA$1918,5,FALSE) -> APLICAÇÃO SILICATO DE CÁLCIO 36''X63,5 | G114: 1 | H114: =VLOOKUP(C114,PREÇOS!$W$2:$AB$1918,6,FALSE) -> m | I114: =IF(H114="m",SUMIFS(TUB!W:W,TUB!AU:AU,ASM!C114)+SUMIFS(TUB!AC:AC,TUB!AV:AV,ASM!C114)+SUMIFS(TUB!AI:AI,TUB!AW:AW,ASM!C114),SUMIFS(TUB!X:X,TUB!AU:AU,ASM!C114)+SUMIFS(TUB!AD:AD,TUB!AV:AV,ASM!C114)+SUMIFS(TUB!AJ:AJ,TUB!AW:AW,ASM!C114))+SUMIFS(EQUIP!AR:AR,EQUIP!BM:BM,ASM!C114)+SUMIFS(EQUIP!AV:AV,EQUIP!BN:BN,ASM!C114)+SUMIFS(EQUIP!AZ:AZ,EQUIP!BO:BO,ASM!C114) -> 0 | J114: =VLOOKUP(C114,PREÇOS!$W$2:$AA$1918,2,FALSE) -> 448.85 | K114: 0 | M114: APL
A115: 10 | B115: 1980 | C115: 10/1980 | D115: 10 | E115: 1980 | F115: =VLOOKUP(C115,PREÇOS!$W$2:$AA$1918,5,FALSE) -> APLICAÇÃO SILICATO DE CÁLCIO 36''X76,3 | G115: 1 | H115: =VLOOKUP(C115,PREÇOS!$W$2:$AB$1918,6,FALSE) -> m | I115: =IF(H115="m",SUMIFS(TUB!W:W,TUB!AU:AU,ASM!C115)+SUMIFS(TUB!AC:AC,TUB!AV:AV,ASM!C115)+SUMIFS(TUB!AI:AI,TUB!AW:AW,ASM!C115),SUMIFS(TUB!X:X,TUB!AU:AU,ASM!C115)+SUMIFS(TUB!AD:AD,TUB!AV:AV,ASM!C115)+SUMIFS(TUB!AJ:AJ,TUB!AW:AW,ASM!C115))+SUMIFS(EQUIP!AR:AR,EQUIP!BM:BM,ASM!C115)+SUMIFS(EQUIP!AV:AV,EQUIP!BN:BN,ASM!C115)+SUMIFS(EQUIP!AZ:AZ,EQUIP!BO:BO,ASM!C115) -> 0 | J115: =VLOOKUP(C115,PREÇOS!$W$2:$AA$1918,2,FALSE) -> 454.41 | K115: 0 | M115: APL
A116: 60 | B116: 400 | C116: 20/1010 | D116: 20 | E116: 1010 | F116: =VLOOKUP(C116,PREÇOS!$W$2:$AA$1918,5,FALSE) -> APLICAÇÃO LÃ DE ROCHA 1/2"X25,4 | G116: 1 | H116: =VLOOKUP(C116,PREÇOS!$W$2:$AB$1918,6,FALSE) -> m | I116: =IF(H116="m",SUMIFS(TUB!W:W,TUB!AU:AU,ASM!C116)+SUMIFS(TUB!AC:AC,TUB!AV:AV,ASM!C116)+SUMIFS(TUB!AI:AI,TUB!AW:AW,ASM!C116),SUMIFS(TUB!X:X,TUB!AU:AU,ASM!C116)+SUMIFS(TUB!AD:AD,TUB!AV:AV,ASM!C116)+SUMIFS(TUB!AJ:AJ,TUB!AW:AW,ASM!C116))+SUMIFS(EQUIP!AR:AR,EQUIP!BM:BM,ASM!C116)+SUMIFS(EQUIP!AV:AV,EQUIP!BN:BN,ASM!C116)+SUMIFS(EQUIP!AZ:AZ,EQUIP!BO:BO,ASM!C116) -> 0 | J116: =VLOOKUP(C116,PREÇOS!$W$2:$AA$1918,2,FALSE) -> 38.43 | K116: 0 | M116: APL
A117: 60 | B117: 410 | C117: 20/1020 | D117: 20 | E117: 1020 | F117: =VLOOKUP(C117,PREÇOS!$W$2:$AA$1918,5,FALSE) -> APLICAÇÃO LÃ DE ROCHA 1/2"X38,1 | G117: 1 | H117: =VLOOKUP(C117,PREÇOS!$W$2:$AB$1918,6,FALSE) -> m | I117: =IF(H117="m",SUMIFS(TUB!W:W,TUB!AU:AU,ASM!C117)+SUMIFS(TUB!AC:AC,TUB!AV:AV,ASM!C117)+SUMIFS(TUB!AI:AI,TUB!AW:AW,ASM!C117),SUMIFS(TUB!X:X,TUB!AU:AU,ASM!C117)+SUMIFS(TUB!AD:AD,TUB!AV:AV,ASM!C117)+SUMIFS(TUB!AJ:AJ,TUB!AW:AW,ASM!C117))+SUMIFS(EQUIP!AR:AR,EQUIP!BM:BM,ASM!C117)+SUMIFS(EQUIP!AV:AV,EQUIP!BN:BN,ASM!C117)+SUMIFS(EQUIP!AZ:AZ,EQUIP!BO:BO,ASM!C117) -> 0 | J117: =VLOOKUP(C117,PREÇOS!$W$2:$AA$1918,2,FALSE) -> 48.78 | K117: 0 | M117: APL
A118: 60 | B118: 420 | C118: 20/1030 | D118: 20 | E118: 1030 | F118: =VLOOKUP(C118,PREÇOS!$W$2:$AA$1918,5,FALSE) -> APLICAÇÃO LÃ DE ROCHA 1/2"X50,8 | G118: 1 | H118: =VLOOKUP(C118,PREÇOS!$W$2:$AB$1918,6,FALSE) -> m | I118: =IF(H118="m",SUMIFS(TUB!W:W,TUB!AU:AU,ASM!C118)+SUMIFS(TUB!AC:AC,TUB!AV:AV,ASM!C118)+SUMIFS(TUB!AI:AI,TUB!AW:AW,ASM!C118),SUMIFS(TUB!X:X,TUB!AU:AU,ASM!C118)+SUMIFS(TUB!AD:AD,TUB!AV:AV,ASM!C118)+SUMIFS(TUB!AJ:AJ,TUB!AW:AW,ASM!C118))+SUMIFS(EQUIP!AR:AR,EQUIP!BM:BM,ASM!C118)+SUMIFS(EQUIP!AV:AV,EQUIP!BN:BN,ASM!C118)+SUMIFS(EQUIP!AZ:AZ,EQUIP!BO:BO,ASM!C118) -> 0 | J118: =VLOOKUP(C118,PREÇOS!$W$2:$AA$1918,2,FALSE) -> 60.6 | K118: 0 | M118: APL
A119: 60 | B119: 430 | C119: 20/1040 | D119: 20 | E119: 1040 | F119: =VLOOKUP(C119,PREÇOS!$W$2:$AA$1918,5,FALSE) -> APLICAÇÃO LÃ DE ROCHA 3/4"X25,4 | G119: 1 | H119: =VLOOKUP(C119,PREÇOS!$W$2:$AB$1918,6,FALSE) -> m | I119: =IF(H119="m",SUMIFS(TUB!W:W,TUB!AU:AU,ASM!C119)+SUMIFS(TUB!AC:AC,TUB!AV:AV,ASM!C119)+SUMIFS(TUB!AI:AI,TUB!AW:AW,ASM!C119),SUMIFS(TUB!X:X,TUB!AU:AU,ASM!C119)+SUMIFS(TUB!AD:AD,TUB!AV:AV,ASM!C119)+SUMIFS(TUB!AJ:AJ,TUB!AW:AW,ASM!C119))+SUMIFS(EQUIP!AR:AR,EQUIP!BM:BM,ASM!C119)+SUMIFS(EQUIP!AV:AV,EQUIP!BN:BN,ASM!C119)+SUMIFS(EQUIP!AZ:AZ,EQUIP!BO:BO,ASM!C119) -> 0 | J119: =VLOOKUP(C119,PREÇOS!$W$2:$AA$1918,2,FALSE) -> 57.01 | K119: 0 | M119: APL
A120: 60 | B120: 440 | C120: 20/1050 | D120: 20 | E120: 1050 | F120: =VLOOKUP(C120,PREÇOS!$W$2:$AA$1918,5,FALSE) -> APLICAÇÃO LÃ DE ROCHA 3/4"X38,1 | G120: 1 | H120: =VLOOKUP(C120,PREÇOS!$W$2:$AB$1918,6,FALSE) -> m | I120: =IF(H120="m",SUMIFS(TUB!W:W,TUB!AU:AU,ASM!C120)+SUMIFS(TUB!AC:AC,TUB!AV:AV,ASM!C120)+SUMIFS(TUB!AI:AI,TUB!AW:AW,ASM!C120),SUMIFS(TUB!X:X,TUB!AU:AU,ASM!C120)+SUMIFS(TUB!AD:AD,TUB!AV:AV,ASM!C120)+SUMIFS(TUB!AJ:AJ,TUB!AW:AW,ASM!C120))+SUMIFS(EQUIP!AR:AR,EQUIP!BM:BM,ASM!C120)+SUMIFS(EQUIP!AV:AV,EQUIP!BN:BN,ASM!C120)+SUMIFS(EQUIP!AZ:AZ,EQUIP!BO:BO,ASM!C120) -> 0 | J120: =VLOOKUP(C120,PREÇOS!$W$2:$AA$1918,2,FALSE) -> 73.91 | K120: 0 | M120: APL
A121: 20 | B121: 1010 | C121: 20/1060 | D121: 20 | E121: 1060 | F121: =VLOOKUP(C121,PREÇOS!$W$2:$AA$1918,5,FALSE) -> APLICAÇÃO LÃ DE ROCHA 3/4"X50,8 | G121: 1 | H121: =VLOOKUP(C121,PREÇOS!$W$2:$AB$1918,6,FALSE) -> m | I121: =IF(H121="m",SUMIFS(TUB!W:W,TUB!AU:AU,ASM!C121)+SUMIFS(TUB!AC:AC,TUB!AV:AV,ASM!C121)+SUMIFS(TUB!AI:AI,TUB!AW:AW,ASM!C121),SUMIFS(TUB!X:X,TUB!AU:AU,ASM!C121)+SUMIFS(TUB!AD:AD,TUB!AV:AV,ASM!C121)+SUMIFS(TUB!AJ:AJ,TUB!AW:AW,ASM!C121))+SUMIFS(EQUIP!AR:AR,EQUIP!BM:BM,ASM!C121)+SUMIFS(EQUIP!AV:AV,EQUIP!BN:BN,ASM!C121)+SUMIFS(EQUIP!AZ:AZ,EQUIP!BO:BO,ASM!C121) -> 0 | J121: =VLOOKUP(C121,PREÇOS!$W$2:$AA$1918,2,FALSE) -> 90.8 | K121: 0 | M121: APL
A122: 20 | B122: 1020 | C122: 20/1070 | D122: 20 | E122: 1070 | F122: =VLOOKUP(C122,PREÇOS!$W$2:$AA$1918,5,FALSE) -> APLICAÇÃO LÃ DE ROCHA 3/4"X63,5 | G122: 1 | H122: =VLOOKUP(C122,PREÇOS!$W$2:$AB$1918,6,FALSE) -> m | I122: =IF(H122="m",SUMIFS(TUB!W:W,TUB!AU:AU,ASM!C122)+SUMIFS(TUB!AC:AC,TUB!AV:AV,ASM!C122)+SUMIFS(TUB!AI:AI,TUB!AW:AW,ASM!C122),SUMIFS(TUB!X:X,TUB!AU:AU,ASM!C122)+SUMIFS(TUB!AD:AD,TUB!AV:AV,ASM!C122)+SUMIFS(TUB!AJ:AJ,TUB!AW:AW,ASM!C122))+SUMIFS(EQUIP!AR:AR,EQUIP!BM:BM,ASM!C122)+SUMIFS(EQUIP!AV:AV,EQUIP!BN:BN,ASM!C122)+SUMIFS(EQUIP!AZ:AZ,EQUIP!BO:BO,ASM!C122) -> 0 | J122: =VLOOKUP(C122,PREÇOS!$W$2:$AA$1918,2,FALSE) -> 75.39 | K122: 0 | M122: APL
A123: 20 | B123: 1030 | C123: 20/1080 | D123: 20 | E123: 1080 | F123: =VLOOKUP(C123,PREÇOS!$W$2:$AA$1918,5,FALSE) -> APLICAÇÃO LÃ DE ROCHA 1"X25,4 | G123: 1 | H123: =VLOOKUP(C123,PREÇOS!$W$2:$AB$1918,6,FALSE) -> m | I123: =IF(H123="m",SUMIFS(TUB!W:W,TUB!AU:AU,ASM!C123)+SUMIFS(TUB!AC:AC,TUB!AV:AV,ASM!C123)+SUMIFS(TUB!AI:AI,TUB!AW:AW,ASM!C123),SUMIFS(TUB!X:X,TUB!AU:AU,ASM!C123)+SUMIFS(TUB!AD:AD,TUB!AV:AV,ASM!C123)+SUMIFS(TUB!AJ:AJ,TUB!AW:AW,ASM!C123))+SUMIFS(EQUIP!AR:AR,EQUIP!BM:BM,ASM!C123)+SUMIFS(EQUIP!AV:AV,EQUIP!BN:BN,ASM!C123)+SUMIFS(EQUIP!AZ:AZ,EQUIP!BO:BO,ASM!C123) -> 0 | J123: =VLOOKUP(C123,PREÇOS!$W$2:$AA$1918,2,FALSE) -> 61.24 | K123: 0 | M123: APL
A124: 20 | B124: 1040 | C124: 20/1090 | D124: 20 | E124: 1090 | F124: =VLOOKUP(C124,PREÇOS!$W$2:$AA$1918,5,FALSE) -> APLICAÇÃO LÃ DE ROCHA 1"X38,1 | G124: 1 | H124: =VLOOKUP(C124,PREÇOS!$W$2:$AB$1918,6,FALSE) -> m | I124: =IF(H124="m",SUMIFS(TUB!W:W,TUB!AU:AU,ASM!C124)+SUMIFS(TUB!AC:AC,TUB!AV:AV,ASM!C124)+SUMIFS(TUB!AI:AI,TUB!AW:AW,ASM!C124),SUMIFS(TUB!X:X,TUB!AU:AU,ASM!C124)+SUMIFS(TUB!AD:AD,TUB!AV:AV,ASM!C124)+SUMIFS(TUB!AJ:AJ,TUB!AW:AW,ASM!C124))+SUMIFS(EQUIP!AR:AR,EQUIP!BM:BM,ASM!C124)+SUMIFS(EQUIP!AV:AV,EQUIP!BN:BN,ASM!C124)+SUMIFS(EQUIP!AZ:AZ,EQUIP!BO:BO,ASM!C124) -> 0 | J124: =VLOOKUP(C124,PREÇOS!$W$2:$AA$1918,2,FALSE) -> 78.12 | K124: 0 | M124: APL
A125: 20 | B125: 1050 | C125: 20/1100 | D125: 20 | E125: 1100 | F125: =VLOOKUP(C125,PREÇOS!$W$2:$AA$1918,5,FALSE) -> APLICAÇÃO LÃ DE ROCHA 1"X50,8 | G125: 1 | H125: =VLOOKUP(C125,PREÇOS!$W$2:$AB$1918,6,FALSE) -> m | I125: =IF(H125="m",SUMIFS(TUB!W:W,TUB!AU:AU,ASM!C125)+SUMIFS(TUB!AC:AC,TUB!AV:AV,ASM!C125)+SUMIFS(TUB!AI:AI,TUB!AW:AW,ASM!C125),SUMIFS(TUB!X:X,TUB!AU:AU,ASM!C125)+SUMIFS(TUB!AD:AD,TUB!AV:AV,ASM!C125)+SUMIFS(TUB!AJ:AJ,TUB!AW:AW,ASM!C125))+SUMIFS(EQUIP!AR:AR,EQUIP!BM:BM,ASM!C125)+SUMIFS(EQUIP!AV:AV,EQUIP!BN:BN,ASM!C125)+SUMIFS(EQUIP!AZ:AZ,EQUIP!BO:BO,ASM!C125) -> 0 | J125: =VLOOKUP(C125,PREÇOS!$W$2:$AA$1918,2,FALSE) -> 90.27 | K125: 0 | M125: APL
A126: 20 | B126: 1060 | C126: 20/1110 | D126: 20 | E126: 1110 | F126: =VLOOKUP(C126,PREÇOS!$W$2:$AA$1918,5,FALSE) -> APLICAÇÃO LÃ DE ROCHA 1"X63,5 | G126: 1 | H126: =VLOOKUP(C126,PREÇOS!$W$2:$AB$1918,6,FALSE) -> m | I126: =IF(H126="m",SUMIFS(TUB!W:W,TUB!AU:AU,ASM!C126)+SUMIFS(TUB!AC:AC,TUB!AV:AV,ASM!C126)+SUMIFS(TUB!AI:AI,TUB!AW:AW,ASM!C126),SUMIFS(TUB!X:X,TUB!AU:AU,ASM!C126)+SUMIFS(TUB!AD:AD,TUB!AV:AV,ASM!C126)+SUMIFS(TUB!AJ:AJ,TUB!AW:AW,ASM!C126))+SUMIFS(EQUIP!AR:AR,EQUIP!BM:BM,ASM!C126)+SUMIFS(EQUIP!AV:AV,EQUIP!BN:BN,ASM!C126)+SUMIFS(EQUIP!AZ:AZ,EQUIP!BO:BO,ASM!C126) -> 0 | J126: =VLOOKUP(C126,PREÇOS!$W$2:$AA$1918,2,FALSE) -> 106.32 | K126: 0 | M126: APL
A127: 20 | B127: 1070 | C127: 20/1120 | D127: 20 | E127: 1120 | F127: =VLOOKUP(C127,PREÇOS!$W$2:$AA$1918,5,FALSE) -> APLICAÇÃO LÃ DE ROCHA 1"X76,3 | G127: 1 | H127: =VLOOKUP(C127,PREÇOS!$W$2:$AB$1918,6,FALSE) -> m | I127: =IF(H127="m",SUMIFS(TUB!W:W,TUB!AU:AU,ASM!C127)+SUMIFS(TUB!AC:AC,TUB!AV:AV,ASM!C127)+SUMIFS(TUB!AI:AI,TUB!AW:AW,ASM!C127),SUMIFS(TUB!X:X,TUB!AU:AU,ASM!C127)+SUMIFS(TUB!AD:AD,TUB!AV:AV,ASM!C127)+SUMIFS(TUB!AJ:AJ,TUB!AW:AW,ASM!C127))+SUMIFS(EQUIP!AR:AR,EQUIP!BM:BM,ASM!C127)+SUMIFS(EQUIP!AV:AV,EQUIP!BN:BN,ASM!C127)+SUMIFS(EQUIP!AZ:AZ,EQUIP!BO:BO,ASM!C127) -> 0 | J127: =VLOOKUP(C127,PREÇOS!$W$2:$AA$1918,2,FALSE) -> 122.36 | K127: 0 | M127: APL
A128: 20 | B128: 1080 | C128: 20/1130 | D128: 20 | E128: 1130 | F128: =VLOOKUP(C128,PREÇOS!$W$2:$AA$1918,5,FALSE) -> APLICAÇÃO LÃ DE ROCHA 1 1/2"X25,4 | G128: 1 | H128: =VLOOKUP(C128,PREÇOS!$W$2:$AB$1918,6,FALSE) -> m | I128: =IF(H128="m",SUMIFS(TUB!W:W,TUB!AU:AU,ASM!C128)+SUMIFS(TUB!AC:AC,TUB!AV:AV,ASM!C128)+SUMIFS(TUB!AI:AI,TUB!AW:AW,ASM!C128),SUMIFS(TUB!X:X,TUB!AU:AU,ASM!C128)+SUMIFS(TUB!AD:AD,TUB!AV:AV,ASM!C128)+SUMIFS(TUB!AJ:AJ,TUB!AW:AW,ASM!C128))+SUMIFS(EQUIP!AR:AR,EQUIP!BM:BM,ASM!C128)+SUMIFS(EQUIP!AV:AV,EQUIP!BN:BN,ASM!C128)+SUMIFS(EQUIP!AZ:AZ,EQUIP!BO:BO,ASM!C128) -> 0 | J128: =VLOOKUP(C128,PREÇOS!$W$2:$AA$1918,2,FALSE) -> 71.8 | K128: 0 | M128: APL
A129: 20 | B129: 1090 | C129: 20/1140 | D129: 20 | E129: 1140 | F129: =VLOOKUP(C129,PREÇOS!$W$2:$AA$1918,5,FALSE) -> APLICAÇÃO LÃ DE ROCHA 1 1/2"X38,1 | G129: 1 | H129: =VLOOKUP(C129,PREÇOS!$W$2:$AB$1918,6,FALSE) -> m | I129: =IF(H129="m",SUMIFS(TUB!W:W,TUB!AU:AU,ASM!C129)+SUMIFS(TUB!AC:AC,TUB!AV:AV,ASM!C129)+SUMIFS(TUB!AI:AI,TUB!AW:AW,ASM!C129),SUMIFS(TUB!X:X,TUB!AU:AU,ASM!C129)+SUMIFS(TUB!AD:AD,TUB!AV:AV,ASM!C129)+SUMIFS(TUB!AJ:AJ,TUB!AW:AW,ASM!C129))+SUMIFS(EQUIP!AR:AR,EQUIP!BM:BM,ASM!C129)+SUMIFS(EQUIP!AV:AV,EQUIP!BN:BN,ASM!C129)+SUMIFS(EQUIP!AZ:AZ,EQUIP!BO:BO,ASM!C129) -> 0 | J129: =VLOOKUP(C129,PREÇOS!$W$2:$AA$1918,2,FALSE) -> 88.68 | K129: 0 | M129: APL
A130: 20 | B130: 1100 | C130: 20/1150 | D130: 20 | E130: 1150 | F130: =VLOOKUP(C130,PREÇOS!$W$2:$AA$1918,5,FALSE) -> APLICAÇÃO LÃ DE ROCHA 1 1/2"X50,8 | G130: 1 | H130: =VLOOKUP(C130,PREÇOS!$W$2:$AB$1918,6,FALSE) -> m | I130: =IF(H130="m",SUMIFS(TUB!W:W,TUB!AU:AU,ASM!C130)+SUMIFS(TUB!AC:AC,TUB!AV:AV,ASM!C130)+SUMIFS(TUB!AI:AI,TUB!AW:AW,ASM!C130),SUMIFS(TUB!X:X,TUB!AU:AU,ASM!C130)+SUMIFS(TUB!AD:AD,TUB!AV:AV,ASM!C130)+SUMIFS(TUB!AJ:AJ,TUB!AW:AW,ASM!C130))+SUMIFS(EQUIP!AR:AR,EQUIP!BM:BM,ASM!C130)+SUMIFS(EQUIP!AV:AV,EQUIP!BN:BN,ASM!C130)+SUMIFS(EQUIP!AZ:AZ,EQUIP!BO:BO,ASM!C130) -> 0 | J130: =VLOOKUP(C130,PREÇOS!$W$2:$AA$1918,2,FALSE) -> 105.58 | K130: 0 | M130: APL
A131: 20 | B131: 1110 | C131: 20/1160 | D131: 20 | E131: 1160 | F131: =VLOOKUP(C131,PREÇOS!$W$2:$AA$1918,5,FALSE) -> APLICAÇÃO LÃ DE ROCHA 1 1/2"X63,5 | G131: 1 | H131: =VLOOKUP(C131,PREÇOS!$W$2:$AB$1918,6,FALSE) -> m | I131: =IF(H131="m",SUMIFS(TUB!W:W,TUB!AU:AU,ASM!C131)+SUMIFS(TUB!AC:AC,TUB!AV:AV,ASM!C131)+SUMIFS(TUB!AI:AI,TUB!AW:AW,ASM!C131),SUMIFS(TUB!X:X,TUB!AU:AU,ASM!C131)+SUMIFS(TUB!AD:AD,TUB!AV:AV,ASM!C131)+SUMIFS(TUB!AJ:AJ,TUB!AW:AW,ASM!C131))+SUMIFS(EQUIP!AR:AR,EQUIP!BM:BM,ASM!C131)+SUMIFS(EQUIP!AV:AV,EQUIP!BN:BN,ASM!C131)+SUMIFS(EQUIP!AZ:AZ,EQUIP!BO:BO,ASM!C131) -> 0 | J131: =VLOOKUP(C131,PREÇOS!$W$2:$AA$1918,2,FALSE) -> 122.48 | K131: 0 | M131: APL
A132: 20 | B132: 1120 | C132: 20/1170 | D132: 20 | E132: 1170 | F132: =VLOOKUP(C132,PREÇOS!$W$2:$AA$1918,5,FALSE) -> APLICAÇÃO LÃ DE ROCHA 1 1/2"X76,3 | G132: 1 | H132: =VLOOKUP(C132,PREÇOS!$W$2:$AB$1918,6,FALSE) -> m | I132: =IF(H132="m",SUMIFS(TUB!W:W,TUB!AU:AU,ASM!C132)+SUMIFS(TUB!AC:AC,TUB!AV:AV,ASM!C132)+SUMIFS(TUB!AI:AI,TUB!AW:AW,ASM!C132),SUMIFS(TUB!X:X,TUB!AU:AU,ASM!C132)+SUMIFS(TUB!AD:AD,TUB!AV:AV,ASM!C132)+SUMIFS(TUB!AJ:AJ,TUB!AW:AW,ASM!C132))+SUMIFS(EQUIP!AR:AR,EQUIP!BM:BM,ASM!C132)+SUMIFS(EQUIP!AV:AV,EQUIP!BN:BN,ASM!C132)+SUMIFS(EQUIP!AZ:AZ,EQUIP!BO:BO,ASM!C132) -> 0 | J132: =VLOOKUP(C132,PREÇOS!$W$2:$AA$1918,2,FALSE) -> 137.25 | K132: 0 | M132: APL
A133: 20 | B133: 1130 | C133: 20/1180 | D133: 20 | E133: 1180 | F133: =VLOOKUP(C133,PREÇOS!$W$2:$AA$1918,5,FALSE) -> APLICAÇÃO LÃ DE ROCHA 2"X25,4 | G133: 1 | H133: =VLOOKUP(C133,PREÇOS!$W$2:$AB$1918,6,FALSE) -> m | I133: =IF(H133="m",SUMIFS(TUB!W:W,TUB!AU:AU,ASM!C133)+SUMIFS(TUB!AC:AC,TUB!AV:AV,ASM!C133)+SUMIFS(TUB!AI:AI,TUB!AW:AW,ASM!C133),SUMIFS(TUB!X:X,TUB!AU:AU,ASM!C133)+SUMIFS(TUB!AD:AD,TUB!AV:AV,ASM!C133)+SUMIFS(TUB!AJ:AJ,TUB!AW:AW,ASM!C133))+SUMIFS(EQUIP!AR:AR,EQUIP!BM:BM,ASM!C133)+SUMIFS(EQUIP!AV:AV,EQUIP!BN:BN,ASM!C133)+SUMIFS(EQUIP!AZ:AZ,EQUIP!BO:BO,ASM!C133) -> 0 | J133: =VLOOKUP(C133,PREÇOS!$W$2:$AA$1918,2,FALSE) -> 80.24 | K133: 0 | M133: APL
A134: 20 | B134: 1140 | C134: 20/1190 | D134: 20 | E134: 1190 | F134: =VLOOKUP(C134,PREÇOS!$W$2:$AA$1918,5,FALSE) -> APLICAÇÃO LÃ DE ROCHA 2"X38,1 | G134: 1 | H134: =VLOOKUP(C134,PREÇOS!$W$2:$AB$1918,6,FALSE) -> m | I134: =IF(H134="m",SUMIFS(TUB!W:W,TUB!AU:AU,ASM!C134)+SUMIFS(TUB!AC:AC,TUB!AV:AV,ASM!C134)+SUMIFS(TUB!AI:AI,TUB!AW:AW,ASM!C134),SUMIFS(TUB!X:X,TUB!AU:AU,ASM!C134)+SUMIFS(TUB!AD:AD,TUB!AV:AV,ASM!C134)+SUMIFS(TUB!AJ:AJ,TUB!AW:AW,ASM!C134))+SUMIFS(EQUIP!AR:AR,EQUIP!BM:BM,ASM!C134)+SUMIFS(EQUIP!AV:AV,EQUIP!BN:BN,ASM!C134)+SUMIFS(EQUIP!AZ:AZ,EQUIP!BO:BO,ASM!C134) -> 0 | J134: =VLOOKUP(C134,PREÇOS!$W$2:$AA$1918,2,FALSE) -> 97.13 | K134: 0 | M134: APL
A135: 20 | B135: 1150 | C135: 20/1200 | D135: 20 | E135: 1200 | F135: =VLOOKUP(C135,PREÇOS!$W$2:$AA$1918,5,FALSE) -> APLICAÇÃO LÃ DE ROCHA 2"X50,8 | G135: 1 | H135: =VLOOKUP(C135,PREÇOS!$W$2:$AB$1918,6,FALSE) -> m | I135: =IF(H135="m",SUMIFS(TUB!W:W,TUB!AU:AU,ASM!C135)+SUMIFS(TUB!AC:AC,TUB!AV:AV,ASM!C135)+SUMIFS(TUB!AI:AI,TUB!AW:AW,ASM!C135),SUMIFS(TUB!X:X,TUB!AU:AU,ASM!C135)+SUMIFS(TUB!AD:AD,TUB!AV:AV,ASM!C135)+SUMIFS(TUB!AJ:AJ,TUB!AW:AW,ASM!C135))+SUMIFS(EQUIP!AR:AR,EQUIP!BM:BM,ASM!C135)+SUMIFS(EQUIP!AV:AV,EQUIP!BN:BN,ASM!C135)+SUMIFS(EQUIP!AZ:AZ,EQUIP!BO:BO,ASM!C135) -> 0 | J135: =VLOOKUP(C135,PREÇOS!$W$2:$AA$1918,2,FALSE) -> 113.7 | K135: 0 | M135: APL
A136: 20 | B136: 1160 | C136: 20/1210 | D136: 20 | E136: 1210 | F136: =VLOOKUP(C136,PREÇOS!$W$2:$AA$1918,5,FALSE) -> APLICAÇÃO LÃ DE ROCHA 2"X63,5 | G136: 1 | H136: =VLOOKUP(C136,PREÇOS!$W$2:$AB$1918,6,FALSE) -> m | I136: =IF(H136="m",SUMIFS(TUB!W:W,TUB!AU:AU,ASM!C136)+SUMIFS(TUB!AC:AC,TUB!AV:AV,ASM!C136)+SUMIFS(TUB!AI:AI,TUB!AW:AW,ASM!C136),SUMIFS(TUB!X:X,TUB!AU:AU,ASM!C136)+SUMIFS(TUB!AD:AD,TUB!AV:AV,ASM!C136)+SUMIFS(TUB!AJ:AJ,TUB!AW:AW,ASM!C136))+SUMIFS(EQUIP!AR:AR,EQUIP!BM:BM,ASM!C136)+SUMIFS(EQUIP!AV:AV,EQUIP!BN:BN,ASM!C136)+SUMIFS(EQUIP!AZ:AZ,EQUIP!BO:BO,ASM!C136) -> 0 | J136: =VLOOKUP(C136,PREÇOS!$W$2:$AA$1918,2,FALSE) -> 128.8 | K136: 0 | M136: APL
A137: 20 | B137: 1170 | C137: 20/1220 | D137: 20 | E137: 1220 | F137: =VLOOKUP(C137,PREÇOS!$W$2:$AA$1918,5,FALSE) -> APLICAÇÃO LÃ DE ROCHA 2"X76,3 | G137: 1 | H137: =VLOOKUP(C137,PREÇOS!$W$2:$AB$1918,6,FALSE) -> m | I137: =IF(H137="m",SUMIFS(TUB!W:W,TUB!AU:AU,ASM!C137)+SUMIFS(TUB!AC:AC,TUB!AV:AV,ASM!C137)+SUMIFS(TUB!AI:AI,TUB!AW:AW,ASM!C137),SUMIFS(TUB!X:X,TUB!AU:AU,ASM!C137)+SUMIFS(TUB!AD:AD,TUB!AV:AV,ASM!C137)+SUMIFS(TUB!AJ:AJ,TUB!AW:AW,ASM!C137))+SUMIFS(EQUIP!AR:AR,EQUIP!BM:BM,ASM!C137)+SUMIFS(EQUIP!AV:AV,EQUIP!BN:BN,ASM!C137)+SUMIFS(EQUIP!AZ:AZ,EQUIP!BO:BO,ASM!C137) -> 0 | J137: =VLOOKUP(C137,PREÇOS!$W$2:$AA$1918,2,FALSE) -> 145.7 | K137: 0 | M137: APL
A138: 20 | B138: 1180 | C138: 20/1230 | D138: 20 | E138: 1230 | F138: =VLOOKUP(C138,PREÇOS!$W$2:$AA$1918,5,FALSE) -> APLICAÇÃO LÃ DE ROCHA 2 1/2"X25,4 | G138: 1 | H138: =VLOOKUP(C138,PREÇOS!$W$2:$AB$1918,6,FALSE) -> m | I138: =IF(H138="m",SUMIFS(TUB!W:W,TUB!AU:AU,ASM!C138)+SUMIFS(TUB!AC:AC,TUB!AV:AV,ASM!C138)+SUMIFS(TUB!AI:AI,TUB!AW:AW,ASM!C138),SUMIFS(TUB!X:X,TUB!AU:AU,ASM!C138)+SUMIFS(TUB!AD:AD,TUB!AV:AV,ASM!C138)+SUMIFS(TUB!AJ:AJ,TUB!AW:AW,ASM!C138))+SUMIFS(EQUIP!AR:AR,EQUIP!BM:BM,ASM!C138)+SUMIFS(EQUIP!AV:AV,EQUIP!BN:BN,ASM!C138)+SUMIFS(EQUIP!AZ:AZ,EQUIP!BO:BO,ASM!C138) -> 0 | J138: =VLOOKUP(C138,PREÇOS!$W$2:$AA$1918,2,FALSE) -> 88.68 | K138: 0 | M138: APL
A139: 20 | B139: 1190 | C139: 20/1240 | D139: 20 | E139: 1240 | F139: =VLOOKUP(C139,PREÇOS!$W$2:$AA$1918,5,FALSE) -> APLICAÇÃO LÃ DE ROCHA 2 1/2"X38,1 | G139: 1 | H139: =VLOOKUP(C139,PREÇOS!$W$2:$AB$1918,6,FALSE) -> m | I139: =IF(H139="m",SUMIFS(TUB!W:W,TUB!AU:AU,ASM!C139)+SUMIFS(TUB!AC:AC,TUB!AV:AV,ASM!C139)+SUMIFS(TUB!AI:AI,TUB!AW:AW,ASM!C139),SUMIFS(TUB!X:X,TUB!AU:AU,ASM!C139)+SUMIFS(TUB!AD:AD,TUB!AV:AV,ASM!C139)+SUMIFS(TUB!AJ:AJ,TUB!AW:AW,ASM!C139))+SUMIFS(EQUIP!AR:AR,EQUIP!BM:BM,ASM!C139)+SUMIFS(EQUIP!AV:AV,EQUIP!BN:BN,ASM!C139)+SUMIFS(EQUIP!AZ:AZ,EQUIP!BO:BO,ASM!C139) -> 0 | J139: =VLOOKUP(C139,PREÇOS!$W$2:$AA$1918,2,FALSE) -> 105.58 | K139: 0 | M139: APL
A140: 20 | B140: 1200 | C140: 20/1250 | D140: 20 | E140: 1250 | F140: =VLOOKUP(C140,PREÇOS!$W$2:$AA$1918,5,FALSE) -> APLICAÇÃO LÃ DE ROCHA 2 1/2"X50,8 | G140: 1 | H140: =VLOOKUP(C140,PREÇOS!$W$2:$AB$1918,6,FALSE) -> m | I140: =IF(H140="m",SUMIFS(TUB!W:W,TUB!AU:AU,ASM!C140)+SUMIFS(TUB!AC:AC,TUB!AV:AV,ASM!C140)+SUMIFS(TUB!AI:AI,TUB!AW:AW,ASM!C140),SUMIFS(TUB!X:X,TUB!AU:AU,ASM!C140)+SUMIFS(TUB!AD:AD,TUB!AV:AV,ASM!C140)+SUMIFS(TUB!AJ:AJ,TUB!AW:AW,ASM!C140))+SUMIFS(EQUIP!AR:AR,EQUIP!BM:BM,ASM!C140)+SUMIFS(EQUIP!AV:AV,EQUIP!BN:BN,ASM!C140)+SUMIFS(EQUIP!AZ:AZ,EQUIP!BO:BO,ASM!C140) -> 0 | J140: =VLOOKUP(C140,PREÇOS!$W$2:$AA$1918,2,FALSE) -> 120.36 | K140: 0 | M140: APL
A141: 20 | B141: 1210 | C141: 20/1260 | D141: 20 | E141: 1260 | F141: =VLOOKUP(C141,PREÇOS!$W$2:$AA$1918,5,FALSE) -> APLICAÇÃO LÃ DE ROCHA 2 1/2"X63,5 | G141: 1 | H141: =VLOOKUP(C141,PREÇOS!$W$2:$AB$1918,6,FALSE) -> m | I141: =IF(H141="m",SUMIFS(TUB!W:W,TUB!AU:AU,ASM!C141)+SUMIFS(TUB!AC:AC,TUB!AV:AV,ASM!C141)+SUMIFS(TUB!AI:AI,TUB!AW:AW,ASM!C141),SUMIFS(TUB!X:X,TUB!AU:AU,ASM!C141)+SUMIFS(TUB!AD:AD,TUB!AV:AV,ASM!C141)+SUMIFS(TUB!AJ:AJ,TUB!AW:AW,ASM!C141))+SUMIFS(EQUIP!AR:AR,EQUIP!BM:BM,ASM!C141)+SUMIFS(EQUIP!AV:AV,EQUIP!BN:BN,ASM!C141)+SUMIFS(EQUIP!AZ:AZ,EQUIP!BO:BO,ASM!C141) -> 0 | J141: =VLOOKUP(C141,PREÇOS!$W$2:$AA$1918,2,FALSE) -> 137.25 | K141: 0 | M141: APL
A142: 20 | B142: 1220 | C142: 20/1270 | D142: 20 | E142: 1270 | F142: =VLOOKUP(C142,PREÇOS!$W$2:$AA$1918,5,FALSE) -> APLICAÇÃO LÃ DE ROCHA 2 1/2"X76,3 | G142: 1 | H142: =VLOOKUP(C142,PREÇOS!$W$2:$AB$1918,6,FALSE) -> m | I142: =IF(H142="m",SUMIFS(TUB!W:W,TUB!AU:AU,ASM!C142)+SUMIFS(TUB!AC:AC,TUB!AV:AV,ASM!C142)+SUMIFS(TUB!AI:AI,TUB!AW:AW,ASM!C142),SUMIFS(TUB!X:X,TUB!AU:AU,ASM!C142)+SUMIFS(TUB!AD:AD,TUB!AV:AV,ASM!C142)+SUMIFS(TUB!AJ:AJ,TUB!AW:AW,ASM!C142))+SUMIFS(EQUIP!AR:AR,EQUIP!BM:BM,ASM!C142)+SUMIFS(EQUIP!AV:AV,EQUIP!BN:BN,ASM!C142)+SUMIFS(EQUIP!AZ:AZ,EQUIP!BO:BO,ASM!C142) -> 0 | J142: =VLOOKUP(C142,PREÇOS!$W$2:$AA$1918,2,FALSE) -> 154.15 | K142: 0 | M142: APL
A143: 20 | B143: 1230 | C143: 20/1280 | D143: 20 | E143: 1280 | F143: =VLOOKUP(C143,PREÇOS!$W$2:$AA$1918,5,FALSE) -> APLICAÇÃO LÃ DE ROCHA 3"X25,4 | G143: 1 | H143: =VLOOKUP(C143,PREÇOS!$W$2:$AB$1918,6,FALSE) -> m | I143: =IF(H143="m",SUMIFS(TUB!W:W,TUB!AU:AU,ASM!C143)+SUMIFS(TUB!AC:AC,TUB!AV:AV,ASM!C143)+SUMIFS(TUB!AI:AI,TUB!AW:AW,ASM!C143),SUMIFS(TUB!X:X,TUB!AU:AU,ASM!C143)+SUMIFS(TUB!AD:AD,TUB!AV:AV,ASM!C143)+SUMIFS(TUB!AJ:AJ,TUB!AW:AW,ASM!C143))+SUMIFS(EQUIP!AR:AR,EQUIP!BM:BM,ASM!C143)+SUMIFS(EQUIP!AV:AV,EQUIP!BN:BN,ASM!C143)+SUMIFS(EQUIP!AZ:AZ,EQUIP!BO:BO,ASM!C143) -> 0 | J143: =VLOOKUP(C143,PREÇOS!$W$2:$AA$1918,2,FALSE) -> 99.24 | K143: 0 | M143: APL
A144: 20 | B144: 1240 | C144: 20/1290 | D144: 20 | E144: 1290 | F144: =VLOOKUP(C144,PREÇOS!$W$2:$AA$1918,5,FALSE) -> APLICAÇÃO LÃ DE ROCHA 3"X38,1 | G144: 1 | H144: =VLOOKUP(C144,PREÇOS!$W$2:$AB$1918,6,FALSE) -> m | I144: =IF(H144="m",SUMIFS(TUB!W:W,TUB!AU:AU,ASM!C144)+SUMIFS(TUB!AC:AC,TUB!AV:AV,ASM!C144)+SUMIFS(TUB!AI:AI,TUB!AW:AW,ASM!C144),SUMIFS(TUB!X:X,TUB!AU:AU,ASM!C144)+SUMIFS(TUB!AD:AD,TUB!AV:AV,ASM!C144)+SUMIFS(TUB!AJ:AJ,TUB!AW:AW,ASM!C144))+SUMIFS(EQUIP!AR:AR,EQUIP!BM:BM,ASM!C144)+SUMIFS(EQUIP!AV:AV,EQUIP!BN:BN,ASM!C144)+SUMIFS(EQUIP!AZ:AZ,EQUIP!BO:BO,ASM!C144) -> 0 | J144: =VLOOKUP(C144,PREÇOS!$W$2:$AA$1918,2,FALSE) -> 116.14 | K144: 0 | M144: APL
A145: 20 | B145: 1250 | C145: 20/1300 | D145: 20 | E145: 1300 | F145: =VLOOKUP(C145,PREÇOS!$W$2:$AA$1918,5,FALSE) -> APLICAÇÃO LÃ DE ROCHA 3"X50,8 | G145: 1 | H145: =VLOOKUP(C145,PREÇOS!$W$2:$AB$1918,6,FALSE) -> m | I145: =IF(H145="m",SUMIFS(TUB!W:W,TUB!AU:AU,ASM!C145)+SUMIFS(TUB!AC:AC,TUB!AV:AV,ASM!C145)+SUMIFS(TUB!AI:AI,TUB!AW:AW,ASM!C145),SUMIFS(TUB!X:X,TUB!AU:AU,ASM!C145)+SUMIFS(TUB!AD:AD,TUB!AV:AV,ASM!C145)+SUMIFS(TUB!AJ:AJ,TUB!AW:AW,ASM!C145))+SUMIFS(EQUIP!AR:AR,EQUIP!BM:BM,ASM!C145)+SUMIFS(EQUIP!AV:AV,EQUIP!BN:BN,ASM!C145)+SUMIFS(EQUIP!AZ:AZ,EQUIP!BO:BO,ASM!C145) -> 0 | J145: =VLOOKUP(C145,PREÇOS!$W$2:$AA$1918,2,FALSE) -> 130.62 | K145: 0 | M145: APL
A146: 20 | B146: 1260 | C146: 20/1310 | D146: 20 | E146: 1310 | F146: =VLOOKUP(C146,PREÇOS!$W$2:$AA$1918,5,FALSE) -> APLICAÇÃO LÃ DE ROCHA 3"X63,5 | G146: 1 | H146: =VLOOKUP(C146,PREÇOS!$W$2:$AB$1918,6,FALSE) -> m | I146: =IF(H146="m",SUMIFS(TUB!W:W,TUB!AU:AU,ASM!C146)+SUMIFS(TUB!AC:AC,TUB!AV:AV,ASM!C146)+SUMIFS(TUB!AI:AI,TUB!AW:AW,ASM!C146),SUMIFS(TUB!X:X,TUB!AU:AU,ASM!C146)+SUMIFS(TUB!AD:AD,TUB!AV:AV,ASM!C146)+SUMIFS(TUB!AJ:AJ,TUB!AW:AW,ASM!C146))+SUMIFS(EQUIP!AR:AR,EQUIP!BM:BM,ASM!C146)+SUMIFS(EQUIP!AV:AV,EQUIP!BN:BN,ASM!C146)+SUMIFS(EQUIP!AZ:AZ,EQUIP!BO:BO,ASM!C146) -> 0 | J146: =VLOOKUP(C146,PREÇOS!$W$2:$AA$1918,2,FALSE) -> 147.81 | K146: 0 | M146: APL
A147: 20 | B147: 1270 | C147: =D147&"/"&E147 -> 20/1320 | D147: 20 | E147: 1320 | F147: =VLOOKUP(C147,PREÇOS!$W$2:$AA$1918,5,FALSE) -> APLICAÇÃO LÃ DE ROCHA 3"X76,3 | G147: 1 | H147: =VLOOKUP(C147,PREÇOS!$W$2:$AB$1918,6,FALSE) -> m | I147: =IF(H147="m",SUMIFS(TUB!W:W,TUB!AU:AU,ASM!C147)+SUMIFS(TUB!AC:AC,TUB!AV:AV,ASM!C147)+SUMIFS(TUB!AI:AI,TUB!AW:AW,ASM!C147),SUMIFS(TUB!X:X,TUB!AU:AU,ASM!C147)+SUMIFS(TUB!AD:AD,TUB!AV:AV,ASM!C147)+SUMIFS(TUB!AJ:AJ,TUB!AW:AW,ASM!C147))+SUMIFS(EQUIP!AR:AR,EQUIP!BM:BM,ASM!C147)+SUMIFS(EQUIP!AV:AV,EQUIP!BN:BN,ASM!C147)+SUMIFS(EQUIP!AZ:AZ,EQUIP!BO:BO,ASM!C147) -> 0 | J147: =VLOOKUP(C147,PREÇOS!$W$2:$AA$1918,2,FALSE) -> 156.47 | K147: =J147*I147*G147 -> 0 | M147: APL
A148: 20 | B148: 1280 | C148: 20/1330 | D148: 20 | E148: 1330 | F148: =VLOOKUP(C148,PREÇOS!$W$2:$AA$1918,5,FALSE) -> APLICAÇÃO LÃ DE ROCHA 4"X25,4 | G148: 1 | H148: =VLOOKUP(C148,PREÇOS!$W$2:$AB$1918,6,FALSE) -> m | I148: =IF(H148="m",SUMIFS(TUB!W:W,TUB!AU:AU,ASM!C148)+SUMIFS(TUB!AC:AC,TUB!AV:AV,ASM!C148)+SUMIFS(TUB!AI:AI,TUB!AW:AW,ASM!C148),SUMIFS(TUB!X:X,TUB!AU:AU,ASM!C148)+SUMIFS(TUB!AD:AD,TUB!AV:AV,ASM!C148)+SUMIFS(TUB!AJ:AJ,TUB!AW:AW,ASM!C148))+SUMIFS(EQUIP!AR:AR,EQUIP!BM:BM,ASM!C148)+SUMIFS(EQUIP!AV:AV,EQUIP!BN:BN,ASM!C148)+SUMIFS(EQUIP!AZ:AZ,EQUIP!BO:BO,ASM!C148) -> 0 | J148: =VLOOKUP(C148,PREÇOS!$W$2:$AA$1918,2,FALSE) -> 116.14 | K148: 0 | M148: APL
A149: 20 | B149: 1290 | C149: 20/1340 | D149: 20 | E149: 1340 | F149: =VLOOKUP(C149,PREÇOS!$W$2:$AA$1918,5,FALSE) -> APLICAÇÃO LÃ DE ROCHA 4"X38,1 | G149: 1 | H149: =VLOOKUP(C149,PREÇOS!$W$2:$AB$1918,6,FALSE) -> m | I149: =IF(H149="m",SUMIFS(TUB!W:W,TUB!AU:AU,ASM!C149)+SUMIFS(TUB!AC:AC,TUB!AV:AV,ASM!C149)+SUMIFS(TUB!AI:AI,TUB!AW:AW,ASM!C149),SUMIFS(TUB!X:X,TUB!AU:AU,ASM!C149)+SUMIFS(TUB!AD:AD,TUB!AV:AV,ASM!C149)+SUMIFS(TUB!AJ:AJ,TUB!AW:AW,ASM!C149))+SUMIFS(EQUIP!AR:AR,EQUIP!BM:BM,ASM!C149)+SUMIFS(EQUIP!AV:AV,EQUIP!BN:BN,ASM!C149)+SUMIFS(EQUIP!AZ:AZ,EQUIP!BO:BO,ASM!C149) -> 0 | J149: =VLOOKUP(C149,PREÇOS!$W$2:$AA$1918,2,FALSE) -> 133.03 | K149: 0 | M149: APL
A150: 20 | B150: 1300 | C150: 20/1350 | D150: 20 | E150: 1350 | F150: =VLOOKUP(C150,PREÇOS!$W$2:$AA$1918,5,FALSE) -> APLICAÇÃO LÃ DE ROCHA 4"X50,8 | G150: 1 | H150: =VLOOKUP(C150,PREÇOS!$W$2:$AB$1918,6,FALSE) -> m | I150: =IF(H150="m",SUMIFS(TUB!W:W,TUB!AU:AU,ASM!C150)+SUMIFS(TUB!AC:AC,TUB!AV:AV,ASM!C150)+SUMIFS(TUB!AI:AI,TUB!AW:AW,ASM!C150),SUMIFS(TUB!X:X,TUB!AU:AU,ASM!C150)+SUMIFS(TUB!AD:AD,TUB!AV:AV,ASM!C150)+SUMIFS(TUB!AJ:AJ,TUB!AW:AW,ASM!C150))+SUMIFS(EQUIP!AR:AR,EQUIP!BM:BM,ASM!C150)+SUMIFS(EQUIP!AV:AV,EQUIP!BN:BN,ASM!C150)+SUMIFS(EQUIP!AZ:AZ,EQUIP!BO:BO,ASM!C150) -> 0 | J150: =VLOOKUP(C150,PREÇOS!$W$2:$AA$1918,2,FALSE) -> 148.22 | K150: 0 | M150: APL
A151: 20 | B151: 1310 | C151: 20/1360 | D151: 20 | E151: 1360 | F151: =VLOOKUP(C151,PREÇOS!$W$2:$AA$1918,5,FALSE) -> APLICAÇÃO LÃ DE ROCHA 4"X63,5 | G151: 1 | H151: =VLOOKUP(C151,PREÇOS!$W$2:$AB$1918,6,FALSE) -> m | I151: =IF(H151="m",SUMIFS(TUB!W:W,TUB!AU:AU,ASM!C151)+SUMIFS(TUB!AC:AC,TUB!AV:AV,ASM!C151)+SUMIFS(TUB!AI:AI,TUB!AW:AW,ASM!C151),SUMIFS(TUB!X:X,TUB!AU:AU,ASM!C151)+SUMIFS(TUB!AD:AD,TUB!AV:AV,ASM!C151)+SUMIFS(TUB!AJ:AJ,TUB!AW:AW,ASM!C151))+SUMIFS(EQUIP!AR:AR,EQUIP!BM:BM,ASM!C151)+SUMIFS(EQUIP!AV:AV,EQUIP!BN:BN,ASM!C151)+SUMIFS(EQUIP!AZ:AZ,EQUIP!BO:BO,ASM!C151) -> 0 | J151: =VLOOKUP(C151,PREÇOS!$W$2:$AA$1918,2,FALSE) -> 158.11 | K151: 0 | M151: APL
A152: 20 | B152: 1320 | C152: 20/1370 | D152: 20 | E152: 1370 | F152: =VLOOKUP(C152,PREÇOS!$W$2:$AA$1918,5,FALSE) -> APLICAÇÃO LÃ DE ROCHA 4"X76,3 | G152: 1 | H152: =VLOOKUP(C152,PREÇOS!$W$2:$AB$1918,6,FALSE) -> m | I152: =IF(H152="m",SUMIFS(TUB!W:W,TUB!AU:AU,ASM!C152)+SUMIFS(TUB!AC:AC,TUB!AV:AV,ASM!C152)+SUMIFS(TUB!AI:AI,TUB!AW:AW,ASM!C152),SUMIFS(TUB!X:X,TUB!AU:AU,ASM!C152)+SUMIFS(TUB!AD:AD,TUB!AV:AV,ASM!C152)+SUMIFS(TUB!AJ:AJ,TUB!AW:AW,ASM!C152))+SUMIFS(EQUIP!AR:AR,EQUIP!BM:BM,ASM!C152)+SUMIFS(EQUIP!AV:AV,EQUIP!BN:BN,ASM!C152)+SUMIFS(EQUIP!AZ:AZ,EQUIP!BO:BO,ASM!C152) -> 0 | J152: =VLOOKUP(C152,PREÇOS!$W$2:$AA$1918,2,FALSE) -> 174.33 | K152: 0 | M152: APL
A153: 20 | B153: 1330 | C153: 20/1380 | D153: 20 | E153: 1380 | F153: =VLOOKUP(C153,PREÇOS!$W$2:$AA$1918,5,FALSE) -> APLICAÇÃO LÃ DE ROCHA 6"X25,4 | G153: 1 | H153: =VLOOKUP(C153,PREÇOS!$W$2:$AB$1918,6,FALSE) -> m | I153: =IF(H153="m",SUMIFS(TUB!W:W,TUB!AU:AU,ASM!C153)+SUMIFS(TUB!AC:AC,TUB!AV:AV,ASM!C153)+SUMIFS(TUB!AI:AI,TUB!AW:AW,ASM!C153),SUMIFS(TUB!X:X,TUB!AU:AU,ASM!C153)+SUMIFS(TUB!AD:AD,TUB!AV:AV,ASM!C153)+SUMIFS(TUB!AJ:AJ,TUB!AW:AW,ASM!C153))+SUMIFS(EQUIP!AR:AR,EQUIP!BM:BM,ASM!C153)+SUMIFS(EQUIP!AV:AV,EQUIP!BN:BN,ASM!C153)+SUMIFS(EQUIP!AZ:AZ,EQUIP!BO:BO,ASM!C153) -> 0 | J153: =VLOOKUP(C153,PREÇOS!$W$2:$AA$1918,2,FALSE) -> 152.03 | K153: 0 | M153: APL
A154: 20 | B154: 1340 | C154: 20/1390 | D154: 20 | E154: 1390 | F154: =VLOOKUP(C154,PREÇOS!$W$2:$AA$1918,5,FALSE) -> APLICAÇÃO LÃ DE ROCHA 6"X38,1 | G154: 1 | H154: =VLOOKUP(C154,PREÇOS!$W$2:$AB$1918,6,FALSE) -> m | I154: =IF(H154="m",SUMIFS(TUB!W:W,TUB!AU:AU,ASM!C154)+SUMIFS(TUB!AC:AC,TUB!AV:AV,ASM!C154)+SUMIFS(TUB!AI:AI,TUB!AW:AW,ASM!C154),SUMIFS(TUB!X:X,TUB!AU:AU,ASM!C154)+SUMIFS(TUB!AD:AD,TUB!AV:AV,ASM!C154)+SUMIFS(TUB!AJ:AJ,TUB!AW:AW,ASM!C154))+SUMIFS(EQUIP!AR:AR,EQUIP!BM:BM,ASM!C154)+SUMIFS(EQUIP!AV:AV,EQUIP!BN:BN,ASM!C154)+SUMIFS(EQUIP!AZ:AZ,EQUIP!BO:BO,ASM!C154) -> 0 | J154: =VLOOKUP(C154,PREÇOS!$W$2:$AA$1918,2,FALSE) -> 168.93 | K154: 0 | M154: APL
A155: 20 | B155: 1350 | C155: 20/1400 | D155: 20 | E155: 1400 | F155: =VLOOKUP(C155,PREÇOS!$W$2:$AA$1918,5,FALSE) -> APLICAÇÃO LÃ DE ROCHA 6"X50,8 | G155: 1 | H155: =VLOOKUP(C155,PREÇOS!$W$2:$AB$1918,6,FALSE) -> m | I155: =IF(H155="m",SUMIFS(TUB!W:W,TUB!AU:AU,ASM!C155)+SUMIFS(TUB!AC:AC,TUB!AV:AV,ASM!C155)+SUMIFS(TUB!AI:AI,TUB!AW:AW,ASM!C155),SUMIFS(TUB!X:X,TUB!AU:AU,ASM!C155)+SUMIFS(TUB!AD:AD,TUB!AV:AV,ASM!C155)+SUMIFS(TUB!AJ:AJ,TUB!AW:AW,ASM!C155))+SUMIFS(EQUIP!AR:AR,EQUIP!BM:BM,ASM!C155)+SUMIFS(EQUIP!AV:AV,EQUIP!BN:BN,ASM!C155)+SUMIFS(EQUIP!AZ:AZ,EQUIP!BO:BO,ASM!C155) -> 0 | J155: =VLOOKUP(C155,PREÇOS!$W$2:$AA$1918,2,FALSE) -> 183.41 | K155: 0 | M155: APL
A156: 20 | B156: 1360 | C156: 20/1410 | D156: 20 | E156: 1410 | F156: =VLOOKUP(C156,PREÇOS!$W$2:$AA$1918,5,FALSE) -> APLICAÇÃO LÃ DE ROCHA 6"X63,5 | G156: 1 | H156: =VLOOKUP(C156,PREÇOS!$W$2:$AB$1918,6,FALSE) -> m | I156: =IF(H156="m",SUMIFS(TUB!W:W,TUB!AU:AU,ASM!C156)+SUMIFS(TUB!AC:AC,TUB!AV:AV,ASM!C156)+SUMIFS(TUB!AI:AI,TUB!AW:AW,ASM!C156),SUMIFS(TUB!X:X,TUB!AU:AU,ASM!C156)+SUMIFS(TUB!AD:AD,TUB!AV:AV,ASM!C156)+SUMIFS(TUB!AJ:AJ,TUB!AW:AW,ASM!C156))+SUMIFS(EQUIP!AR:AR,EQUIP!BM:BM,ASM!C156)+SUMIFS(EQUIP!AV:AV,EQUIP!BN:BN,ASM!C156)+SUMIFS(EQUIP!AZ:AZ,EQUIP!BO:BO,ASM!C156) -> 0 | J156: =VLOOKUP(C156,PREÇOS!$W$2:$AA$1918,2,FALSE) -> 200.6 | K156: 0 | M156: APL
A157: 20 | B157: 1370 | C157: 20/1420 | D157: 20 | E157: 1420 | F157: =VLOOKUP(C157,PREÇOS!$W$2:$AA$1918,5,FALSE) -> APLICAÇÃO LÃ DE ROCHA 6"X76,3 | G157: 1 | H157: =VLOOKUP(C157,PREÇOS!$W$2:$AB$1918,6,FALSE) -> m | I157: =IF(H157="m",SUMIFS(TUB!W:W,TUB!AU:AU,ASM!C157)+SUMIFS(TUB!AC:AC,TUB!AV:AV,ASM!C157)+SUMIFS(TUB!AI:AI,TUB!AW:AW,ASM!C157),SUMIFS(TUB!X:X,TUB!AU:AU,ASM!C157)+SUMIFS(TUB!AD:AD,TUB!AV:AV,ASM!C157)+SUMIFS(TUB!AJ:AJ,TUB!AW:AW,ASM!C157))+SUMIFS(EQUIP!AR:AR,EQUIP!BM:BM,ASM!C157)+SUMIFS(EQUIP!AV:AV,EQUIP!BN:BN,ASM!C157)+SUMIFS(EQUIP!AZ:AZ,EQUIP!BO:BO,ASM!C157) -> 0 | J157: =VLOOKUP(C157,PREÇOS!$W$2:$AA$1918,2,FALSE) -> 206.62 | K157: 0 | M157: APL
A158: 20 | B158: 1380 | C158: 20/1430 | D158: 20 | E158: 1430 | F158: =VLOOKUP(C158,PREÇOS!$W$2:$AA$1918,5,FALSE) -> APLICAÇÃO LÃ DE ROCHA 8"X25,4 | G158: 1 | H158: =VLOOKUP(C158,PREÇOS!$W$2:$AB$1918,6,FALSE) -> m | I158: =IF(H158="m",SUMIFS(TUB!W:W,TUB!AU:AU,ASM!C158)+SUMIFS(TUB!AC:AC,TUB!AV:AV,ASM!C158)+SUMIFS(TUB!AI:AI,TUB!AW:AW,ASM!C158),SUMIFS(TUB!X:X,TUB!AU:AU,ASM!C158)+SUMIFS(TUB!AD:AD,TUB!AV:AV,ASM!C158)+SUMIFS(TUB!AJ:AJ,TUB!AW:AW,ASM!C158))+SUMIFS(EQUIP!AR:AR,EQUIP!BM:BM,ASM!C158)+SUMIFS(EQUIP!AV:AV,EQUIP!BN:BN,ASM!C158)+SUMIFS(EQUIP!AZ:AZ,EQUIP!BO:BO,ASM!C158) -> 0 | J158: =VLOOKUP(C158,PREÇOS!$W$2:$AA$1918,2,FALSE) -> 185.82 | K158: 0 | M158: APL
A159: 20 | B159: 1390 | C159: 20/1440 | D159: 20 | E159: 1440 | F159: =VLOOKUP(C159,PREÇOS!$W$2:$AA$1918,5,FALSE) -> APLICAÇÃO LÃ DE ROCHA 8"X38,1 | G159: 1 | H159: =VLOOKUP(C159,PREÇOS!$W$2:$AB$1918,6,FALSE) -> m | I159: =IF(H159="m",SUMIFS(TUB!W:W,TUB!AU:AU,ASM!C159)+SUMIFS(TUB!AC:AC,TUB!AV:AV,ASM!C159)+SUMIFS(TUB!AI:AI,TUB!AW:AW,ASM!C159),SUMIFS(TUB!X:X,TUB!AU:AU,ASM!C159)+SUMIFS(TUB!AD:AD,TUB!AV:AV,ASM!C159)+SUMIFS(TUB!AJ:AJ,TUB!AW:AW,ASM!C159))+SUMIFS(EQUIP!AR:AR,EQUIP!BM:BM,ASM!C159)+SUMIFS(EQUIP!AV:AV,EQUIP!BN:BN,ASM!C159)+SUMIFS(EQUIP!AZ:AZ,EQUIP!BO:BO,ASM!C159) -> 0 | J159: =VLOOKUP(C159,PREÇOS!$W$2:$AA$1918,2,FALSE) -> 192.56 | K159: 0 | M159: APL
A160: 20 | B160: 1400 | C160: 20/1450 | D160: 20 | E160: 1450 | F160: =VLOOKUP(C160,PREÇOS!$W$2:$AA$1918,5,FALSE) -> APLICAÇÃO LÃ DE ROCHA 8"X50,8 | G160: 1 | H160: =VLOOKUP(C160,PREÇOS!$W$2:$AB$1918,6,FALSE) -> m | I160: =IF(H160="m",SUMIFS(TUB!W:W,TUB!AU:AU,ASM!C160)+SUMIFS(TUB!AC:AC,TUB!AV:AV,ASM!C160)+SUMIFS(TUB!AI:AI,TUB!AW:AW,ASM!C160),SUMIFS(TUB!X:X,TUB!AU:AU,ASM!C160)+SUMIFS(TUB!AD:AD,TUB!AV:AV,ASM!C160)+SUMIFS(TUB!AJ:AJ,TUB!AW:AW,ASM!C160))+SUMIFS(EQUIP!AR:AR,EQUIP!BM:BM,ASM!C160)+SUMIFS(EQUIP!AV:AV,EQUIP!BN:BN,ASM!C160)+SUMIFS(EQUIP!AZ:AZ,EQUIP!BO:BO,ASM!C160) -> 0 | J160: =VLOOKUP(C160,PREÇOS!$W$2:$AA$1918,2,FALSE) -> 196.27 | K160: 0 | M160: APL
A161: 20 | B161: 1410 | C161: 20/1460 | D161: 20 | E161: 1460 | F161: =VLOOKUP(C161,PREÇOS!$W$2:$AA$1918,5,FALSE) -> APLICAÇÃO LÃ DE ROCHA 8"X63,5 | G161: 1 | H161: =VLOOKUP(C161,PREÇOS!$W$2:$AB$1918,6,FALSE) -> m | I161: =IF(H161="m",SUMIFS(TUB!W:W,TUB!AU:AU,ASM!C161)+SUMIFS(TUB!AC:AC,TUB!AV:AV,ASM!C161)+SUMIFS(TUB!AI:AI,TUB!AW:AW,ASM!C161),SUMIFS(TUB!X:X,TUB!AU:AU,ASM!C161)+SUMIFS(TUB!AD:AD,TUB!AV:AV,ASM!C161)+SUMIFS(TUB!AJ:AJ,TUB!AW:AW,ASM!C161))+SUMIFS(EQUIP!AR:AR,EQUIP!BM:BM,ASM!C161)+SUMIFS(EQUIP!AV:AV,EQUIP!BN:BN,ASM!C161)+SUMIFS(EQUIP!AZ:AZ,EQUIP!BO:BO,ASM!C161) -> 0 | J161: =VLOOKUP(C161,PREÇOS!$W$2:$AA$1918,2,FALSE) -> 199.98 | K161: 0 | M161: APL
A162: 20 | B162: 1420 | C162: 20/1470 | D162: 20 | E162: 1470 | F162: =VLOOKUP(C162,PREÇOS!$W$2:$AA$1918,5,FALSE) -> APLICAÇÃO LÃ DE ROCHA 8"X76,3 | G162: 1 | H162: =VLOOKUP(C162,PREÇOS!$W$2:$AB$1918,6,FALSE) -> m | I162: =IF(H162="m",SUMIFS(TUB!W:W,TUB!AU:AU,ASM!C162)+SUMIFS(TUB!AC:AC,TUB!AV:AV,ASM!C162)+SUMIFS(TUB!AI:AI,TUB!AW:AW,ASM!C162),SUMIFS(TUB!X:X,TUB!AU:AU,ASM!C162)+SUMIFS(TUB!AD:AD,TUB!AV:AV,ASM!C162)+SUMIFS(TUB!AJ:AJ,TUB!AW:AW,ASM!C162))+SUMIFS(EQUIP!AR:AR,EQUIP!BM:BM,ASM!C162)+SUMIFS(EQUIP!AV:AV,EQUIP!BN:BN,ASM!C162)+SUMIFS(EQUIP!AZ:AZ,EQUIP!BO:BO,ASM!C162) -> 0 | J162: =VLOOKUP(C162,PREÇOS!$W$2:$AA$1918,2,FALSE) -> 203.69 | K162: 0 | M162: APL
A163: 20 | B163: 1430 | C163: 20/1480 | D163: 20 | E163: 1480 | F163: =VLOOKUP(C163,PREÇOS!$W$2:$AA$1918,5,FALSE) -> APLICAÇÃO LÃ DE ROCHA 10"X25,4 | G163: 1 | H163: =VLOOKUP(C163,PREÇOS!$W$2:$AB$1918,6,FALSE) -> m | I163: =IF(H163="m",SUMIFS(TUB!W:W,TUB!AU:AU,ASM!C163)+SUMIFS(TUB!AC:AC,TUB!AV:AV,ASM!C163)+SUMIFS(TUB!AI:AI,TUB!AW:AW,ASM!C163),SUMIFS(TUB!X:X,TUB!AU:AU,ASM!C163)+SUMIFS(TUB!AD:AD,TUB!AV:AV,ASM!C163)+SUMIFS(TUB!AJ:AJ,TUB!AW:AW,ASM!C163))+SUMIFS(EQUIP!AR:AR,EQUIP!BM:BM,ASM!C163)+SUMIFS(EQUIP!AV:AV,EQUIP!BN:BN,ASM!C163)+SUMIFS(EQUIP!AZ:AZ,EQUIP!BO:BO,ASM!C163) -> 0 | J163: =VLOOKUP(C163,PREÇOS!$W$2:$AA$1918,2,FALSE) -> 214.53 | K163: 0 | M163: APL
A164: 20 | B164: 1440 | C164: 20/1490 | D164: 20 | E164: 1490 | F164: =VLOOKUP(C164,PREÇOS!$W$2:$AA$1918,5,FALSE) -> APLICAÇÃO LÃ DE ROCHA 10"X38,1 | G164: 1 | H164: =VLOOKUP(C164,PREÇOS!$W$2:$AB$1918,6,FALSE) -> m | I164: =IF(H164="m",SUMIFS(TUB!W:W,TUB!AU:AU,ASM!C164)+SUMIFS(TUB!AC:AC,TUB!AV:AV,ASM!C164)+SUMIFS(TUB!AI:AI,TUB!AW:AW,ASM!C164),SUMIFS(TUB!X:X,TUB!AU:AU,ASM!C164)+SUMIFS(TUB!AD:AD,TUB!AV:AV,ASM!C164)+SUMIFS(TUB!AJ:AJ,TUB!AW:AW,ASM!C164))+SUMIFS(EQUIP!AR:AR,EQUIP!BM:BM,ASM!C164)+SUMIFS(EQUIP!AV:AV,EQUIP!BN:BN,ASM!C164)+SUMIFS(EQUIP!AZ:AZ,EQUIP!BO:BO,ASM!C164) -> 0 | J164: =VLOOKUP(C164,PREÇOS!$W$2:$AA$1918,2,FALSE) -> 215.87 | K164: 0 | M164: APL
A165: 20 | B165: 1450 | C165: 20/1500 | D165: 20 | E165: 1500 | F165: =VLOOKUP(C165,PREÇOS!$W$2:$AA$1918,5,FALSE) -> APLICAÇÃO LÃ DE ROCHA 10"X50,8 | G165: 1 | H165: =VLOOKUP(C165,PREÇOS!$W$2:$AB$1918,6,FALSE) -> m | I165: =IF(H165="m",SUMIFS(TUB!W:W,TUB!AU:AU,ASM!C165)+SUMIFS(TUB!AC:AC,TUB!AV:AV,ASM!C165)+SUMIFS(TUB!AI:AI,TUB!AW:AW,ASM!C165),SUMIFS(TUB!X:X,TUB!AU:AU,ASM!C165)+SUMIFS(TUB!AD:AD,TUB!AV:AV,ASM!C165)+SUMIFS(TUB!AJ:AJ,TUB!AW:AW,ASM!C165))+SUMIFS(EQUIP!AR:AR,EQUIP!BM:BM,ASM!C165)+SUMIFS(EQUIP!AV:AV,EQUIP!BN:BN,ASM!C165)+SUMIFS(EQUIP!AZ:AZ,EQUIP!BO:BO,ASM!C165) -> 0 | J165: =VLOOKUP(C165,PREÇOS!$W$2:$AA$1918,2,FALSE) -> 217.93 | K165: 0 | M165: APL
A166: 20 | B166: 1460 | C166: 20/1510 | D166: 20 | E166: 1510 | F166: =VLOOKUP(C166,PREÇOS!$W$2:$AA$1918,5,FALSE) -> APLICAÇÃO LÃ DE ROCHA 10"X63,5 | G166: 1 | H166: =VLOOKUP(C166,PREÇOS!$W$2:$AB$1918,6,FALSE) -> m | I166: =IF(H166="m",SUMIFS(TUB!W:W,TUB!AU:AU,ASM!C166)+SUMIFS(TUB!AC:AC,TUB!AV:AV,ASM!C166)+SUMIFS(TUB!AI:AI,TUB!AW:AW,ASM!C166),SUMIFS(TUB!X:X,TUB!AU:AU,ASM!C166)+SUMIFS(TUB!AD:AD,TUB!AV:AV,ASM!C166)+SUMIFS(TUB!AJ:AJ,TUB!AW:AW,ASM!C166))+SUMIFS(EQUIP!AR:AR,EQUIP!BM:BM,ASM!C166)+SUMIFS(EQUIP!AV:AV,EQUIP!BN:BN,ASM!C166)+SUMIFS(EQUIP!AZ:AZ,EQUIP!BO:BO,ASM!C166) -> 0 | J166: =VLOOKUP(C166,PREÇOS!$W$2:$AA$1918,2,FALSE) -> 235.94 | K166: 0 | M166: APL
A167: 20 | B167: 1470 | C167: 20/1520 | D167: 20 | E167: 1520 | F167: =VLOOKUP(C167,PREÇOS!$W$2:$AA$1918,5,FALSE) -> APLICAÇÃO LÃ DE ROCHA 10"X76,3 | G167: 1 | H167: =VLOOKUP(C167,PREÇOS!$W$2:$AB$1918,6,FALSE) -> m | I167: =IF(H167="m",SUMIFS(TUB!W:W,TUB!AU:AU,ASM!C167)+SUMIFS(TUB!AC:AC,TUB!AV:AV,ASM!C167)+SUMIFS(TUB!AI:AI,TUB!AW:AW,ASM!C167),SUMIFS(TUB!X:X,TUB!AU:AU,ASM!C167)+SUMIFS(TUB!AD:AD,TUB!AV:AV,ASM!C167)+SUMIFS(TUB!AJ:AJ,TUB!AW:AW,ASM!C167))+SUMIFS(EQUIP!AR:AR,EQUIP!BM:BM,ASM!C167)+SUMIFS(EQUIP!AV:AV,EQUIP!BN:BN,ASM!C167)+SUMIFS(EQUIP!AZ:AZ,EQUIP!BO:BO,ASM!C167) -> 0 | J167: =VLOOKUP(C167,PREÇOS!$W$2:$AA$1918,2,FALSE) -> 238.79 | K167: 0 | M167: APL
A168: 20 | B168: 1480 | C168: 20/1530 | D168: 20 | E168: 1530 | F168: =VLOOKUP(C168,PREÇOS!$W$2:$AA$1918,5,FALSE) -> APLICAÇÃO LÃ DE ROCHA 12"X25,4 | G168: 1 | H168: =VLOOKUP(C168,PREÇOS!$W$2:$AB$1918,6,FALSE) -> m | I168: =IF(H168="m",SUMIFS(TUB!W:W,TUB!AU:AU,ASM!C168)+SUMIFS(TUB!AC:AC,TUB!AV:AV,ASM!C168)+SUMIFS(TUB!AI:AI,TUB!AW:AW,ASM!C168),SUMIFS(TUB!X:X,TUB!AU:AU,ASM!C168)+SUMIFS(TUB!AD:AD,TUB!AV:AV,ASM!C168)+SUMIFS(TUB!AJ:AJ,TUB!AW:AW,ASM!C168))+SUMIFS(EQUIP!AR:AR,EQUIP!BM:BM,ASM!C168)+SUMIFS(EQUIP!AV:AV,EQUIP!BN:BN,ASM!C168)+SUMIFS(EQUIP!AZ:AZ,EQUIP!BO:BO,ASM!C168) -> 0 | J168: =VLOOKUP(C168,PREÇOS!$W$2:$AA$1918,2,FALSE) -> 248.05 | K168: 0 | M168: APL
A169: 20 | B169: 1490 | C169: 20/1540 | D169: 20 | E169: 1540 | F169: =VLOOKUP(C169,PREÇOS!$W$2:$AA$1918,5,FALSE) -> APLICAÇÃO LÃ DE ROCHA 12"X38,1 | G169: 1 | H169: =VLOOKUP(C169,PREÇOS!$W$2:$AB$1918,6,FALSE) -> m | I169: =IF(H169="m",SUMIFS(TUB!W:W,TUB!AU:AU,ASM!C169)+SUMIFS(TUB!AC:AC,TUB!AV:AV,ASM!C169)+SUMIFS(TUB!AI:AI,TUB!AW:AW,ASM!C169),SUMIFS(TUB!X:X,TUB!AU:AU,ASM!C169)+SUMIFS(TUB!AD:AD,TUB!AV:AV,ASM!C169)+SUMIFS(TUB!AJ:AJ,TUB!AW:AW,ASM!C169))+SUMIFS(EQUIP!AR:AR,EQUIP!BM:BM,ASM!C169)+SUMIFS(EQUIP!AV:AV,EQUIP!BN:BN,ASM!C169)+SUMIFS(EQUIP!AZ:AZ,EQUIP!BO:BO,ASM!C169) -> 0 | J169: =VLOOKUP(C169,PREÇOS!$W$2:$AA$1918,2,FALSE) -> 249.37 | K169: 0 | M169: APL
A170: 20 | B170: 1500 | C170: 20/1550 | D170: 20 | E170: 1550 | F170: =VLOOKUP(C170,PREÇOS!$W$2:$AA$1918,5,FALSE) -> APLICAÇÃO LÃ DE ROCHA 12"X50,8 | G170: 1 | H170: =VLOOKUP(C170,PREÇOS!$W$2:$AB$1918,6,FALSE) -> m | I170: =IF(H170="m",SUMIFS(TUB!W:W,TUB!AU:AU,ASM!C170)+SUMIFS(TUB!AC:AC,TUB!AV:AV,ASM!C170)+SUMIFS(TUB!AI:AI,TUB!AW:AW,ASM!C170),SUMIFS(TUB!X:X,TUB!AU:AU,ASM!C170)+SUMIFS(TUB!AD:AD,TUB!AV:AV,ASM!C170)+SUMIFS(TUB!AJ:AJ,TUB!AW:AW,ASM!C170))+SUMIFS(EQUIP!AR:AR,EQUIP!BM:BM,ASM!C170)+SUMIFS(EQUIP!AV:AV,EQUIP!BN:BN,ASM!C170)+SUMIFS(EQUIP!AZ:AZ,EQUIP!BO:BO,ASM!C170) -> 0 | J170: =VLOOKUP(C170,PREÇOS!$W$2:$AA$1918,2,FALSE) -> 250.41 | K170: 0 | M170: APL
A171: 20 | B171: 1510 | C171: 20/1560 | D171: 20 | E171: 1560 | F171: =VLOOKUP(C171,PREÇOS!$W$2:$AA$1918,5,FALSE) -> APLICAÇÃO LÃ DE ROCHA 12"X63,5 | G171: 1 | H171: =VLOOKUP(C171,PREÇOS!$W$2:$AB$1918,6,FALSE) -> m | I171: =IF(H171="m",SUMIFS(TUB!W:W,TUB!AU:AU,ASM!C171)+SUMIFS(TUB!AC:AC,TUB!AV:AV,ASM!C171)+SUMIFS(TUB!AI:AI,TUB!AW:AW,ASM!C171),SUMIFS(TUB!X:X,TUB!AU:AU,ASM!C171)+SUMIFS(TUB!AD:AD,TUB!AV:AV,ASM!C171)+SUMIFS(TUB!AJ:AJ,TUB!AW:AW,ASM!C171))+SUMIFS(EQUIP!AR:AR,EQUIP!BM:BM,ASM!C171)+SUMIFS(EQUIP!AV:AV,EQUIP!BN:BN,ASM!C171)+SUMIFS(EQUIP!AZ:AZ,EQUIP!BO:BO,ASM!C171) -> 0 | J171: =VLOOKUP(C171,PREÇOS!$W$2:$AA$1918,2,FALSE) -> 254.75 | K171: 0 | M171: APL
A172: 20 | B172: 1520 | C172: 20/1570 | D172: 20 | E172: 1570 | F172: =VLOOKUP(C172,PREÇOS!$W$2:$AA$1918,5,FALSE) -> APLICAÇÃO LÃ DE ROCHA 12"X76,3 | G172: 1 | H172: =VLOOKUP(C172,PREÇOS!$W$2:$AB$1918,6,FALSE) -> m | I172: =IF(H172="m",SUMIFS(TUB!W:W,TUB!AU:AU,ASM!C172)+SUMIFS(TUB!AC:AC,TUB!AV:AV,ASM!C172)+SUMIFS(TUB!AI:AI,TUB!AW:AW,ASM!C172),SUMIFS(TUB!X:X,TUB!AU:AU,ASM!C172)+SUMIFS(TUB!AD:AD,TUB!AV:AV,ASM!C172)+SUMIFS(TUB!AJ:AJ,TUB!AW:AW,ASM!C172))+SUMIFS(EQUIP!AR:AR,EQUIP!BM:BM,ASM!C172)+SUMIFS(EQUIP!AV:AV,EQUIP!BN:BN,ASM!C172)+SUMIFS(EQUIP!AZ:AZ,EQUIP!BO:BO,ASM!C172) -> 0 | J172: =VLOOKUP(C172,PREÇOS!$W$2:$AA$1918,2,FALSE) -> 256.46 | K172: 0 | M172: APL
A173: 20 | B173: 1530 | C173: 20/1580 | D173: 20 | E173: 1580 | F173: =VLOOKUP(C173,PREÇOS!$W$2:$AA$1918,5,FALSE) -> APLICAÇÃO LÃ DE ROCHA 14"X25,4 | G173: 1 | H173: =VLOOKUP(C173,PREÇOS!$W$2:$AB$1918,6,FALSE) -> m | I173: =IF(H173="m",SUMIFS(TUB!W:W,TUB!AU:AU,ASM!C173)+SUMIFS(TUB!AC:AC,TUB!AV:AV,ASM!C173)+SUMIFS(TUB!AI:AI,TUB!AW:AW,ASM!C173),SUMIFS(TUB!X:X,TUB!AU:AU,ASM!C173)+SUMIFS(TUB!AD:AD,TUB!AV:AV,ASM!C173)+SUMIFS(TUB!AJ:AJ,TUB!AW:AW,ASM!C173))+SUMIFS(EQUIP!AR:AR,EQUIP!BM:BM,ASM!C173)+SUMIFS(EQUIP!AV:AV,EQUIP!BN:BN,ASM!C173)+SUMIFS(EQUIP!AZ:AZ,EQUIP!BO:BO,ASM!C173) -> 0 | J173: =VLOOKUP(C173,PREÇOS!$W$2:$AA$1918,2,FALSE) -> 268.3 | K173: 0 | M173: APL
A174: 20 | B174: 1540 | C174: 20/1590 | D174: 20 | E174: 1590 | F174: =VLOOKUP(C174,PREÇOS!$W$2:$AA$1918,5,FALSE) -> APLICAÇÃO LÃ DE ROCHA 14"X38,1 | G174: 1 | H174: =VLOOKUP(C174,PREÇOS!$W$2:$AB$1918,6,FALSE) -> m | I174: =IF(H174="m",SUMIFS(TUB!W:W,TUB!AU:AU,ASM!C174)+SUMIFS(TUB!AC:AC,TUB!AV:AV,ASM!C174)+SUMIFS(TUB!AI:AI,TUB!AW:AW,ASM!C174),SUMIFS(TUB!X:X,TUB!AU:AU,ASM!C174)+SUMIFS(TUB!AD:AD,TUB!AV:AV,ASM!C174)+SUMIFS(TUB!AJ:AJ,TUB!AW:AW,ASM!C174))+SUMIFS(EQUIP!AR:AR,EQUIP!BM:BM,ASM!C174)+SUMIFS(EQUIP!AV:AV,EQUIP!BN:BN,ASM!C174)+SUMIFS(EQUIP!AZ:AZ,EQUIP!BO:BO,ASM!C174) -> 0 | J174: =VLOOKUP(C174,PREÇOS!$W$2:$AA$1918,2,FALSE) -> 281.56 | K174: 0 | M174: APL
A175: 20 | B175: 1550 | C175: 20/1600 | D175: 20 | E175: 1600 | F175: =VLOOKUP(C175,PREÇOS!$W$2:$AA$1918,5,FALSE) -> APLICAÇÃO LÃ DE ROCHA 14"X50,8 | G175: 1 | H175: =VLOOKUP(C175,PREÇOS!$W$2:$AB$1918,6,FALSE) -> m | I175: =IF(H175="m",SUMIFS(TUB!W:W,TUB!AU:AU,ASM!C175)+SUMIFS(TUB!AC:AC,TUB!AV:AV,ASM!C175)+SUMIFS(TUB!AI:AI,TUB!AW:AW,ASM!C175),SUMIFS(TUB!X:X,TUB!AU:AU,ASM!C175)+SUMIFS(TUB!AD:AD,TUB!AV:AV,ASM!C175)+SUMIFS(TUB!AJ:AJ,TUB!AW:AW,ASM!C175))+SUMIFS(EQUIP!AR:AR,EQUIP!BM:BM,ASM!C175)+SUMIFS(EQUIP!AV:AV,EQUIP!BN:BN,ASM!C175)+SUMIFS(EQUIP!AZ:AZ,EQUIP!BO:BO,ASM!C175) -> 0 | J175: =VLOOKUP(C175,PREÇOS!$W$2:$AA$1918,2,FALSE) -> 293.61 | K175: 0 | M175: APL
A176: 20 | B176: 1560 | C176: 20/1610 | D176: 20 | E176: 1610 | F176: =VLOOKUP(C176,PREÇOS!$W$2:$AA$1918,5,FALSE) -> APLICAÇÃO LÃ DE ROCHA 14"X63,5 | G176: 1 | H176: =VLOOKUP(C176,PREÇOS!$W$2:$AB$1918,6,FALSE) -> m | I176: =IF(H176="m",SUMIFS(TUB!W:W,TUB!AU:AU,ASM!C176)+SUMIFS(TUB!AC:AC,TUB!AV:AV,ASM!C176)+SUMIFS(TUB!AI:AI,TUB!AW:AW,ASM!C176),SUMIFS(TUB!X:X,TUB!AU:AU,ASM!C176)+SUMIFS(TUB!AD:AD,TUB!AV:AV,ASM!C176)+SUMIFS(TUB!AJ:AJ,TUB!AW:AW,ASM!C176))+SUMIFS(EQUIP!AR:AR,EQUIP!BM:BM,ASM!C176)+SUMIFS(EQUIP!AV:AV,EQUIP!BN:BN,ASM!C176)+SUMIFS(EQUIP!AZ:AZ,EQUIP!BO:BO,ASM!C176) -> 0 | J176: =VLOOKUP(C176,PREÇOS!$W$2:$AA$1918,2,FALSE) -> 316.85 | K176: 0 | M176: APL
A177: 20 | B177: 1570 | C177: 20/1620 | D177: 20 | E177: 1620 | F177: =VLOOKUP(C177,PREÇOS!$W$2:$AA$1918,5,FALSE) -> APLICAÇÃO LÃ DE ROCHA 14"X76,3 | G177: 1 | H177: =VLOOKUP(C177,PREÇOS!$W$2:$AB$1918,6,FALSE) -> m | I177: =IF(H177="m",SUMIFS(TUB!W:W,TUB!AU:AU,ASM!C177)+SUMIFS(TUB!AC:AC,TUB!AV:AV,ASM!C177)+SUMIFS(TUB!AI:AI,TUB!AW:AW,ASM!C177),SUMIFS(TUB!X:X,TUB!AU:AU,ASM!C177)+SUMIFS(TUB!AD:AD,TUB!AV:AV,ASM!C177)+SUMIFS(TUB!AJ:AJ,TUB!AW:AW,ASM!C177))+SUMIFS(EQUIP!AR:AR,EQUIP!BM:BM,ASM!C177)+SUMIFS(EQUIP!AV:AV,EQUIP!BN:BN,ASM!C177)+SUMIFS(EQUIP!AZ:AZ,EQUIP!BO:BO,ASM!C177) -> 0 | J177: =VLOOKUP(C177,PREÇOS!$W$2:$AA$1918,2,FALSE) -> 325.19 | K177: 0 | M177: APL
A178: 20 | B178: 1580 | C178: 20/1630 | D178: 20 | E178: 1630 | F178: =VLOOKUP(C178,PREÇOS!$W$2:$AA$1918,5,FALSE) -> APLICAÇÃO LÃ DE ROCHA 16"X38,1 | G178: 1 | H178: =VLOOKUP(C178,PREÇOS!$W$2:$AB$1918,6,FALSE) -> m | I178: =IF(H178="m",SUMIFS(TUB!W:W,TUB!AU:AU,ASM!C178)+SUMIFS(TUB!AC:AC,TUB!AV:AV,ASM!C178)+SUMIFS(TUB!AI:AI,TUB!AW:AW,ASM!C178),SUMIFS(TUB!X:X,TUB!AU:AU,ASM!C178)+SUMIFS(TUB!AD:AD,TUB!AV:AV,ASM!C178)+SUMIFS(TUB!AJ:AJ,TUB!AW:AW,ASM!C178))+SUMIFS(EQUIP!AR:AR,EQUIP!BM:BM,ASM!C178)+SUMIFS(EQUIP!AV:AV,EQUIP!BN:BN,ASM!C178)+SUMIFS(EQUIP!AZ:AZ,EQUIP!BO:BO,ASM!C178) -> 0 | J178: =VLOOKUP(C178,PREÇOS!$W$2:$AA$1918,2,FALSE) -> 309.4 | K178: 0 | M178: APL
A179: 20 | B179: 1590 | C179: 20/1640 | D179: 20 | E179: 1640 | F179: =VLOOKUP(C179,PREÇOS!$W$2:$AA$1918,5,FALSE) -> APLICAÇÃO LÃ DE ROCHA 16"X50,8 | G179: 1 | H179: =VLOOKUP(C179,PREÇOS!$W$2:$AB$1918,6,FALSE) -> m | I179: =IF(H179="m",SUMIFS(TUB!W:W,TUB!AU:AU,ASM!C179)+SUMIFS(TUB!AC:AC,TUB!AV:AV,ASM!C179)+SUMIFS(TUB!AI:AI,TUB!AW:AW,ASM!C179),SUMIFS(TUB!X:X,TUB!AU:AU,ASM!C179)+SUMIFS(TUB!AD:AD,TUB!AV:AV,ASM!C179)+SUMIFS(TUB!AJ:AJ,TUB!AW:AW,ASM!C179))+SUMIFS(EQUIP!AR:AR,EQUIP!BM:BM,ASM!C179)+SUMIFS(EQUIP!AV:AV,EQUIP!BN:BN,ASM!C179)+SUMIFS(EQUIP!AZ:AZ,EQUIP!BO:BO,ASM!C179) -> 0 | J179: =VLOOKUP(C179,PREÇOS!$W$2:$AA$1918,2,FALSE) -> 325.19 | K179: 0 | M179: APL
A180: 20 | B180: 1600 | C180: 20/1650 | D180: 20 | E180: 1650 | F180: =VLOOKUP(C180,PREÇOS!$W$2:$AA$1918,5,FALSE) -> APLICAÇÃO LÃ DE ROCHA 16"X63,5 | G180: 1 | H180: =VLOOKUP(C180,PREÇOS!$W$2:$AB$1918,6,FALSE) -> m | I180: =IF(H180="m",SUMIFS(TUB!W:W,TUB!AU:AU,ASM!C180)+SUMIFS(TUB!AC:AC,TUB!AV:AV,ASM!C180)+SUMIFS(TUB!AI:AI,TUB!AW:AW,ASM!C180),SUMIFS(TUB!X:X,TUB!AU:AU,ASM!C180)+SUMIFS(TUB!AD:AD,TUB!AV:AV,ASM!C180)+SUMIFS(TUB!AJ:AJ,TUB!AW:AW,ASM!C180))+SUMIFS(EQUIP!AR:AR,EQUIP!BM:BM,ASM!C180)+SUMIFS(EQUIP!AV:AV,EQUIP!BN:BN,ASM!C180)+SUMIFS(EQUIP!AZ:AZ,EQUIP!BO:BO,ASM!C180) -> 0 | J180: =VLOOKUP(C180,PREÇOS!$W$2:$AA$1918,2,FALSE) -> 333.52 | K180: 0 | M180: APL
A181: 20 | B181: 1610 | C181: 20/1660 | D181: 20 | E181: 1660 | F181: =VLOOKUP(C181,PREÇOS!$W$2:$AA$1918,5,FALSE) -> APLICAÇÃO LÃ DE ROCHA 16"X76,3 | G181: 1 | H181: =VLOOKUP(C181,PREÇOS!$W$2:$AB$1918,6,FALSE) -> m | I181: =IF(H181="m",SUMIFS(TUB!W:W,TUB!AU:AU,ASM!C181)+SUMIFS(TUB!AC:AC,TUB!AV:AV,ASM!C181)+SUMIFS(TUB!AI:AI,TUB!AW:AW,ASM!C181),SUMIFS(TUB!X:X,TUB!AU:AU,ASM!C181)+SUMIFS(TUB!AD:AD,TUB!AV:AV,ASM!C181)+SUMIFS(TUB!AJ:AJ,TUB!AW:AW,ASM!C181))+SUMIFS(EQUIP!AR:AR,EQUIP!BM:BM,ASM!C181)+SUMIFS(EQUIP!AV:AV,EQUIP!BN:BN,ASM!C181)+SUMIFS(EQUIP!AZ:AZ,EQUIP!BO:BO,ASM!C181) -> 0 | J181: =VLOOKUP(C181,PREÇOS!$W$2:$AA$1918,2,FALSE) -> 356.75 | K181: 0 | M181: APL
A182: 20 | B182: 1620 | C182: 20/1670 | D182: 20 | E182: 1670 | F182: =VLOOKUP(C182,PREÇOS!$W$2:$AA$1918,5,FALSE) -> APLICAÇÃO LÃ DE ROCHA 18"X38,1 | G182: 1 | H182: =VLOOKUP(C182,PREÇOS!$W$2:$AB$1918,6,FALSE) -> m | I182: =IF(H182="m",SUMIFS(TUB!W:W,TUB!AU:AU,ASM!C182)+SUMIFS(TUB!AC:AC,TUB!AV:AV,ASM!C182)+SUMIFS(TUB!AI:AI,TUB!AW:AW,ASM!C182),SUMIFS(TUB!X:X,TUB!AU:AU,ASM!C182)+SUMIFS(TUB!AD:AD,TUB!AV:AV,ASM!C182)+SUMIFS(TUB!AJ:AJ,TUB!AW:AW,ASM!C182))+SUMIFS(EQUIP!AR:AR,EQUIP!BM:BM,ASM!C182)+SUMIFS(EQUIP!AV:AV,EQUIP!BN:BN,ASM!C182)+SUMIFS(EQUIP!AZ:AZ,EQUIP!BO:BO,ASM!C182) -> 0 | J182: =VLOOKUP(C182,PREÇOS!$W$2:$AA$1918,2,FALSE) -> 312.68 | K182: 0 | M182: APL
A183: 20 | B183: 1630 | C183: 20/1680 | D183: 20 | E183: 1680 | F183: =VLOOKUP(C183,PREÇOS!$W$2:$AA$1918,5,FALSE) -> APLICAÇÃO LÃ DE ROCHA 18"X50,8 | G183: 1 | H183: =VLOOKUP(C183,PREÇOS!$W$2:$AB$1918,6,FALSE) -> m | I183: =IF(H183="m",SUMIFS(TUB!W:W,TUB!AU:AU,ASM!C183)+SUMIFS(TUB!AC:AC,TUB!AV:AV,ASM!C183)+SUMIFS(TUB!AI:AI,TUB!AW:AW,ASM!C183),SUMIFS(TUB!X:X,TUB!AU:AU,ASM!C183)+SUMIFS(TUB!AD:AD,TUB!AV:AV,ASM!C183)+SUMIFS(TUB!AJ:AJ,TUB!AW:AW,ASM!C183))+SUMIFS(EQUIP!AR:AR,EQUIP!BM:BM,ASM!C183)+SUMIFS(EQUIP!AV:AV,EQUIP!BN:BN,ASM!C183)+SUMIFS(EQUIP!AZ:AZ,EQUIP!BO:BO,ASM!C183) -> 0 | J183: =VLOOKUP(C183,PREÇOS!$W$2:$AA$1918,2,FALSE) -> 327.57 | K183: 0 | M183: APL
A184: 20 | B184: 1640 | C184: 20/1690 | D184: 20 | E184: 1690 | F184: =VLOOKUP(C184,PREÇOS!$W$2:$AA$1918,5,FALSE) -> APLICAÇÃO LÃ DE ROCHA 18"X63,5 | G184: 1 | H184: =VLOOKUP(C184,PREÇOS!$W$2:$AB$1918,6,FALSE) -> m | I184: =IF(H184="m",SUMIFS(TUB!W:W,TUB!AU:AU,ASM!C184)+SUMIFS(TUB!AC:AC,TUB!AV:AV,ASM!C184)+SUMIFS(TUB!AI:AI,TUB!AW:AW,ASM!C184),SUMIFS(TUB!X:X,TUB!AU:AU,ASM!C184)+SUMIFS(TUB!AD:AD,TUB!AV:AV,ASM!C184)+SUMIFS(TUB!AJ:AJ,TUB!AW:AW,ASM!C184))+SUMIFS(EQUIP!AR:AR,EQUIP!BM:BM,ASM!C184)+SUMIFS(EQUIP!AV:AV,EQUIP!BN:BN,ASM!C184)+SUMIFS(EQUIP!AZ:AZ,EQUIP!BO:BO,ASM!C184) -> 0 | J184: =VLOOKUP(C184,PREÇOS!$W$2:$AA$1918,2,FALSE) -> 331.29 | K184: 0 | M184: APL
A185: 20 | B185: 1650 | C185: 20/1700 | D185: 20 | E185: 1700 | F185: =VLOOKUP(C185,PREÇOS!$W$2:$AA$1918,5,FALSE) -> APLICAÇÃO LÃ DE ROCHA 18"X76,3 | G185: 1 | H185: =VLOOKUP(C185,PREÇOS!$W$2:$AB$1918,6,FALSE) -> m | I185: =IF(H185="m",SUMIFS(TUB!W:W,TUB!AU:AU,ASM!C185)+SUMIFS(TUB!AC:AC,TUB!AV:AV,ASM!C185)+SUMIFS(TUB!AI:AI,TUB!AW:AW,ASM!C185),SUMIFS(TUB!X:X,TUB!AU:AU,ASM!C185)+SUMIFS(TUB!AD:AD,TUB!AV:AV,ASM!C185)+SUMIFS(TUB!AJ:AJ,TUB!AW:AW,ASM!C185))+SUMIFS(EQUIP!AR:AR,EQUIP!BM:BM,ASM!C185)+SUMIFS(EQUIP!AV:AV,EQUIP!BN:BN,ASM!C185)+SUMIFS(EQUIP!AZ:AZ,EQUIP!BO:BO,ASM!C185) -> 0 | J185: =VLOOKUP(C185,PREÇOS!$W$2:$AA$1918,2,FALSE) -> 332.03 | K185: 0 | M185: APL
A186: 20 | B186: 1660 | C186: 20/1710 | D186: 20 | E186: 1710 | F186: =VLOOKUP(C186,PREÇOS!$W$2:$AA$1918,5,FALSE) -> APLICAÇÃO LÃ DE ROCHA 20"X38,1 | G186: 1 | H186: =VLOOKUP(C186,PREÇOS!$W$2:$AB$1918,6,FALSE) -> m | I186: =IF(H186="m",SUMIFS(TUB!W:W,TUB!AU:AU,ASM!C186)+SUMIFS(TUB!AC:AC,TUB!AV:AV,ASM!C186)+SUMIFS(TUB!AI:AI,TUB!AW:AW,ASM!C186),SUMIFS(TUB!X:X,TUB!AU:AU,ASM!C186)+SUMIFS(TUB!AD:AD,TUB!AV:AV,ASM!C186)+SUMIFS(TUB!AJ:AJ,TUB!AW:AW,ASM!C186))+SUMIFS(EQUIP!AR:AR,EQUIP!BM:BM,ASM!C186)+SUMIFS(EQUIP!AV:AV,EQUIP!BN:BN,ASM!C186)+SUMIFS(EQUIP!AZ:AZ,EQUIP!BO:BO,ASM!C186) -> 0 | J186: =VLOOKUP(C186,PREÇOS!$W$2:$AA$1918,2,FALSE) -> 335.01 | K186: 0 | M186: APL
A187: 20 | B187: 1670 | C187: 20/1720 | D187: 20 | E187: 1720 | F187: =VLOOKUP(C187,PREÇOS!$W$2:$AA$1918,5,FALSE) -> APLICAÇÃO LÃ DE ROCHA 20"X50,8 | G187: 1 | H187: =VLOOKUP(C187,PREÇOS!$W$2:$AB$1918,6,FALSE) -> m | I187: =IF(H187="m",SUMIFS(TUB!W:W,TUB!AU:AU,ASM!C187)+SUMIFS(TUB!AC:AC,TUB!AV:AV,ASM!C187)+SUMIFS(TUB!AI:AI,TUB!AW:AW,ASM!C187),SUMIFS(TUB!X:X,TUB!AU:AU,ASM!C187)+SUMIFS(TUB!AD:AD,TUB!AV:AV,ASM!C187)+SUMIFS(TUB!AJ:AJ,TUB!AW:AW,ASM!C187))+SUMIFS(EQUIP!AR:AR,EQUIP!BM:BM,ASM!C187)+SUMIFS(EQUIP!AV:AV,EQUIP!BN:BN,ASM!C187)+SUMIFS(EQUIP!AZ:AZ,EQUIP!BO:BO,ASM!C187) -> 0 | J187: =VLOOKUP(C187,PREÇOS!$W$2:$AA$1918,2,FALSE) -> 357.34 | K187: 0 | M187: APL
A188: 20 | B188: 1680 | C188: 20/1730 | D188: 20 | E188: 1730 | F188: =VLOOKUP(C188,PREÇOS!$W$2:$AA$1918,5,FALSE) -> APLICAÇÃO LÃ DE ROCHA 20"X63,5 | G188: 1 | H188: =VLOOKUP(C188,PREÇOS!$W$2:$AB$1918,6,FALSE) -> m | I188: =IF(H188="m",SUMIFS(TUB!W:W,TUB!AU:AU,ASM!C188)+SUMIFS(TUB!AC:AC,TUB!AV:AV,ASM!C188)+SUMIFS(TUB!AI:AI,TUB!AW:AW,ASM!C188),SUMIFS(TUB!X:X,TUB!AU:AU,ASM!C188)+SUMIFS(TUB!AD:AD,TUB!AV:AV,ASM!C188)+SUMIFS(TUB!AJ:AJ,TUB!AW:AW,ASM!C188))+SUMIFS(EQUIP!AR:AR,EQUIP!BM:BM,ASM!C188)+SUMIFS(EQUIP!AV:AV,EQUIP!BN:BN,ASM!C188)+SUMIFS(EQUIP!AZ:AZ,EQUIP!BO:BO,ASM!C188) -> 0 | J188: =VLOOKUP(C188,PREÇOS!$W$2:$AA$1918,2,FALSE) -> 361.07 | K188: 0 | M188: APL
A189: 20 | B189: 1690 | C189: 20/1740 | D189: 20 | E189: 1740 | F189: =VLOOKUP(C189,PREÇOS!$W$2:$AA$1918,5,FALSE) -> APLICAÇÃO LÃ DE ROCHA 20"X76,3 | G189: 1 | H189: =VLOOKUP(C189,PREÇOS!$W$2:$AB$1918,6,FALSE) -> m | I189: =IF(H189="m",SUMIFS(TUB!W:W,TUB!AU:AU,ASM!C189)+SUMIFS(TUB!AC:AC,TUB!AV:AV,ASM!C189)+SUMIFS(TUB!AI:AI,TUB!AW:AW,ASM!C189),SUMIFS(TUB!X:X,TUB!AU:AU,ASM!C189)+SUMIFS(TUB!AD:AD,TUB!AV:AV,ASM!C189)+SUMIFS(TUB!AJ:AJ,TUB!AW:AW,ASM!C189))+SUMIFS(EQUIP!AR:AR,EQUIP!BM:BM,ASM!C189)+SUMIFS(EQUIP!AV:AV,EQUIP!BN:BN,ASM!C189)+SUMIFS(EQUIP!AZ:AZ,EQUIP!BO:BO,ASM!C189) -> 0 | J189: =VLOOKUP(C189,PREÇOS!$W$2:$AA$1918,2,FALSE) -> 364.79 | K189: 0 | M189: APL
A190: 20 | B190: 1700 | C190: 20/1750 | D190: 20 | E190: 1750 | F190: =VLOOKUP(C190,PREÇOS!$W$2:$AA$1918,5,FALSE) -> APLICAÇÃO LÃ DE ROCHA 22"X38,1 | G190: 1 | H190: =VLOOKUP(C190,PREÇOS!$W$2:$AB$1918,6,FALSE) -> m | I190: =IF(H190="m",SUMIFS(TUB!W:W,TUB!AU:AU,ASM!C190)+SUMIFS(TUB!AC:AC,TUB!AV:AV,ASM!C190)+SUMIFS(TUB!AI:AI,TUB!AW:AW,ASM!C190),SUMIFS(TUB!X:X,TUB!AU:AU,ASM!C190)+SUMIFS(TUB!AD:AD,TUB!AV:AV,ASM!C190)+SUMIFS(TUB!AJ:AJ,TUB!AW:AW,ASM!C190))+SUMIFS(EQUIP!AR:AR,EQUIP!BM:BM,ASM!C190)+SUMIFS(EQUIP!AV:AV,EQUIP!BN:BN,ASM!C190)+SUMIFS(EQUIP!AZ:AZ,EQUIP!BO:BO,ASM!C190) -> 0 | J190: =VLOOKUP(C190,PREÇOS!$W$2:$AA$1918,2,FALSE) -> 375.96 | K190: 0 | M190: APL
A191: 20 | B191: 1710 | C191: 20/1760 | D191: 20 | E191: 1760 | F191: =VLOOKUP(C191,PREÇOS!$W$2:$AA$1918,5,FALSE) -> APLICAÇÃO LÃ DE ROCHA 22"X50,8 | G191: 1 | H191: =VLOOKUP(C191,PREÇOS!$W$2:$AB$1918,6,FALSE) -> m | I191: =IF(H191="m",SUMIFS(TUB!W:W,TUB!AU:AU,ASM!C191)+SUMIFS(TUB!AC:AC,TUB!AV:AV,ASM!C191)+SUMIFS(TUB!AI:AI,TUB!AW:AW,ASM!C191),SUMIFS(TUB!X:X,TUB!AU:AU,ASM!C191)+SUMIFS(TUB!AD:AD,TUB!AV:AV,ASM!C191)+SUMIFS(TUB!AJ:AJ,TUB!AW:AW,ASM!C191))+SUMIFS(EQUIP!AR:AR,EQUIP!BM:BM,ASM!C191)+SUMIFS(EQUIP!AV:AV,EQUIP!BN:BN,ASM!C191)+SUMIFS(EQUIP!AZ:AZ,EQUIP!BO:BO,ASM!C191) -> 0 | J191: =VLOOKUP(C191,PREÇOS!$W$2:$AA$1918,2,FALSE) -> 394.57 | K191: 0 | M191: APL
A192: 20 | B192: 1720 | C192: 20/1770 | D192: 20 | E192: 1770 | F192: =VLOOKUP(C192,PREÇOS!$W$2:$AA$1918,5,FALSE) -> APLICAÇÃO LÃ DE ROCHA 22"X63,5 | G192: 1 | H192: =VLOOKUP(C192,PREÇOS!$W$2:$AB$1918,6,FALSE) -> m | I192: =IF(H192="m",SUMIFS(TUB!W:W,TUB!AU:AU,ASM!C192)+SUMIFS(TUB!AC:AC,TUB!AV:AV,ASM!C192)+SUMIFS(TUB!AI:AI,TUB!AW:AW,ASM!C192),SUMIFS(TUB!X:X,TUB!AU:AU,ASM!C192)+SUMIFS(TUB!AD:AD,TUB!AV:AV,ASM!C192)+SUMIFS(TUB!AJ:AJ,TUB!AW:AW,ASM!C192))+SUMIFS(EQUIP!AR:AR,EQUIP!BM:BM,ASM!C192)+SUMIFS(EQUIP!AV:AV,EQUIP!BN:BN,ASM!C192)+SUMIFS(EQUIP!AZ:AZ,EQUIP!BO:BO,ASM!C192) -> 0 | J192: =VLOOKUP(C192,PREÇOS!$W$2:$AA$1918,2,FALSE) -> 361.07 | K192: 0 | M192: APL
A193: 20 | B193: 1730 | C193: 20/1780 | D193: 20 | E193: 1780 | F193: =VLOOKUP(C193,PREÇOS!$W$2:$AA$1918,5,FALSE) -> APLICAÇÃO LÃ DE ROCHA 22"X76,3 | G193: 1 | H193: =VLOOKUP(C193,PREÇOS!$W$2:$AB$1918,6,FALSE) -> m | I193: =IF(H193="m",SUMIFS(TUB!W:W,TUB!AU:AU,ASM!C193)+SUMIFS(TUB!AC:AC,TUB!AV:AV,ASM!C193)+SUMIFS(TUB!AI:AI,TUB!AW:AW,ASM!C193),SUMIFS(TUB!X:X,TUB!AU:AU,ASM!C193)+SUMIFS(TUB!AD:AD,TUB!AV:AV,ASM!C193)+SUMIFS(TUB!AJ:AJ,TUB!AW:AW,ASM!C193))+SUMIFS(EQUIP!AR:AR,EQUIP!BM:BM,ASM!C193)+SUMIFS(EQUIP!AV:AV,EQUIP!BN:BN,ASM!C193)+SUMIFS(EQUIP!AZ:AZ,EQUIP!BO:BO,ASM!C193) -> 0 | J193: =VLOOKUP(C193,PREÇOS!$W$2:$AA$1918,2,FALSE) -> 373.72 | K193: 0 | M193: APL
A194: 20 | B194: 1740 | C194: 20/1790 | D194: 20 | E194: 1790 | F194: =VLOOKUP(C194,PREÇOS!$W$2:$AA$1918,5,FALSE) -> APLICAÇÃO LÃ DE ROCHA 24"X38,1 | G194: 1 | H194: =VLOOKUP(C194,PREÇOS!$W$2:$AB$1918,6,FALSE) -> m | I194: =IF(H194="m",SUMIFS(TUB!W:W,TUB!AU:AU,ASM!C194)+SUMIFS(TUB!AC:AC,TUB!AV:AV,ASM!C194)+SUMIFS(TUB!AI:AI,TUB!AW:AW,ASM!C194),SUMIFS(TUB!X:X,TUB!AU:AU,ASM!C194)+SUMIFS(TUB!AD:AD,TUB!AV:AV,ASM!C194)+SUMIFS(TUB!AJ:AJ,TUB!AW:AW,ASM!C194))+SUMIFS(EQUIP!AR:AR,EQUIP!BM:BM,ASM!C194)+SUMIFS(EQUIP!AV:AV,EQUIP!BN:BN,ASM!C194)+SUMIFS(EQUIP!AZ:AZ,EQUIP!BO:BO,ASM!C194) -> 0 | J194: =VLOOKUP(C194,PREÇOS!$W$2:$AA$1918,2,FALSE) -> 405.88 | K194: 0 | M194: APL
A195: 20 | B195: 1750 | C195: 20/1800 | D195: 20 | E195: 1800 | F195: =VLOOKUP(C195,PREÇOS!$W$2:$AA$1918,5,FALSE) -> APLICAÇÃO LÃ DE ROCHA 24"X50,8 | G195: 1 | H195: =VLOOKUP(C195,PREÇOS!$W$2:$AB$1918,6,FALSE) -> m | I195: =IF(H195="m",SUMIFS(TUB!W:W,TUB!AU:AU,ASM!C195)+SUMIFS(TUB!AC:AC,TUB!AV:AV,ASM!C195)+SUMIFS(TUB!AI:AI,TUB!AW:AW,ASM!C195),SUMIFS(TUB!X:X,TUB!AU:AU,ASM!C195)+SUMIFS(TUB!AD:AD,TUB!AV:AV,ASM!C195)+SUMIFS(TUB!AJ:AJ,TUB!AW:AW,ASM!C195))+SUMIFS(EQUIP!AR:AR,EQUIP!BM:BM,ASM!C195)+SUMIFS(EQUIP!AV:AV,EQUIP!BN:BN,ASM!C195)+SUMIFS(EQUIP!AZ:AZ,EQUIP!BO:BO,ASM!C195) -> 0 | J195: =VLOOKUP(C195,PREÇOS!$W$2:$AA$1918,2,FALSE) -> 406.77 | K195: 0 | M195: APL
A196: 20 | B196: 1760 | C196: 20/1810 | D196: 20 | E196: 1810 | F196: =VLOOKUP(C196,PREÇOS!$W$2:$AA$1918,5,FALSE) -> APLICAÇÃO LÃ DE ROCHA 24"X63,5 | G196: 1 | H196: =VLOOKUP(C196,PREÇOS!$W$2:$AB$1918,6,FALSE) -> m | I196: =IF(H196="m",SUMIFS(TUB!W:W,TUB!AU:AU,ASM!C196)+SUMIFS(TUB!AC:AC,TUB!AV:AV,ASM!C196)+SUMIFS(TUB!AI:AI,TUB!AW:AW,ASM!C196),SUMIFS(TUB!X:X,TUB!AU:AU,ASM!C196)+SUMIFS(TUB!AD:AD,TUB!AV:AV,ASM!C196)+SUMIFS(TUB!AJ:AJ,TUB!AW:AW,ASM!C196))+SUMIFS(EQUIP!AR:AR,EQUIP!BM:BM,ASM!C196)+SUMIFS(EQUIP!AV:AV,EQUIP!BN:BN,ASM!C196)+SUMIFS(EQUIP!AZ:AZ,EQUIP!BO:BO,ASM!C196) -> 0 | J196: =VLOOKUP(C196,PREÇOS!$W$2:$AA$1918,2,FALSE) -> 415.12 | K196: 0 | M196: APL
A197: 20 | B197: 1770 | C197: 20/1820 | D197: 20 | E197: 1820 | F197: =VLOOKUP(C197,PREÇOS!$W$2:$AA$1918,5,FALSE) -> APLICAÇÃO LÃ DE ROCHA 24"X76,3 | G197: 1 | H197: =VLOOKUP(C197,PREÇOS!$W$2:$AB$1918,6,FALSE) -> m | I197: =IF(H197="m",SUMIFS(TUB!W:W,TUB!AU:AU,ASM!C197)+SUMIFS(TUB!AC:AC,TUB!AV:AV,ASM!C197)+SUMIFS(TUB!AI:AI,TUB!AW:AW,ASM!C197),SUMIFS(TUB!X:X,TUB!AU:AU,ASM!C197)+SUMIFS(TUB!AD:AD,TUB!AV:AV,ASM!C197)+SUMIFS(TUB!AJ:AJ,TUB!AW:AW,ASM!C197))+SUMIFS(EQUIP!AR:AR,EQUIP!BM:BM,ASM!C197)+SUMIFS(EQUIP!AV:AV,EQUIP!BN:BN,ASM!C197)+SUMIFS(EQUIP!AZ:AZ,EQUIP!BO:BO,ASM!C197) -> 0 | J197: =VLOOKUP(C197,PREÇOS!$W$2:$AA$1918,2,FALSE) -> 430.9 | K197: 0 | M197: APL
A198: 20 | B198: 1780 | C198: 20/1830 | D198: 20 | E198: 1830 | F198: =VLOOKUP(C198,PREÇOS!$W$2:$AA$1918,5,FALSE) -> APLICAÇÃO LÃ DE ROCHA 26"X38,1 | G198: 1 | H198: =VLOOKUP(C198,PREÇOS!$W$2:$AB$1918,6,FALSE) -> m | I198: =IF(H198="m",SUMIFS(TUB!W:W,TUB!AU:AU,ASM!C198)+SUMIFS(TUB!AC:AC,TUB!AV:AV,ASM!C198)+SUMIFS(TUB!AI:AI,TUB!AW:AW,ASM!C198),SUMIFS(TUB!X:X,TUB!AU:AU,ASM!C198)+SUMIFS(TUB!AD:AD,TUB!AV:AV,ASM!C198)+SUMIFS(TUB!AJ:AJ,TUB!AW:AW,ASM!C198))+SUMIFS(EQUIP!AR:AR,EQUIP!BM:BM,ASM!C198)+SUMIFS(EQUIP!AV:AV,EQUIP!BN:BN,ASM!C198)+SUMIFS(EQUIP!AZ:AZ,EQUIP!BO:BO,ASM!C198) -> 0 | J198: =VLOOKUP(C198,PREÇOS!$W$2:$AA$1918,2,FALSE) -> 422.56 | K198: 0 | M198: APL
A199: 20 | B199: 1790 | C199: 20/1840 | D199: 20 | E199: 1840 | F199: =VLOOKUP(C199,PREÇOS!$W$2:$AA$1918,5,FALSE) -> APLICAÇÃO LÃ DE ROCHA 26"X50,8 | G199: 1 | H199: =VLOOKUP(C199,PREÇOS!$W$2:$AB$1918,6,FALSE) -> m | I199: =IF(H199="m",SUMIFS(TUB!W:W,TUB!AU:AU,ASM!C199)+SUMIFS(TUB!AC:AC,TUB!AV:AV,ASM!C199)+SUMIFS(TUB!AI:AI,TUB!AW:AW,ASM!C199),SUMIFS(TUB!X:X,TUB!AU:AU,ASM!C199)+SUMIFS(TUB!AD:AD,TUB!AV:AV,ASM!C199)+SUMIFS(TUB!AJ:AJ,TUB!AW:AW,ASM!C199))+SUMIFS(EQUIP!AR:AR,EQUIP!BM:BM,ASM!C199)+SUMIFS(EQUIP!AV:AV,EQUIP!BN:BN,ASM!C199)+SUMIFS(EQUIP!AZ:AZ,EQUIP!BO:BO,ASM!C199) -> 0 | J199: =VLOOKUP(C199,PREÇOS!$W$2:$AA$1918,2,FALSE) -> 431.64 | K199: 0 | M199: APL
A200: 20 | B200: 1800 | C200: 20/1850 | D200: 20 | E200: 1850 | F200: =VLOOKUP(C200,PREÇOS!$W$2:$AA$1918,5,FALSE) -> APLICAÇÃO LÃ DE ROCHA 26"X63,5 | G200: 1 | H200: =VLOOKUP(C200,PREÇOS!$W$2:$AB$1918,6,FALSE) -> m | I200: =IF(H200="m",SUMIFS(TUB!W:W,TUB!AU:AU,ASM!C200)+SUMIFS(TUB!AC:AC,TUB!AV:AV,ASM!C200)+SUMIFS(TUB!AI:AI,TUB!AW:AW,ASM!C200),SUMIFS(TUB!X:X,TUB!AU:AU,ASM!C200)+SUMIFS(TUB!AD:AD,TUB!AV:AV,ASM!C200)+SUMIFS(TUB!AJ:AJ,TUB!AW:AW,ASM!C200))+SUMIFS(EQUIP!AR:AR,EQUIP!BM:BM,ASM!C200)+SUMIFS(EQUIP!AV:AV,EQUIP!BN:BN,ASM!C200)+SUMIFS(EQUIP!AZ:AZ,EQUIP!BO:BO,ASM!C200) -> 0 | J200: =VLOOKUP(C200,PREÇOS!$W$2:$AA$1918,2,FALSE) -> 440.72 | K200: 0 | M200: APL
A201: 20 | B201: 1810 | C201: 20/1860 | D201: 20 | E201: 1860 | F201: =VLOOKUP(C201,PREÇOS!$W$2:$AA$1918,5,FALSE) -> APLICAÇÃO LÃ DE ROCHA 26"X76,3 | G201: 1 | H201: =VLOOKUP(C201,PREÇOS!$W$2:$AB$1918,6,FALSE) -> m | I201: =IF(H201="m",SUMIFS(TUB!W:W,TUB!AU:AU,ASM!C201)+SUMIFS(TUB!AC:AC,TUB!AV:AV,ASM!C201)+SUMIFS(TUB!AI:AI,TUB!AW:AW,ASM!C201),SUMIFS(TUB!X:X,TUB!AU:AU,ASM!C201)+SUMIFS(TUB!AD:AD,TUB!AV:AV,ASM!C201)+SUMIFS(TUB!AJ:AJ,TUB!AW:AW,ASM!C201))+SUMIFS(EQUIP!AR:AR,EQUIP!BM:BM,ASM!C201)+SUMIFS(EQUIP!AV:AV,EQUIP!BN:BN,ASM!C201)+SUMIFS(EQUIP!AZ:AZ,EQUIP!BO:BO,ASM!C201) -> 0 | J201: =VLOOKUP(C201,PREÇOS!$W$2:$AA$1918,2,FALSE) -> 455.02 | K201: 0 | M201: APL
A202: 20 | B202: 1820 | C202: 20/1870 | D202: 20 | E202: 1870 | F202: =VLOOKUP(C202,PREÇOS!$W$2:$AA$1918,5,FALSE) -> APLICAÇÃO LÃ DE ROCHA 30"X38,1 | G202: 1 | H202: =VLOOKUP(C202,PREÇOS!$W$2:$AB$1918,6,FALSE) -> m | I202: =IF(H202="m",SUMIFS(TUB!W:W,TUB!AU:AU,ASM!C202)+SUMIFS(TUB!AC:AC,TUB!AV:AV,ASM!C202)+SUMIFS(TUB!AI:AI,TUB!AW:AW,ASM!C202),SUMIFS(TUB!X:X,TUB!AU:AU,ASM!C202)+SUMIFS(TUB!AD:AD,TUB!AV:AV,ASM!C202)+SUMIFS(TUB!AJ:AJ,TUB!AW:AW,ASM!C202))+SUMIFS(EQUIP!AR:AR,EQUIP!BM:BM,ASM!C202)+SUMIFS(EQUIP!AV:AV,EQUIP!BN:BN,ASM!C202)+SUMIFS(EQUIP!AZ:AZ,EQUIP!BO:BO,ASM!C202) -> 0 | J202: =VLOOKUP(C202,PREÇOS!$W$2:$AA$1918,2,FALSE) -> 463.35 | K202: 0 | M202: APL
A203: 20 | B203: 1830 | C203: 20/1880 | D203: 20 | E203: 1880 | F203: =VLOOKUP(C203,PREÇOS!$W$2:$AA$1918,5,FALSE) -> APLICAÇÃO LÃ DE ROCHA 30"X50,8 | G203: 1 | H203: =VLOOKUP(C203,PREÇOS!$W$2:$AB$1918,6,FALSE) -> m | I203: =IF(H203="m",SUMIFS(TUB!W:W,TUB!AU:AU,ASM!C203)+SUMIFS(TUB!AC:AC,TUB!AV:AV,ASM!C203)+SUMIFS(TUB!AI:AI,TUB!AW:AW,ASM!C203),SUMIFS(TUB!X:X,TUB!AU:AU,ASM!C203)+SUMIFS(TUB!AD:AD,TUB!AV:AV,ASM!C203)+SUMIFS(TUB!AJ:AJ,TUB!AW:AW,ASM!C203))+SUMIFS(EQUIP!AR:AR,EQUIP!BM:BM,ASM!C203)+SUMIFS(EQUIP!AV:AV,EQUIP!BN:BN,ASM!C203)+SUMIFS(EQUIP!AZ:AZ,EQUIP!BO:BO,ASM!C203) -> 0 | J203: =VLOOKUP(C203,PREÇOS!$W$2:$AA$1918,2,FALSE) -> 479.14 | K203: 0 | M203: APL
... 806 more rows

Sheet CSV. AS (hidden)
A1: ITEM | B1: LINHA | C1: QUAT.
A2: 10 | B2: 1010 | C2: =ASM!I18 -> 0
A3: 10 | B3: 1020 | C3: =ASM!I19 -> 0
A4: 10 | B4: 1030 | C4: =ASM!I20 -> 0
A5: 10 | B5: 1040 | C5: =ASM!I21 -> 0
A6: 10 | B6: 1050 | C6: =ASM!I22 -> 0
A7: 10 | B7: 1060 | C7: =ASM!I23 -> 0
A8: 10 | B8: 1070 | C8: =ASM!I24 -> 0
A9: 10 | B9: 1080 | C9: =ASM!I25 -> 0
A10: 10 | B10: 1090 | C10: =ASM!I26 -> 0
A11: 10 | B11: 1100 | C11: =ASM!I27 -> 0
A12: 10 | B12: 1110 | C12: =ASM!I28 -> 0
A13: 10 | B13: 1120 | C13: =ASM!I29 -> 0
A14: 10 | B14: 1130 | C14: =ASM!I30 -> 0
A15: 10 | B15: 1140 | C15: =ASM!I31 -> 0
A16: 10 | B16: 1150 | C16: =ASM!I32 -> 0
A17: 10 | B17: 1160 | C17: =ASM!I33 -> 0
A18: 10 | B18: 1170 | C18: =ASM!I34 -> 0
A19: 10 | B19: 1180 | C19: =ASM!I35 -> 0
A20: 10 | B20: 1190 | C20: =ASM!I36 -> 0
A21: 10 | B21: 1200 | C21: =ASM!I37 -> 0
A22: 10 | B22: 1210 | C22: =ASM!I38 -> 0
A23: 10 | B23: 1220 | C23: =ASM!I39 -> 0
A24: 10 | B24: 1230 | C24: =ASM!I40 -> 0
A25: 10 | B25: 1240 | C25: =ASM!I41 -> 0
A26: 10 | B26: 1250 | C26: =ASM!I42 -> 0
A27: 10 | B27: 1260 | C27: =ASM!I43 -> 0
A28: 10 | B28: 1270 | C28: =ASM!I44 -> 0
A29: 10 | B29: 1280 | C29: =ASM!I45 -> 0
A30: 10 | B30: 1290 | C30: =ASM!I46 -> 0
A31: 10 | B31: 1300 | C31: =ASM!I47 -> 0
A32: 10 | B32: 1310 | C32: =ASM!I48 -> 0
A33: 10 | B33: 1320 | C33: =ASM!I49 -> 0
A34: 10 | B34: 1330 | C34: =ASM!I50 -> 0
A35: 10 | B35: 1340 | C35: =ASM!I51 -> 0
A36: 10 | B36: 1350 | C36: =ASM!I52 -> 0
A37: 10 | B37: 1360 | C37: =ASM!I53 -> 0
A38: 10 | B38: 1370 | C38: =ASM!I54 -> 0
A39: 10 | B39: 1380 | C39: =ASM!I55 -> 0
A40: 10 | B40: 1390 | C40: =ASM!I56 -> 0
A41: 10 | B41: 1400 | C41: =ASM!I57 -> 0
A42: 10 | B42: 1410 | C42: =ASM!I58 -> 0
A43: 10 | B43: 1420 | C43: =ASM!I59 -> 0
A44: 10 | B44: 1430 | C44: =ASM!I60 -> 0
A45: 10 | B45: 1440 | C45: =ASM!I61 -> 0
A46: 10 | B46: 1450 | C46: =ASM!I62 -> 0
A47: 10 | B47: 1460 | C47: =ASM!I63 -> 0
A48: 10 | B48: 1470 | C48: =ASM!I64 -> 0
A49: 10 | B49: 1480 | C49: =ASM!I65 -> 0
A50: 10 | B50: 1490 | C50: =ASM!I66 -> 0
A51: 10 | B51: 1500 | C51: =ASM!I67 -> 0
A52: 10 | B52: 1510 | C52: =ASM!I68 -> 0
A53: 10 | B53: 1520 | C53: =ASM!I69 -> 0
A54: 10 | B54: 1530 | C54: =ASM!I70 -> 0
A55: 10 | B55: 1540 | C55: =ASM!I71 -> 0
A56: 10 | B56: 1550 | C56: =ASM!I72 -> 0
A57: 10 | B57: 1560 | C57: =ASM!I73 -> 0
A58: 10 | B58: 1570 | C58: =ASM!I74 -> 0
A59: 10 | B59: 1580 | C59: =ASM!I75 -> 0
A60: 10 | B60: 1590 | C60: =ASM!I76 -> 0
A61: 10 | B61: 1600 | C61: =ASM!I77 -> 0
A62: 10 | B62: 1610 | C62: =ASM!I78 -> 0
A63: 10 | B63: 1620 | C63: =ASM!I79 -> 0
A64: 10 | B64: 1630 | C64: =ASM!I80 -> 0
A65: 10 | B65: 1640 | C65: =ASM!I81 -> 0
A66: 10 | B66: 1650 | C66: =ASM!I82 -> 0
A67: 10 | B67: 1660 | C67: =ASM!I83 -> 0
A68: 10 | B68: 1670 | C68: =ASM!I84 -> 0
A69: 10 | B69: 1680 | C69: =ASM!I85 -> 0
A70: 10 | B70: 1690 | C70: =ASM!I86 -> 0
A71: 10 | B71: 1700 | C71: =ASM!I87 -> 0
A72: 10 | B72: 1710 | C72: =ASM!I88 -> 0
A73: 10 | B73: 1720 | C73: =ASM!I89 -> 0
A74: 10 | B74: 1730 | C74: =ASM!I90 -> 0
A75: 10 | B75: 1740 | C75: =ASM!I91 -> 0
A76: 10 | B76: 1750 | C76: =ASM!I92 -> 0
A77: 10 | B77: 1760 | C77: =ASM!I93 -> 0
A78: 10 | B78: 1770 | C78: =ASM!I94 -> 0
A79: 10 | B79: 1780 | C79: =ASM!I95 -> 0
A80: 10 | B80: 1790 | C80: =ASM!I96 -> 0
A81: 10 | B81: 1800 | C81: =ASM!I97 -> 0
A82: 10 | B82: 1810 | C82: =ASM!I98 -> 0
A83: 10 | B83: 1820 | C83: =ASM!I99 -> 0
A84: 10 | B84: 1830 | C84: =ASM!I100 -> 0
A85: 10 | B85: 1840 | C85: =ASM!I101 -> 0
A86: 10 | B86: 1850 | C86: =ASM!I102 -> 0
A87: 10 | B87: 1860 | C87: =ASM!I103 -> 0
A88: 10 | B88: 1870 | C88: =ASM!I104 -> 0
A89: 10 | B89: 1880 | C89: =ASM!I105 -> 0
A90: 10 | B90: 1890 | C90: =ASM!I106 -> 0
A91: 10 | B91: 1900 | C91: =ASM!I107 -> 0
A92: 10 | B92: 1910 | C92: =ASM!I108 -> 0
A93: 10 | B93: 1920 | C93: =ASM!I109 -> 0
A94: 10 | B94: 1930 | C94: =ASM!I110 -> 0
A95: 10 | B95: 1940 | C95: =ASM!I111 -> 0
A96: 10 | B96: 1950 | C96: =ASM!I112 -> 0
A97: 10 | B97: 1960 | C97: =ASM!I113 -> 0
A98: 10 | B98: 1970 | C98: =ASM!I114 -> 0
A99: 10 | B99: 1980 | C99: =ASM!I115 -> 0
A100: 60 | B100: 400 | C100: =ASM!I116 -> 0
A101: 60 | B101: 410 | C101: =ASM!I117 -> 0
A102: 60 | B102: 420 | C102: =ASM!I118 -> 0
A103: 60 | B103: 430 | C103: =ASM!I119 -> 0
A104: 60 | B104: 440 | C104: =ASM!I120 -> 0
A105: 20 | B105: 1010 | C105: =ASM!I121 -> 0
A106: 20 | B106: 1020 | C106: =ASM!I122 -> 0
A107: 20 | B107: 1030 | C107: =ASM!I123 -> 0
A108: 20 | B108: 1040 | C108: =ASM!I124 -> 0
A109: 20 | B109: 1050 | C109: =ASM!I125 -> 0
A110: 20 | B110: 1060 | C110: =ASM!I126 -> 0
A111: 20 | B111: 1070 | C111: =ASM!I127 -> 0
A112: 20 | B112: 1080 | C112: =ASM!I128 -> 0
A113: 20 | B113: 1090 | C113: =ASM!I129 -> 0
A114: 20 | B114: 1100 | C114: =ASM!I130 -> 0
A115: 20 | B115: 1110 | C115: =ASM!I131 -> 0
A116: 20 | B116: 1120 | C116: =ASM!I132 -> 0
A117: 20 | B117: 1130 | C117: =ASM!I133 -> 0
A118: 20 | B118: 1140 | C118: =ASM!I134 -> 0
A119: 20 | B119: 1150 | C119: =ASM!I135 -> 0
A120: 20 | B120: 1160 | C120: =ASM!I136 -> 0
A121: 20 | B121: 1170 | C121: =ASM!I137 -> 0
A122: 20 | B122: 1180 | C122: =ASM!I138 -> 0
A123: 20 | B123: 1190 | C123: =ASM!I139 -> 0
A124: 20 | B124: 1200 | C124: =ASM!I140 -> 0
A125: 20 | B125: 1210 | C125: =ASM!I141 -> 0
A126: 20 | B126: 1220 | C126: =ASM!I142 -> 0
A127: 20 | B127: 1230 | C127: =ASM!I143 -> 0
A128: 20 | B128: 1240 | C128: =ASM!I144 -> 0
A129: 20 | B129: 1250 | C129: =ASM!I145 -> 0
A130: 20 | B130: 1260 | C130: =ASM!I146 -> 0
A131: 20 | B131: 1270 | C131: =ASM!I147 -> 0
A132: 20 | B132: 1280 | C132: =ASM!I148 -> 0
A133: 20 | B133: 1290 | C133: =ASM!I149 -> 0
A134: 20 | B134: 1300 | C134: =ASM!I150 -> 0
A135: 20 | B135: 1310 | C135: =ASM!I151 -> 0
A136: 20 | B136: 1320 | C136: =ASM!I152 -> 0
A137: 20 | B137: 1330 | C137: =ASM!I153 -> 0
A138: 20 | B138: 1340 | C138: =ASM!I154 -> 0
A139: 20 | B139: 1350 | C139: =ASM!I155 -> 0
A140: 20 | B140: 1360 | C140: =ASM!I156 -> 0
A141: 20 | B141: 1370 | C141: =ASM!I157 -> 0
A142: 20 | B142: 1380 | C142: =ASM!I158 -> 0
A143: 20 | B143: 1390 | C143: =ASM!I159 -> 0
A144: 20 | B144: 1400 | C144: =ASM!I160 -> 0
A145: 20 | B145: 1410 | C145: =ASM!I161 -> 0
A146: 20 | B146: 1420 | C146: =ASM!I162 -> 0
A147: 20 | B147: 1430 | C147: =ASM!I163 -> 0
A148: 20 | B148: 1440 | C148: =ASM!I164 -> 0
A149: 20 | B149: 1450 | C149: =ASM!I165 -> 0
A150: 20 | B150: 1460 | C150: =ASM!I166 -> 0
A151: 20 | B151: 1470 | C151: =ASM!I167 -> 0
A152: 20 | B152: 1480 | C152: =ASM!I168 -> 0
A153: 20 | B153: 1490 | C153: =ASM!I169 -> 0
A154: 20 | B154: 1500 | C154: =ASM!I170 -> 0
A155: 20 | B155: 1510 | C155: =ASM!I171 -> 0
A156: 20 | B156: 1520 | C156: =ASM!I172 -> 0
A157: 20 | B157: 1530 | C157: =ASM!I173 -> 0
A158: 20 | B158: 1540 | C158: =ASM!I174 -> 0
A159: 20 | B159: 1550 | C159: =ASM!I175 -> 0
A160: 20 | B160: 1560 | C160: =ASM!I176 -> 0
A161: 20 | B161: 1570 | C161: =ASM!I177 -> 0
A162: 20 | B162: 1580 | C162: =ASM!I178 -> 0
A163: 20 | B163: 1590 | C163: =ASM!I179 -> 0
A164: 20 | B164: 1600 | C164: =ASM!I180 -> 0
A165: 20 | B165: 1610 | C165: =ASM!I181 -> 0
A166: 20 | B166: 1620 | C166: =ASM!I182 -> 0
A167: 20 | B167: 1630 | C167: =ASM!I183 -> 0
A168: 20 | B168: 1640 | C168: =ASM!I184 -> 0
A169: 20 | B169: 1650 | C169: =ASM!I185 -> 0
A170: 20 | B170: 1660 | C170: =ASM!I186 -> 0
A171: 20 | B171: 1670 | C171: =ASM!I187 -> 0
A172: 20 | B172: 1680 | C172: =ASM!I188 -> 0
A173: 20 | B173: 1690 | C173: =ASM!I189 -> 0
A174: 20 | B174: 1700 | C174: =ASM!I190 -> 0
A175: 20 | B175: 1710 | C175: =ASM!I191 -> 0
A176: 20 | B176: 1720 | C176: =ASM!I192 -> 0
A177: 20 | B177: 1730 | C177: =ASM!I193 -> 0
A178: 20 | B178: 1740 | C178: =ASM!I194 -> 0
A179: 20 | B179: 1750 | C179: =ASM!I195 -> 0
A180: 20 | B180: 1760 | C180: =ASM!I196 -> 0
A181: 20 | B181: 1770 | C181: =ASM!I197 -> 0
A182: 20 | B182: 1780 | C182: =ASM!I198 -> 0
A183: 20 | B183: 1790 | C183: =ASM!I199 -> 0
A184: 20 | B184: 1800 | C184: =ASM!I200 -> 0
A185: 20 | B185: 1810 | C185: =ASM!I201 -> 0
A186: 20 | B186: 1820 | C186: =ASM!I202 -> 0
A187: 20 | B187: 1830 | C187: =ASM!I203 -> 0
A188: 20 | B188: 1840 | C188: =ASM!I204 -> 0
A189: 20 | B189: 1850 | C189: =ASM!I205 -> 0
A190: 20 | B190: 1860 | C190: =ASM!I206 -> 0
A191: 20 | B191: 1870 | C191: =ASM!I207 -> 0
A192: 20 | B192: 1880 | C192: =ASM!I208 -> 0
A193: 20 | B193: 1890 | C193: =ASM!I209 -> 0
A194: 20 | B194: 1900 | C194: =ASM!I210 -> 0
A195: 20 | B195: 1910 | C195: =ASM!I211 -> 0
A196: 20 | B196: 1920 | C196: =ASM!I212 -> 0
A197: 20 | B197: 1930 | C197: =ASM!I213 -> 0
A198: 20 | B198: 1940 | C198: =ASM!I214 -> 0
A199: 20 | B199: 1950 | C199: =ASM!I215 -> 0
A200: 20 | B200: 1960 | C200: =ASM!I216 -> 0
... 788 more rows

Sheet BMM (hidden)
G2: Boletim de Medição de Serviços | J2: =INFO!C10 -> 0
J3: REV. 00
J4: AS SAP Nº
J5: ="UNIDADE: "&INFO!C20 -> UNIDADE: 94
J6: ="EMISSÃO: "&TEXT(MAX(INFO!C32),"DD/mm/aa") -> EMISSÃO: 30/10/23
B8: CONTRATO Nº: | G8: VALOR TOTAL (R$): | I8: CONDIÇÃO DE EXECUÇÃO DO SERVIÇO:
B9: 4600019864 | G9: =J1037 -> 0 | I9: 1. ( X ) Normal
B10: EMPRESA: | G10: PRAZO DE EXECUÇÃO: | I10: 2. ( ) Emergência
B11: MONSERTEC ENGENHARIA LTDA | G11: ="21/"&TEXT(INFO!E32-30,"mm/AA")&" A "&"20/"&TEXT(MAX(INFO!E32),"mm/aa") -> 21/12/21 A 20/01/22 | I11: 3. ( ) Parada
B12: ESCOPO DO SERVIÇO / LOCAL DE EXECUÇÃO (CENTRO DE PRODUÇÃO):
B13: =INFO!C24 -> ISOLAMENTO
B14: =INFO!C34 -> REMOÇÃO E RECOMPOSIÇÃO DE ISOLAMENTO
B15: ="AS-"&INFO!C6&"/22" -> AS-102/22
B17: COMPOSIÇÃO DO VALOR CONFORME ITENS CONTRATUAIS
B18: Item do Contrato | C18: ITEM | D18: LINHA | E18: Descrição | F18: Fator | G18: Und. | H18: Qtde. | I18: P. Unitário | J18: Total (R$)
B19: 10/1010 | C19: 10 | D19: 1010 | E19: =VLOOKUP(B19,PREÇOS!$W$2:$AA$1918,5,FALSE) -> APLICAÇÃO SILICATO DE CÁLCIO 1/2''X25,4 | F19: 1 | G19: =VLOOKUP(B19,PREÇOS!$W$2:$AB$1918,6,FALSE) -> m | H19: =J19/I19 -> 0 | I19: =VLOOKUP(B19,PREÇOS!$W$2:$AA$1918,2,FALSE) -> 34.57 | J19: =(SUMIFS(TUB!BJ:BJ,TUB!AU:AU,BMM!B19)+SUMIFS(TUB!BK:BK,TUB!AV:AV,BMM!B19)+SUMIFS(TUB!BL:BL,TUB!AW:AW,BMM!B19)+SUMIFS(EQUIP!CB:CB,EQUIP!BM:BM,BMM!B19)+SUMIFS(EQUIP!CC:CC,EQUIP!BN:BN,BMM!B19)+SUMIFS(EQUIP!CD:CD,EQUIP!BO:BO,BMM!B19)) -> 0 | L19: APL | M19: APLICAÇÃO
B20: 10/1020 | C20: 10 | D20: 1020 | E20: =VLOOKUP(B20,PREÇOS!$W$2:$AA$1918,5,FALSE) -> APLICAÇÃO SILICATO DE CÁLCIO 1/2''X38,1 | F20: 1 | G20: =VLOOKUP(B20,PREÇOS!$W$2:$AB$1918,6,FALSE) -> m | H20: =J20/I20 -> 0 | I20: =VLOOKUP(B20,PREÇOS!$W$2:$AA$1918,2,FALSE) -> 40.13 | J20: =(SUMIFS(TUB!BJ:BJ,TUB!AU:AU,BMM!B20)+SUMIFS(TUB!BK:BK,TUB!AV:AV,BMM!B20)+SUMIFS(TUB!BL:BL,TUB!AW:AW,BMM!B20)+SUMIFS(EQUIP!CB:CB,EQUIP!BM:BM,BMM!B20)+SUMIFS(EQUIP!CC:CC,EQUIP!BN:BN,BMM!B20)+SUMIFS(EQUIP!CD:CD,EQUIP!BO:BO,BMM!B20)) -> 0 | L20: APL | M20: APLICAÇÃO
B21: 10/1030 | C21: 10 | D21: 1030 | E21: =VLOOKUP(B21,PREÇOS!$W$2:$AA$1918,5,FALSE) -> APLICAÇÃO SILICATO DE CÁLCIO 1/2''X50,8 | F21: 1 | G21: =VLOOKUP(B21,PREÇOS!$W$2:$AB$1918,6,FALSE) -> m | H21: 0 | I21: =VLOOKUP(B21,PREÇOS!$W$2:$AA$1918,2,FALSE) -> 43.84 | J21: =(SUMIFS(TUB!BJ:BJ,TUB!AU:AU,BMM!B21)+SUMIFS(TUB!BK:BK,TUB!AV:AV,BMM!B21)+SUMIFS(TUB!BL:BL,TUB!AW:AW,BMM!B21)+SUMIFS(EQUIP!CB:CB,EQUIP!BM:BM,BMM!B21)+SUMIFS(EQUIP!CC:CC,EQUIP!BN:BN,BMM!B21)+SUMIFS(EQUIP!CD:CD,EQUIP!BO:BO,BMM!B21)) -> 0 | L21: APL | M21: APLICAÇÃO
B22: 10/1040 | C22: 10 | D22: 1040 | E22: =VLOOKUP(B22,PREÇOS!$W$2:$AA$1918,5,FALSE) -> APLICAÇÃO SILICATO DE CÁLCIO 3/4''X25,4 | F22: 1 | G22: =VLOOKUP(B22,PREÇOS!$W$2:$AB$1918,6,FALSE) -> m | H22: 0 | I22: =VLOOKUP(B22,PREÇOS!$W$2:$AA$1918,2,FALSE) -> 40.13 | J22: =(SUMIFS(TUB!BJ:BJ,TUB!AU:AU,BMM!B22)+SUMIFS(TUB!BK:BK,TUB!AV:AV,BMM!B22)+SUMIFS(TUB!BL:BL,TUB!AW:AW,BMM!B22)+SUMIFS(EQUIP!CB:CB,EQUIP!BM:BM,BMM!B22)+SUMIFS(EQUIP!CC:CC,EQUIP!BN:BN,BMM!B22)+SUMIFS(EQUIP!CD:CD,EQUIP!BO:BO,BMM!B22)) -> 0 | L22: APL | M22: APLICAÇÃO
B23: 10/1050 | C23: 10 | D23: 1050 | E23: =VLOOKUP(B23,PREÇOS!$W$2:$AA$1918,5,FALSE) -> APLICAÇÃO SILICATO DE CÁLCIO 3/4''X38,1 | F23: 1 | G23: =VLOOKUP(B23,PREÇOS!$W$2:$AB$1918,6,FALSE) -> m | H23: 0 | I23: =VLOOKUP(B23,PREÇOS!$W$2:$AA$1918,2,FALSE) -> 51.86 | J23: =(SUMIFS(TUB!BJ:BJ,TUB!AU:AU,BMM!B23)+SUMIFS(TUB!BK:BK,TUB!AV:AV,BMM!B23)+SUMIFS(TUB!BL:BL,TUB!AW:AW,BMM!B23)+SUMIFS(EQUIP!CB:CB,EQUIP!BM:BM,BMM!B23)+SUMIFS(EQUIP!CC:CC,EQUIP!BN:BN,BMM!B23)+SUMIFS(EQUIP!CD:CD,EQUIP!BO:BO,BMM!B23)) -> 0 | L23: APL | M23: APLICAÇÃO
B24: 10/1060 | C24: 10 | D24: 1060 | E24: =VLOOKUP(B24,PREÇOS!$W$2:$AA$1918,5,FALSE) -> APLICAÇÃO SILICATO DE CÁLCIO 3/4''X50,8 | F24: 1 | G24: =VLOOKUP(B24,PREÇOS!$W$2:$AB$1918,6,FALSE) -> m | H24: 0 | I24: =VLOOKUP(B24,PREÇOS!$W$2:$AA$1918,2,FALSE) -> 61.74 | J24: =(SUMIFS(TUB!BJ:BJ,TUB!AU:AU,BMM!B24)+SUMIFS(TUB!BK:BK,TUB!AV:AV,BMM!B24)+SUMIFS(TUB!BL:BL,TUB!AW:AW,BMM!B24)+SUMIFS(EQUIP!CB:CB,EQUIP!BM:BM,BMM!B24)+SUMIFS(EQUIP!CC:CC,EQUIP!BN:BN,BMM!B24)+SUMIFS(EQUIP!CD:CD,EQUIP!BO:BO,BMM!B24)) -> 0 | L24: APL | M24: APLICAÇÃO
B25: 10/1070 | C25: 10 | D25: 1070 | E25: =VLOOKUP(B25,PREÇOS!$W$2:$AA$1918,5,FALSE) -> APLICAÇÃO SILICATO DE CÁLCIO 3/4''X63,5 | F25: 1 | G25: =VLOOKUP(B25,PREÇOS!$W$2:$AB$1918,6,FALSE) -> m | H25: 0 | I25: =VLOOKUP(B25,PREÇOS!$W$2:$AA$1918,2,FALSE) -> 64.83 | J25: =(SUMIFS(TUB!BJ:BJ,TUB!AU:AU,BMM!B25)+SUMIFS(TUB!BK:BK,TUB!AV:AV,BMM!B25)+SUMIFS(TUB!BL:BL,TUB!AW:AW,BMM!B25)+SUMIFS(EQUIP!CB:CB,EQUIP!BM:BM,BMM!B25)+SUMIFS(EQUIP!CC:CC,EQUIP!BN:BN,BMM!B25)+SUMIFS(EQUIP!CD:CD,EQUIP!BO:BO,BMM!B25)) -> 0 | L25: APL | M25: APLICAÇÃO
B26: 10/1080 | C26: 10 | D26: 1080 | E26: =VLOOKUP(B26,PREÇOS!$W$2:$AA$1918,5,FALSE) -> APLICAÇÃO SILICATO DE CÁLCIO 1''X25,4 | F26: 1 | G26: =VLOOKUP(B26,PREÇOS!$W$2:$AB$1918,6,FALSE) -> m | H26: 0 | I26: =VLOOKUP(B26,PREÇOS!$W$2:$AA$1918,2,FALSE) -> 49.39 | J26: =(SUMIFS(TUB!BJ:BJ,TUB!AU:AU,BMM!B26)+SUMIFS(TUB!BK:BK,TUB!AV:AV,BMM!B26)+SUMIFS(TUB!BL:BL,TUB!AW:AW,BMM!B26)+SUMIFS(EQUIP!CB:CB,EQUIP!BM:BM,BMM!B26)+SUMIFS(EQUIP!CC:CC,EQUIP!BN:BN,BMM!B26)+SUMIFS(EQUIP!CD:CD,EQUIP!BO:BO,BMM!B26)) -> 0 | L26: APL | M26: APLICAÇÃO
B27: 10/1090 | C27: 10 | D27: 1090 | E27: =VLOOKUP(B27,PREÇOS!$W$2:$AA$1918,5,FALSE) -> APLICAÇÃO SILICATO DE CÁLCIO 1''X38,1 | F27: 1 | G27: =VLOOKUP(B27,PREÇOS!$W$2:$AB$1918,6,FALSE) -> m | H27: 0 | I27: =VLOOKUP(B27,PREÇOS!$W$2:$AA$1918,2,FALSE) -> 53.1 | J27: =(SUMIFS(TUB!BJ:BJ,TUB!AU:AU,BMM!B27)+SUMIFS(TUB!BK:BK,TUB!AV:AV,BMM!B27)+SUMIFS(TUB!BL:BL,TUB!AW:AW,BMM!B27)+SUMIFS(EQUIP!CB:CB,EQUIP!BM:BM,BMM!B27)+SUMIFS(EQUIP!CC:CC,EQUIP!BN:BN,BMM!B27)+SUMIFS(EQUIP!CD:CD,EQUIP!BO:BO,BMM!B27)) -> 0 | L27: APL | M27: APLICAÇÃO
B28: 10/1100 | C28: 10 | D28: 1100 | E28: =VLOOKUP(B28,PREÇOS!$W$2:$AA$1918,5,FALSE) -> APLICAÇÃO SILICATO DE CÁLCIO 1''X50,8 | F28: 1 | G28: =VLOOKUP(B28,PREÇOS!$W$2:$AB$1918,6,FALSE) -> m | H28: 0 | I28: =VLOOKUP(B28,PREÇOS!$W$2:$AA$1918,2,FALSE) -> 55.57 | J28: =(SUMIFS(TUB!BJ:BJ,TUB!AU:AU,BMM!B28)+SUMIFS(TUB!BK:BK,TUB!AV:AV,BMM!B28)+SUMIFS(TUB!BL:BL,TUB!AW:AW,BMM!B28)+SUMIFS(EQUIP!CB:CB,EQUIP!BM:BM,BMM!B28)+SUMIFS(EQUIP!CC:CC,EQUIP!BN:BN,BMM!B28)+SUMIFS(EQUIP!CD:CD,EQUIP!BO:BO,BMM!B28)) -> 0 | L28: APL | M28: APLICAÇÃO
B29: 10/1110 | C29: 10 | D29: 1110 | E29: =VLOOKUP(B29,PREÇOS!$W$2:$AA$1918,5,FALSE) -> APLICAÇÃO SILICATO DE CÁLCIO 1''X63,5 | F29: 1 | G29: =VLOOKUP(B29,PREÇOS!$W$2:$AB$1918,6,FALSE) -> m | H29: 0 | I29: =VLOOKUP(B29,PREÇOS!$W$2:$AA$1918,2,FALSE) -> 59.27 | J29: =(SUMIFS(TUB!BJ:BJ,TUB!AU:AU,BMM!B29)+SUMIFS(TUB!BK:BK,TUB!AV:AV,BMM!B29)+SUMIFS(TUB!BL:BL,TUB!AW:AW,BMM!B29)+SUMIFS(EQUIP!CB:CB,EQUIP!BM:BM,BMM!B29)+SUMIFS(EQUIP!CC:CC,EQUIP!BN:BN,BMM!B29)+SUMIFS(EQUIP!CD:CD,EQUIP!BO:BO,BMM!B29)) -> 0 | L29: APL | M29: APLICAÇÃO
B30: 10/1120 | C30: 10 | D30: 1120 | E30: =VLOOKUP(B30,PREÇOS!$W$2:$AA$1918,5,FALSE) -> APLICAÇÃO SILICATO DE CÁLCIO 1''X76,3 | F30: 1 | G30: =VLOOKUP(B30,PREÇOS!$W$2:$AB$1918,6,FALSE) -> m | H30: 0 | I30: =VLOOKUP(B30,PREÇOS!$W$2:$AA$1918,2,FALSE) -> 62.97 | J30: =(SUMIFS(TUB!BJ:BJ,TUB!AU:AU,BMM!B30)+SUMIFS(TUB!BK:BK,TUB!AV:AV,BMM!B30)+SUMIFS(TUB!BL:BL,TUB!AW:AW,BMM!B30)+SUMIFS(EQUIP!CB:CB,EQUIP!BM:BM,BMM!B30)+SUMIFS(EQUIP!CC:CC,EQUIP!BN:BN,BMM!B30)+SUMIFS(EQUIP!CD:CD,EQUIP!BO:BO,BMM!B30)) -> 0 | L30: APL | M30: APLICAÇÃO
B31: 10/1130 | C31: 10 | D31: 1130 | E31: =VLOOKUP(B31,PREÇOS!$W$2:$AA$1918,5,FALSE) -> APLICAÇÃO SILICATO DE CÁLCIO 1 1/2''X25,4 | F31: 1 | G31: =VLOOKUP(B31,PREÇOS!$W$2:$AB$1918,6,FALSE) -> m | H31: 0 | I31: =VLOOKUP(B31,PREÇOS!$W$2:$AA$1918,2,FALSE) -> 56.8 | J31: =(SUMIFS(TUB!BJ:BJ,TUB!AU:AU,BMM!B31)+SUMIFS(TUB!BK:BK,TUB!AV:AV,BMM!B31)+SUMIFS(TUB!BL:BL,TUB!AW:AW,BMM!B31)+SUMIFS(EQUIP!CB:CB,EQUIP!BM:BM,BMM!B31)+SUMIFS(EQUIP!CC:CC,EQUIP!BN:BN,BMM!B31)+SUMIFS(EQUIP!CD:CD,EQUIP!BO:BO,BMM!B31)) -> 0 | L31: APL | M31: APLICAÇÃO
B32: 10/1140 | C32: 10 | D32: 1140 | E32: =VLOOKUP(B32,PREÇOS!$W$2:$AA$1918,5,FALSE) -> APLICAÇÃO SILICATO DE CÁLCIO 1 1/2''X38,1 | F32: 1 | G32: =VLOOKUP(B32,PREÇOS!$W$2:$AB$1918,6,FALSE) -> m | H32: 0 | I32: =VLOOKUP(B32,PREÇOS!$W$2:$AA$1918,2,FALSE) -> 65.44 | J32: =(SUMIFS(TUB!BJ:BJ,TUB!AU:AU,BMM!B32)+SUMIFS(TUB!BK:BK,TUB!AV:AV,BMM!B32)+SUMIFS(TUB!BL:BL,TUB!AW:AW,BMM!B32)+SUMIFS(EQUIP!CB:CB,EQUIP!BM:BM,BMM!B32)+SUMIFS(EQUIP!CC:CC,EQUIP!BN:BN,BMM!B32)+SUMIFS(EQUIP!CD:CD,EQUIP!BO:BO,BMM!B32)) -> 0 | L32: APL | M32: APLICAÇÃO
B33: 10/1150 | C33: 10 | D33: 1150 | E33: =VLOOKUP(B33,PREÇOS!$W$2:$AA$1918,5,FALSE) -> APLICAÇÃO SILICATO DE CÁLCIO 1 1/2''X50,8 | F33: 1 | G33: =VLOOKUP(B33,PREÇOS!$W$2:$AB$1918,6,FALSE) -> m | H33: 0 | I33: =VLOOKUP(B33,PREÇOS!$W$2:$AA$1918,2,FALSE) -> 76.56 | J33: =(SUMIFS(TUB!BJ:BJ,TUB!AU:AU,BMM!B33)+SUMIFS(TUB!BK:BK,TUB!AV:AV,BMM!B33)+SUMIFS(TUB!BL:BL,TUB!AW:AW,BMM!B33)+SUMIFS(EQUIP!CB:CB,EQUIP!BM:BM,BMM!B33)+SUMIFS(EQUIP!CC:CC,EQUIP!BN:BN,BMM!B33)+SUMIFS(EQUIP!CD:CD,EQUIP!BO:BO,BMM!B33)) -> 0 | L33: APL | M33: APLICAÇÃO
B34: 10/1160 | C34: 10 | D34: 1160 | E34: =VLOOKUP(B34,PREÇOS!$W$2:$AA$1918,5,FALSE) -> APLICAÇÃO SILICATO DE CÁLCIO 1 1/2''X63,5 | F34: 1 | G34: =VLOOKUP(B34,PREÇOS!$W$2:$AB$1918,6,FALSE) -> m | H34: 0 | I34: =VLOOKUP(B34,PREÇOS!$W$2:$AA$1918,2,FALSE) -> 85.82 | J34: =(SUMIFS(TUB!BJ:BJ,TUB!AU:AU,BMM!B34)+SUMIFS(TUB!BK:BK,TUB!AV:AV,BMM!B34)+SUMIFS(TUB!BL:BL,TUB!AW:AW,BMM!B34)+SUMIFS(EQUIP!CB:CB,EQUIP!BM:BM,BMM!B34)+SUMIFS(EQUIP!CC:CC,EQUIP!BN:BN,BMM!B34)+SUMIFS(EQUIP!CD:CD,EQUIP!BO:BO,BMM!B34)) -> 0 | L34: APL | M34: APLICAÇÃO
B35: 10/1170 | C35: 10 | D35: 1170 | E35: =VLOOKUP(B35,PREÇOS!$W$2:$AA$1918,5,FALSE) -> APLICAÇÃO SILICATO DE CÁLCIO 1 1/2''X76,3 | F35: 1 | G35: =VLOOKUP(B35,PREÇOS!$W$2:$AB$1918,6,FALSE) -> m | H35: 0 | I35: =VLOOKUP(B35,PREÇOS!$W$2:$AA$1918,2,FALSE) -> 95.08 | J35: =(SUMIFS(TUB!BJ:BJ,TUB!AU:AU,BMM!B35)+SUMIFS(TUB!BK:BK,TUB!AV:AV,BMM!B35)+SUMIFS(TUB!BL:BL,TUB!AW:AW,BMM!B35)+SUMIFS(EQUIP!CB:CB,EQUIP!BM:BM,BMM!B35)+SUMIFS(EQUIP!CC:CC,EQUIP!BN:BN,BMM!B35)+SUMIFS(EQUIP!CD:CD,EQUIP!BO:BO,BMM!B35)) -> 0 | L35: APL | M35: APLICAÇÃO
B36: 10/1180 | C36: 10 | D36: 1180 | E36: =VLOOKUP(B36,PREÇOS!$W$2:$AA$1918,5,FALSE) -> APLICAÇÃO SILICATO DE CÁLCIO 2''X25,4 | F36: 1 | G36: =VLOOKUP(B36,PREÇOS!$W$2:$AB$1918,6,FALSE) -> m | H36: 0 | I36: =VLOOKUP(B36,PREÇOS!$W$2:$AA$1918,2,FALSE) -> 67.3 | J36: =(SUMIFS(TUB!BJ:BJ,TUB!AU:AU,BMM!B36)+SUMIFS(TUB!BK:BK,TUB!AV:AV,BMM!B36)+SUMIFS(TUB!BL:BL,TUB!AW:AW,BMM!B36)+SUMIFS(EQUIP!CB:CB,EQUIP!BM:BM,BMM!B36)+SUMIFS(EQUIP!CC:CC,EQUIP!BN:BN,BMM!B36)+SUMIFS(EQUIP!CD:CD,EQUIP!BO:BO,BMM!B36)) -> 0 | L36: APL | M36: APLICAÇÃO
B37: 10/1190 | C37: 10 | D37: 1190 | E37: =VLOOKUP(B37,PREÇOS!$W$2:$AA$1918,5,FALSE) -> APLICAÇÃO SILICATO DE CÁLCIO 2''X38,1 | F37: 1 | G37: =VLOOKUP(B37,PREÇOS!$W$2:$AB$1918,6,FALSE) -> m | H37: 0 | I37: =VLOOKUP(B37,PREÇOS!$W$2:$AA$1918,2,FALSE) -> 75.94 | J37: =(SUMIFS(TUB!BJ:BJ,TUB!AU:AU,BMM!B37)+SUMIFS(TUB!BK:BK,TUB!AV:AV,BMM!B37)+SUMIFS(TUB!BL:BL,TUB!AW:AW,BMM!B37)+SUMIFS(EQUIP!CB:CB,EQUIP!BM:BM,BMM!B37)+SUMIFS(EQUIP!CC:CC,EQUIP!BN:BN,BMM!B37)+SUMIFS(EQUIP!CD:CD,EQUIP!BO:BO,BMM!B37)) -> 0 | L37: APL | M37: APLICAÇÃO
B38: 10/1200 | C38: 10 | D38: 1200 | E38: =VLOOKUP(B38,PREÇOS!$W$2:$AA$1918,5,FALSE) -> APLICAÇÃO SILICATO DE CÁLCIO 2''X50,8 | F38: 1 | G38: =VLOOKUP(B38,PREÇOS!$W$2:$AB$1918,6,FALSE) -> m | H38: 0 | I38: =VLOOKUP(B38,PREÇOS!$W$2:$AA$1918,2,FALSE) -> 85.2 | J38: =(SUMIFS(TUB!BJ:BJ,TUB!AU:AU,BMM!B38)+SUMIFS(TUB!BK:BK,TUB!AV:AV,BMM!B38)+SUMIFS(TUB!BL:BL,TUB!AW:AW,BMM!B38)+SUMIFS(EQUIP!CB:CB,EQUIP!BM:BM,BMM!B38)+SUMIFS(EQUIP!CC:CC,EQUIP!BN:BN,BMM!B38)+SUMIFS(EQUIP!CD:CD,EQUIP!BO:BO,BMM!B38)) -> 0 | L38: APL | M38: APLICAÇÃO
B39: 10/1210 | C39: 10 | D39: 1210 | E39: =VLOOKUP(B39,PREÇOS!$W$2:$AA$1918,5,FALSE) -> APLICAÇÃO SILICATO DE CÁLCIO 2''X63,5 | F39: 1 | G39: =VLOOKUP(B39,PREÇOS!$W$2:$AB$1918,6,FALSE) -> m | H39: 0 | I39: =VLOOKUP(B39,PREÇOS!$W$2:$AA$1918,2,FALSE) -> 87.67 | J39: =(SUMIFS(TUB!BJ:BJ,TUB!AU:AU,BMM!B39)+SUMIFS(TUB!BK:BK,TUB!AV:AV,BMM!B39)+SUMIFS(TUB!BL:BL,TUB!AW:AW,BMM!B39)+SUMIFS(EQUIP!CB:CB,EQUIP!BM:BM,BMM!B39)+SUMIFS(EQUIP!CC:CC,EQUIP!BN:BN,BMM!B39)+SUMIFS(EQUIP!CD:CD,EQUIP!BO:BO,BMM!B39)) -> 0 | L39: APL | M39: APLICAÇÃO
B40: 10/1220 | C40: 10 | D40: 1220 | E40: =VLOOKUP(B40,PREÇOS!$W$2:$AA$1918,5,FALSE) -> APLICAÇÃO SILICATO DE CÁLCIO 2''X76,3 | F40: 1 | G40: =VLOOKUP(B40,PREÇOS!$W$2:$AB$1918,6,FALSE) -> m | H40: 0 | I40: =VLOOKUP(B40,PREÇOS!$W$2:$AA$1918,2,FALSE) -> 89.52 | J40: =(SUMIFS(TUB!BJ:BJ,TUB!AU:AU,BMM!B40)+SUMIFS(TUB!BK:BK,TUB!AV:AV,BMM!B40)+SUMIFS(TUB!BL:BL,TUB!AW:AW,BMM!B40)+SUMIFS(EQUIP!CB:CB,EQUIP!BM:BM,BMM!B40)+SUMIFS(EQUIP!CC:CC,EQUIP!BN:BN,BMM!B40)+SUMIFS(EQUIP!CD:CD,EQUIP!BO:BO,BMM!B40)) -> 0 | L40: APL | M40: APLICAÇÃO
B41: 10/1230 | C41: 10 | D41: 1230 | E41: =VLOOKUP(B41,PREÇOS!$W$2:$AA$1918,5,FALSE) -> APLICAÇÃO SILICATO DE CÁLCIO 2 1/2''X25,4 | F41: 1 | G41: =VLOOKUP(B41,PREÇOS!$W$2:$AB$1918,6,FALSE) -> m | H41: 0 | I41: =VLOOKUP(B41,PREÇOS!$W$2:$AA$1918,2,FALSE) -> 77.79 | J41: =(SUMIFS(TUB!BJ:BJ,TUB!AU:AU,BMM!B41)+SUMIFS(TUB!BK:BK,TUB!AV:AV,BMM!B41)+SUMIFS(TUB!BL:BL,TUB!AW:AW,BMM!B41)+SUMIFS(EQUIP!CB:CB,EQUIP!BM:BM,BMM!B41)+SUMIFS(EQUIP!CC:CC,EQUIP!BN:BN,BMM!B41)+SUMIFS(EQUIP!CD:CD,EQUIP!BO:BO,BMM!B41)) -> 0 | L41: APL | M41: APLICAÇÃO
B42: 10/1240 | C42: 10 | D42: 1240 | E42: =VLOOKUP(B42,PREÇOS!$W$2:$AA$1918,5,FALSE) -> APLICAÇÃO SILICATO DE CÁLCIO 2 1/2''X38,1 | F42: 1 | G42: =VLOOKUP(B42,PREÇOS!$W$2:$AB$1918,6,FALSE) -> m | H42: 0 | I42: =VLOOKUP(B42,PREÇOS!$W$2:$AA$1918,2,FALSE) -> 87.05 | J42: =(SUMIFS(TUB!BJ:BJ,TUB!AU:AU,BMM!B42)+SUMIFS(TUB!BK:BK,TUB!AV:AV,BMM!B42)+SUMIFS(TUB!BL:BL,TUB!AW:AW,BMM!B42)+SUMIFS(EQUIP!CB:CB,EQUIP!BM:BM,BMM!B42)+SUMIFS(EQUIP!CC:CC,EQUIP!BN:BN,BMM!B42)+SUMIFS(EQUIP!CD:CD,EQUIP!BO:BO,BMM!B42)) -> 0 | L42: APL | M42: APLICAÇÃO
B43: 10/1250 | C43: 10 | D43: 1250 | E43: =VLOOKUP(B43,PREÇOS!$W$2:$AA$1918,5,FALSE) -> APLICAÇÃO SILICATO DE CÁLCIO 2 1/2''X50,8 | F43: 1 | G43: =VLOOKUP(B43,PREÇOS!$W$2:$AB$1918,6,FALSE) -> m | H43: 0 | I43: =VLOOKUP(B43,PREÇOS!$W$2:$AA$1918,2,FALSE) -> 97.55 | J43: =(SUMIFS(TUB!BJ:BJ,TUB!AU:AU,BMM!B43)+SUMIFS(TUB!BK:BK,TUB!AV:AV,BMM!B43)+SUMIFS(TUB!BL:BL,TUB!AW:AW,BMM!B43)+SUMIFS(EQUIP!CB:CB,EQUIP!BM:BM,BMM!B43)+SUMIFS(EQUIP!CC:CC,EQUIP!BN:BN,BMM!B43)+SUMIFS(EQUIP!CD:CD,EQUIP!BO:BO,BMM!B43)) -> 0 | L43: APL | M43: APLICAÇÃO
B44: 10/1260 | C44: 10 | D44: 1260 | E44: =VLOOKUP(B44,PREÇOS!$W$2:$AA$1918,5,FALSE) -> APLICAÇÃO SILICATO DE CÁLCIO 2 1/2''X63,5 | F44: 1 | G44: =VLOOKUP(B44,PREÇOS!$W$2:$AB$1918,6,FALSE) -> m | H44: 0 | I44: =VLOOKUP(B44,PREÇOS!$W$2:$AA$1918,2,FALSE) -> 98.78 | J44: =(SUMIFS(TUB!BJ:BJ,TUB!AU:AU,BMM!B44)+SUMIFS(TUB!BK:BK,TUB!AV:AV,BMM!B44)+SUMIFS(TUB!BL:BL,TUB!AW:AW,BMM!B44)+SUMIFS(EQUIP!CB:CB,EQUIP!BM:BM,BMM!B44)+SUMIFS(EQUIP!CC:CC,EQUIP!BN:BN,BMM!B44)+SUMIFS(EQUIP!CD:CD,EQUIP!BO:BO,BMM!B44)) -> 0 | L44: APL | M44: APLICAÇÃO
B45: 10/1270 | C45: 10 | D45: 1270 | E45: =VLOOKUP(B45,PREÇOS!$W$2:$AA$1918,5,FALSE) -> APLICAÇÃO SILICATO DE CÁLCIO 2 1/2''X76,3 | F45: 1 | G45: =VLOOKUP(B45,PREÇOS!$W$2:$AB$1918,6,FALSE) -> m | H45: 0 | I45: =VLOOKUP(B45,PREÇOS!$W$2:$AA$1918,2,FALSE) -> 101.87 | J45: =(SUMIFS(TUB!BJ:BJ,TUB!AU:AU,BMM!B45)+SUMIFS(TUB!BK:BK,TUB!AV:AV,BMM!B45)+SUMIFS(TUB!BL:BL,TUB!AW:AW,BMM!B45)+SUMIFS(EQUIP!CB:CB,EQUIP!BM:BM,BMM!B45)+SUMIFS(EQUIP!CC:CC,EQUIP!BN:BN,BMM!B45)+SUMIFS(EQUIP!CD:CD,EQUIP!BO:BO,BMM!B45)) -> 0 | L45: APL | M45: APLICAÇÃO
B46: 10/1280 | C46: 10 | D46: 1280 | E46: =VLOOKUP(B46,PREÇOS!$W$2:$AA$1918,5,FALSE) -> APLICAÇÃO SILICATO DE CÁLCIO 3''X25,4 | F46: 1 | G46: =VLOOKUP(B46,PREÇOS!$W$2:$AB$1918,6,FALSE) -> m | H46: 0 | I46: =VLOOKUP(B46,PREÇOS!$W$2:$AA$1918,2,FALSE) -> 90.14 | J46: =(SUMIFS(TUB!BJ:BJ,TUB!AU:AU,BMM!B46)+SUMIFS(TUB!BK:BK,TUB!AV:AV,BMM!B46)+SUMIFS(TUB!BL:BL,TUB!AW:AW,BMM!B46)+SUMIFS(EQUIP!CB:CB,EQUIP!BM:BM,BMM!B46)+SUMIFS(EQUIP!CC:CC,EQUIP!BN:BN,BMM!B46)+SUMIFS(EQUIP!CD:CD,EQUIP!BO:BO,BMM!B46)) -> 0 | L46: APL | M46: APLICAÇÃO
B47: 10/1290 | C47: 10 | D47: 1290 | E47: =VLOOKUP(B47,PREÇOS!$W$2:$AA$1918,5,FALSE) -> APLICAÇÃO SILICATO DE CÁLCIO 3''X38,1 | F47: 1 | G47: =VLOOKUP(B47,PREÇOS!$W$2:$AB$1918,6,FALSE) -> m | H47: 0 | I47: =VLOOKUP(B47,PREÇOS!$W$2:$AA$1918,2,FALSE) -> 95.7 | J47: =(SUMIFS(TUB!BJ:BJ,TUB!AU:AU,BMM!B47)+SUMIFS(TUB!BK:BK,TUB!AV:AV,BMM!B47)+SUMIFS(TUB!BL:BL,TUB!AW:AW,BMM!B47)+SUMIFS(EQUIP!CB:CB,EQUIP!BM:BM,BMM!B47)+SUMIFS(EQUIP!CC:CC,EQUIP!BN:BN,BMM!B47)+SUMIFS(EQUIP!CD:CD,EQUIP!BO:BO,BMM!B47)) -> 0 | L47: APL | M47: APLICAÇÃO
B48: 10/1300 | C48: 10 | D48: 1300 | E48: =VLOOKUP(B48,PREÇOS!$W$2:$AA$1918,5,FALSE) -> APLICAÇÃO SILICATO DE CÁLCIO 3''X50,8 | F48: 1 | G48: =VLOOKUP(B48,PREÇOS!$W$2:$AB$1918,6,FALSE) -> m | H48: 0 | I48: =VLOOKUP(B48,PREÇOS!$W$2:$AA$1918,2,FALSE) -> 97.55 | J48: =(SUMIFS(TUB!BJ:BJ,TUB!AU:AU,BMM!B48)+SUMIFS(TUB!BK:BK,TUB!AV:AV,BMM!B48)+SUMIFS(TUB!BL:BL,TUB!AW:AW,BMM!B48)+SUMIFS(EQUIP!CB:CB,EQUIP!BM:BM,BMM!B48)+SUMIFS(EQUIP!CC:CC,EQUIP!BN:BN,BMM!B48)+SUMIFS(EQUIP!CD:CD,EQUIP!BO:BO,BMM!B48)) -> 0 | L48: APL | M48: APLICAÇÃO
B49: 10/1310 | C49: 10 | D49: 1310 | E49: =VLOOKUP(B49,PREÇOS!$W$2:$AA$1918,5,FALSE) -> APLICAÇÃO SILICATO DE CÁLCIO 3''X63,5 | F49: 1 | G49: =VLOOKUP(B49,PREÇOS!$W$2:$AB$1918,6,FALSE) -> m | H49: 0 | I49: =VLOOKUP(B49,PREÇOS!$W$2:$AA$1918,2,FALSE) -> 103.11 | J49: =(SUMIFS(TUB!BJ:BJ,TUB!AU:AU,BMM!B49)+SUMIFS(TUB!BK:BK,TUB!AV:AV,BMM!B49)+SUMIFS(TUB!BL:BL,TUB!AW:AW,BMM!B49)+SUMIFS(EQUIP!CB:CB,EQUIP!BM:BM,BMM!B49)+SUMIFS(EQUIP!CC:CC,EQUIP!BN:BN,BMM!B49)+SUMIFS(EQUIP!CD:CD,EQUIP!BO:BO,BMM!B49)) -> 0 | L49: APL | M49: APLICAÇÃO
B50: 10/1320 | C50: 10 | D50: 1320 | E50: =VLOOKUP(B50,PREÇOS!$W$2:$AA$1918,5,FALSE) -> APLICAÇÃO SILICATO DE CÁLCIO 3''X76,3 | F50: 1 | G50: =VLOOKUP(B50,PREÇOS!$W$2:$AB$1918,6,FALSE) -> m | H50: 0 | I50: =VLOOKUP(B50,PREÇOS!$W$2:$AA$1918,2,FALSE) -> 103.72 | J50: =(SUMIFS(TUB!BJ:BJ,TUB!AU:AU,BMM!B50)+SUMIFS(TUB!BK:BK,TUB!AV:AV,BMM!B50)+SUMIFS(TUB!BL:BL,TUB!AW:AW,BMM!B50)+SUMIFS(EQUIP!CB:CB,EQUIP!BM:BM,BMM!B50)+SUMIFS(EQUIP!CC:CC,EQUIP!BN:BN,BMM!B50)+SUMIFS(EQUIP!CD:CD,EQUIP!BO:BO,BMM!B50)) -> 0 | L50: APL | M50: APLICAÇÃO
B51: 10/1330 | C51: 10 | D51: 1330 | E51: =VLOOKUP(B51,PREÇOS!$W$2:$AA$1918,5,FALSE) -> APLICAÇÃO SILICATO DE CÁLCIO 4''X25,4 | F51: 1 | G51: =VLOOKUP(B51,PREÇOS!$W$2:$AB$1918,6,FALSE) -> m | H51: 0 | I51: =VLOOKUP(B51,PREÇOS!$W$2:$AA$1918,2,FALSE) -> 88.91 | J51: =(SUMIFS(TUB!BJ:BJ,TUB!AU:AU,BMM!B51)+SUMIFS(TUB!BK:BK,TUB!AV:AV,BMM!B51)+SUMIFS(TUB!BL:BL,TUB!AW:AW,BMM!B51)+SUMIFS(EQUIP!CB:CB,EQUIP!BM:BM,BMM!B51)+SUMIFS(EQUIP!CC:CC,EQUIP!BN:BN,BMM!B51)+SUMIFS(EQUIP!CD:CD,EQUIP!BO:BO,BMM!B51)) -> 0 | L51: APL | M51: APLICAÇÃO
B52: 10/1340 | C52: 10 | D52: 1340 | E52: =VLOOKUP(B52,PREÇOS!$W$2:$AA$1918,5,FALSE) -> APLICAÇÃO SILICATO DE CÁLCIO 4''X38,1 | F52: 1 | G52: =VLOOKUP(B52,PREÇOS!$W$2:$AB$1918,6,FALSE) -> m | H52: 0 | I52: =VLOOKUP(B52,PREÇOS!$W$2:$AA$1918,2,FALSE) -> 89.52 | J52: =(SUMIFS(TUB!BJ:BJ,TUB!AU:AU,BMM!B52)+SUMIFS(TUB!BK:BK,TUB!AV:AV,BMM!B52)+SUMIFS(TUB!BL:BL,TUB!AW:AW,BMM!B52)+SUMIFS(EQUIP!CB:CB,EQUIP!BM:BM,BMM!B52)+SUMIFS(EQUIP!CC:CC,EQUIP!BN:BN,BMM!B52)+SUMIFS(EQUIP!CD:CD,EQUIP!BO:BO,BMM!B52)) -> 0 | L52: APL | M52: APLICAÇÃO
B53: 10/1350 | C53: 10 | D53: 1350 | E53: =VLOOKUP(B53,PREÇOS!$W$2:$AA$1918,5,FALSE) -> APLICAÇÃO SILICATO DE CÁLCIO 4''X50,8 | F53: 1 | G53: =VLOOKUP(B53,PREÇOS!$W$2:$AB$1918,6,FALSE) -> m | H53: 0 | I53: =VLOOKUP(B53,PREÇOS!$W$2:$AA$1918,2,FALSE) -> 111.13 | J53: =(SUMIFS(TUB!BJ:BJ,TUB!AU:AU,BMM!B53)+SUMIFS(TUB!BK:BK,TUB!AV:AV,BMM!B53)+SUMIFS(TUB!BL:BL,TUB!AW:AW,BMM!B53)+SUMIFS(EQUIP!CB:CB,EQUIP!BM:BM,BMM!B53)+SUMIFS(EQUIP!CC:CC,EQUIP!BN:BN,BMM!B53)+SUMIFS(EQUIP!CD:CD,EQUIP!BO:BO,BMM!B53)) -> 0 | L53: APL | M53: APLICAÇÃO
B54: 10/1360 | C54: 10 | D54: 1360 | E54: =VLOOKUP(B54,PREÇOS!$W$2:$AA$1918,5,FALSE) -> APLICAÇÃO SILICATO DE CÁLCIO 4''X63,5 | F54: 1 | G54: =VLOOKUP(B54,PREÇOS!$W$2:$AB$1918,6,FALSE) -> m | H54: 0 | I54: =VLOOKUP(B54,PREÇOS!$W$2:$AA$1918,2,FALSE) -> 98.78 | J54: =(SUMIFS(TUB!BJ:BJ,TUB!AU:AU,BMM!B54)+SUMIFS(TUB!BK:BK,TUB!AV:AV,BMM!B54)+SUMIFS(TUB!BL:BL,TUB!AW:AW,BMM!B54)+SUMIFS(EQUIP!CB:CB,EQUIP!BM:BM,BMM!B54)+SUMIFS(EQUIP!CC:CC,EQUIP!BN:BN,BMM!B54)+SUMIFS(EQUIP!CD:CD,EQUIP!BO:BO,BMM!B54)) -> 0 | L54: APL | M54: APLICAÇÃO
B55: 10/1370 | C55: 10 | D55: 1370 | E55: =VLOOKUP(B55,PREÇOS!$W$2:$AA$1918,5,FALSE) -> APLICAÇÃO SILICATO DE CÁLCIO 4''X76,3 | F55: 1 | G55: =VLOOKUP(B55,PREÇOS!$W$2:$AB$1918,6,FALSE) -> m | H55: 0 | I55: =VLOOKUP(B55,PREÇOS!$W$2:$AA$1918,2,FALSE) -> 111.38 | J55: =(SUMIFS(TUB!BJ:BJ,TUB!AU:AU,BMM!B55)+SUMIFS(TUB!BK:BK,TUB!AV:AV,BMM!B55)+SUMIFS(TUB!BL:BL,TUB!AW:AW,BMM!B55)+SUMIFS(EQUIP!CB:CB,EQUIP!BM:BM,BMM!B55)+SUMIFS(EQUIP!CC:CC,EQUIP!BN:BN,BMM!B55)+SUMIFS(EQUIP!CD:CD,EQUIP!BO:BO,BMM!B55)) -> 0 | L55: APL | M55: APLICAÇÃO
B56: 10/1380 | C56: 10 | D56: 1380 | E56: =VLOOKUP(B56,PREÇOS!$W$2:$AA$1918,5,FALSE) -> APLICAÇÃO SILICATO DE CÁLCIO 6''X25,4 | F56: 1 | G56: =VLOOKUP(B56,PREÇOS!$W$2:$AB$1918,6,FALSE) -> m | H56: 0 | I56: =VLOOKUP(B56,PREÇOS!$W$2:$AA$1918,2,FALSE) -> 117.8 | J56: =(SUMIFS(TUB!BJ:BJ,TUB!AU:AU,BMM!B56)+SUMIFS(TUB!BK:BK,TUB!AV:AV,BMM!B56)+SUMIFS(TUB!BL:BL,TUB!AW:AW,BMM!B56)+SUMIFS(EQUIP!CB:CB,EQUIP!BM:BM,BMM!B56)+SUMIFS(EQUIP!CC:CC,EQUIP!BN:BN,BMM!B56)+SUMIFS(EQUIP!CD:CD,EQUIP!BO:BO,BMM!B56)) -> 0 | L56: APL | M56: APLICAÇÃO
B57: 10/1390 | C57: 10 | D57: 1390 | E57: =VLOOKUP(B57,PREÇOS!$W$2:$AA$1918,5,FALSE) -> APLICAÇÃO SILICATO DE CÁLCIO 6''X38,1 | F57: 1 | G57: =VLOOKUP(B57,PREÇOS!$W$2:$AB$1918,6,FALSE) -> m | H57: 0 | I57: =VLOOKUP(B57,PREÇOS!$W$2:$AA$1918,2,FALSE) -> 124.71 | J57: =(SUMIFS(TUB!BJ:BJ,TUB!AU:AU,BMM!B57)+SUMIFS(TUB!BK:BK,TUB!AV:AV,BMM!B57)+SUMIFS(TUB!BL:BL,TUB!AW:AW,BMM!B57)+SUMIFS(EQUIP!CB:CB,EQUIP!BM:BM,BMM!B57)+SUMIFS(EQUIP!CC:CC,EQUIP!BN:BN,BMM!B57)+SUMIFS(EQUIP!CD:CD,EQUIP!BO:BO,BMM!B57)) -> 0 | L57: APL | M57: APLICAÇÃO
B58: 10/1400 | C58: 10 | D58: 1400 | E58: =VLOOKUP(B58,PREÇOS!$W$2:$AA$1918,5,FALSE) -> APLICAÇÃO SILICATO DE CÁLCIO 6''X50,8 | F58: 1 | G58: =VLOOKUP(B58,PREÇOS!$W$2:$AB$1918,6,FALSE) -> m | H58: 0 | I58: =VLOOKUP(B58,PREÇOS!$W$2:$AA$1918,2,FALSE) -> 142 | J58: =(SUMIFS(TUB!BJ:BJ,TUB!AU:AU,BMM!B58)+SUMIFS(TUB!BK:BK,TUB!AV:AV,BMM!B58)+SUMIFS(TUB!BL:BL,TUB!AW:AW,BMM!B58)+SUMIFS(EQUIP!CB:CB,EQUIP!BM:BM,BMM!B58)+SUMIFS(EQUIP!CC:CC,EQUIP!BN:BN,BMM!B58)+SUMIFS(EQUIP!CD:CD,EQUIP!BO:BO,BMM!B58)) -> 0 | L58: APL | M58: APLICAÇÃO
B59: 10/1410 | C59: 10 | D59: 1410 | E59: =VLOOKUP(B59,PREÇOS!$W$2:$AA$1918,5,FALSE) -> APLICAÇÃO SILICATO DE CÁLCIO 6''X63,5 | F59: 1 | G59: =VLOOKUP(B59,PREÇOS!$W$2:$AB$1918,6,FALSE) -> m | H59: 0 | I59: =VLOOKUP(B59,PREÇOS!$W$2:$AA$1918,2,FALSE) -> 129.65 | J59: =(SUMIFS(TUB!BJ:BJ,TUB!AU:AU,BMM!B59)+SUMIFS(TUB!BK:BK,TUB!AV:AV,BMM!B59)+SUMIFS(TUB!BL:BL,TUB!AW:AW,BMM!B59)+SUMIFS(EQUIP!CB:CB,EQUIP!BM:BM,BMM!B59)+SUMIFS(EQUIP!CC:CC,EQUIP!BN:BN,BMM!B59)+SUMIFS(EQUIP!CD:CD,EQUIP!BO:BO,BMM!B59)) -> 0 | L59: APL | M59: APLICAÇÃO
B60: 10/1420 | C60: 10 | D60: 1420 | E60: =VLOOKUP(B60,PREÇOS!$W$2:$AA$1918,5,FALSE) -> APLICAÇÃO SILICATO DE CÁLCIO 6''X76,3 | F60: 1 | G60: =VLOOKUP(B60,PREÇOS!$W$2:$AB$1918,6,FALSE) -> m | H60: 0 | I60: =VLOOKUP(B60,PREÇOS!$W$2:$AA$1918,2,FALSE) -> 135.83 | J60: =(SUMIFS(TUB!BJ:BJ,TUB!AU:AU,BMM!B60)+SUMIFS(TUB!BK:BK,TUB!AV:AV,BMM!B60)+SUMIFS(TUB!BL:BL,TUB!AW:AW,BMM!B60)+SUMIFS(EQUIP!CB:CB,EQUIP!BM:BM,BMM!B60)+SUMIFS(EQUIP!CC:CC,EQUIP!BN:BN,BMM!B60)+SUMIFS(EQUIP!CD:CD,EQUIP!BO:BO,BMM!B60)) -> 0 | L60: APL | M60: APLICAÇÃO
B61: 10/1430 | C61: 10 | D61: 1430 | E61: =VLOOKUP(B61,PREÇOS!$W$2:$AA$1918,5,FALSE) -> APLICAÇÃO SILICATO DE CÁLCIO 8''X25,4 | F61: 1 | G61: =VLOOKUP(B61,PREÇOS!$W$2:$AB$1918,6,FALSE) -> m | H61: 0 | I61: =VLOOKUP(B61,PREÇOS!$W$2:$AA$1918,2,FALSE) -> 143.98 | J61: =(SUMIFS(TUB!BJ:BJ,TUB!AU:AU,BMM!B61)+SUMIFS(TUB!BK:BK,TUB!AV:AV,BMM!B61)+SUMIFS(TUB!BL:BL,TUB!AW:AW,BMM!B61)+SUMIFS(EQUIP!CB:CB,EQUIP!BM:BM,BMM!B61)+SUMIFS(EQUIP!CC:CC,EQUIP!BN:BN,BMM!B61)+SUMIFS(EQUIP!CD:CD,EQUIP!BO:BO,BMM!B61)) -> 0 | L61: APL | M61: APLICAÇÃO
B62: 10/1440 | C62: 10 | D62: 1440 | E62: =VLOOKUP(B62,PREÇOS!$W$2:$AA$1918,5,FALSE) -> APLICAÇÃO SILICATO DE CÁLCIO 8''X38,1 | F62: 1 | G62: =VLOOKUP(B62,PREÇOS!$W$2:$AB$1918,6,FALSE) -> m | H62: 0 | I62: =VLOOKUP(B62,PREÇOS!$W$2:$AA$1918,2,FALSE) -> 150.89 | J62: =(SUMIFS(TUB!BJ:BJ,TUB!AU:AU,BMM!B62)+SUMIFS(TUB!BK:BK,TUB!AV:AV,BMM!B62)+SUMIFS(TUB!BL:BL,TUB!AW:AW,BMM!B62)+SUMIFS(EQUIP!CB:CB,EQUIP!BM:BM,BMM!B62)+SUMIFS(EQUIP!CC:CC,EQUIP!BN:BN,BMM!B62)+SUMIFS(EQUIP!CD:CD,EQUIP!BO:BO,BMM!B62)) -> 0 | L62: APL | M62: APLICAÇÃO
B63: 10/1450 | C63: 10 | D63: 1450 | E63: =VLOOKUP(B63,PREÇOS!$W$2:$AA$1918,5,FALSE) -> APLICAÇÃO SILICATO DE CÁLCIO 8''X50,8 | F63: 1 | G63: =VLOOKUP(B63,PREÇOS!$W$2:$AB$1918,6,FALSE) -> m | H63: 0 | I63: =VLOOKUP(B63,PREÇOS!$W$2:$AA$1918,2,FALSE) -> 166.7 | J63: =(SUMIFS(TUB!BJ:BJ,TUB!AU:AU,BMM!B63)+SUMIFS(TUB!BK:BK,TUB!AV:AV,BMM!B63)+SUMIFS(TUB!BL:BL,TUB!AW:AW,BMM!B63)+SUMIFS(EQUIP!CB:CB,EQUIP!BM:BM,BMM!B63)+SUMIFS(EQUIP!CC:CC,EQUIP!BN:BN,BMM!B63)+SUMIFS(EQUIP!CD:CD,EQUIP!BO:BO,BMM!B63)) -> 0 | L63: APL | M63: APLICAÇÃO
B64: 10/1460 | C64: 10 | D64: 1460 | E64: =VLOOKUP(B64,PREÇOS!$W$2:$AA$1918,5,FALSE) -> APLICAÇÃO SILICATO DE CÁLCIO 8''X63,5 | F64: 1 | G64: =VLOOKUP(B64,PREÇOS!$W$2:$AB$1918,6,FALSE) -> m | H64: 0 | I64: =VLOOKUP(B64,PREÇOS!$W$2:$AA$1918,2,FALSE) -> 168.24 | J64: =(SUMIFS(TUB!BJ:BJ,TUB!AU:AU,BMM!B64)+SUMIFS(TUB!BK:BK,TUB!AV:AV,BMM!B64)+SUMIFS(TUB!BL:BL,TUB!AW:AW,BMM!B64)+SUMIFS(EQUIP!CB:CB,EQUIP!BM:BM,BMM!B64)+SUMIFS(EQUIP!CC:CC,EQUIP!BN:BN,BMM!B64)+SUMIFS(EQUIP!CD:CD,EQUIP!BO:BO,BMM!B64)) -> 0 | L64: APL | M64: APLICAÇÃO
B65: 10/1470 | C65: 10 | D65: 1470 | E65: =VLOOKUP(B65,PREÇOS!$W$2:$AA$1918,5,FALSE) -> APLICAÇÃO SILICATO DE CÁLCIO 8''X76,3 | F65: 1 | G65: =VLOOKUP(B65,PREÇOS!$W$2:$AB$1918,6,FALSE) -> m | H65: 0 | I65: =VLOOKUP(B65,PREÇOS!$W$2:$AA$1918,2,FALSE) -> 169.79 | J65: =(SUMIFS(TUB!BJ:BJ,TUB!AU:AU,BMM!B65)+SUMIFS(TUB!BK:BK,TUB!AV:AV,BMM!B65)+SUMIFS(TUB!BL:BL,TUB!AW:AW,BMM!B65)+SUMIFS(EQUIP!CB:CB,EQUIP!BM:BM,BMM!B65)+SUMIFS(EQUIP!CC:CC,EQUIP!BN:BN,BMM!B65)+SUMIFS(EQUIP!CD:CD,EQUIP!BO:BO,BMM!B65)) -> 0 | L65: APL | M65: APLICAÇÃO
B66: 10/1480 | C66: 10 | D66: 1480 | E66: =VLOOKUP(B66,PREÇOS!$W$2:$AA$1918,5,FALSE) -> APLICAÇÃO SILICATO DE CÁLCIO 10''X25,4 | F66: 1 | G66: =VLOOKUP(B66,PREÇOS!$W$2:$AB$1918,6,FALSE) -> m | H66: 0 | I66: =VLOOKUP(B66,PREÇOS!$W$2:$AA$1918,2,FALSE) -> 174.25 | J66: =(SUMIFS(TUB!BJ:BJ,TUB!AU:AU,BMM!B66)+SUMIFS(TUB!BK:BK,TUB!AV:AV,BMM!B66)+SUMIFS(TUB!BL:BL,TUB!AW:AW,BMM!B66)+SUMIFS(EQUIP!CB:CB,EQUIP!BM:BM,BMM!B66)+SUMIFS(EQUIP!CC:CC,EQUIP!BN:BN,BMM!B66)+SUMIFS(EQUIP!CD:CD,EQUIP!BO:BO,BMM!B66)) -> 0 | L66: APL | M66: APLICAÇÃO
B67: 10/1490 | C67: 10 | D67: 1490 | E67: =VLOOKUP(B67,PREÇOS!$W$2:$AA$1918,5,FALSE) -> APLICAÇÃO SILICATO DE CÁLCIO 10''X38,1 | F67: 1 | G67: =VLOOKUP(B67,PREÇOS!$W$2:$AB$1918,6,FALSE) -> m | H67: 0 | I67: =VLOOKUP(B67,PREÇOS!$W$2:$AA$1918,2,FALSE) -> 189.49 | J67: =(SUMIFS(TUB!BJ:BJ,TUB!AU:AU,BMM!B67)+SUMIFS(TUB!BK:BK,TUB!AV:AV,BMM!B67)+SUMIFS(TUB!BL:BL,TUB!AW:AW,BMM!B67)+SUMIFS(EQUIP!CB:CB,EQUIP!BM:BM,BMM!B67)+SUMIFS(EQUIP!CC:CC,EQUIP!BN:BN,BMM!B67)+SUMIFS(EQUIP!CD:CD,EQUIP!BO:BO,BMM!B67)) -> 0 | L67: APL | M67: APLICAÇÃO
B68: 10/1500 | C68: 10 | D68: 1500 | E68: =VLOOKUP(B68,PREÇOS!$W$2:$AA$1918,5,FALSE) -> APLICAÇÃO SILICATO DE CÁLCIO 10''X50,8 | F68: 1 | G68: =VLOOKUP(B68,PREÇOS!$W$2:$AB$1918,6,FALSE) -> m | H68: 0 | I68: =VLOOKUP(B68,PREÇOS!$W$2:$AA$1918,2,FALSE) -> 199.11 | J68: =(SUMIFS(TUB!BJ:BJ,TUB!AU:AU,BMM!B68)+SUMIFS(TUB!BK:BK,TUB!AV:AV,BMM!B68)+SUMIFS(TUB!BL:BL,TUB!AW:AW,BMM!B68)+SUMIFS(EQUIP!CB:CB,EQUIP!BM:BM,BMM!B68)+SUMIFS(EQUIP!CC:CC,EQUIP!BN:BN,BMM!B68)+SUMIFS(EQUIP!CD:CD,EQUIP!BO:BO,BMM!B68)) -> 0 | L68: APL | M68: APLICAÇÃO
B69: 10/1510 | C69: 10 | D69: 1510 | E69: =VLOOKUP(B69,PREÇOS!$W$2:$AA$1918,5,FALSE) -> APLICAÇÃO SILICATO DE CÁLCIO 10''X63,5 | F69: 1 | G69: =VLOOKUP(B69,PREÇOS!$W$2:$AB$1918,6,FALSE) -> m | H69: 0 | I69: =VLOOKUP(B69,PREÇOS!$W$2:$AA$1918,2,FALSE) -> 203.25 | J69: =(SUMIFS(TUB!BJ:BJ,TUB!AU:AU,BMM!B69)+SUMIFS(TUB!BK:BK,TUB!AV:AV,BMM!B69)+SUMIFS(TUB!BL:BL,TUB!AW:AW,BMM!B69)+SUMIFS(EQUIP!CB:CB,EQUIP!BM:BM,BMM!B69)+SUMIFS(EQUIP!CC:CC,EQUIP!BN:BN,BMM!B69)+SUMIFS(EQUIP!CD:CD,EQUIP!BO:BO,BMM!B69)) -> 0 | L69: APL | M69: APLICAÇÃO
B70: 10/1520 | C70: 10 | D70: 1520 | E70: =VLOOKUP(B70,PREÇOS!$W$2:$AA$1918,5,FALSE) -> APLICAÇÃO SILICATO DE CÁLCIO 10''X76,3 | F70: 1 | G70: =VLOOKUP(B70,PREÇOS!$W$2:$AB$1918,6,FALSE) -> m | H70: 0 | I70: =VLOOKUP(B70,PREÇOS!$W$2:$AA$1918,2,FALSE) -> 210.16 | J70: =(SUMIFS(TUB!BJ:BJ,TUB!AU:AU,BMM!B70)+SUMIFS(TUB!BK:BK,TUB!AV:AV,BMM!B70)+SUMIFS(TUB!BL:BL,TUB!AW:AW,BMM!B70)+SUMIFS(EQUIP!CB:CB,EQUIP!BM:BM,BMM!B70)+SUMIFS(EQUIP!CC:CC,EQUIP!BN:BN,BMM!B70)+SUMIFS(EQUIP!CD:CD,EQUIP!BO:BO,BMM!B70)) -> 0 | L70: APL | M70: APLICAÇÃO
B71: 10/1530 | C71: 10 | D71: 1530 | E71: =VLOOKUP(B71,PREÇOS!$W$2:$AA$1918,5,FALSE) -> APLICAÇÃO SILICATO DE CÁLCIO 12''X25,4 | F71: 1 | G71: =VLOOKUP(B71,PREÇOS!$W$2:$AB$1918,6,FALSE) -> m | H71: 0 | I71: =VLOOKUP(B71,PREÇOS!$W$2:$AA$1918,2,FALSE) -> 206.04 | J71: =(SUMIFS(TUB!BJ:BJ,TUB!AU:AU,BMM!B71)+SUMIFS(TUB!BK:BK,TUB!AV:AV,BMM!B71)+SUMIFS(TUB!BL:BL,TUB!AW:AW,BMM!B71)+SUMIFS(EQUIP!CB:CB,EQUIP!BM:BM,BMM!B71)+SUMIFS(EQUIP!CC:CC,EQUIP!BN:BN,BMM!B71)+SUMIFS(EQUIP!CD:CD,EQUIP!BO:BO,BMM!B71)) -> 0 | L71: APL | M71: APLICAÇÃO
B72: 10/1540 | C72: 10 | D72: 1540 | E72: =VLOOKUP(B72,PREÇOS!$W$2:$AA$1918,5,FALSE) -> APLICAÇÃO SILICATO DE CÁLCIO 12''X38,1 | F72: 1 | G72: =VLOOKUP(B72,PREÇOS!$W$2:$AB$1918,6,FALSE) -> m | H72: 0 | I72: =VLOOKUP(B72,PREÇOS!$W$2:$AA$1918,2,FALSE) -> 219.06 | J72: =(SUMIFS(TUB!BJ:BJ,TUB!AU:AU,BMM!B72)+SUMIFS(TUB!BK:BK,TUB!AV:AV,BMM!B72)+SUMIFS(TUB!BL:BL,TUB!AW:AW,BMM!B72)+SUMIFS(EQUIP!CB:CB,EQUIP!BM:BM,BMM!B72)+SUMIFS(EQUIP!CC:CC,EQUIP!BN:BN,BMM!B72)+SUMIFS(EQUIP!CD:CD,EQUIP!BO:BO,BMM!B72)) -> 0 | L72: APL | M72: APLICAÇÃO
B73: 10/1550 | C73: 10 | D73: 1550 | E73: =VLOOKUP(B73,PREÇOS!$W$2:$AA$1918,5,FALSE) -> APLICAÇÃO SILICATO DE CÁLCIO 12''X50,8 | F73: 1 | G73: =VLOOKUP(B73,PREÇOS!$W$2:$AB$1918,6,FALSE) -> m | H73: 0 | I73: =VLOOKUP(B73,PREÇOS!$W$2:$AA$1918,2,FALSE) -> 228.68 | J73: =(SUMIFS(TUB!BJ:BJ,TUB!AU:AU,BMM!B73)+SUMIFS(TUB!BK:BK,TUB!AV:AV,BMM!B73)+SUMIFS(TUB!BL:BL,TUB!AW:AW,BMM!B73)+SUMIFS(EQUIP!CB:CB,EQUIP!BM:BM,BMM!B73)+SUMIFS(EQUIP!CC:CC,EQUIP!BN:BN,BMM!B73)+SUMIFS(EQUIP!CD:CD,EQUIP!BO:BO,BMM!B73)) -> 0 | L73: APL | M73: APLICAÇÃO
B74: 10/1560 | C74: 10 | D74: 1560 | E74: =VLOOKUP(B74,PREÇOS!$W$2:$AA$1918,5,FALSE) -> APLICAÇÃO SILICATO DE CÁLCIO 12''X63,5 | F74: 1 | G74: =VLOOKUP(B74,PREÇOS!$W$2:$AB$1918,6,FALSE) -> m | H74: 0 | I74: =VLOOKUP(B74,PREÇOS!$W$2:$AA$1918,2,FALSE) -> 235.6 | J74: =(SUMIFS(TUB!BJ:BJ,TUB!AU:AU,BMM!B74)+SUMIFS(TUB!BK:BK,TUB!AV:AV,BMM!B74)+SUMIFS(TUB!BL:BL,TUB!AW:AW,BMM!B74)+SUMIFS(EQUIP!CB:CB,EQUIP!BM:BM,BMM!B74)+SUMIFS(EQUIP!CC:CC,EQUIP!BN:BN,BMM!B74)+SUMIFS(EQUIP!CD:CD,EQUIP!BO:BO,BMM!B74)) -> 0 | L74: APL | M74: APLICAÇÃO
B75: 10/1570 | C75: 10 | D75: 1570 | E75: =VLOOKUP(B75,PREÇOS!$W$2:$AA$1918,5,FALSE) -> APLICAÇÃO SILICATO DE CÁLCIO 12''X76,3 | F75: 1 | G75: =VLOOKUP(B75,PREÇOS!$W$2:$AB$1918,6,FALSE) -> m | H75: 0 | I75: =VLOOKUP(B75,PREÇOS!$W$2:$AA$1918,2,FALSE) -> 242.51 | J75: =(SUMIFS(TUB!BJ:BJ,TUB!AU:AU,BMM!B75)+SUMIFS(TUB!BK:BK,TUB!AV:AV,BMM!B75)+SUMIFS(TUB!BL:BL,TUB!AW:AW,BMM!B75)+SUMIFS(EQUIP!CB:CB,EQUIP!BM:BM,BMM!B75)+SUMIFS(EQUIP!CC:CC,EQUIP!BN:BN,BMM!B75)+SUMIFS(EQUIP!CD:CD,EQUIP!BO:BO,BMM!B75)) -> 0 | L75: APL | M75: APLICAÇÃO
B76: 10/1580 | C76: 10 | D76: 1580 | E76: =VLOOKUP(B76,PREÇOS!$W$2:$AA$1918,5,FALSE) -> APLICAÇÃO SILICATO DE CÁLCIO 14''X25,4 | F76: 1 | G76: =VLOOKUP(B76,PREÇOS!$W$2:$AB$1918,6,FALSE) -> m | H76: 0 | I76: =VLOOKUP(B76,PREÇOS!$W$2:$AA$1918,2,FALSE) -> 222.51 | J76: =(SUMIFS(TUB!BJ:BJ,TUB!AU:AU,BMM!B76)+SUMIFS(TUB!BK:BK,TUB!AV:AV,BMM!B76)+SUMIFS(TUB!BL:BL,TUB!AW:AW,BMM!B76)+SUMIFS(EQUIP!CB:CB,EQUIP!BM:BM,BMM!B76)+SUMIFS(EQUIP!CC:CC,EQUIP!BN:BN,BMM!B76)+SUMIFS(EQUIP!CD:CD,EQUIP!BO:BO,BMM!B76)) -> 0 | L76: APL | M76: APLICAÇÃO
B77: 10/1590 | C77: 10 | D77: 1590 | E77: =VLOOKUP(B77,PREÇOS!$W$2:$AA$1918,5,FALSE) -> APLICAÇÃO SILICATO DE CÁLCIO 14''X38,1 | F77: 1 | G77: =VLOOKUP(B77,PREÇOS!$W$2:$AB$1918,6,FALSE) -> m | H77: 0 | I77: =VLOOKUP(B77,PREÇOS!$W$2:$AA$1918,2,FALSE) -> 233.5 | J77: =(SUMIFS(TUB!BJ:BJ,TUB!AU:AU,BMM!B77)+SUMIFS(TUB!BK:BK,TUB!AV:AV,BMM!B77)+SUMIFS(TUB!BL:BL,TUB!AW:AW,BMM!B77)+SUMIFS(EQUIP!CB:CB,EQUIP!BM:BM,BMM!B77)+SUMIFS(EQUIP!CC:CC,EQUIP!BN:BN,BMM!B77)+SUMIFS(EQUIP!CD:CD,EQUIP!BO:BO,BMM!B77)) -> 0 | L77: APL | M77: APLICAÇÃO
B78: 10/1600 | C78: 10 | D78: 1600 | E78: =VLOOKUP(B78,PREÇOS!$W$2:$AA$1918,5,FALSE) -> APLICAÇÃO SILICATO DE CÁLCIO 14''X50,8 | F78: 1 | G78: =VLOOKUP(B78,PREÇOS!$W$2:$AB$1918,6,FALSE) -> m | H78: 0 | I78: =VLOOKUP(B78,PREÇOS!$W$2:$AA$1918,2,FALSE) -> 243.5 | J78: =(SUMIFS(TUB!BJ:BJ,TUB!AU:AU,BMM!B78)+SUMIFS(TUB!BK:BK,TUB!AV:AV,BMM!B78)+SUMIFS(TUB!BL:BL,TUB!AW:AW,BMM!B78)+SUMIFS(EQUIP!CB:CB,EQUIP!BM:BM,BMM!B78)+SUMIFS(EQUIP!CC:CC,EQUIP!BN:BN,BMM!B78)+SUMIFS(EQUIP!CD:CD,EQUIP!BO:BO,BMM!B78)) -> 0 | L78: APL | M78: APLICAÇÃO
B79: 10/1610 | C79: 10 | D79: 1610 | E79: =VLOOKUP(B79,PREÇOS!$W$2:$AA$1918,5,FALSE) -> APLICAÇÃO SILICATO DE CÁLCIO 14''X63,5 | F79: 1 | G79: =VLOOKUP(B79,PREÇOS!$W$2:$AB$1918,6,FALSE) -> m | H79: 0 | I79: =VLOOKUP(B79,PREÇOS!$W$2:$AA$1918,2,FALSE) -> 262.77 | J79: =(SUMIFS(TUB!BJ:BJ,TUB!AU:AU,BMM!B79)+SUMIFS(TUB!BK:BK,TUB!AV:AV,BMM!B79)+SUMIFS(TUB!BL:BL,TUB!AW:AW,BMM!B79)+SUMIFS(EQUIP!CB:CB,EQUIP!BM:BM,BMM!B79)+SUMIFS(EQUIP!CC:CC,EQUIP!BN:BN,BMM!B79)+SUMIFS(EQUIP!CD:CD,EQUIP!BO:BO,BMM!B79)) -> 0 | L79: APL | M79: APLICAÇÃO
B80: 10/1620 | C80: 10 | D80: 1620 | E80: =VLOOKUP(B80,PREÇOS!$W$2:$AA$1918,5,FALSE) -> APLICAÇÃO SILICATO DE CÁLCIO 14''X76,3 | F80: 1 | G80: =VLOOKUP(B80,PREÇOS!$W$2:$AB$1918,6,FALSE) -> m | H80: 0 | I80: =VLOOKUP(B80,PREÇOS!$W$2:$AA$1918,2,FALSE) -> 269.68 | J80: =(SUMIFS(TUB!BJ:BJ,TUB!AU:AU,BMM!B80)+SUMIFS(TUB!BK:BK,TUB!AV:AV,BMM!B80)+SUMIFS(TUB!BL:BL,TUB!AW:AW,BMM!B80)+SUMIFS(EQUIP!CB:CB,EQUIP!BM:BM,BMM!B80)+SUMIFS(EQUIP!CC:CC,EQUIP!BN:BN,BMM!B80)+SUMIFS(EQUIP!CD:CD,EQUIP!BO:BO,BMM!B80)) -> 0 | L80: APL | M80: APLICAÇÃO
B81: 10/1630 | C81: 10 | D81: 1630 | E81: =VLOOKUP(B81,PREÇOS!$W$2:$AA$1918,5,FALSE) -> APLICAÇÃO SILICATO DE CÁLCIO 16''X38,1 | F81: 1 | G81: =VLOOKUP(B81,PREÇOS!$W$2:$AB$1918,6,FALSE) -> m | H81: 0 | I81: =VLOOKUP(B81,PREÇOS!$W$2:$AA$1918,2,FALSE) -> 256.59 | J81: =(SUMIFS(TUB!BJ:BJ,TUB!AU:AU,BMM!B81)+SUMIFS(TUB!BK:BK,TUB!AV:AV,BMM!B81)+SUMIFS(TUB!BL:BL,TUB!AW:AW,BMM!B81)+SUMIFS(EQUIP!CB:CB,EQUIP!BM:BM,BMM!B81)+SUMIFS(EQUIP!CC:CC,EQUIP!BN:BN,BMM!B81)+SUMIFS(EQUIP!CD:CD,EQUIP!BO:BO,BMM!B81)) -> 0 | L81: APL | M81: APLICAÇÃO
B82: 10/1640 | C82: 10 | D82: 1640 | E82: =VLOOKUP(B82,PREÇOS!$W$2:$AA$1918,5,FALSE) -> APLICAÇÃO SILICATO DE CÁLCIO 16''X50,8 | F82: 1 | G82: =VLOOKUP(B82,PREÇOS!$W$2:$AB$1918,6,FALSE) -> m | H82: 0 | I82: =VLOOKUP(B82,PREÇOS!$W$2:$AA$1918,2,FALSE) -> 269.68 | J82: =(SUMIFS(TUB!BJ:BJ,TUB!AU:AU,BMM!B82)+SUMIFS(TUB!BK:BK,TUB!AV:AV,BMM!B82)+SUMIFS(TUB!BL:BL,TUB!AW:AW,BMM!B82)+SUMIFS(EQUIP!CB:CB,EQUIP!BM:BM,BMM!B82)+SUMIFS(EQUIP!CC:CC,EQUIP!BN:BN,BMM!B82)+SUMIFS(EQUIP!CD:CD,EQUIP!BO:BO,BMM!B82)) -> 0 | L82: APL | M82: APLICAÇÃO
B83: 10/1650 | C83: 10 | D83: 1650 | E83: =VLOOKUP(B83,PREÇOS!$W$2:$AA$1918,5,FALSE) -> APLICAÇÃO SILICATO DE CÁLCIO 16''X63,5 | F83: 1 | G83: =VLOOKUP(B83,PREÇOS!$W$2:$AB$1918,6,FALSE) -> m | H83: 0 | I83: =VLOOKUP(B83,PREÇOS!$W$2:$AA$1918,2,FALSE) -> 276.6 | J83: =(SUMIFS(TUB!BJ:BJ,TUB!AU:AU,BMM!B83)+SUMIFS(TUB!BK:BK,TUB!AV:AV,BMM!B83)+SUMIFS(TUB!BL:BL,TUB!AW:AW,BMM!B83)+SUMIFS(EQUIP!CB:CB,EQUIP!BM:BM,BMM!B83)+SUMIFS(EQUIP!CC:CC,EQUIP!BN:BN,BMM!B83)+SUMIFS(EQUIP!CD:CD,EQUIP!BO:BO,BMM!B83)) -> 0 | L83: APL | M83: APLICAÇÃO
B84: 10/1660 | C84: 10 | D84: 1660 | E84: =VLOOKUP(B84,PREÇOS!$W$2:$AA$1918,5,FALSE) -> APLICAÇÃO SILICATO DE CÁLCIO 16''X76,3 | F84: 1 | G84: =VLOOKUP(B84,PREÇOS!$W$2:$AB$1918,6,FALSE) -> m | H84: =J84/I84 -> 0 | I84: =VLOOKUP(B84,PREÇOS!$W$2:$AA$1918,2,FALSE) -> 295.86 | J84: =(SUMIFS(TUB!BJ:BJ,TUB!AU:AU,BMM!B84)+SUMIFS(TUB!BK:BK,TUB!AV:AV,BMM!B84)+SUMIFS(TUB!BL:BL,TUB!AW:AW,BMM!B84)+SUMIFS(EQUIP!CB:CB,EQUIP!BM:BM,BMM!B84)+SUMIFS(EQUIP!CC:CC,EQUIP!BN:BN,BMM!B84)+SUMIFS(EQUIP!CD:CD,EQUIP!BO:BO,BMM!B84)) -> 0 | L84: APL | M84: APLICAÇÃO
B85: 10/1670 | C85: 10 | D85: 1670 | E85: =VLOOKUP(B85,PREÇOS!$W$2:$AA$1918,5,FALSE) -> APLICAÇÃO SILICATO DE CÁLCIO 18''X38,1 | F85: 1 | G85: =VLOOKUP(B85,PREÇOS!$W$2:$AB$1918,6,FALSE) -> m | H85: 0 | I85: =VLOOKUP(B85,PREÇOS!$W$2:$AA$1918,2,FALSE) -> 259.31 | J85: =(SUMIFS(TUB!BJ:BJ,TUB!AU:AU,BMM!B85)+SUMIFS(TUB!BK:BK,TUB!AV:AV,BMM!B85)+SUMIFS(TUB!BL:BL,TUB!AW:AW,BMM!B85)+SUMIFS(EQUIP!CB:CB,EQUIP!BM:BM,BMM!B85)+SUMIFS(EQUIP!CC:CC,EQUIP!BN:BN,BMM!B85)+SUMIFS(EQUIP!CD:CD,EQUIP!BO:BO,BMM!B85)) -> 0 | L85: APL | M85: APLICAÇÃO
B86: 10/1680 | C86: 10 | D86: 1680 | E86: =VLOOKUP(B86,PREÇOS!$W$2:$AA$1918,5,FALSE) -> APLICAÇÃO SILICATO DE CÁLCIO 18''X50,8 | F86: 1 | G86: =VLOOKUP(B86,PREÇOS!$W$2:$AB$1918,6,FALSE) -> m | H86: 0 | I86: =VLOOKUP(B86,PREÇOS!$W$2:$AA$1918,2,FALSE) -> 271.66 | J86: =(SUMIFS(TUB!BJ:BJ,TUB!AU:AU,BMM!B86)+SUMIFS(TUB!BK:BK,TUB!AV:AV,BMM!B86)+SUMIFS(TUB!BL:BL,TUB!AW:AW,BMM!B86)+SUMIFS(EQUIP!CB:CB,EQUIP!BM:BM,BMM!B86)+SUMIFS(EQUIP!CC:CC,EQUIP!BN:BN,BMM!B86)+SUMIFS(EQUIP!CD:CD,EQUIP!BO:BO,BMM!B86)) -> 0 | L86: APL | M86: APLICAÇÃO
B87: 10/1690 | C87: 10 | D87: 1690 | E87: =VLOOKUP(B87,PREÇOS!$W$2:$AA$1918,5,FALSE) -> APLICAÇÃO SILICATO DE CÁLCIO 18''X63,5 | F87: 1 | G87: =VLOOKUP(B87,PREÇOS!$W$2:$AB$1918,6,FALSE) -> m | H87: 0 | I87: =VLOOKUP(B87,PREÇOS!$W$2:$AA$1918,2,FALSE) -> 274.74 | J87: =(SUMIFS(TUB!BJ:BJ,TUB!AU:AU,BMM!B87)+SUMIFS(TUB!BK:BK,TUB!AV:AV,BMM!B87)+SUMIFS(TUB!BL:BL,TUB!AW:AW,BMM!B87)+SUMIFS(EQUIP!CB:CB,EQUIP!BM:BM,BMM!B87)+SUMIFS(EQUIP!CC:CC,EQUIP!BN:BN,BMM!B87)+SUMIFS(EQUIP!CD:CD,EQUIP!BO:BO,BMM!B87)) -> 0 | L87: APL | M87: APLICAÇÃO
B88: 10/1700 | C88: 10 | D88: 1700 | E88: =VLOOKUP(B88,PREÇOS!$W$2:$AA$1918,5,FALSE) -> APLICAÇÃO SILICATO DE CÁLCIO 18''X76,3 | F88: 1 | G88: =VLOOKUP(B88,PREÇOS!$W$2:$AB$1918,6,FALSE) -> m | H88: 0 | I88: =VLOOKUP(B88,PREÇOS!$W$2:$AA$1918,2,FALSE) -> 275.36 | J88: =(SUMIFS(TUB!BJ:BJ,TUB!AU:AU,BMM!B88)+SUMIFS(TUB!BK:BK,TUB!AV:AV,BMM!B88)+SUMIFS(TUB!BL:BL,TUB!AW:AW,BMM!B88)+SUMIFS(EQUIP!CB:CB,EQUIP!BM:BM,BMM!B88)+SUMIFS(EQUIP!CC:CC,EQUIP!BN:BN,BMM!B88)+SUMIFS(EQUIP!CD:CD,EQUIP!BO:BO,BMM!B88)) -> 0 | L88: APL | M88: APLICAÇÃO
B89: 10/1710 | C89: 10 | D89: 1710 | E89: =VLOOKUP(B89,PREÇOS!$W$2:$AA$1918,5,FALSE) -> APLICAÇÃO SILICATO DE CÁLCIO 20''X38,1 | F89: 1 | G89: =VLOOKUP(B89,PREÇOS!$W$2:$AB$1918,6,FALSE) -> m | H89: 0 | I89: =VLOOKUP(B89,PREÇOS!$W$2:$AA$1918,2,FALSE) -> 277.83 | J89: =(SUMIFS(TUB!BJ:BJ,TUB!AU:AU,BMM!B89)+SUMIFS(TUB!BK:BK,TUB!AV:AV,BMM!B89)+SUMIFS(TUB!BL:BL,TUB!AW:AW,BMM!B89)+SUMIFS(EQUIP!CB:CB,EQUIP!BM:BM,BMM!B89)+SUMIFS(EQUIP!CC:CC,EQUIP!BN:BN,BMM!B89)+SUMIFS(EQUIP!CD:CD,EQUIP!BO:BO,BMM!B89)) -> 0 | L89: APL | M89: APLICAÇÃO
B90: 10/1720 | C90: 10 | D90: 1720 | E90: =VLOOKUP(B90,PREÇOS!$W$2:$AA$1918,5,FALSE) -> APLICAÇÃO SILICATO DE CÁLCIO 20''X50,8 | F90: 1 | G90: =VLOOKUP(B90,PREÇOS!$W$2:$AB$1918,6,FALSE) -> m | H90: 0 | I90: =VLOOKUP(B90,PREÇOS!$W$2:$AA$1918,2,FALSE) -> 296.35 | J90: =(SUMIFS(TUB!BJ:BJ,TUB!AU:AU,BMM!B90)+SUMIFS(TUB!BK:BK,TUB!AV:AV,BMM!B90)+SUMIFS(TUB!BL:BL,TUB!AW:AW,BMM!B90)+SUMIFS(EQUIP!CB:CB,EQUIP!BM:BM,BMM!B90)+SUMIFS(EQUIP!CC:CC,EQUIP!BN:BN,BMM!B90)+SUMIFS(EQUIP!CD:CD,EQUIP!BO:BO,BMM!B90)) -> 0 | L90: APL | M90: APLICAÇÃO
B91: 10/1730 | C91: 10 | D91: 1730 | E91: =VLOOKUP(B91,PREÇOS!$W$2:$AA$1918,5,FALSE) -> APLICAÇÃO SILICATO DE CÁLCIO 20''X63,5 | F91: 1 | G91: =VLOOKUP(B91,PREÇOS!$W$2:$AB$1918,6,FALSE) -> m | H91: 0 | I91: =VLOOKUP(B91,PREÇOS!$W$2:$AA$1918,2,FALSE) -> 299.44 | J91: =(SUMIFS(TUB!BJ:BJ,TUB!AU:AU,BMM!B91)+SUMIFS(TUB!BK:BK,TUB!AV:AV,BMM!B91)+SUMIFS(TUB!BL:BL,TUB!AW:AW,BMM!B91)+SUMIFS(EQUIP!CB:CB,EQUIP!BM:BM,BMM!B91)+SUMIFS(EQUIP!CC:CC,EQUIP!BN:BN,BMM!B91)+SUMIFS(EQUIP!CD:CD,EQUIP!BO:BO,BMM!B91)) -> 0 | L91: APL | M91: APLICAÇÃO
B92: 10/1740 | C92: 10 | D92: 1740 | E92: =VLOOKUP(B92,PREÇOS!$W$2:$AA$1918,5,FALSE) -> APLICAÇÃO SILICATO DE CÁLCIO 20''X76,3 | F92: 1 | G92: =VLOOKUP(B92,PREÇOS!$W$2:$AB$1918,6,FALSE) -> m | H92: 0 | I92: =VLOOKUP(B92,PREÇOS!$W$2:$AA$1918,2,FALSE) -> 302.53 | J92: =(SUMIFS(TUB!BJ:BJ,TUB!AU:AU,BMM!B92)+SUMIFS(TUB!BK:BK,TUB!AV:AV,BMM!B92)+SUMIFS(TUB!BL:BL,TUB!AW:AW,BMM!B92)+SUMIFS(EQUIP!CB:CB,EQUIP!BM:BM,BMM!B92)+SUMIFS(EQUIP!CC:CC,EQUIP!BN:BN,BMM!B92)+SUMIFS(EQUIP!CD:CD,EQUIP!BO:BO,BMM!B92)) -> 0 | L92: APL | M92: APLICAÇÃO
B93: 10/1750 | C93: 10 | D93: 1750 | E93: =VLOOKUP(B93,PREÇOS!$W$2:$AA$1918,5,FALSE) -> APLICAÇÃO SILICATO DE CÁLCIO 22''X38,1 | F93: 1 | G93: =VLOOKUP(B93,PREÇOS!$W$2:$AB$1918,6,FALSE) -> m | H93: 0 | I93: =VLOOKUP(B93,PREÇOS!$W$2:$AA$1918,2,FALSE) -> 311.79 | J93: =(SUMIFS(TUB!BJ:BJ,TUB!AU:AU,BMM!B93)+SUMIFS(TUB!BK:BK,TUB!AV:AV,BMM!B93)+SUMIFS(TUB!BL:BL,TUB!AW:AW,BMM!B93)+SUMIFS(EQUIP!CB:CB,EQUIP!BM:BM,BMM!B93)+SUMIFS(EQUIP!CC:CC,EQUIP!BN:BN,BMM!B93)+SUMIFS(EQUIP!CD:CD,EQUIP!BO:BO,BMM!B93)) -> 0 | L93: APL | M93: APLICAÇÃO
B94: 10/1760 | C94: 10 | D94: 1760 | E94: =VLOOKUP(B94,PREÇOS!$W$2:$AA$1918,5,FALSE) -> APLICAÇÃO SILICATO DE CÁLCIO 22''X50,8 | F94: 1 | G94: =VLOOKUP(B94,PREÇOS!$W$2:$AB$1918,6,FALSE) -> m | H94: 0 | I94: =VLOOKUP(B94,PREÇOS!$W$2:$AA$1918,2,FALSE) -> 327.22 | J94: =(SUMIFS(TUB!BJ:BJ,TUB!AU:AU,BMM!B94)+SUMIFS(TUB!BK:BK,TUB!AV:AV,BMM!B94)+SUMIFS(TUB!BL:BL,TUB!AW:AW,BMM!B94)+SUMIFS(EQUIP!CB:CB,EQUIP!BM:BM,BMM!B94)+SUMIFS(EQUIP!CC:CC,EQUIP!BN:BN,BMM!B94)+SUMIFS(EQUIP!CD:CD,EQUIP!BO:BO,BMM!B94)) -> 0 | L94: APL | M94: APLICAÇÃO
B95: 10/1770 | C95: 10 | D95: 1770 | E95: =VLOOKUP(B95,PREÇOS!$W$2:$AA$1918,5,FALSE) -> APLICAÇÃO SILICATO DE CÁLCIO 22''X63,5 | F95: 1 | G95: =VLOOKUP(B95,PREÇOS!$W$2:$AB$1918,6,FALSE) -> m | H95: 0 | I95: =VLOOKUP(B95,PREÇOS!$W$2:$AA$1918,2,FALSE) -> 299.44 | J95: =(SUMIFS(TUB!BJ:BJ,TUB!AU:AU,BMM!B95)+SUMIFS(TUB!BK:BK,TUB!AV:AV,BMM!B95)+SUMIFS(TUB!BL:BL,TUB!AW:AW,BMM!B95)+SUMIFS(EQUIP!CB:CB,EQUIP!BM:BM,BMM!B95)+SUMIFS(EQUIP!CC:CC,EQUIP!BN:BN,BMM!B95)+SUMIFS(EQUIP!CD:CD,EQUIP!BO:BO,BMM!B95)) -> 0 | L95: APL | M95: APLICAÇÃO
B96: 10/1780 | C96: 10 | D96: 1780 | E96: =VLOOKUP(B96,PREÇOS!$W$2:$AA$1918,5,FALSE) -> APLICAÇÃO SILICATO DE CÁLCIO 22''X76,3 | F96: 1 | G96: =VLOOKUP(B96,PREÇOS!$W$2:$AB$1918,6,FALSE) -> m | H96: 0 | I96: =VLOOKUP(B96,PREÇOS!$W$2:$AA$1918,2,FALSE) -> 309.93 | J96: =(SUMIFS(TUB!BJ:BJ,TUB!AU:AU,BMM!B96)+SUMIFS(TUB!BK:BK,TUB!AV:AV,BMM!B96)+SUMIFS(TUB!BL:BL,TUB!AW:AW,BMM!B96)+SUMIFS(EQUIP!CB:CB,EQUIP!BM:BM,BMM!B96)+SUMIFS(EQUIP!CC:CC,EQUIP!BN:BN,BMM!B96)+SUMIFS(EQUIP!CD:CD,EQUIP!BO:BO,BMM!B96)) -> 0 | L96: APL | M96: APLICAÇÃO
B97: 10/1790 | C97: 10 | D97: 1790 | E97: =VLOOKUP(B97,PREÇOS!$W$2:$AA$1918,5,FALSE) -> APLICAÇÃO SILICATO DE CÁLCIO 24''X38,1 | F97: 1 | G97: =VLOOKUP(B97,PREÇOS!$W$2:$AB$1918,6,FALSE) -> m | H97: 0 | I97: =VLOOKUP(B97,PREÇOS!$W$2:$AA$1918,2,FALSE) -> 336.61 | J97: =(SUMIFS(TUB!BJ:BJ,TUB!AU:AU,BMM!B97)+SUMIFS(TUB!BK:BK,TUB!AV:AV,BMM!B97)+SUMIFS(TUB!BL:BL,TUB!AW:AW,BMM!B97)+SUMIFS(EQUIP!CB:CB,EQUIP!BM:BM,BMM!B97)+SUMIFS(EQUIP!CC:CC,EQUIP!BN:BN,BMM!B97)+SUMIFS(EQUIP!CD:CD,EQUIP!BO:BO,BMM!B97)) -> 0 | L97: APL | M97: APLICAÇÃO
B98: 10/1800 | C98: 10 | D98: 1800 | E98: =VLOOKUP(B98,PREÇOS!$W$2:$AA$1918,5,FALSE) -> APLICAÇÃO SILICATO DE CÁLCIO 24''X50,8 | F98: 1 | G98: =VLOOKUP(B98,PREÇOS!$W$2:$AB$1918,6,FALSE) -> m | H98: 0 | I98: =VLOOKUP(B98,PREÇOS!$W$2:$AA$1918,2,FALSE) -> 337.35 | J98: =(SUMIFS(TUB!BJ:BJ,TUB!AU:AU,BMM!B98)+SUMIFS(TUB!BK:BK,TUB!AV:AV,BMM!B98)+SUMIFS(TUB!BL:BL,TUB!AW:AW,BMM!B98)+SUMIFS(EQUIP!CB:CB,EQUIP!BM:BM,BMM!B98)+SUMIFS(EQUIP!CC:CC,EQUIP!BN:BN,BMM!B98)+SUMIFS(EQUIP!CD:CD,EQUIP!BO:BO,BMM!B98)) -> 0 | L98: APL | M98: APLICAÇÃO
B99: 10/1810 | C99: 10 | D99: 1810 | E99: =VLOOKUP(B99,PREÇOS!$W$2:$AA$1918,5,FALSE) -> APLICAÇÃO SILICATO DE CÁLCIO 24''X63,5 | F99: 1 | G99: =VLOOKUP(B99,PREÇOS!$W$2:$AB$1918,6,FALSE) -> m | H99: 0 | I99: =VLOOKUP(B99,PREÇOS!$W$2:$AA$1918,2,FALSE) -> 344.26 | J99: =(SUMIFS(TUB!BJ:BJ,TUB!AU:AU,BMM!B99)+SUMIFS(TUB!BK:BK,TUB!AV:AV,BMM!B99)+SUMIFS(TUB!BL:BL,TUB!AW:AW,BMM!B99)+SUMIFS(EQUIP!CB:CB,EQUIP!BM:BM,BMM!B99)+SUMIFS(EQUIP!CC:CC,EQUIP!BN:BN,BMM!B99)+SUMIFS(EQUIP!CD:CD,EQUIP!BO:BO,BMM!B99)) -> 0 | L99: APL | M99: APLICAÇÃO
B100: 10/1820 | C100: 10 | D100: 1820 | E100: =VLOOKUP(B100,PREÇOS!$W$2:$AA$1918,5,FALSE) -> APLICAÇÃO SILICATO DE CÁLCIO 24''X76,3 | F100: 1 | G100: =VLOOKUP(B100,PREÇOS!$W$2:$AB$1918,6,FALSE) -> m | H100: 0 | I100: =VLOOKUP(B100,PREÇOS!$W$2:$AA$1918,2,FALSE) -> 357.35 | J100: =(SUMIFS(TUB!BJ:BJ,TUB!AU:AU,BMM!B100)+SUMIFS(TUB!BK:BK,TUB!AV:AV,BMM!B100)+SUMIFS(TUB!BL:BL,TUB!AW:AW,BMM!B100)+SUMIFS(EQUIP!CB:CB,EQUIP!BM:BM,BMM!B100)+SUMIFS(EQUIP!CC:CC,EQUIP!BN:BN,BMM!B100)+SUMIFS(EQUIP!CD:CD,EQUIP!BO:BO,BMM!B100)) -> 0 | L100: APL | M100: APLICAÇÃO
B101: 10/1830 | C101: 10 | D101: 1830 | E101: =VLOOKUP(B101,PREÇOS!$W$2:$AA$1918,5,FALSE) -> APLICAÇÃO SILICATO DE CÁLCIO 26''X38,1 | F101: 1 | G101: =VLOOKUP(B101,PREÇOS!$W$2:$AB$1918,6,FALSE) -> m | H101: 0 | I101: =VLOOKUP(B101,PREÇOS!$W$2:$AA$1918,2,FALSE) -> 350.44 | J101: =(SUMIFS(TUB!BJ:BJ,TUB!AU:AU,BMM!B101)+SUMIFS(TUB!BK:BK,TUB!AV:AV,BMM!B101)+SUMIFS(TUB!BL:BL,TUB!AW:AW,BMM!B101)+SUMIFS(EQUIP!CB:CB,EQUIP!BM:BM,BMM!B101)+SUMIFS(EQUIP!CC:CC,EQUIP!BN:BN,BMM!B101)+SUMIFS(EQUIP!CD:CD,EQUIP!BO:BO,BMM!B101)) -> 0 | L101: APL | M101: APLICAÇÃO
B102: 10/1840 | C102: 10 | D102: 1840 | E102: =VLOOKUP(B102,PREÇOS!$W$2:$AA$1918,5,FALSE) -> APLICAÇÃO SILICATO DE CÁLCIO 26''X50,8 | F102: 1 | G102: =VLOOKUP(B102,PREÇOS!$W$2:$AB$1918,6,FALSE) -> m | H102: 0 | I102: =VLOOKUP(B102,PREÇOS!$W$2:$AA$1918,2,FALSE) -> 357.97 | J102: =(SUMIFS(TUB!BJ:BJ,TUB!AU:AU,BMM!B102)+SUMIFS(TUB!BK:BK,TUB!AV:AV,BMM!B102)+SUMIFS(TUB!BL:BL,TUB!AW:AW,BMM!B102)+SUMIFS(EQUIP!CB:CB,EQUIP!BM:BM,BMM!B102)+SUMIFS(EQUIP!CC:CC,EQUIP!BN:BN,BMM!B102)+SUMIFS(EQUIP!CD:CD,EQUIP!BO:BO,BMM!B102)) -> 0 | L102: APL | M102: APLICAÇÃO
B103: 10/1850 | C103: 10 | D103: 1850 | E103: =VLOOKUP(B103,PREÇOS!$W$2:$AA$1918,5,FALSE) -> APLICAÇÃO SILICATO DE CÁLCIO 26''X63,5 | F103: 1 | G103: =VLOOKUP(B103,PREÇOS!$W$2:$AB$1918,6,FALSE) -> m | H103: 0 | I103: =VLOOKUP(B103,PREÇOS!$W$2:$AA$1918,2,FALSE) -> 365.5 | J103: =(SUMIFS(TUB!BJ:BJ,TUB!AU:AU,BMM!B103)+SUMIFS(TUB!BK:BK,TUB!AV:AV,BMM!B103)+SUMIFS(TUB!BL:BL,TUB!AW:AW,BMM!B103)+SUMIFS(EQUIP!CB:CB,EQUIP!BM:BM,BMM!B103)+SUMIFS(EQUIP!CC:CC,EQUIP!BN:BN,BMM!B103)+SUMIFS(EQUIP!CD:CD,EQUIP!BO:BO,BMM!B103)) -> 0 | L103: APL | M103: APLICAÇÃO
B104: 10/1860 | C104: 10 | D104: 1860 | E104: =VLOOKUP(B104,PREÇOS!$W$2:$AA$1918,5,FALSE) -> APLICAÇÃO SILICATO DE CÁLCIO 26''X76,3 | F104: 1 | G104: =VLOOKUP(B104,PREÇOS!$W$2:$AB$1918,6,FALSE) -> m | H104: 0 | I104: =VLOOKUP(B104,PREÇOS!$W$2:$AA$1918,2,FALSE) -> 377.35 | J104: =(SUMIFS(TUB!BJ:BJ,TUB!AU:AU,BMM!B104)+SUMIFS(TUB!BK:BK,TUB!AV:AV,BMM!B104)+SUMIFS(TUB!BL:BL,TUB!AW:AW,BMM!B104)+SUMIFS(EQUIP!CB:CB,EQUIP!BM:BM,BMM!B104)+SUMIFS(EQUIP!CC:CC,EQUIP!BN:BN,BMM!B104)+SUMIFS(EQUIP!CD:CD,EQUIP!BO:BO,BMM!B104)) -> 0 | L104: APL | M104: APLICAÇÃO
B105: 10/1870 | C105: 10 | D105: 1870 | E105: =VLOOKUP(B105,PREÇOS!$W$2:$AA$1918,5,FALSE) -> APLICAÇÃO SILICATO DE CÁLCIO 30''X38,1 | F105: 1 | G105: =VLOOKUP(B105,PREÇOS!$W$2:$AB$1918,6,FALSE) -> m | H105: 0 | I105: =VLOOKUP(B105,PREÇOS!$W$2:$AA$1918,2,FALSE) -> 384.27 | J105: =(SUMIFS(TUB!BJ:BJ,TUB!AU:AU,BMM!B105)+SUMIFS(TUB!BK:BK,TUB!AV:AV,BMM!B105)+SUMIFS(TUB!BL:BL,TUB!AW:AW,BMM!B105)+SUMIFS(EQUIP!CB:CB,EQUIP!BM:BM,BMM!B105)+SUMIFS(EQUIP!CC:CC,EQUIP!BN:BN,BMM!B105)+SUMIFS(EQUIP!CD:CD,EQUIP!BO:BO,BMM!B105)) -> 0 | L105: APL | M105: APLICAÇÃO
B106: 10/1880 | C106: 10 | D106: 1880 | E106: =VLOOKUP(B106,PREÇOS!$W$2:$AA$1918,5,FALSE) -> APLICAÇÃO SILICATO DE CÁLCIO 30''X50,8 | F106: 1 | G106: =VLOOKUP(B106,PREÇOS!$W$2:$AB$1918,6,FALSE) -> m | H106: 0 | I106: =VLOOKUP(B106,PREÇOS!$W$2:$AA$1918,2,FALSE) -> 397.36 | J106: =(SUMIFS(TUB!BJ:BJ,TUB!AU:AU,BMM!B106)+SUMIFS(TUB!BK:BK,TUB!AV:AV,BMM!B106)+SUMIFS(TUB!BL:BL,TUB!AW:AW,BMM!B106)+SUMIFS(EQUIP!CB:CB,EQUIP!BM:BM,BMM!B106)+SUMIFS(EQUIP!CC:CC,EQUIP!BN:BN,BMM!B106)+SUMIFS(EQUIP!CD:CD,EQUIP!BO:BO,BMM!B106)) -> 0 | L106: APL | M106: APLICAÇÃO
B107: 10/1890 | C107: 10 | D107: 1890 | E107: =VLOOKUP(B107,PREÇOS!$W$2:$AA$1918,5,FALSE) -> APLICAÇÃO SILICATO DE CÁLCIO 30''X63,5 | F107: 1 | G107: =VLOOKUP(B107,PREÇOS!$W$2:$AB$1918,6,FALSE) -> m | H107: 0 | I107: =VLOOKUP(B107,PREÇOS!$W$2:$AA$1918,2,FALSE) -> 404.27 | J107: =(SUMIFS(TUB!BJ:BJ,TUB!AU:AU,BMM!B107)+SUMIFS(TUB!BK:BK,TUB!AV:AV,BMM!B107)+SUMIFS(TUB!BL:BL,TUB!AW:AW,BMM!B107)+SUMIFS(EQUIP!CB:CB,EQUIP!BM:BM,BMM!B107)+SUMIFS(EQUIP!CC:CC,EQUIP!BN:BN,BMM!B107)+SUMIFS(EQUIP!CD:CD,EQUIP!BO:BO,BMM!B107)) -> 0 | L107: APL | M107: APLICAÇÃO
B108: 10/1900 | C108: 10 | D108: 1900 | E108: =VLOOKUP(B108,PREÇOS!$W$2:$AA$1918,5,FALSE) -> APLICAÇÃO SILICATO DE CÁLCIO 30''X76,3 | F108: 1 | G108: =VLOOKUP(B108,PREÇOS!$W$2:$AB$1918,6,FALSE) -> m | H108: 0 | I108: =VLOOKUP(B108,PREÇOS!$W$2:$AA$1918,2,FALSE) -> 414.89 | J108: =(SUMIFS(TUB!BJ:BJ,TUB!AU:AU,BMM!B108)+SUMIFS(TUB!BK:BK,TUB!AV:AV,BMM!B108)+SUMIFS(TUB!BL:BL,TUB!AW:AW,BMM!B108)+SUMIFS(EQUIP!CB:CB,EQUIP!BM:BM,BMM!B108)+SUMIFS(EQUIP!CC:CC,EQUIP!BN:BN,BMM!B108)+SUMIFS(EQUIP!CD:CD,EQUIP!BO:BO,BMM!B108)) -> 0 | L108: APL | M108: APLICAÇÃO
B109: 10/1910 | C109: 10 | D109: 1910 | E109: =VLOOKUP(B109,PREÇOS!$W$2:$AA$1918,5,FALSE) -> APLICAÇÃO SILICATO DE CÁLCIO 32''X38,1 | F109: 1 | G109: =VLOOKUP(B109,PREÇOS!$W$2:$AB$1918,6,FALSE) -> m | H109: 0 | I109: =VLOOKUP(B109,PREÇOS!$W$2:$AA$1918,2,FALSE) -> 410.57 | J109: =(SUMIFS(TUB!BJ:BJ,TUB!AU:AU,BMM!B109)+SUMIFS(TUB!BK:BK,TUB!AV:AV,BMM!B109)+SUMIFS(TUB!BL:BL,TUB!AW:AW,BMM!B109)+SUMIFS(EQUIP!CB:CB,EQUIP!BM:BM,BMM!B109)+SUMIFS(EQUIP!CC:CC,EQUIP!BN:BN,BMM!B109)+SUMIFS(EQUIP!CD:CD,EQUIP!BO:BO,BMM!B109)) -> 0 | L109: APL | M109: APLICAÇÃO
B110: 10/1920 | C110: 10 | D110: 1920 | E110: =VLOOKUP(B110,PREÇOS!$W$2:$AA$1918,5,FALSE) -> APLICAÇÃO SILICATO DE CÁLCIO 32''X50,8 | F110: 1 | G110: =VLOOKUP(B110,PREÇOS!$W$2:$AB$1918,6,FALSE) -> m | H110: 0 | I110: =VLOOKUP(B110,PREÇOS!$W$2:$AA$1918,2,FALSE) -> 417.36 | J110: =(SUMIFS(TUB!BJ:BJ,TUB!AU:AU,BMM!B110)+SUMIFS(TUB!BK:BK,TUB!AV:AV,BMM!B110)+SUMIFS(TUB!BL:BL,TUB!AW:AW,BMM!B110)+SUMIFS(EQUIP!CB:CB,EQUIP!BM:BM,BMM!B110)+SUMIFS(EQUIP!CC:CC,EQUIP!BN:BN,BMM!B110)+SUMIFS(EQUIP!CD:CD,EQUIP!BO:BO,BMM!B110)) -> 0 | L110: APL | M110: APLICAÇÃO
B111: 10/1930 | C111: 10 | D111: 1930 | E111: =VLOOKUP(B111,PREÇOS!$W$2:$AA$1918,5,FALSE) -> APLICAÇÃO SILICATO DE CÁLCIO 32''X63,5 | F111: 1 | G111: =VLOOKUP(B111,PREÇOS!$W$2:$AB$1918,6,FALSE) -> m | H111: 0 | I111: =VLOOKUP(B111,PREÇOS!$W$2:$AA$1918,2,FALSE) -> 422.92 | J111: =(SUMIFS(TUB!BJ:BJ,TUB!AU:AU,BMM!B111)+SUMIFS(TUB!BK:BK,TUB!AV:AV,BMM!B111)+SUMIFS(TUB!BL:BL,TUB!AW:AW,BMM!B111)+SUMIFS(EQUIP!CB:CB,EQUIP!BM:BM,BMM!B111)+SUMIFS(EQUIP!CC:CC,EQUIP!BN:BN,BMM!B111)+SUMIFS(EQUIP!CD:CD,EQUIP!BO:BO,BMM!B111)) -> 0 | L111: APL | M111: APLICAÇÃO
B112: 10/1940 | C112: 10 | D112: 1940 | E112: =VLOOKUP(B112,PREÇOS!$W$2:$AA$1918,5,FALSE) -> APLICAÇÃO SILICATO DE CÁLCIO 32''X76,3 | F112: 1 | G112: =VLOOKUP(B112,PREÇOS!$W$2:$AB$1918,6,FALSE) -> m | H112: 0 | I112: =VLOOKUP(B112,PREÇOS!$W$2:$AA$1918,2,FALSE) -> 429.09 | J112: =(SUMIFS(TUB!BJ:BJ,TUB!AU:AU,BMM!B112)+SUMIFS(TUB!BK:BK,TUB!AV:AV,BMM!B112)+SUMIFS(TUB!BL:BL,TUB!AW:AW,BMM!B112)+SUMIFS(EQUIP!CB:CB,EQUIP!BM:BM,BMM!B112)+SUMIFS(EQUIP!CC:CC,EQUIP!BN:BN,BMM!B112)+SUMIFS(EQUIP!CD:CD,EQUIP!BO:BO,BMM!B112)) -> 0 | L112: APL | M112: APLICAÇÃO
B113: 10/1950 | C113: 10 | D113: 1950 | E113: =VLOOKUP(B113,PREÇOS!$W$2:$AA$1918,5,FALSE) -> APLICAÇÃO SILICATO DE CÁLCIO 36''X38,1 | F113: 1 | G113: =VLOOKUP(B113,PREÇOS!$W$2:$AB$1918,6,FALSE) -> m | H113: 0 | I113: =VLOOKUP(B113,PREÇOS!$W$2:$AA$1918,2,FALSE) -> 437.12 | J113: =(SUMIFS(TUB!BJ:BJ,TUB!AU:AU,BMM!B113)+SUMIFS(TUB!BK:BK,TUB!AV:AV,BMM!B113)+SUMIFS(TUB!BL:BL,TUB!AW:AW,BMM!B113)+SUMIFS(EQUIP!CB:CB,EQUIP!BM:BM,BMM!B113)+SUMIFS(EQUIP!CC:CC,EQUIP!BN:BN,BMM!B113)+SUMIFS(EQUIP!CD:CD,EQUIP!BO:BO,BMM!B113)) -> 0 | L113: APL | M113: APLICAÇÃO
B114: 10/1960 | C114: 10 | D114: 1960 | E114: =VLOOKUP(B114,PREÇOS!$W$2:$AA$1918,5,FALSE) -> APLICAÇÃO SILICATO DE CÁLCIO 36''X50,8 | F114: 1 | G114: =VLOOKUP(B114,PREÇOS!$W$2:$AB$1918,6,FALSE) -> m | H114: 0 | I114: =VLOOKUP(B114,PREÇOS!$W$2:$AA$1918,2,FALSE) -> 443.29 | J114: =(SUMIFS(TUB!BJ:BJ,TUB!AU:AU,BMM!B114)+SUMIFS(TUB!BK:BK,TUB!AV:AV,BMM!B114)+SUMIFS(TUB!BL:BL,TUB!AW:AW,BMM!B114)+SUMIFS(EQUIP!CB:CB,EQUIP!BM:BM,BMM!B114)+SUMIFS(EQUIP!CC:CC,EQUIP!BN:BN,BMM!B114)+SUMIFS(EQUIP!CD:CD,EQUIP!BO:BO,BMM!B114)) -> 0 | L114: APL | M114: APLICAÇÃO
B115: 10/1970 | C115: 10 | D115: 1970 | E115: =VLOOKUP(B115,PREÇOS!$W$2:$AA$1918,5,FALSE) -> APLICAÇÃO SILICATO DE CÁLCIO 36''X63,5 | F115: 1 | G115: =VLOOKUP(B115,PREÇOS!$W$2:$AB$1918,6,FALSE) -> m | H115: 0 | I115: =VLOOKUP(B115,PREÇOS!$W$2:$AA$1918,2,FALSE) -> 448.85 | J115: =(SUMIFS(TUB!BJ:BJ,TUB!AU:AU,BMM!B115)+SUMIFS(TUB!BK:BK,TUB!AV:AV,BMM!B115)+SUMIFS(TUB!BL:BL,TUB!AW:AW,BMM!B115)+SUMIFS(EQUIP!CB:CB,EQUIP!BM:BM,BMM!B115)+SUMIFS(EQUIP!CC:CC,EQUIP!BN:BN,BMM!B115)+SUMIFS(EQUIP!CD:CD,EQUIP!BO:BO,BMM!B115)) -> 0 | L115: APL | M115: APLICAÇÃO
B116: 10/1980 | C116: 10 | D116: 1980 | E116: =VLOOKUP(B116,PREÇOS!$W$2:$AA$1918,5,FALSE) -> APLICAÇÃO SILICATO DE CÁLCIO 36''X76,3 | F116: 1 | G116: =VLOOKUP(B116,PREÇOS!$W$2:$AB$1918,6,FALSE) -> m | H116: 0 | I116: =VLOOKUP(B116,PREÇOS!$W$2:$AA$1918,2,FALSE) -> 454.41 | J116: =(SUMIFS(TUB!BJ:BJ,TUB!AU:AU,BMM!B116)+SUMIFS(TUB!BK:BK,TUB!AV:AV,BMM!B116)+SUMIFS(TUB!BL:BL,TUB!AW:AW,BMM!B116)+SUMIFS(EQUIP!CB:CB,EQUIP!BM:BM,BMM!B116)+SUMIFS(EQUIP!CC:CC,EQUIP!BN:BN,BMM!B116)+SUMIFS(EQUIP!CD:CD,EQUIP!BO:BO,BMM!B116)) -> 0 | L116: APL | M116: APLICAÇÃO
B117: 20/1010 | C117: 20 | D117: 1010 | E117: =VLOOKUP(B117,PREÇOS!$W$2:$AA$1918,5,FALSE) -> APLICAÇÃO LÃ DE ROCHA 1/2"X25,4 | F117: 1 | G117: =VLOOKUP(B117,PREÇOS!$W$2:$AB$1918,6,FALSE) -> m | H117: 0 | I117: =VLOOKUP(B117,PREÇOS!$W$2:$AA$1918,2,FALSE) -> 38.43 | J117: =(SUMIFS(TUB!BJ:BJ,TUB!AU:AU,BMM!B117)+SUMIFS(TUB!BK:BK,TUB!AV:AV,BMM!B117)+SUMIFS(TUB!BL:BL,TUB!AW:AW,BMM!B117)+SUMIFS(EQUIP!CB:CB,EQUIP!BM:BM,BMM!B117)+SUMIFS(EQUIP!CC:CC,EQUIP!BN:BN,BMM!B117)+SUMIFS(EQUIP!CD:CD,EQUIP!BO:BO,BMM!B117)) -> 0 | L117: APL | M117: APLICAÇÃO
B118: 20/1020 | C118: 20 | D118: 1020 | E118: =VLOOKUP(B118,PREÇOS!$W$2:$AA$1918,5,FALSE) -> APLICAÇÃO LÃ DE ROCHA 1/2"X38,1 | F118: 1 | G118: =VLOOKUP(B118,PREÇOS!$W$2:$AB$1918,6,FALSE) -> m | H118: 0 | I118: =VLOOKUP(B118,PREÇOS!$W$2:$AA$1918,2,FALSE) -> 48.78 | J118: =(SUMIFS(TUB!BJ:BJ,TUB!AU:AU,BMM!B118)+SUMIFS(TUB!BK:BK,TUB!AV:AV,BMM!B118)+SUMIFS(TUB!BL:BL,TUB!AW:AW,BMM!B118)+SUMIFS(EQUIP!CB:CB,EQUIP!BM:BM,BMM!B118)+SUMIFS(EQUIP!CC:CC,EQUIP!BN:BN,BMM!B118)+SUMIFS(EQUIP!CD:CD,EQUIP!BO:BO,BMM!B118)) -> 0 | L118: APL | M118: APLICAÇÃO
B119: 20/1030 | C119: 20 | D119: 1030 | E119: =VLOOKUP(B119,PREÇOS!$W$2:$AA$1918,5,FALSE) -> APLICAÇÃO LÃ DE ROCHA 1/2"X50,8 | F119: 1 | G119: =VLOOKUP(B119,PREÇOS!$W$2:$AB$1918,6,FALSE) -> m | H119: 0 | I119: =VLOOKUP(B119,PREÇOS!$W$2:$AA$1918,2,FALSE) -> 60.6 | J119: =(SUMIFS(TUB!BJ:BJ,TUB!AU:AU,BMM!B119)+SUMIFS(TUB!BK:BK,TUB!AV:AV,BMM!B119)+SUMIFS(TUB!BL:BL,TUB!AW:AW,BMM!B119)+SUMIFS(EQUIP!CB:CB,EQUIP!BM:BM,BMM!B119)+SUMIFS(EQUIP!CC:CC,EQUIP!BN:BN,BMM!B119)+SUMIFS(EQUIP!CD:CD,EQUIP!BO:BO,BMM!B119)) -> 0 | L119: APL | M119: APLICAÇÃO
B120: 20/1040 | C120: 20 | D120: 1040 | E120: =VLOOKUP(B120,PREÇOS!$W$2:$AA$1918,5,FALSE) -> APLICAÇÃO LÃ DE ROCHA 3/4"X25,4 | F120: 1 | G120: =VLOOKUP(B120,PREÇOS!$W$2:$AB$1918,6,FALSE) -> m | H120: 0 | I120: =VLOOKUP(B120,PREÇOS!$W$2:$AA$1918,2,FALSE) -> 57.01 | J120: =(SUMIFS(TUB!BJ:BJ,TUB!AU:AU,BMM!B120)+SUMIFS(TUB!BK:BK,TUB!AV:AV,BMM!B120)+SUMIFS(TUB!BL:BL,TUB!AW:AW,BMM!B120)+SUMIFS(EQUIP!CB:CB,EQUIP!BM:BM,BMM!B120)+SUMIFS(EQUIP!CC:CC,EQUIP!BN:BN,BMM!B120)+SUMIFS(EQUIP!CD:CD,EQUIP!BO:BO,BMM!B120)) -> 0 | L120: APL | M120: APLICAÇÃO
B121: 20/1050 | C121: 20 | D121: 1050 | E121: =VLOOKUP(B121,PREÇOS!$W$2:$AA$1918,5,FALSE) -> APLICAÇÃO LÃ DE ROCHA 3/4"X38,1 | F121: 1 | G121: =VLOOKUP(B121,PREÇOS!$W$2:$AB$1918,6,FALSE) -> m | H121: 0 | I121: =VLOOKUP(B121,PREÇOS!$W$2:$AA$1918,2,FALSE) -> 73.91 | J121: =(SUMIFS(TUB!BJ:BJ,TUB!AU:AU,BMM!B121)+SUMIFS(TUB!BK:BK,TUB!AV:AV,BMM!B121)+SUMIFS(TUB!BL:BL,TUB!AW:AW,BMM!B121)+SUMIFS(EQUIP!CB:CB,EQUIP!BM:BM,BMM!B121)+SUMIFS(EQUIP!CC:CC,EQUIP!BN:BN,BMM!B121)+SUMIFS(EQUIP!CD:CD,EQUIP!BO:BO,BMM!B121)) -> 0 | L121: APL | M121: APLICAÇÃO
B122: 20/1060 | C122: 20 | D122: 1060 | E122: =VLOOKUP(B122,PREÇOS!$W$2:$AA$1918,5,FALSE) -> APLICAÇÃO LÃ DE ROCHA 3/4"X50,8 | F122: 1 | G122: =VLOOKUP(B122,PREÇOS!$W$2:$AB$1918,6,FALSE) -> m | H122: 0 | I122: =VLOOKUP(B122,PREÇOS!$W$2:$AA$1918,2,FALSE) -> 90.8 | J122: =(SUMIFS(TUB!BJ:BJ,TUB!AU:AU,BMM!B122)+SUMIFS(TUB!BK:BK,TUB!AV:AV,BMM!B122)+SUMIFS(TUB!BL:BL,TUB!AW:AW,BMM!B122)+SUMIFS(EQUIP!CB:CB,EQUIP!BM:BM,BMM!B122)+SUMIFS(EQUIP!CC:CC,EQUIP!BN:BN,BMM!B122)+SUMIFS(EQUIP!CD:CD,EQUIP!BO:BO,BMM!B122)) -> 0 | L122: APL | M122: APLICAÇÃO
B123: 20/1070 | C123: 20 | D123: 1070 | E123: =VLOOKUP(B123,PREÇOS!$W$2:$AA$1918,5,FALSE) -> APLICAÇÃO LÃ DE ROCHA 3/4"X63,5 | F123: 1 | G123: =VLOOKUP(B123,PREÇOS!$W$2:$AB$1918,6,FALSE) -> m | H123: 0 | I123: =VLOOKUP(B123,PREÇOS!$W$2:$AA$1918,2,FALSE) -> 75.39 | J123: =(SUMIFS(TUB!BJ:BJ,TUB!AU:AU,BMM!B123)+SUMIFS(TUB!BK:BK,TUB!AV:AV,BMM!B123)+SUMIFS(TUB!BL:BL,TUB!AW:AW,BMM!B123)+SUMIFS(EQUIP!CB:CB,EQUIP!BM:BM,BMM!B123)+SUMIFS(EQUIP!CC:CC,EQUIP!BN:BN,BMM!B123)+SUMIFS(EQUIP!CD:CD,EQUIP!BO:BO,BMM!B123)) -> 0 | L123: APL | M123: APLICAÇÃO
B124: 20/1080 | C124: 20 | D124: 1080 | E124: =VLOOKUP(B124,PREÇOS!$W$2:$AA$1918,5,FALSE) -> APLICAÇÃO LÃ DE ROCHA 1"X25,4 | F124: 1 | G124: =VLOOKUP(B124,PREÇOS!$W$2:$AB$1918,6,FALSE) -> m | H124: 0 | I124: =VLOOKUP(B124,PREÇOS!$W$2:$AA$1918,2,FALSE) -> 61.24 | J124: =(SUMIFS(TUB!BJ:BJ,TUB!AU:AU,BMM!B124)+SUMIFS(TUB!BK:BK,TUB!AV:AV,BMM!B124)+SUMIFS(TUB!BL:BL,TUB!AW:AW,BMM!B124)+SUMIFS(EQUIP!CB:CB,EQUIP!BM:BM,BMM!B124)+SUMIFS(EQUIP!CC:CC,EQUIP!BN:BN,BMM!B124)+SUMIFS(EQUIP!CD:CD,EQUIP!BO:BO,BMM!B124)) -> 0 | L124: APL | M124: APLICAÇÃO
B125: 20/1090 | C125: 20 | D125: 1090 | E125: =VLOOKUP(B125,PREÇOS!$W$2:$AA$1918,5,FALSE) -> APLICAÇÃO LÃ DE ROCHA 1"X38,1 | F125: 1 | G125: =VLOOKUP(B125,PREÇOS!$W$2:$AB$1918,6,FALSE) -> m | H125: 0 | I125: =VLOOKUP(B125,PREÇOS!$W$2:$AA$1918,2,FALSE) -> 78.12 | J125: =(SUMIFS(TUB!BJ:BJ,TUB!AU:AU,BMM!B125)+SUMIFS(TUB!BK:BK,TUB!AV:AV,BMM!B125)+SUMIFS(TUB!BL:BL,TUB!AW:AW,BMM!B125)+SUMIFS(EQUIP!CB:CB,EQUIP!BM:BM,BMM!B125)+SUMIFS(EQUIP!CC:CC,EQUIP!BN:BN,BMM!B125)+SUMIFS(EQUIP!CD:CD,EQUIP!BO:BO,BMM!B125)) -> 0 | L125: APL | M125: APLICAÇÃO
B126: 20/1100 | C126: 20 | D126: 1100 | E126: =VLOOKUP(B126,PREÇOS!$W$2:$AA$1918,5,FALSE) -> APLICAÇÃO LÃ DE ROCHA 1"X50,8 | F126: 1 | G126: =VLOOKUP(B126,PREÇOS!$W$2:$AB$1918,6,FALSE) -> m | H126: 0 | I126: =VLOOKUP(B126,PREÇOS!$W$2:$AA$1918,2,FALSE) -> 90.27 | J126: =(SUMIFS(TUB!BJ:BJ,TUB!AU:AU,BMM!B126)+SUMIFS(TUB!BK:BK,TUB!AV:AV,BMM!B126)+SUMIFS(TUB!BL:BL,TUB!AW:AW,BMM!B126)+SUMIFS(EQUIP!CB:CB,EQUIP!BM:BM,BMM!B126)+SUMIFS(EQUIP!CC:CC,EQUIP!BN:BN,BMM!B126)+SUMIFS(EQUIP!CD:CD,EQUIP!BO:BO,BMM!B126)) -> 0 | L126: APL | M126: APLICAÇÃO
B127: 20/1110 | C127: 20 | D127: 1110 | E127: =VLOOKUP(B127,PREÇOS!$W$2:$AA$1918,5,FALSE) -> APLICAÇÃO LÃ DE ROCHA 1"X63,5 | F127: 1 | G127: =VLOOKUP(B127,PREÇOS!$W$2:$AB$1918,6,FALSE) -> m | H127: 0 | I127: =VLOOKUP(B127,PREÇOS!$W$2:$AA$1918,2,FALSE) -> 106.32 | J127: =(SUMIFS(TUB!BJ:BJ,TUB!AU:AU,BMM!B127)+SUMIFS(TUB!BK:BK,TUB!AV:AV,BMM!B127)+SUMIFS(TUB!BL:BL,TUB!AW:AW,BMM!B127)+SUMIFS(EQUIP!CB:CB,EQUIP!BM:BM,BMM!B127)+SUMIFS(EQUIP!CC:CC,EQUIP!BN:BN,BMM!B127)+SUMIFS(EQUIP!CD:CD,EQUIP!BO:BO,BMM!B127)) -> 0 | L127: APL | M127: APLICAÇÃO
B128: 20/1120 | C128: 20 | D128: 1120 | E128: =VLOOKUP(B128,PREÇOS!$W$2:$AA$1918,5,FALSE) -> APLICAÇÃO LÃ DE ROCHA 1"X76,3 | F128: 1 | G128: =VLOOKUP(B128,PREÇOS!$W$2:$AB$1918,6,FALSE) -> m | H128: 0 | I128: =VLOOKUP(B128,PREÇOS!$W$2:$AA$1918,2,FALSE) -> 122.36 | J128: =(SUMIFS(TUB!BJ:BJ,TUB!AU:AU,BMM!B128)+SUMIFS(TUB!BK:BK,TUB!AV:AV,BMM!B128)+SUMIFS(TUB!BL:BL,TUB!AW:AW,BMM!B128)+SUMIFS(EQUIP!CB:CB,EQUIP!BM:BM,BMM!B128)+SUMIFS(EQUIP!CC:CC,EQUIP!BN:BN,BMM!B128)+SUMIFS(EQUIP!CD:CD,EQUIP!BO:BO,BMM!B128)) -> 0 | L128: APL | M128: APLICAÇÃO
B129: 20/1130 | C129: 20 | D129: 1130 | E129: =VLOOKUP(B129,PREÇOS!$W$2:$AA$1918,5,FALSE) -> APLICAÇÃO LÃ DE ROCHA 1 1/2"X25,4 | F129: 1 | G129: =VLOOKUP(B129,PREÇOS!$W$2:$AB$1918,6,FALSE) -> m | H129: 0 | I129: =VLOOKUP(B129,PREÇOS!$W$2:$AA$1918,2,FALSE) -> 71.8 | J129: =(SUMIFS(TUB!BJ:BJ,TUB!AU:AU,BMM!B129)+SUMIFS(TUB!BK:BK,TUB!AV:AV,BMM!B129)+SUMIFS(TUB!BL:BL,TUB!AW:AW,BMM!B129)+SUMIFS(EQUIP!CB:CB,EQUIP!BM:BM,BMM!B129)+SUMIFS(EQUIP!CC:CC,EQUIP!BN:BN,BMM!B129)+SUMIFS(EQUIP!CD:CD,EQUIP!BO:BO,BMM!B129)) -> 0 | L129: APL | M129: APLICAÇÃO
B130: 20/1140 | C130: 20 | D130: 1140 | E130: =VLOOKUP(B130,PREÇOS!$W$2:$AA$1918,5,FALSE) -> APLICAÇÃO LÃ DE ROCHA 1 1/2"X38,1 | F130: 1 | G130: =VLOOKUP(B130,PREÇOS!$W$2:$AB$1918,6,FALSE) -> m | H130: 0 | I130: =VLOOKUP(B130,PREÇOS!$W$2:$AA$1918,2,FALSE) -> 88.68 | J130: =(SUMIFS(TUB!BJ:BJ,TUB!AU:AU,BMM!B130)+SUMIFS(TUB!BK:BK,TUB!AV:AV,BMM!B130)+SUMIFS(TUB!BL:BL,TUB!AW:AW,BMM!B130)+SUMIFS(EQUIP!CB:CB,EQUIP!BM:BM,BMM!B130)+SUMIFS(EQUIP!CC:CC,EQUIP!BN:BN,BMM!B130)+SUMIFS(EQUIP!CD:CD,EQUIP!BO:BO,BMM!B130)) -> 0 | L130: APL | M130: APLICAÇÃO
B131: 20/1150 | C131: 20 | D131: 1150 | E131: =VLOOKUP(B131,PREÇOS!$W$2:$AA$1918,5,FALSE) -> APLICAÇÃO LÃ DE ROCHA 1 1/2"X50,8 | F131: 1 | G131: =VLOOKUP(B131,PREÇOS!$W$2:$AB$1918,6,FALSE) -> m | H131: 0 | I131: =VLOOKUP(B131,PREÇOS!$W$2:$AA$1918,2,FALSE) -> 105.58 | J131: =(SUMIFS(TUB!BJ:BJ,TUB!AU:AU,BMM!B131)+SUMIFS(TUB!BK:BK,TUB!AV:AV,BMM!B131)+SUMIFS(TUB!BL:BL,TUB!AW:AW,BMM!B131)+SUMIFS(EQUIP!CB:CB,EQUIP!BM:BM,BMM!B131)+SUMIFS(EQUIP!CC:CC,EQUIP!BN:BN,BMM!B131)+SUMIFS(EQUIP!CD:CD,EQUIP!BO:BO,BMM!B131)) -> 0 | L131: APL | M131: APLICAÇÃO
B132: 20/1160 | C132: 20 | D132: 1160 | E132: =VLOOKUP(B132,PREÇOS!$W$2:$AA$1918,5,FALSE) -> APLICAÇÃO LÃ DE ROCHA 1 1/2"X63,5 | F132: 1 | G132: =VLOOKUP(B132,PREÇOS!$W$2:$AB$1918,6,FALSE) -> m | H132: 0 | I132: =VLOOKUP(B132,PREÇOS!$W$2:$AA$1918,2,FALSE) -> 122.48 | J132: =(SUMIFS(TUB!BJ:BJ,TUB!AU:AU,BMM!B132)+SUMIFS(TUB!BK:BK,TUB!AV:AV,BMM!B132)+SUMIFS(TUB!BL:BL,TUB!AW:AW,BMM!B132)+SUMIFS(EQUIP!CB:CB,EQUIP!BM:BM,BMM!B132)+SUMIFS(EQUIP!CC:CC,EQUIP!BN:BN,BMM!B132)+SUMIFS(EQUIP!CD:CD,EQUIP!BO:BO,BMM!B132)) -> 0 | L132: APL | M132: APLICAÇÃO
B133: 20/1170 | C133: 20 | D133: 1170 | E133: =VLOOKUP(B133,PREÇOS!$W$2:$AA$1918,5,FALSE) -> APLICAÇÃO LÃ DE ROCHA 1 1/2"X76,3 | F133: 1 | G133: =VLOOKUP(B133,PREÇOS!$W$2:$AB$1918,6,FALSE) -> m | H133: 0 | I133: =VLOOKUP(B133,PREÇOS!$W$2:$AA$1918,2,FALSE) -> 137.25 | J133: =(SUMIFS(TUB!BJ:BJ,TUB!AU:AU,BMM!B133)+SUMIFS(TUB!BK:BK,TUB!AV:AV,BMM!B133)+SUMIFS(TUB!BL:BL,TUB!AW:AW,BMM!B133)+SUMIFS(EQUIP!CB:CB,EQUIP!BM:BM,BMM!B133)+SUMIFS(EQUIP!CC:CC,EQUIP!BN:BN,BMM!B133)+SUMIFS(EQUIP!CD:CD,EQUIP!BO:BO,BMM!B133)) -> 0 | L133: APL | M133: APLICAÇÃO
B134: 20/1180 | C134: 20 | D134: 1180 | E134: =VLOOKUP(B134,PREÇOS!$W$2:$AA$1918,5,FALSE) -> APLICAÇÃO LÃ DE ROCHA 2"X25,4 | F134: 1 | G134: =VLOOKUP(B134,PREÇOS!$W$2:$AB$1918,6,FALSE) -> m | H134: 0 | I134: =VLOOKUP(B134,PREÇOS!$W$2:$AA$1918,2,FALSE) -> 80.24 | J134: =(SUMIFS(TUB!BJ:BJ,TUB!AU:AU,BMM!B134)+SUMIFS(TUB!BK:BK,TUB!AV:AV,BMM!B134)+SUMIFS(TUB!BL:BL,TUB!AW:AW,BMM!B134)+SUMIFS(EQUIP!CB:CB,EQUIP!BM:BM,BMM!B134)+SUMIFS(EQUIP!CC:CC,EQUIP!BN:BN,BMM!B134)+SUMIFS(EQUIP!CD:CD,EQUIP!BO:BO,BMM!B134)) -> 0 | L134: APL | M134: APLICAÇÃO
B135: 20/1190 | C135: 20 | D135: 1190 | E135: =VLOOKUP(B135,PREÇOS!$W$2:$AA$1918,5,FALSE) -> APLICAÇÃO LÃ DE ROCHA 2"X38,1 | F135: 1 | G135: =VLOOKUP(B135,PREÇOS!$W$2:$AB$1918,6,FALSE) -> m | H135: 0 | I135: =VLOOKUP(B135,PREÇOS!$W$2:$AA$1918,2,FALSE) -> 97.13 | J135: =(SUMIFS(TUB!BJ:BJ,TUB!AU:AU,BMM!B135)+SUMIFS(TUB!BK:BK,TUB!AV:AV,BMM!B135)+SUMIFS(TUB!BL:BL,TUB!AW:AW,BMM!B135)+SUMIFS(EQUIP!CB:CB,EQUIP!BM:BM,BMM!B135)+SUMIFS(EQUIP!CC:CC,EQUIP!BN:BN,BMM!B135)+SUMIFS(EQUIP!CD:CD,EQUIP!BO:BO,BMM!B135)) -> 0 | L135: APL | M135: APLICAÇÃO
B136: 20/1200 | C136: 20 | D136: 1200 | E136: =VLOOKUP(B136,PREÇOS!$W$2:$AA$1918,5,FALSE) -> APLICAÇÃO LÃ DE ROCHA 2"X50,8 | F136: 1 | G136: =VLOOKUP(B136,PREÇOS!$W$2:$AB$1918,6,FALSE) -> m | H136: 0 | I136: =VLOOKUP(B136,PREÇOS!$W$2:$AA$1918,2,FALSE) -> 113.7 | J136: =(SUMIFS(TUB!BJ:BJ,TUB!AU:AU,BMM!B136)+SUMIFS(TUB!BK:BK,TUB!AV:AV,BMM!B136)+SUMIFS(TUB!BL:BL,TUB!AW:AW,BMM!B136)+SUMIFS(EQUIP!CB:CB,EQUIP!BM:BM,BMM!B136)+SUMIFS(EQUIP!CC:CC,EQUIP!BN:BN,BMM!B136)+SUMIFS(EQUIP!CD:CD,EQUIP!BO:BO,BMM!B136)) -> 0 | L136: APL | M136: APLICAÇÃO
B137: 20/1210 | C137: 20 | D137: 1210 | E137: =VLOOKUP(B137,PREÇOS!$W$2:$AA$1918,5,FALSE) -> APLICAÇÃO LÃ DE ROCHA 2"X63,5 | F137: 1 | G137: =VLOOKUP(B137,PREÇOS!$W$2:$AB$1918,6,FALSE) -> m | H137: 0 | I137: =VLOOKUP(B137,PREÇOS!$W$2:$AA$1918,2,FALSE) -> 128.8 | J137: =(SUMIFS(TUB!BJ:BJ,TUB!AU:AU,BMM!B137)+SUMIFS(TUB!BK:BK,TUB!AV:AV,BMM!B137)+SUMIFS(TUB!BL:BL,TUB!AW:AW,BMM!B137)+SUMIFS(EQUIP!CB:CB,EQUIP!BM:BM,BMM!B137)+SUMIFS(EQUIP!CC:CC,EQUIP!BN:BN,BMM!B137)+SUMIFS(EQUIP!CD:CD,EQUIP!BO:BO,BMM!B137)) -> 0 | L137: APL | M137: APLICAÇÃO
B138: 20/1220 | C138: 20 | D138: 1220 | E138: =VLOOKUP(B138,PREÇOS!$W$2:$AA$1918,5,FALSE) -> APLICAÇÃO LÃ DE ROCHA 2"X76,3 | F138: 1 | G138: =VLOOKUP(B138,PREÇOS!$W$2:$AB$1918,6,FALSE) -> m | H138: 0 | I138: =VLOOKUP(B138,PREÇOS!$W$2:$AA$1918,2,FALSE) -> 145.7 | J138: =(SUMIFS(TUB!BJ:BJ,TUB!AU:AU,BMM!B138)+SUMIFS(TUB!BK:BK,TUB!AV:AV,BMM!B138)+SUMIFS(TUB!BL:BL,TUB!AW:AW,BMM!B138)+SUMIFS(EQUIP!CB:CB,EQUIP!BM:BM,BMM!B138)+SUMIFS(EQUIP!CC:CC,EQUIP!BN:BN,BMM!B138)+SUMIFS(EQUIP!CD:CD,EQUIP!BO:BO,BMM!B138)) -> 0 | L138: APL | M138: APLICAÇÃO
B139: 20/1230 | C139: 20 | D139: 1230 | E139: =VLOOKUP(B139,PREÇOS!$W$2:$AA$1918,5,FALSE) -> APLICAÇÃO LÃ DE ROCHA 2 1/2"X25,4 | F139: 1 | G139: =VLOOKUP(B139,PREÇOS!$W$2:$AB$1918,6,FALSE) -> m | H139: 0 | I139: =VLOOKUP(B139,PREÇOS!$W$2:$AA$1918,2,FALSE) -> 88.68 | J139: =(SUMIFS(TUB!BJ:BJ,TUB!AU:AU,BMM!B139)+SUMIFS(TUB!BK:BK,TUB!AV:AV,BMM!B139)+SUMIFS(TUB!BL:BL,TUB!AW:AW,BMM!B139)+SUMIFS(EQUIP!CB:CB,EQUIP!BM:BM,BMM!B139)+SUMIFS(EQUIP!CC:CC,EQUIP!BN:BN,BMM!B139)+SUMIFS(EQUIP!CD:CD,EQUIP!BO:BO,BMM!B139)) -> 0 | L139: APL | M139: APLICAÇÃO
B140: 20/1240 | C140: 20 | D140: 1240 | E140: =VLOOKUP(B140,PREÇOS!$W$2:$AA$1918,5,FALSE) -> APLICAÇÃO LÃ DE ROCHA 2 1/2"X38,1 | F140: 1 | G140: =VLOOKUP(B140,PREÇOS!$W$2:$AB$1918,6,FALSE) -> m | H140: 0 | I140: =VLOOKUP(B140,PREÇOS!$W$2:$AA$1918,2,FALSE) -> 105.58 | J140: =(SUMIFS(TUB!BJ:BJ,TUB!AU:AU,BMM!B140)+SUMIFS(TUB!BK:BK,TUB!AV:AV,BMM!B140)+SUMIFS(TUB!BL:BL,TUB!AW:AW,BMM!B140)+SUMIFS(EQUIP!CB:CB,EQUIP!BM:BM,BMM!B140)+SUMIFS(EQUIP!CC:CC,EQUIP!BN:BN,BMM!B140)+SUMIFS(EQUIP!CD:CD,EQUIP!BO:BO,BMM!B140)) -> 0 | L140: APL | M140: APLICAÇÃO
B141: 20/1250 | C141: 20 | D141: 1250 | E141: =VLOOKUP(B141,PREÇOS!$W$2:$AA$1918,5,FALSE) -> APLICAÇÃO LÃ DE ROCHA 2 1/2"X50,8 | F141: 1 | G141: =VLOOKUP(B141,PREÇOS!$W$2:$AB$1918,6,FALSE) -> m | H141: 0 | I141: =VLOOKUP(B141,PREÇOS!$W$2:$AA$1918,2,FALSE) -> 120.36 | J141: =(SUMIFS(TUB!BJ:BJ,TUB!AU:AU,BMM!B141)+SUMIFS(TUB!BK:BK,TUB!AV:AV,BMM!B141)+SUMIFS(TUB!BL:BL,TUB!AW:AW,BMM!B141)+SUMIFS(EQUIP!CB:CB,EQUIP!BM:BM,BMM!B141)+SUMIFS(EQUIP!CC:CC,EQUIP!BN:BN,BMM!B141)+SUMIFS(EQUIP!CD:CD,EQUIP!BO:BO,BMM!B141)) -> 0 | L141: APL | M141: APLICAÇÃO
B142: 20/1260 | C142: 20 | D142: 1260 | E142: =VLOOKUP(B142,PREÇOS!$W$2:$AA$1918,5,FALSE) -> APLICAÇÃO LÃ DE ROCHA 2 1/2"X63,5 | F142: 1 | G142: =VLOOKUP(B142,PREÇOS!$W$2:$AB$1918,6,FALSE) -> m | H142: 0 | I142: =VLOOKUP(B142,PREÇOS!$W$2:$AA$1918,2,FALSE) -> 137.25 | J142: =(SUMIFS(TUB!BJ:BJ,TUB!AU:AU,BMM!B142)+SUMIFS(TUB!BK:BK,TUB!AV:AV,BMM!B142)+SUMIFS(TUB!BL:BL,TUB!AW:AW,BMM!B142)+SUMIFS(EQUIP!CB:CB,EQUIP!BM:BM,BMM!B142)+SUMIFS(EQUIP!CC:CC,EQUIP!BN:BN,BMM!B142)+SUMIFS(EQUIP!CD:CD,EQUIP!BO:BO,BMM!B142)) -> 0 | L142: APL | M142: APLICAÇÃO
B143: 20/1270 | C143: 20 | D143: 1270 | E143: =VLOOKUP(B143,PREÇOS!$W$2:$AA$1918,5,FALSE) -> APLICAÇÃO LÃ DE ROCHA 2 1/2"X76,3 | F143: 1 | G143: =VLOOKUP(B143,PREÇOS!$W$2:$AB$1918,6,FALSE) -> m | H143: =J143/I143 -> 0 | I143: =VLOOKUP(B143,PREÇOS!$W$2:$AA$1918,2,FALSE) -> 154.15 | J143: =(SUMIFS(TUB!BJ:BJ,TUB!AU:AU,BMM!B143)+SUMIFS(TUB!BK:BK,TUB!AV:AV,BMM!B143)+SUMIFS(TUB!BL:BL,TUB!AW:AW,BMM!B143)+SUMIFS(EQUIP!CB:CB,EQUIP!BM:BM,BMM!B143)+SUMIFS(EQUIP!CC:CC,EQUIP!BN:BN,BMM!B143)+SUMIFS(EQUIP!CD:CD,EQUIP!BO:BO,BMM!B143)) -> 0 | L143: APL | M143: APLICAÇÃO
B144: 20/1280 | C144: 20 | D144: 1280 | E144: =VLOOKUP(B144,PREÇOS!$W$2:$AA$1918,5,FALSE) -> APLICAÇÃO LÃ DE ROCHA 3"X25,4 | F144: 1 | G144: =VLOOKUP(B144,PREÇOS!$W$2:$AB$1918,6,FALSE) -> m | H144: 0 | I144: =VLOOKUP(B144,PREÇOS!$W$2:$AA$1918,2,FALSE) -> 99.24 | J144: =(SUMIFS(TUB!BJ:BJ,TUB!AU:AU,BMM!B144)+SUMIFS(TUB!BK:BK,TUB!AV:AV,BMM!B144)+SUMIFS(TUB!BL:BL,TUB!AW:AW,BMM!B144)+SUMIFS(EQUIP!CB:CB,EQUIP!BM:BM,BMM!B144)+SUMIFS(EQUIP!CC:CC,EQUIP!BN:BN,BMM!B144)+SUMIFS(EQUIP!CD:CD,EQUIP!BO:BO,BMM!B144)) -> 0 | L144: APL | M144: APLICAÇÃO
B145: 20/1290 | C145: 20 | D145: 1290 | E145: =VLOOKUP(B145,PREÇOS!$W$2:$AA$1918,5,FALSE) -> APLICAÇÃO LÃ DE ROCHA 3"X38,1 | F145: 1 | G145: =VLOOKUP(B145,PREÇOS!$W$2:$AB$1918,6,FALSE) -> m | H145: 0 | I145: =VLOOKUP(B145,PREÇOS!$W$2:$AA$1918,2,FALSE) -> 116.14 | J145: =(SUMIFS(TUB!BJ:BJ,TUB!AU:AU,BMM!B145)+SUMIFS(TUB!BK:BK,TUB!AV:AV,BMM!B145)+SUMIFS(TUB!BL:BL,TUB!AW:AW,BMM!B145)+SUMIFS(EQUIP!CB:CB,EQUIP!BM:BM,BMM!B145)+SUMIFS(EQUIP!CC:CC,EQUIP!BN:BN,BMM!B145)+SUMIFS(EQUIP!CD:CD,EQUIP!BO:BO,BMM!B145)) -> 0 | L145: APL | M145: APLICAÇÃO
B146: 20/1300 | C146: 20 | D146: 1300 | E146: =VLOOKUP(B146,PREÇOS!$W$2:$AA$1918,5,FALSE) -> APLICAÇÃO LÃ DE ROCHA 3"X50,8 | F146: 1 | G146: =VLOOKUP(B146,PREÇOS!$W$2:$AB$1918,6,FALSE) -> m | H146: 0 | I146: =VLOOKUP(B146,PREÇOS!$W$2:$AA$1918,2,FALSE) -> 130.62 | J146: =(SUMIFS(TUB!BJ:BJ,TUB!AU:AU,BMM!B146)+SUMIFS(TUB!BK:BK,TUB!AV:AV,BMM!B146)+SUMIFS(TUB!BL:BL,TUB!AW:AW,BMM!B146)+SUMIFS(EQUIP!CB:CB,EQUIP!BM:BM,BMM!B146)+SUMIFS(EQUIP!CC:CC,EQUIP!BN:BN,BMM!B146)+SUMIFS(EQUIP!CD:CD,EQUIP!BO:BO,BMM!B146)) -> 0 | L146: APL | M146: APLICAÇÃO
B147: 20/1310 | C147: 20 | D147: 1310 | E147: =VLOOKUP(B147,PREÇOS!$W$2:$AA$1918,5,FALSE) -> APLICAÇÃO LÃ DE ROCHA 3"X63,5 | F147: 1 | G147: =VLOOKUP(B147,PREÇOS!$W$2:$AB$1918,6,FALSE) -> m | H147: 0 | I147: =VLOOKUP(B147,PREÇOS!$W$2:$AA$1918,2,FALSE) -> 147.81 | J147: =(SUMIFS(TUB!BJ:BJ,TUB!AU:AU,BMM!B147)+SUMIFS(TUB!BK:BK,TUB!AV:AV,BMM!B147)+SUMIFS(TUB!BL:BL,TUB!AW:AW,BMM!B147)+SUMIFS(EQUIP!CB:CB,EQUIP!BM:BM,BMM!B147)+SUMIFS(EQUIP!CC:CC,EQUIP!BN:BN,BMM!B147)+SUMIFS(EQUIP!CD:CD,EQUIP!BO:BO,BMM!B147)) -> 0 | L147: APL | M147: APLICAÇÃO
B148: 20/1320 | C148: 20 | D148: 1320 | E148: =VLOOKUP(B148,PREÇOS!$W$2:$AA$1918,5,FALSE) -> APLICAÇÃO LÃ DE ROCHA 3"X76,3 | F148: 1 | G148: =VLOOKUP(B148,PREÇOS!$W$2:$AB$1918,6,FALSE) -> m | H148: 0 | I148: =VLOOKUP(B148,PREÇOS!$W$2:$AA$1918,2,FALSE) -> 156.47 | J148: =(SUMIFS(TUB!BJ:BJ,TUB!AU:AU,BMM!B148)+SUMIFS(TUB!BK:BK,TUB!AV:AV,BMM!B148)+SUMIFS(TUB!BL:BL,TUB!AW:AW,BMM!B148)+SUMIFS(EQUIP!CB:CB,EQUIP!BM:BM,BMM!B148)+SUMIFS(EQUIP!CC:CC,EQUIP!BN:BN,BMM!B148)+SUMIFS(EQUIP!CD:CD,EQUIP!BO:BO,BMM!B148)) -> 0 | L148: APL | M148: APLICAÇÃO
B149: 20/1330 | C149: 20 | D149: 1330 | E149: =VLOOKUP(B149,PREÇOS!$W$2:$AA$1918,5,FALSE) -> APLICAÇÃO LÃ DE ROCHA 4"X25,4 | F149: 1 | G149: =VLOOKUP(B149,PREÇOS!$W$2:$AB$1918,6,FALSE) -> m | H149: 0 | I149: =VLOOKUP(B149,PREÇOS!$W$2:$AA$1918,2,FALSE) -> 116.14 | J149: =(SUMIFS(TUB!BJ:BJ,TUB!AU:AU,BMM!B149)+SUMIFS(TUB!BK:BK,TUB!AV:AV,BMM!B149)+SUMIFS(TUB!BL:BL,TUB!AW:AW,BMM!B149)+SUMIFS(EQUIP!CB:CB,EQUIP!BM:BM,BMM!B149)+SUMIFS(EQUIP!CC:CC,EQUIP!BN:BN,BMM!B149)+SUMIFS(EQUIP!CD:CD,EQUIP!BO:BO,BMM!B149)) -> 0 | L149: APL | M149: APLICAÇÃO
B150: 20/1340 | C150: 20 | D150: 1340 | E150: =VLOOKUP(B150,PREÇOS!$W$2:$AA$1918,5,FALSE) -> APLICAÇÃO LÃ DE ROCHA 4"X38,1 | F150: 1 | G150: =VLOOKUP(B150,PREÇOS!$W$2:$AB$1918,6,FALSE) -> m | H150: 0 | I150: =VLOOKUP(B150,PREÇOS!$W$2:$AA$1918,2,FALSE) -> 133.03 | J150: =(SUMIFS(TUB!BJ:BJ,TUB!AU:AU,BMM!B150)+SUMIFS(TUB!BK:BK,TUB!AV:AV,BMM!B150)+SUMIFS(TUB!BL:BL,TUB!AW:AW,BMM!B150)+SUMIFS(EQUIP!CB:CB,EQUIP!BM:BM,BMM!B150)+SUMIFS(EQUIP!CC:CC,EQUIP!BN:BN,BMM!B150)+SUMIFS(EQUIP!CD:CD,EQUIP!BO:BO,BMM!B150)) -> 0 | L150: APL | M150: APLICAÇÃO
B151: 20/1350 | C151: 20 | D151: 1350 | E151: =VLOOKUP(B151,PREÇOS!$W$2:$AA$1918,5,FALSE) -> APLICAÇÃO LÃ DE ROCHA 4"X50,8 | F151: 1 | G151: =VLOOKUP(B151,PREÇOS!$W$2:$AB$1918,6,FALSE) -> m | H151: 0 | I151: =VLOOKUP(B151,PREÇOS!$W$2:$AA$1918,2,FALSE) -> 148.22 | J151: =(SUMIFS(TUB!BJ:BJ,TUB!AU:AU,BMM!B151)+SUMIFS(TUB!BK:BK,TUB!AV:AV,BMM!B151)+SUMIFS(TUB!BL:BL,TUB!AW:AW,BMM!B151)+SUMIFS(EQUIP!CB:CB,EQUIP!BM:BM,BMM!B151)+SUMIFS(EQUIP!CC:CC,EQUIP!BN:BN,BMM!B151)+SUMIFS(EQUIP!CD:CD,EQUIP!BO:BO,BMM!B151)) -> 0 | L151: APL | M151: APLICAÇÃO
B152: 20/1360 | C152: 20 | D152: 1360 | E152: =VLOOKUP(B152,PREÇOS!$W$2:$AA$1918,5,FALSE) -> APLICAÇÃO LÃ DE ROCHA 4"X63,5 | F152: 1 | G152: =VLOOKUP(B152,PREÇOS!$W$2:$AB$1918,6,FALSE) -> m | H152: 0 | I152: =VLOOKUP(B152,PREÇOS!$W$2:$AA$1918,2,FALSE) -> 158.11 | J152: =(SUMIFS(TUB!BJ:BJ,TUB!AU:AU,BMM!B152)+SUMIFS(TUB!BK:BK,TUB!AV:AV,BMM!B152)+SUMIFS(TUB!BL:BL,TUB!AW:AW,BMM!B152)+SUMIFS(EQUIP!CB:CB,EQUIP!BM:BM,BMM!B152)+SUMIFS(EQUIP!CC:CC,EQUIP!BN:BN,BMM!B152)+SUMIFS(EQUIP!CD:CD,EQUIP!BO:BO,BMM!B152)) -> 0 | L152: APL | M152: APLICAÇÃO
B153: 20/1370 | C153: 20 | D153: 1370 | E153: =VLOOKUP(B153,PREÇOS!$W$2:$AA$1918,5,FALSE) -> APLICAÇÃO LÃ DE ROCHA 4"X76,3 | F153: 1 | G153: =VLOOKUP(B153,PREÇOS!$W$2:$AB$1918,6,FALSE) -> m | H153: 0 | I153: =VLOOKUP(B153,PREÇOS!$W$2:$AA$1918,2,FALSE) -> 174.33 | J153: =(SUMIFS(TUB!BJ:BJ,TUB!AU:AU,BMM!B153)+SUMIFS(TUB!BK:BK,TUB!AV:AV,BMM!B153)+SUMIFS(TUB!BL:BL,TUB!AW:AW,BMM!B153)+SUMIFS(EQUIP!CB:CB,EQUIP!BM:BM,BMM!B153)+SUMIFS(EQUIP!CC:CC,EQUIP!BN:BN,BMM!B153)+SUMIFS(EQUIP!CD:CD,EQUIP!BO:BO,BMM!B153)) -> 0 | L153: APL | M153: APLICAÇÃO
B154: 20/1380 | C154: 20 | D154: 1380 | E154: =VLOOKUP(B154,PREÇOS!$W$2:$AA$1918,5,FALSE) -> APLICAÇÃO LÃ DE ROCHA 6"X25,4 | F154: 1 | G154: =VLOOKUP(B154,PREÇOS!$W$2:$AB$1918,6,FALSE) -> m | H154: 0 | I154: =VLOOKUP(B154,PREÇOS!$W$2:$AA$1918,2,FALSE) -> 152.03 | J154: =(SUMIFS(TUB!BJ:BJ,TUB!AU:AU,BMM!B154)+SUMIFS(TUB!BK:BK,TUB!AV:AV,BMM!B154)+SUMIFS(TUB!BL:BL,TUB!AW:AW,BMM!B154)+SUMIFS(EQUIP!CB:CB,EQUIP!BM:BM,BMM!B154)+SUMIFS(EQUIP!CC:CC,EQUIP!BN:BN,BMM!B154)+SUMIFS(EQUIP!CD:CD,EQUIP!BO:BO,BMM!B154)) -> 0 | L154: APL | M154: APLICAÇÃO
B155: 20/1390 | C155: 20 | D155: 1390 | E155: =VLOOKUP(B155,PREÇOS!$W$2:$AA$1918,5,FALSE) -> APLICAÇÃO LÃ DE ROCHA 6"X38,1 | F155: 1 | G155: =VLOOKUP(B155,PREÇOS!$W$2:$AB$1918,6,FALSE) -> m | H155: 0 | I155: =VLOOKUP(B155,PREÇOS!$W$2:$AA$1918,2,FALSE) -> 168.93 | J155: =(SUMIFS(TUB!BJ:BJ,TUB!AU:AU,BMM!B155)+SUMIFS(TUB!BK:BK,TUB!AV:AV,BMM!B155)+SUMIFS(TUB!BL:BL,TUB!AW:AW,BMM!B155)+SUMIFS(EQUIP!CB:CB,EQUIP!BM:BM,BMM!B155)+SUMIFS(EQUIP!CC:CC,EQUIP!BN:BN,BMM!B155)+SUMIFS(EQUIP!CD:CD,EQUIP!BO:BO,BMM!B155)) -> 0 | L155: APL | M155: APLICAÇÃO
B156: 20/1400 | C156: 20 | D156: 1400 | E156: =VLOOKUP(B156,PREÇOS!$W$2:$AA$1918,5,FALSE) -> APLICAÇÃO LÃ DE ROCHA 6"X50,8 | F156: 1 | G156: =VLOOKUP(B156,PREÇOS!$W$2:$AB$1918,6,FALSE) -> m | H156: 0 | I156: =VLOOKUP(B156,PREÇOS!$W$2:$AA$1918,2,FALSE) -> 183.41 | J156: =(SUMIFS(TUB!BJ:BJ,TUB!AU:AU,BMM!B156)+SUMIFS(TUB!BK:BK,TUB!AV:AV,BMM!B156)+SUMIFS(TUB!BL:BL,TUB!AW:AW,BMM!B156)+SUMIFS(EQUIP!CB:CB,EQUIP!BM:BM,BMM!B156)+SUMIFS(EQUIP!CC:CC,EQUIP!BN:BN,BMM!B156)+SUMIFS(EQUIP!CD:CD,EQUIP!BO:BO,BMM!B156)) -> 0 | L156: APL | M156: APLICAÇÃO
B157: 20/1410 | C157: 20 | D157: 1410 | E157: =VLOOKUP(B157,PREÇOS!$W$2:$AA$1918,5,FALSE) -> APLICAÇÃO LÃ DE ROCHA 6"X63,5 | F157: 1 | G157: =VLOOKUP(B157,PREÇOS!$W$2:$AB$1918,6,FALSE) -> m | H157: 0 | I157: =VLOOKUP(B157,PREÇOS!$W$2:$AA$1918,2,FALSE) -> 200.6 | J157: =(SUMIFS(TUB!BJ:BJ,TUB!AU:AU,BMM!B157)+SUMIFS(TUB!BK:BK,TUB!AV:AV,BMM!B157)+SUMIFS(TUB!BL:BL,TUB!AW:AW,BMM!B157)+SUMIFS(EQUIP!CB:CB,EQUIP!BM:BM,BMM!B157)+SUMIFS(EQUIP!CC:CC,EQUIP!BN:BN,BMM!B157)+SUMIFS(EQUIP!CD:CD,EQUIP!BO:BO,BMM!B157)) -> 0 | L157: APL | M157: APLICAÇÃO
B158: 20/1420 | C158: 20 | D158: 1420 | E158: =VLOOKUP(B158,PREÇOS!$W$2:$AA$1918,5,FALSE) -> APLICAÇÃO LÃ DE ROCHA 6"X76,3 | F158: 1 | G158: =VLOOKUP(B158,PREÇOS!$W$2:$AB$1918,6,FALSE) -> m | H158: 0 | I158: =VLOOKUP(B158,PREÇOS!$W$2:$AA$1918,2,FALSE) -> 206.62 | J158: =(SUMIFS(TUB!BJ:BJ,TUB!AU:AU,BMM!B158)+SUMIFS(TUB!BK:BK,TUB!AV:AV,BMM!B158)+SUMIFS(TUB!BL:BL,TUB!AW:AW,BMM!B158)+SUMIFS(EQUIP!CB:CB,EQUIP!BM:BM,BMM!B158)+SUMIFS(EQUIP!CC:CC,EQUIP!BN:BN,BMM!B158)+SUMIFS(EQUIP!CD:CD,EQUIP!BO:BO,BMM!B158)) -> 0 | L158: APL | M158: APLICAÇÃO
B159: 20/1430 | C159: 20 | D159: 1430 | E159: =VLOOKUP(B159,PREÇOS!$W$2:$AA$1918,5,FALSE) -> APLICAÇÃO LÃ DE ROCHA 8"X25,4 | F159: 1 | G159: =VLOOKUP(B159,PREÇOS!$W$2:$AB$1918,6,FALSE) -> m | H159: 0 | I159: =VLOOKUP(B159,PREÇOS!$W$2:$AA$1918,2,FALSE) -> 185.82 | J159: =(SUMIFS(TUB!BJ:BJ,TUB!AU:AU,BMM!B159)+SUMIFS(TUB!BK:BK,TUB!AV:AV,BMM!B159)+SUMIFS(TUB!BL:BL,TUB!AW:AW,BMM!B159)+SUMIFS(EQUIP!CB:CB,EQUIP!BM:BM,BMM!B159)+SUMIFS(EQUIP!CC:CC,EQUIP!BN:BN,BMM!B159)+SUMIFS(EQUIP!CD:CD,EQUIP!BO:BO,BMM!B159)) -> 0 | L159: APL | M159: APLICAÇÃO
B160: 20/1440 | C160: 20 | D160: 1440 | E160: =VLOOKUP(B160,PREÇOS!$W$2:$AA$1918,5,FALSE) -> APLICAÇÃO LÃ DE ROCHA 8"X38,1 | F160: 1 | G160: =VLOOKUP(B160,PREÇOS!$W$2:$AB$1918,6,FALSE) -> m | H160: 0 | I160: =VLOOKUP(B160,PREÇOS!$W$2:$AA$1918,2,FALSE) -> 192.56 | J160: =(SUMIFS(TUB!BJ:BJ,TUB!AU:AU,BMM!B160)+SUMIFS(TUB!BK:BK,TUB!AV:AV,BMM!B160)+SUMIFS(TUB!BL:BL,TUB!AW:AW,BMM!B160)+SUMIFS(EQUIP!CB:CB,EQUIP!BM:BM,BMM!B160)+SUMIFS(EQUIP!CC:CC,EQUIP!BN:BN,BMM!B160)+SUMIFS(EQUIP!CD:CD,EQUIP!BO:BO,BMM!B160)) -> 0 | L160: APL | M160: APLICAÇÃO
B161: 20/1450 | C161: 20 | D161: 1450 | E161: =VLOOKUP(B161,PREÇOS!$W$2:$AA$1918,5,FALSE) -> APLICAÇÃO LÃ DE ROCHA 8"X50,8 | F161: 1 | G161: =VLOOKUP(B161,PREÇOS!$W$2:$AB$1918,6,FALSE) -> m | H161: 0 | I161: =VLOOKUP(B161,PREÇOS!$W$2:$AA$1918,2,FALSE) -> 196.27 | J161: =(SUMIFS(TUB!BJ:BJ,TUB!AU:AU,BMM!B161)+SUMIFS(TUB!BK:BK,TUB!AV:AV,BMM!B161)+SUMIFS(TUB!BL:BL,TUB!AW:AW,BMM!B161)+SUMIFS(EQUIP!CB:CB,EQUIP!BM:BM,BMM!B161)+SUMIFS(EQUIP!CC:CC,EQUIP!BN:BN,BMM!B161)+SUMIFS(EQUIP!CD:CD,EQUIP!BO:BO,BMM!B161)) -> 0 | L161: APL | M161: APLICAÇÃO
B162: 20/1460 | C162: 20 | D162: 1460 | E162: =VLOOKUP(B162,PREÇOS!$W$2:$AA$1918,5,FALSE) -> APLICAÇÃO LÃ DE ROCHA 8"X63,5 | F162: 1 | G162: =VLOOKUP(B162,PREÇOS!$W$2:$AB$1918,6,FALSE) -> m | H162: 0 | I162: =VLOOKUP(B162,PREÇOS!$W$2:$AA$1918,2,FALSE) -> 199.98 | J162: =(SUMIFS(TUB!BJ:BJ,TUB!AU:AU,BMM!B162)+SUMIFS(TUB!BK:BK,TUB!AV:AV,BMM!B162)+SUMIFS(TUB!BL:BL,TUB!AW:AW,BMM!B162)+SUMIFS(EQUIP!CB:CB,EQUIP!BM:BM,BMM!B162)+SUMIFS(EQUIP!CC:CC,EQUIP!BN:BN,BMM!B162)+SUMIFS(EQUIP!CD:CD,EQUIP!BO:BO,BMM!B162)) -> 0 | L162: APL | M162: APLICAÇÃO
B163: 20/1470 | C163: 20 | D163: 1470 | E163: =VLOOKUP(B163,PREÇOS!$W$2:$AA$1918,5,FALSE) -> APLICAÇÃO LÃ DE ROCHA 8"X76,3 | F163: 1 | G163: =VLOOKUP(B163,PREÇOS!$W$2:$AB$1918,6,FALSE) -> m | H163: 0 | I163: =VLOOKUP(B163,PREÇOS!$W$2:$AA$1918,2,FALSE) -> 203.69 | J163: =(SUMIFS(TUB!BJ:BJ,TUB!AU:AU,BMM!B163)+SUMIFS(TUB!BK:BK,TUB!AV:AV,BMM!B163)+SUMIFS(TUB!BL:BL,TUB!AW:AW,BMM!B163)+SUMIFS(EQUIP!CB:CB,EQUIP!BM:BM,BMM!B163)+SUMIFS(EQUIP!CC:CC,EQUIP!BN:BN,BMM!B163)+SUMIFS(EQUIP!CD:CD,EQUIP!BO:BO,BMM!B163)) -> 0 | L163: APL | M163: APLICAÇÃO
B164: 20/1480 | C164: 20 | D164: 1480 | E164: =VLOOKUP(B164,PREÇOS!$W$2:$AA$1918,5,FALSE) -> APLICAÇÃO LÃ DE ROCHA 10"X25,4 | F164: 1 | G164: =VLOOKUP(B164,PREÇOS!$W$2:$AB$1918,6,FALSE) -> m | H164: 0 | I164: =VLOOKUP(B164,PREÇOS!$W$2:$AA$1918,2,FALSE) -> 214.53 | J164: =(SUMIFS(TUB!BJ:BJ,TUB!AU:AU,BMM!B164)+SUMIFS(TUB!BK:BK,TUB!AV:AV,BMM!B164)+SUMIFS(TUB!BL:BL,TUB!AW:AW,BMM!B164)+SUMIFS(EQUIP!CB:CB,EQUIP!BM:BM,BMM!B164)+SUMIFS(EQUIP!CC:CC,EQUIP!BN:BN,BMM!B164)+SUMIFS(EQUIP!CD:CD,EQUIP!BO:BO,BMM!B164)) -> 0 | L164: APL | M164: APLICAÇÃO
B165: 20/1490 | C165: 20 | D165: 1490 | E165: =VLOOKUP(B165,PREÇOS!$W$2:$AA$1918,5,FALSE) -> APLICAÇÃO LÃ DE ROCHA 10"X38,1 | F165: 1 | G165: =VLOOKUP(B165,PREÇOS!$W$2:$AB$1918,6,FALSE) -> m | H165: 0 | I165: =VLOOKUP(B165,PREÇOS!$W$2:$AA$1918,2,FALSE) -> 215.87 | J165: =(SUMIFS(TUB!BJ:BJ,TUB!AU:AU,BMM!B165)+SUMIFS(TUB!BK:BK,TUB!AV:AV,BMM!B165)+SUMIFS(TUB!BL:BL,TUB!AW:AW,BMM!B165)+SUMIFS(EQUIP!CB:CB,EQUIP!BM:BM,BMM!B165)+SUMIFS(EQUIP!CC:CC,EQUIP!BN:BN,BMM!B165)+SUMIFS(EQUIP!CD:CD,EQUIP!BO:BO,BMM!B165)) -> 0 | L165: APL | M165: APLICAÇÃO
B166: 20/1500 | C166: 20 | D166: 1500 | E166: =VLOOKUP(B166,PREÇOS!$W$2:$AA$1918,5,FALSE) -> APLICAÇÃO LÃ DE ROCHA 10"X50,8 | F166: 1 | G166: =VLOOKUP(B166,PREÇOS!$W$2:$AB$1918,6,FALSE) -> m | H166: 0 | I166: =VLOOKUP(B166,PREÇOS!$W$2:$AA$1918,2,FALSE) -> 217.93 | J166: =(SUMIFS(TUB!BJ:BJ,TUB!AU:AU,BMM!B166)+SUMIFS(TUB!BK:BK,TUB!AV:AV,BMM!B166)+SUMIFS(TUB!BL:BL,TUB!AW:AW,BMM!B166)+SUMIFS(EQUIP!CB:CB,EQUIP!BM:BM,BMM!B166)+SUMIFS(EQUIP!CC:CC,EQUIP!BN:BN,BMM!B166)+SUMIFS(EQUIP!CD:CD,EQUIP!BO:BO,BMM!B166)) -> 0 | L166: APL | M166: APLICAÇÃO
B167: 20/1510 | C167: 20 | D167: 1510 | E167: =VLOOKUP(B167,PREÇOS!$W$2:$AA$1918,5,FALSE) -> APLICAÇÃO LÃ DE ROCHA 10"X63,5 | F167: 1 | G167: =VLOOKUP(B167,PREÇOS!$W$2:$AB$1918,6,FALSE) -> m | H167: 0 | I167: =VLOOKUP(B167,PREÇOS!$W$2:$AA$1918,2,FALSE) -> 235.94 | J167: =(SUMIFS(TUB!BJ:BJ,TUB!AU:AU,BMM!B167)+SUMIFS(TUB!BK:BK,TUB!AV:AV,BMM!B167)+SUMIFS(TUB!BL:BL,TUB!AW:AW,BMM!B167)+SUMIFS(EQUIP!CB:CB,EQUIP!BM:BM,BMM!B167)+SUMIFS(EQUIP!CC:CC,EQUIP!BN:BN,BMM!B167)+SUMIFS(EQUIP!CD:CD,EQUIP!BO:BO,BMM!B167)) -> 0 | L167: APL | M167: APLICAÇÃO
B168: 20/1520 | C168: 20 | D168: 1520 | E168: =VLOOKUP(B168,PREÇOS!$W$2:$AA$1918,5,FALSE) -> APLICAÇÃO LÃ DE ROCHA 10"X76,3 | F168: 1 | G168: =VLOOKUP(B168,PREÇOS!$W$2:$AB$1918,6,FALSE) -> m | H168: 0 | I168: =VLOOKUP(B168,PREÇOS!$W$2:$AA$1918,2,FALSE) -> 238.79 | J168: =(SUMIFS(TUB!BJ:BJ,TUB!AU:AU,BMM!B168)+SUMIFS(TUB!BK:BK,TUB!AV:AV,BMM!B168)+SUMIFS(TUB!BL:BL,TUB!AW:AW,BMM!B168)+SUMIFS(EQUIP!CB:CB,EQUIP!BM:BM,BMM!B168)+SUMIFS(EQUIP!CC:CC,EQUIP!BN:BN,BMM!B168)+SUMIFS(EQUIP!CD:CD,EQUIP!BO:BO,BMM!B168)) -> 0 | L168: APL | M168: APLICAÇÃO
B169: 20/1530 | C169: 20 | D169: 1530 | E169: =VLOOKUP(B169,PREÇOS!$W$2:$AA$1918,5,FALSE) -> APLICAÇÃO LÃ DE ROCHA 12"X25,4 | F169: 1 | G169: =VLOOKUP(B169,PREÇOS!$W$2:$AB$1918,6,FALSE) -> m | H169: 0 | I169: =VLOOKUP(B169,PREÇOS!$W$2:$AA$1918,2,FALSE) -> 248.05 | J169: =(SUMIFS(TUB!BJ:BJ,TUB!AU:AU,BMM!B169)+SUMIFS(TUB!BK:BK,TUB!AV:AV,BMM!B169)+SUMIFS(TUB!BL:BL,TUB!AW:AW,BMM!B169)+SUMIFS(EQUIP!CB:CB,EQUIP!BM:BM,BMM!B169)+SUMIFS(EQUIP!CC:CC,EQUIP!BN:BN,BMM!B169)+SUMIFS(EQUIP!CD:CD,EQUIP!BO:BO,BMM!B169)) -> 0 | L169: APL | M169: APLICAÇÃO
B170: 20/1540 | C170: 20 | D170: 1540 | E170: =VLOOKUP(B170,PREÇOS!$W$2:$AA$1918,5,FALSE) -> APLICAÇÃO LÃ DE ROCHA 12"X38,1 | F170: 1 | G170: =VLOOKUP(B170,PREÇOS!$W$2:$AB$1918,6,FALSE) -> m | H170: 0 | I170: =VLOOKUP(B170,PREÇOS!$W$2:$AA$1918,2,FALSE) -> 249.37 | J170: =(SUMIFS(TUB!BJ:BJ,TUB!AU:AU,BMM!B170)+SUMIFS(TUB!BK:BK,TUB!AV:AV,BMM!B170)+SUMIFS(TUB!BL:BL,TUB!AW:AW,BMM!B170)+SUMIFS(EQUIP!CB:CB,EQUIP!BM:BM,BMM!B170)+SUMIFS(EQUIP!CC:CC,EQUIP!BN:BN,BMM!B170)+SUMIFS(EQUIP!CD:CD,EQUIP!BO:BO,BMM!B170)) -> 0 | L170: APL | M170: APLICAÇÃO
B171: 20/1550 | C171: 20 | D171: 1550 | E171: =VLOOKUP(B171,PREÇOS!$W$2:$AA$1918,5,FALSE) -> APLICAÇÃO LÃ DE ROCHA 12"X50,8 | F171: 1 | G171: =VLOOKUP(B171,PREÇOS!$W$2:$AB$1918,6,FALSE) -> m | H171: 0 | I171: =VLOOKUP(B171,PREÇOS!$W$2:$AA$1918,2,FALSE) -> 250.41 | J171: =(SUMIFS(TUB!BJ:BJ,TUB!AU:AU,BMM!B171)+SUMIFS(TUB!BK:BK,TUB!AV:AV,BMM!B171)+SUMIFS(TUB!BL:BL,TUB!AW:AW,BMM!B171)+SUMIFS(EQUIP!CB:CB,EQUIP!BM:BM,BMM!B171)+SUMIFS(EQUIP!CC:CC,EQUIP!BN:BN,BMM!B171)+SUMIFS(EQUIP!CD:CD,EQUIP!BO:BO,BMM!B171)) -> 0 | L171: APL | M171: APLICAÇÃO
B172: 20/1560 | C172: 20 | D172: 1560 | E172: =VLOOKUP(B172,PREÇOS!$W$2:$AA$1918,5,FALSE) -> APLICAÇÃO LÃ DE ROCHA 12"X63,5 | F172: 1 | G172: =VLOOKUP(B172,PREÇOS!$W$2:$AB$1918,6,FALSE) -> m | H172: 0 | I172: =VLOOKUP(B172,PREÇOS!$W$2:$AA$1918,2,FALSE) -> 254.75 | J172: =(SUMIFS(TUB!BJ:BJ,TUB!AU:AU,BMM!B172)+SUMIFS(TUB!BK:BK,TUB!AV:AV,BMM!B172)+SUMIFS(TUB!BL:BL,TUB!AW:AW,BMM!B172)+SUMIFS(EQUIP!CB:CB,EQUIP!BM:BM,BMM!B172)+SUMIFS(EQUIP!CC:CC,EQUIP!BN:BN,BMM!B172)+SUMIFS(EQUIP!CD:CD,EQUIP!BO:BO,BMM!B172)) -> 0 | L172: APL | M172: APLICAÇÃO
B173: 20/1570 | C173: 20 | D173: 1570 | E173: =VLOOKUP(B173,PREÇOS!$W$2:$AA$1918,5,FALSE) -> APLICAÇÃO LÃ DE ROCHA 12"X76,3 | F173: 1 | G173: =VLOOKUP(B173,PREÇOS!$W$2:$AB$1918,6,FALSE) -> m | H173: 0 | I173: =VLOOKUP(B173,PREÇOS!$W$2:$AA$1918,2,FALSE) -> 256.46 | J173: =(SUMIFS(TUB!BJ:BJ,TUB!AU:AU,BMM!B173)+SUMIFS(TUB!BK:BK,TUB!AV:AV,BMM!B173)+SUMIFS(TUB!BL:BL,TUB!AW:AW,BMM!B173)+SUMIFS(EQUIP!CB:CB,EQUIP!BM:BM,BMM!B173)+SUMIFS(EQUIP!CC:CC,EQUIP!BN:BN,BMM!B173)+SUMIFS(EQUIP!CD:CD,EQUIP!BO:BO,BMM!B173)) -> 0 | L173: APL | M173: APLICAÇÃO
B174: 20/1580 | C174: 20 | D174: 1580 | E174: =VLOOKUP(B174,PREÇOS!$W$2:$AA$1918,5,FALSE) -> APLICAÇÃO LÃ DE ROCHA 14"X25,4 | F174: 1 | G174: =VLOOKUP(B174,PREÇOS!$W$2:$AB$1918,6,FALSE) -> m | H174: 0 | I174: =VLOOKUP(B174,PREÇOS!$W$2:$AA$1918,2,FALSE) -> 268.3 | J174: =(SUMIFS(TUB!BJ:BJ,TUB!AU:AU,BMM!B174)+SUMIFS(TUB!BK:BK,TUB!AV:AV,BMM!B174)+SUMIFS(TUB!BL:BL,TUB!AW:AW,BMM!B174)+SUMIFS(EQUIP!CB:CB,EQUIP!BM:BM,BMM!B174)+SUMIFS(EQUIP!CC:CC,EQUIP!BN:BN,BMM!B174)+SUMIFS(EQUIP!CD:CD,EQUIP!BO:BO,BMM!B174)) -> 0 | L174: APL | M174: APLICAÇÃO
B175: 20/1590 | C175: 20 | D175: 1590 | E175: =VLOOKUP(B175,PREÇOS!$W$2:$AA$1918,5,FALSE) -> APLICAÇÃO LÃ DE ROCHA 14"X38,1 | F175: 1 | G175: =VLOOKUP(B175,PREÇOS!$W$2:$AB$1918,6,FALSE) -> m | H175: 0 | I175: =VLOOKUP(B175,PREÇOS!$W$2:$AA$1918,2,FALSE) -> 281.56 | J175: =(SUMIFS(TUB!BJ:BJ,TUB!AU:AU,BMM!B175)+SUMIFS(TUB!BK:BK,TUB!AV:AV,BMM!B175)+SUMIFS(TUB!BL:BL,TUB!AW:AW,BMM!B175)+SUMIFS(EQUIP!CB:CB,EQUIP!BM:BM,BMM!B175)+SUMIFS(EQUIP!CC:CC,EQUIP!BN:BN,BMM!B175)+SUMIFS(EQUIP!CD:CD,EQUIP!BO:BO,BMM!B175)) -> 0 | L175: APL | M175: APLICAÇÃO
B176: 20/1600 | C176: 20 | D176: 1600 | E176: =VLOOKUP(B176,PREÇOS!$W$2:$AA$1918,5,FALSE) -> APLICAÇÃO LÃ DE ROCHA 14"X50,8 | F176: 1 | G176: =VLOOKUP(B176,PREÇOS!$W$2:$AB$1918,6,FALSE) -> m | H176: 0 | I176: =VLOOKUP(B176,PREÇOS!$W$2:$AA$1918,2,FALSE) -> 293.61 | J176: =(SUMIFS(TUB!BJ:BJ,TUB!AU:AU,BMM!B176)+SUMIFS(TUB!BK:BK,TUB!AV:AV,BMM!B176)+SUMIFS(TUB!BL:BL,TUB!AW:AW,BMM!B176)+SUMIFS(EQUIP!CB:CB,EQUIP!BM:BM,BMM!B176)+SUMIFS(EQUIP!CC:CC,EQUIP!BN:BN,BMM!B176)+SUMIFS(EQUIP!CD:CD,EQUIP!BO:BO,BMM!B176)) -> 0 | L176: APL | M176: APLICAÇÃO
B177: 20/1610 | C177: 20 | D177: 1610 | E177: =VLOOKUP(B177,PREÇOS!$W$2:$AA$1918,5,FALSE) -> APLICAÇÃO LÃ DE ROCHA 14"X63,5 | F177: 1 | G177: =VLOOKUP(B177,PREÇOS!$W$2:$AB$1918,6,FALSE) -> m | H177: 0 | I177: =VLOOKUP(B177,PREÇOS!$W$2:$AA$1918,2,FALSE) -> 316.85 | J177: =(SUMIFS(TUB!BJ:BJ,TUB!AU:AU,BMM!B177)+SUMIFS(TUB!BK:BK,TUB!AV:AV,BMM!B177)+SUMIFS(TUB!BL:BL,TUB!AW:AW,BMM!B177)+SUMIFS(EQUIP!CB:CB,EQUIP!BM:BM,BMM!B177)+SUMIFS(EQUIP!CC:CC,EQUIP!BN:BN,BMM!B177)+SUMIFS(EQUIP!CD:CD,EQUIP!BO:BO,BMM!B177)) -> 0 | L177: APL | M177: APLICAÇÃO
B178: 20/1620 | C178: 20 | D178: 1620 | E178: =VLOOKUP(B178,PREÇOS!$W$2:$AA$1918,5,FALSE) -> APLICAÇÃO LÃ DE ROCHA 14"X76,3 | F178: 1 | G178: =VLOOKUP(B178,PREÇOS!$W$2:$AB$1918,6,FALSE) -> m | H178: 0 | I178: =VLOOKUP(B178,PREÇOS!$W$2:$AA$1918,2,FALSE) -> 325.19 | J178: =(SUMIFS(TUB!BJ:BJ,TUB!AU:AU,BMM!B178)+SUMIFS(TUB!BK:BK,TUB!AV:AV,BMM!B178)+SUMIFS(TUB!BL:BL,TUB!AW:AW,BMM!B178)+SUMIFS(EQUIP!CB:CB,EQUIP!BM:BM,BMM!B178)+SUMIFS(EQUIP!CC:CC,EQUIP!BN:BN,BMM!B178)+SUMIFS(EQUIP!CD:CD,EQUIP!BO:BO,BMM!B178)) -> 0 | L178: APL | M178: APLICAÇÃO
B179: 20/1630 | C179: 20 | D179: 1630 | E179: =VLOOKUP(B179,PREÇOS!$W$2:$AA$1918,5,FALSE) -> APLICAÇÃO LÃ DE ROCHA 16"X38,1 | F179: 1 | G179: =VLOOKUP(B179,PREÇOS!$W$2:$AB$1918,6,FALSE) -> m | H179: 0 | I179: =VLOOKUP(B179,PREÇOS!$W$2:$AA$1918,2,FALSE) -> 309.4 | J179: =(SUMIFS(TUB!BJ:BJ,TUB!AU:AU,BMM!B179)+SUMIFS(TUB!BK:BK,TUB!AV:AV,BMM!B179)+SUMIFS(TUB!BL:BL,TUB!AW:AW,BMM!B179)+SUMIFS(EQUIP!CB:CB,EQUIP!BM:BM,BMM!B179)+SUMIFS(EQUIP!CC:CC,EQUIP!BN:BN,BMM!B179)+SUMIFS(EQUIP!CD:CD,EQUIP!BO:BO,BMM!B179)) -> 0 | L179: APL | M179: APLICAÇÃO
B180: 20/1640 | C180: 20 | D180: 1640 | E180: =VLOOKUP(B180,PREÇOS!$W$2:$AA$1918,5,FALSE) -> APLICAÇÃO LÃ DE ROCHA 16"X50,8 | F180: 1 | G180: =VLOOKUP(B180,PREÇOS!$W$2:$AB$1918,6,FALSE) -> m | H180: 0 | I180: =VLOOKUP(B180,PREÇOS!$W$2:$AA$1918,2,FALSE) -> 325.19 | J180: =(SUMIFS(TUB!BJ:BJ,TUB!AU:AU,BMM!B180)+SUMIFS(TUB!BK:BK,TUB!AV:AV,BMM!B180)+SUMIFS(TUB!BL:BL,TUB!AW:AW,BMM!B180)+SUMIFS(EQUIP!CB:CB,EQUIP!BM:BM,BMM!B180)+SUMIFS(EQUIP!CC:CC,EQUIP!BN:BN,BMM!B180)+SUMIFS(EQUIP!CD:CD,EQUIP!BO:BO,BMM!B180)) -> 0 | L180: APL | M180: APLICAÇÃO
B181: 20/1650 | C181: 20 | D181: 1650 | E181: =VLOOKUP(B181,PREÇOS!$W$2:$AA$1918,5,FALSE) -> APLICAÇÃO LÃ DE ROCHA 16"X63,5 | F181: 1 | G181: =VLOOKUP(B181,PREÇOS!$W$2:$AB$1918,6,FALSE) -> m | H181: 0 | I181: =VLOOKUP(B181,PREÇOS!$W$2:$AA$1918,2,FALSE) -> 333.52 | J181: =(SUMIFS(TUB!BJ:BJ,TUB!AU:AU,BMM!B181)+SUMIFS(TUB!BK:BK,TUB!AV:AV,BMM!B181)+SUMIFS(TUB!BL:BL,TUB!AW:AW,BMM!B181)+SUMIFS(EQUIP!CB:CB,EQUIP!BM:BM,BMM!B181)+SUMIFS(EQUIP!CC:CC,EQUIP!BN:BN,BMM!B181)+SUMIFS(EQUIP!CD:CD,EQUIP!BO:BO,BMM!B181)) -> 0 | L181: APL | M181: APLICAÇÃO
B182: 20/1660 | C182: 20 | D182: 1660 | E182: =VLOOKUP(B182,PREÇOS!$W$2:$AA$1918,5,FALSE) -> APLICAÇÃO LÃ DE ROCHA 16"X76,3 | F182: 1 | G182: =VLOOKUP(B182,PREÇOS!$W$2:$AB$1918,6,FALSE) -> m | H182: 0 | I182: =VLOOKUP(B182,PREÇOS!$W$2:$AA$1918,2,FALSE) -> 356.75 | J182: =(SUMIFS(TUB!BJ:BJ,TUB!AU:AU,BMM!B182)+SUMIFS(TUB!BK:BK,TUB!AV:AV,BMM!B182)+SUMIFS(TUB!BL:BL,TUB!AW:AW,BMM!B182)+SUMIFS(EQUIP!CB:CB,EQUIP!BM:BM,BMM!B182)+SUMIFS(EQUIP!CC:CC,EQUIP!BN:BN,BMM!B182)+SUMIFS(EQUIP!CD:CD,EQUIP!BO:BO,BMM!B182)) -> 0 | L182: APL | M182: APLICAÇÃO
B183: 20/1670 | C183: 20 | D183: 1670 | E183: =VLOOKUP(B183,PREÇOS!$W$2:$AA$1918,5,FALSE) -> APLICAÇÃO LÃ DE ROCHA 18"X38,1 | F183: 1 | G183: =VLOOKUP(B183,PREÇOS!$W$2:$AB$1918,6,FALSE) -> m | H183: 0 | I183: =VLOOKUP(B183,PREÇOS!$W$2:$AA$1918,2,FALSE) -> 312.68 | J183: =(SUMIFS(TUB!BJ:BJ,TUB!AU:AU,BMM!B183)+SUMIFS(TUB!BK:BK,TUB!AV:AV,BMM!B183)+SUMIFS(TUB!BL:BL,TUB!AW:AW,BMM!B183)+SUMIFS(EQUIP!CB:CB,EQUIP!BM:BM,BMM!B183)+SUMIFS(EQUIP!CC:CC,EQUIP!BN:BN,BMM!B183)+SUMIFS(EQUIP!CD:CD,EQUIP!BO:BO,BMM!B183)) -> 0 | L183: APL | M183: APLICAÇÃO
B184: 20/1680 | C184: 20 | D184: 1680 | E184: =VLOOKUP(B184,PREÇOS!$W$2:$AA$1918,5,FALSE) -> APLICAÇÃO LÃ DE ROCHA 18"X50,8 | F184: 1 | G184: =VLOOKUP(B184,PREÇOS!$W$2:$AB$1918,6,FALSE) -> m | H184: 0 | I184: =VLOOKUP(B184,PREÇOS!$W$2:$AA$1918,2,FALSE) -> 327.57 | J184: =(SUMIFS(TUB!BJ:BJ,TUB!AU:AU,BMM!B184)+SUMIFS(TUB!BK:BK,TUB!AV:AV,BMM!B184)+SUMIFS(TUB!BL:BL,TUB!AW:AW,BMM!B184)+SUMIFS(EQUIP!CB:CB,EQUIP!BM:BM,BMM!B184)+SUMIFS(EQUIP!CC:CC,EQUIP!BN:BN,BMM!B184)+SUMIFS(EQUIP!CD:CD,EQUIP!BO:BO,BMM!B184)) -> 0 | L184: APL | M184: APLICAÇÃO
B185: 20/1690 | C185: 20 | D185: 1690 | E185: =VLOOKUP(B185,PREÇOS!$W$2:$AA$1918,5,FALSE) -> APLICAÇÃO LÃ DE ROCHA 18"X63,5 | F185: 1 | G185: =VLOOKUP(B185,PREÇOS!$W$2:$AB$1918,6,FALSE) -> m | H185: 0 | I185: =VLOOKUP(B185,PREÇOS!$W$2:$AA$1918,2,FALSE) -> 331.29 | J185: =(SUMIFS(TUB!BJ:BJ,TUB!AU:AU,BMM!B185)+SUMIFS(TUB!BK:BK,TUB!AV:AV,BMM!B185)+SUMIFS(TUB!BL:BL,TUB!AW:AW,BMM!B185)+SUMIFS(EQUIP!CB:CB,EQUIP!BM:BM,BMM!B185)+SUMIFS(EQUIP!CC:CC,EQUIP!BN:BN,BMM!B185)+SUMIFS(EQUIP!CD:CD,EQUIP!BO:BO,BMM!B185)) -> 0 | L185: APL | M185: APLICAÇÃO
B186: 20/1700 | C186: 20 | D186: 1700 | E186: =VLOOKUP(B186,PREÇOS!$W$2:$AA$1918,5,FALSE) -> APLICAÇÃO LÃ DE ROCHA 18"X76,3 | F186: 1 | G186: =VLOOKUP(B186,PREÇOS!$W$2:$AB$1918,6,FALSE) -> m | H186: 0 | I186: =VLOOKUP(B186,PREÇOS!$W$2:$AA$1918,2,FALSE) -> 332.03 | J186: =(SUMIFS(TUB!BJ:BJ,TUB!AU:AU,BMM!B186)+SUMIFS(TUB!BK:BK,TUB!AV:AV,BMM!B186)+SUMIFS(TUB!BL:BL,TUB!AW:AW,BMM!B186)+SUMIFS(EQUIP!CB:CB,EQUIP!BM:BM,BMM!B186)+SUMIFS(EQUIP!CC:CC,EQUIP!BN:BN,BMM!B186)+SUMIFS(EQUIP!CD:CD,EQUIP!BO:BO,BMM!B186)) -> 0 | L186: APL | M186: APLICAÇÃO
B187: 20/1710 | C187: 20 | D187: 1710 | E187: =VLOOKUP(B187,PREÇOS!$W$2:$AA$1918,5,FALSE) -> APLICAÇÃO LÃ DE ROCHA 20"X38,1 | F187: 1 | G187: =VLOOKUP(B187,PREÇOS!$W$2:$AB$1918,6,FALSE) -> m | H187: 0 | I187: =VLOOKUP(B187,PREÇOS!$W$2:$AA$1918,2,FALSE) -> 335.01 | J187: =(SUMIFS(TUB!BJ:BJ,TUB!AU:AU,BMM!B187)+SUMIFS(TUB!BK:BK,TUB!AV:AV,BMM!B187)+SUMIFS(TUB!BL:BL,TUB!AW:AW,BMM!B187)+SUMIFS(EQUIP!CB:CB,EQUIP!BM:BM,BMM!B187)+SUMIFS(EQUIP!CC:CC,EQUIP!BN:BN,BMM!B187)+SUMIFS(EQUIP!CD:CD,EQUIP!BO:BO,BMM!B187)) -> 0 | L187: APL | M187: APLICAÇÃO
B188: 20/1720 | C188: 20 | D188: 1720 | E188: =VLOOKUP(B188,PREÇOS!$W$2:$AA$1918,5,FALSE) -> APLICAÇÃO LÃ DE ROCHA 20"X50,8 | F188: 1 | G188: =VLOOKUP(B188,PREÇOS!$W$2:$AB$1918,6,FALSE) -> m | H188: 0 | I188: =VLOOKUP(B188,PREÇOS!$W$2:$AA$1918,2,FALSE) -> 357.34 | J188: =(SUMIFS(TUB!BJ:BJ,TUB!AU:AU,BMM!B188)+SUMIFS(TUB!BK:BK,TUB!AV:AV,BMM!B188)+SUMIFS(TUB!BL:BL,TUB!AW:AW,BMM!B188)+SUMIFS(EQUIP!CB:CB,EQUIP!BM:BM,BMM!B188)+SUMIFS(EQUIP!CC:CC,EQUIP!BN:BN,BMM!B188)+SUMIFS(EQUIP!CD:CD,EQUIP!BO:BO,BMM!B188)) -> 0 | L188: APL | M188: APLICAÇÃO
B189: 20/1730 | C189: 20 | D189: 1730 | E189: =VLOOKUP(B189,PREÇOS!$W$2:$AA$1918,5,FALSE) -> APLICAÇÃO LÃ DE ROCHA 20"X63,5 | F189: 1 | G189: =VLOOKUP(B189,PREÇOS!$W$2:$AB$1918,6,FALSE) -> m | H189: 0 | I189: =VLOOKUP(B189,PREÇOS!$W$2:$AA$1918,2,FALSE) -> 361.07 | J189: =(SUMIFS(TUB!BJ:BJ,TUB!AU:AU,BMM!B189)+SUMIFS(TUB!BK:BK,TUB!AV:AV,BMM!B189)+SUMIFS(TUB!BL:BL,TUB!AW:AW,BMM!B189)+SUMIFS(EQUIP!CB:CB,EQUIP!BM:BM,BMM!B189)+SUMIFS(EQUIP!CC:CC,EQUIP!BN:BN,BMM!B189)+SUMIFS(EQUIP!CD:CD,EQUIP!BO:BO,BMM!B189)) -> 0 | L189: APL | M189: APLICAÇÃO
B190: 20/1740 | C190: 20 | D190: 1740 | E190: =VLOOKUP(B190,PREÇOS!$W$2:$AA$1918,5,FALSE) -> APLICAÇÃO LÃ DE ROCHA 20"X76,3 | F190: 1 | G190: =VLOOKUP(B190,PREÇOS!$W$2:$AB$1918,6,FALSE) -> m | H190: 0 | I190: =VLOOKUP(B190,PREÇOS!$W$2:$AA$1918,2,FALSE) -> 364.79 | J190: =(SUMIFS(TUB!BJ:BJ,TUB!AU:AU,BMM!B190)+SUMIFS(TUB!BK:BK,TUB!AV:AV,BMM!B190)+SUMIFS(TUB!BL:BL,TUB!AW:AW,BMM!B190)+SUMIFS(EQUIP!CB:CB,EQUIP!BM:BM,BMM!B190)+SUMIFS(EQUIP!CC:CC,EQUIP!BN:BN,BMM!B190)+SUMIFS(EQUIP!CD:CD,EQUIP!BO:BO,BMM!B190)) -> 0 | L190: APL | M190: APLICAÇÃO
B191: 20/1750 | C191: 20 | D191: 1750 | E191: =VLOOKUP(B191,PREÇOS!$W$2:$AA$1918,5,FALSE) -> APLICAÇÃO LÃ DE ROCHA 22"X38,1 | F191: 1 | G191: =VLOOKUP(B191,PREÇOS!$W$2:$AB$1918,6,FALSE) -> m | H191: 0 | I191: =VLOOKUP(B191,PREÇOS!$W$2:$AA$1918,2,FALSE) -> 375.96 | J191: =(SUMIFS(TUB!BJ:BJ,TUB!AU:AU,BMM!B191)+SUMIFS(TUB!BK:BK,TUB!AV:AV,BMM!B191)+SUMIFS(TUB!BL:BL,TUB!AW:AW,BMM!B191)+SUMIFS(EQUIP!CB:CB,EQUIP!BM:BM,BMM!B191)+SUMIFS(EQUIP!CC:CC,EQUIP!BN:BN,BMM!B191)+SUMIFS(EQUIP!CD:CD,EQUIP!BO:BO,BMM!B191)) -> 0 | L191: APL | M191: APLICAÇÃO
B192: 20/1760 | C192: 20 | D192: 1760 | E192: =VLOOKUP(B192,PREÇOS!$W$2:$AA$1918,5,FALSE) -> APLICAÇÃO LÃ DE ROCHA 22"X50,8 | F192: 1 | G192: =VLOOKUP(B192,PREÇOS!$W$2:$AB$1918,6,FALSE) -> m | H192: 0 | I192: =VLOOKUP(B192,PREÇOS!$W$2:$AA$1918,2,FALSE) -> 394.57 | J192: =(SUMIFS(TUB!BJ:BJ,TUB!AU:AU,BMM!B192)+SUMIFS(TUB!BK:BK,TUB!AV:AV,BMM!B192)+SUMIFS(TUB!BL:BL,TUB!AW:AW,BMM!B192)+SUMIFS(EQUIP!CB:CB,EQUIP!BM:BM,BMM!B192)+SUMIFS(EQUIP!CC:CC,EQUIP!BN:BN,BMM!B192)+SUMIFS(EQUIP!CD:CD,EQUIP!BO:BO,BMM!B192)) -> 0 | L192: APL | M192: APLICAÇÃO
B193: 20/1770 | C193: 20 | D193: 1770 | E193: =VLOOKUP(B193,PREÇOS!$W$2:$AA$1918,5,FALSE) -> APLICAÇÃO LÃ DE ROCHA 22"X63,5 | F193: 1 | G193: =VLOOKUP(B193,PREÇOS!$W$2:$AB$1918,6,FALSE) -> m | H193: 0 | I193: =VLOOKUP(B193,PREÇOS!$W$2:$AA$1918,2,FALSE) -> 361.07 | J193: =(SUMIFS(TUB!BJ:BJ,TUB!AU:AU,BMM!B193)+SUMIFS(TUB!BK:BK,TUB!AV:AV,BMM!B193)+SUMIFS(TUB!BL:BL,TUB!AW:AW,BMM!B193)+SUMIFS(EQUIP!CB:CB,EQUIP!BM:BM,BMM!B193)+SUMIFS(EQUIP!CC:CC,EQUIP!BN:BN,BMM!B193)+SUMIFS(EQUIP!CD:CD,EQUIP!BO:BO,BMM!B193)) -> 0 | L193: APL | M193: APLICAÇÃO
B194: 20/1780 | C194: 20 | D194: 1780 | E194: =VLOOKUP(B194,PREÇOS!$W$2:$AA$1918,5,FALSE) -> APLICAÇÃO LÃ DE ROCHA 22"X76,3 | F194: 1 | G194: =VLOOKUP(B194,PREÇOS!$W$2:$AB$1918,6,FALSE) -> m | H194: 0 | I194: =VLOOKUP(B194,PREÇOS!$W$2:$AA$1918,2,FALSE) -> 373.72 | J194: =(SUMIFS(TUB!BJ:BJ,TUB!AU:AU,BMM!B194)+SUMIFS(TUB!BK:BK,TUB!AV:AV,BMM!B194)+SUMIFS(TUB!BL:BL,TUB!AW:AW,BMM!B194)+SUMIFS(EQUIP!CB:CB,EQUIP!BM:BM,BMM!B194)+SUMIFS(EQUIP!CC:CC,EQUIP!BN:BN,BMM!B194)+SUMIFS(EQUIP!CD:CD,EQUIP!BO:BO,BMM!B194)) -> 0 | L194: APL | M194: APLICAÇÃO
B195: 20/1790 | C195: 20 | D195: 1790 | E195: =VLOOKUP(B195,PREÇOS!$W$2:$AA$1918,5,FALSE) -> APLICAÇÃO LÃ DE ROCHA 24"X38,1 | F195: 1 | G195: =VLOOKUP(B195,PREÇOS!$W$2:$AB$1918,6,FALSE) -> m | H195: 0 | I195: =VLOOKUP(B195,PREÇOS!$W$2:$AA$1918,2,FALSE) -> 405.88 | J195: =(SUMIFS(TUB!BJ:BJ,TUB!AU:AU,BMM!B195)+SUMIFS(TUB!BK:BK,TUB!AV:AV,BMM!B195)+SUMIFS(TUB!BL:BL,TUB!AW:AW,BMM!B195)+SUMIFS(EQUIP!CB:CB,EQUIP!BM:BM,BMM!B195)+SUMIFS(EQUIP!CC:CC,EQUIP!BN:BN,BMM!B195)+SUMIFS(EQUIP!CD:CD,EQUIP!BO:BO,BMM!B195)) -> 0 | L195: APL | M195: APLICAÇÃO
B196: 20/1800 | C196: 20 | D196: 1800 | E196: =VLOOKUP(B196,PREÇOS!$W$2:$AA$1918,5,FALSE) -> APLICAÇÃO LÃ DE ROCHA 24"X50,8 | F196: 1 | G196: =VLOOKUP(B196,PREÇOS!$W$2:$AB$1918,6,FALSE) -> m | H196: 0 | I196: =VLOOKUP(B196,PREÇOS!$W$2:$AA$1918,2,FALSE) -> 406.77 | J196: =(SUMIFS(TUB!BJ:BJ,TUB!AU:AU,BMM!B196)+SUMIFS(TUB!BK:BK,TUB!AV:AV,BMM!B196)+SUMIFS(TUB!BL:BL,TUB!AW:AW,BMM!B196)+SUMIFS(EQUIP!CB:CB,EQUIP!BM:BM,BMM!B196)+SUMIFS(EQUIP!CC:CC,EQUIP!BN:BN,BMM!B196)+SUMIFS(EQUIP!CD:CD,EQUIP!BO:BO,BMM!B196)) -> 0 | L196: APL | M196: APLICAÇÃO
B197: 20/1810 | C197: 20 | D197: 1810 | E197: =VLOOKUP(B197,PREÇOS!$W$2:$AA$1918,5,FALSE) -> APLICAÇÃO LÃ DE ROCHA 24"X63,5 | F197: 1 | G197: =VLOOKUP(B197,PREÇOS!$W$2:$AB$1918,6,FALSE) -> m | H197: 0 | I197: =VLOOKUP(B197,PREÇOS!$W$2:$AA$1918,2,FALSE) -> 415.12 | J197: =(SUMIFS(TUB!BJ:BJ,TUB!AU:AU,BMM!B197)+SUMIFS(TUB!BK:BK,TUB!AV:AV,BMM!B197)+SUMIFS(TUB!BL:BL,TUB!AW:AW,BMM!B197)+SUMIFS(EQUIP!CB:CB,EQUIP!BM:BM,BMM!B197)+SUMIFS(EQUIP!CC:CC,EQUIP!BN:BN,BMM!B197)+SUMIFS(EQUIP!CD:CD,EQUIP!BO:BO,BMM!B197)) -> 0 | L197: APL | M197: APLICAÇÃO
B198: 20/1820 | C198: 20 | D198: 1820 | E198: =VLOOKUP(B198,PREÇOS!$W$2:$AA$1918,5,FALSE) -> APLICAÇÃO LÃ DE ROCHA 24"X76,3 | F198: 1 | G198: =VLOOKUP(B198,PREÇOS!$W$2:$AB$1918,6,FALSE) -> m | H198: 0 | I198: =VLOOKUP(B198,PREÇOS!$W$2:$AA$1918,2,FALSE) -> 430.9 | J198: =(SUMIFS(TUB!BJ:BJ,TUB!AU:AU,BMM!B198)+SUMIFS(TUB!BK:BK,TUB!AV:AV,BMM!B198)+SUMIFS(TUB!BL:BL,TUB!AW:AW,BMM!B198)+SUMIFS(EQUIP!CB:CB,EQUIP!BM:BM,BMM!B198)+SUMIFS(EQUIP!CC:CC,EQUIP!BN:BN,BMM!B198)+SUMIFS(EQUIP!CD:CD,EQUIP!BO:BO,BMM!B198)) -> 0 | L198: APL | M198: APLICAÇÃO
B199: 20/1830 | C199: 20 | D199: 1830 | E199: =VLOOKUP(B199,PREÇOS!$W$2:$AA$1918,5,FALSE) -> APLICAÇÃO LÃ DE ROCHA 26"X38,1 | F199: 1 | G199: =VLOOKUP(B199,PREÇOS!$W$2:$AB$1918,6,FALSE) -> m | H199: 0 | I199: =VLOOKUP(B199,PREÇOS!$W$2:$AA$1918,2,FALSE) -> 422.56 | J199: =(SUMIFS(TUB!BJ:BJ,TUB!AU:AU,BMM!B199)+SUMIFS(TUB!BK:BK,TUB!AV:AV,BMM!B199)+SUMIFS(TUB!BL:BL,TUB!AW:AW,BMM!B199)+SUMIFS(EQUIP!CB:CB,EQUIP!BM:BM,BMM!B199)+SUMIFS(EQUIP!CC:CC,EQUIP!BN:BN,BMM!B199)+SUMIFS(EQUIP!CD:CD,EQUIP!BO:BO,BMM!B199)) -> 0 | L199: APL | M199: APLICAÇÃO
B200: 20/1840 | C200: 20 | D200: 1840 | E200: =VLOOKUP(B200,PREÇOS!$W$2:$AA$1918,5,FALSE) -> APLICAÇÃO LÃ DE ROCHA 26"X50,8 | F200: 1 | G200: =VLOOKUP(B200,PREÇOS!$W$2:$AB$1918,6,FALSE) -> m | H200: 0 | I200: =VLOOKUP(B200,PREÇOS!$W$2:$AA$1918,2,FALSE) -> 431.64 | J200: =(SUMIFS(TUB!BJ:BJ,TUB!AU:AU,BMM!B200)+SUMIFS(TUB!BK:BK,TUB!AV:AV,BMM!B200)+SUMIFS(TUB!BL:BL,TUB!AW:AW,BMM!B200)+SUMIFS(EQUIP!CB:CB,EQUIP!BM:BM,BMM!B200)+SUMIFS(EQUIP!CC:CC,EQUIP!BN:BN,BMM!B200)+SUMIFS(EQUIP!CD:CD,EQUIP!BO:BO,BMM!B200)) -> 0 | L200: APL | M200: APLICAÇÃO
B201: 20/1850 | C201: 20 | D201: 1850 | E201: =VLOOKUP(B201,PREÇOS!$W$2:$AA$1918,5,FALSE) -> APLICAÇÃO LÃ DE ROCHA 26"X63,5 | F201: 1 | G201: =VLOOKUP(B201,PREÇOS!$W$2:$AB$1918,6,FALSE) -> m | H201: 0 | I201: =VLOOKUP(B201,PREÇOS!$W$2:$AA$1918,2,FALSE) -> 440.72 | J201: =(SUMIFS(TUB!BJ:BJ,TUB!AU:AU,BMM!B201)+SUMIFS(TUB!BK:BK,TUB!AV:AV,BMM!B201)+SUMIFS(TUB!BL:BL,TUB!AW:AW,BMM!B201)+SUMIFS(EQUIP!CB:CB,EQUIP!BM:BM,BMM!B201)+SUMIFS(EQUIP!CC:CC,EQUIP!BN:BN,BMM!B201)+SUMIFS(EQUIP!CD:CD,EQUIP!BO:BO,BMM!B201)) -> 0 | L201: APL | M201: APLICAÇÃO
B202: 20/1860 | C202: 20 | D202: 1860 | E202: =VLOOKUP(B202,PREÇOS!$W$2:$AA$1918,5,FALSE) -> APLICAÇÃO LÃ DE ROCHA 26"X76,3 | F202: 1 | G202: =VLOOKUP(B202,PREÇOS!$W$2:$AB$1918,6,FALSE) -> m | H202: 0 | I202: =VLOOKUP(B202,PREÇOS!$W$2:$AA$1918,2,FALSE) -> 455.02 | J202: =(SUMIFS(TUB!BJ:BJ,TUB!AU:AU,BMM!B202)+SUMIFS(TUB!BK:BK,TUB!AV:AV,BMM!B202)+SUMIFS(TUB!BL:BL,TUB!AW:AW,BMM!B202)+SUMIFS(EQUIP!CB:CB,EQUIP!BM:BM,BMM!B202)+SUMIFS(EQUIP!CC:CC,EQUIP!BN:BN,BMM!B202)+SUMIFS(EQUIP!CD:CD,EQUIP!BO:BO,BMM!B202)) -> 0 | L202: APL | M202: APLICAÇÃO
B203: 20/1870 | C203: 20 | D203: 1870 | E203: =VLOOKUP(B203,PREÇOS!$W$2:$AA$1918,5,FALSE) -> APLICAÇÃO LÃ DE ROCHA 30"X38,1 | F203: 1 | G203: =VLOOKUP(B203,PREÇOS!$W$2:$AB$1918,6,FALSE) -> m | H203: 0 | I203: =VLOOKUP(B203,PREÇOS!$W$2:$AA$1918,2,FALSE) -> 463.35 | J203: =(SUMIFS(TUB!BJ:BJ,TUB!AU:AU,BMM!B203)+SUMIFS(TUB!BK:BK,TUB!AV:AV,BMM!B203)+SUMIFS(TUB!BL:BL,TUB!AW:AW,BMM!B203)+SUMIFS(EQUIP!CB:CB,EQUIP!BM:BM,BMM!B203)+SUMIFS(EQUIP!CC:CC,EQUIP!BN:BN,BMM!B203)+SUMIFS(EQUIP!CD:CD,EQUIP!BO:BO,BMM!B203)) -> 0 | L203: APL | M203: APLICAÇÃO
... 803 more rows

Sheet CSV.BM (hidden)
A1: ITEM | B1: LINHA | C1: QUAT.
A2: 10 | B2: 1010 | C2: =BMM!H19 -> 0
A3: 10 | B3: 1020 | C3: =BMM!H20 -> 0
A4: 10 | B4: 1030 | C4: =BMM!H21 -> 0
A5: 10 | B5: 1040 | C5: =BMM!H22 -> 0
A6: 10 | B6: 1050 | C6: =BMM!H23 -> 0
A7: 10 | B7: 1060 | C7: =BMM!H24 -> 0
A8: 10 | B8: 1070 | C8: =BMM!H25 -> 0
A9: 10 | B9: 1080 | C9: =BMM!H26 -> 0
A10: 10 | B10: 1090 | C10: =BMM!H27 -> 0
A11: 10 | B11: 1100 | C11: =BMM!H28 -> 0
A12: 10 | B12: 1110 | C12: =BMM!H29 -> 0
A13: 10 | B13: 1120 | C13: =BMM!H30 -> 0
A14: 10 | B14: 1130 | C14: =BMM!H31 -> 0
A15: 10 | B15: 1140 | C15: =BMM!H32 -> 0
A16: 10 | B16: 1150 | C16: =BMM!H33 -> 0
A17: 10 | B17: 1160 | C17: =BMM!H34 -> 0
A18: 10 | B18: 1170 | C18: =BMM!H35 -> 0
A19: 10 | B19: 1180 | C19: =BMM!H36 -> 0
A20: 10 | B20: 1190 | C20: =BMM!H37 -> 0
A21: 10 | B21: 1200 | C21: =BMM!H38 -> 0
A22: 10 | B22: 1210 | C22: =BMM!H39 -> 0
A23: 10 | B23: 1220 | C23: =BMM!H40 -> 0
A24: 10 | B24: 1230 | C24: =BMM!H41 -> 0
A25: 10 | B25: 1240 | C25: =BMM!H42 -> 0
A26: 10 | B26: 1250 | C26: =BMM!H43 -> 0
A27: 10 | B27: 1260 | C27: =BMM!H44 -> 0
A28: 10 | B28: 1270 | C28: =BMM!H45 -> 0
A29: 10 | B29: 1280 | C29: =BMM!H46 -> 0
A30: 10 | B30: 1290 | C30: =BMM!H47 -> 0
A31: 10 | B31: 1300 | C31: =BMM!H48 -> 0
A32: 10 | B32: 1310 | C32: =BMM!H49 -> 0
A33: 10 | B33: 1320 | C33: =BMM!H50 -> 0
A34: 10 | B34: 1330 | C34: =BMM!H51 -> 0
A35: 10 | B35: 1340 | C35: =BMM!H52 -> 0
A36: 10 | B36: 1350 | C36: =BMM!H53 -> 0
A37: 10 | B37: 1360 | C37: =BMM!H54 -> 0
A38: 10 | B38: 1370 | C38: =BMM!H55 -> 0
A39: 10 | B39: 1380 | C39: =BMM!H56 -> 0
A40: 10 | B40: 1390 | C40: =BMM!H57 -> 0
A41: 10 | B41: 1400 | C41: =BMM!H58 -> 0
A42: 10 | B42: 1410 | C42: =BMM!H59 -> 0
A43: 10 | B43: 1420 | C43: =BMM!H60 -> 0
A44: 10 | B44: 1430 | C44: =BMM!H61 -> 0
A45: 10 | B45: 1440 | C45: =BMM!H62 -> 0
A46: 10 | B46: 1450 | C46: =BMM!H63 -> 0
A47: 10 | B47: 1460 | C47: =BMM!H64 -> 0
A48: 10 | B48: 1470 | C48: =BMM!H65 -> 0
A49: 10 | B49: 1480 | C49: =BMM!H66 -> 0
A50: 10 | B50: 1490 | C50: =BMM!H67 -> 0
A51: 10 | B51: 1500 | C51: =BMM!H68 -> 0
A52: 10 | B52: 1510 | C52: =BMM!H69 -> 0
A53: 10 | B53: 1520 | C53: =BMM!H70 -> 0
A54: 10 | B54: 1530 | C54: =BMM!H71 -> 0
A55: 10 | B55: 1540 | C55: =BMM!H72 -> 0
A56: 10 | B56: 1550 | C56: =BMM!H73 -> 0
A57: 10 | B57: 1560 | C57: =BMM!H74 -> 0
A58: 10 | B58: 1570 | C58: =BMM!H75 -> 0
A59: 10 | B59: 1580 | C59: =BMM!H76 -> 0
A60: 10 | B60: 1590 | C60: =BMM!H77 -> 0
A61: 10 | B61: 1600 | C61: =BMM!H78 -> 0
A62: 10 | B62: 1610 | C62: =BMM!H79 -> 0
A63: 10 | B63: 1620 | C63: =BMM!H80 -> 0
A64: 10 | B64: 1630 | C64: =BMM!H81 -> 0
A65: 10 | B65: 1640 | C65: =BMM!H82 -> 0
A66: 10 | B66: 1650 | C66: =BMM!H83 -> 0
A67: 10 | B67: 1660 | C67: =BMM!H84 -> 0
A68: 10 | B68: 1670 | C68: =BMM!H85 -> 0
A69: 10 | B69: 1680 | C69: =BMM!H86 -> 0
A70: 10 | B70: 1690 | C70: =BMM!H87 -> 0
A71: 10 | B71: 1700 | C71: =BMM!H88 -> 0
A72: 10 | B72: 1710 | C72: =BMM!H89 -> 0
A73: 10 | B73: 1720 | C73: =BMM!H90 -> 0
A74: 10 | B74: 1730 | C74: =BMM!H91 -> 0
A75: 10 | B75: 1740 | C75: =BMM!H92 -> 0
A76: 10 | B76: 1750 | C76: =BMM!H93 -> 0
A77: 10 | B77: 1760 | C77: =BMM!H94 -> 0
A78: 10 | B78: 1770 | C78: =BMM!H95 -> 0
A79: 10 | B79: 1780 | C79: =BMM!H96 -> 0
A80: 10 | B80: 1790 | C80: =BMM!H97 -> 0
A81: 10 | B81: 1800 | C81: =BMM!H98 -> 0
A82: 10 | B82: 1810 | C82: =BMM!H99 -> 0
A83: 10 | B83: 1820 | C83: =BMM!H100 -> 0
A84: 10 | B84: 1830 | C84: =BMM!H101 -> 0
A85: 10 | B85: 1840 | C85: =BMM!H102 -> 0
A86: 10 | B86: 1850 | C86: =BMM!H103 -> 0
A87: 10 | B87: 1860 | C87: =BMM!H104 -> 0
A88: 10 | B88: 1870 | C88: =BMM!H105 -> 0
A89: 10 | B89: 1880 | C89: =BMM!H106 -> 0
A90: 10 | B90: 1890 | C90: =BMM!H107 -> 0
A91: 10 | B91: 1900 | C91: =BMM!H108 -> 0
A92: 10 | B92: 1910 | C92: =BMM!H109 -> 0
A93: 10 | B93: 1920 | C93: =BMM!H110 -> 0
A94: 10 | B94: 1930 | C94: =BMM!H111 -> 0
A95: 10 | B95: 1940 | C95: =BMM!H112 -> 0
A96: 10 | B96: 1950 | C96: =BMM!H113 -> 0
A97: 10 | B97: 1960 | C97: =BMM!H114 -> 0
A98: 10 | B98: 1970 | C98: =BMM!H115 -> 0
A99: 10 | B99: 1980 | C99: =BMM!H116 -> 0
A100: 20 | B100: 1010 | C100: =BMM!H117 -> 0
A101: 20 | B101: 1020 | C101: =BMM!H118 -> 0
A102: 20 | B102: 1030 | C102: =BMM!H119 -> 0
A103: 20 | B103: 1040 | C103: =BMM!H120 -> 0
A104: 20 | B104: 1050 | C104: =BMM!H121 -> 0
A105: 20 | B105: 1060 | C105: =BMM!H122 -> 0
A106: 20 | B106: 1070 | C106: =BMM!H123 -> 0
A107: 20 | B107: 1080 | C107: =BMM!H124 -> 0
A108: 20 | B108: 1090 | C108: =BMM!H125 -> 0
A109: 20 | B109: 1100 | C109: =BMM!H126 -> 0
A110: 20 | B110: 1110 | C110: =BMM!H127 -> 0
A111: 20 | B111: 1120 | C111: =BMM!H128 -> 0
A112: 20 | B112: 1130 | C112: =BMM!H129 -> 0
A113: 20 | B113: 1140 | C113: =BMM!H130 -> 0
A114: 20 | B114: 1150 | C114: =BMM!H131 -> 0
A115: 20 | B115: 1160 | C115: =BMM!H132 -> 0
A116: 20 | B116: 1170 | C116: =BMM!H133 -> 0
A117: 20 | B117: 1180 | C117: =BMM!H134 -> 0
A118: 20 | B118: 1190 | C118: =BMM!H135 -> 0
A119: 20 | B119: 1200 | C119: =BMM!H136 -> 0
A120: 20 | B120: 1210 | C120: =BMM!H137 -> 0
A121: 20 | B121: 1220 | C121: =BMM!H138 -> 0
A122: 20 | B122: 1230 | C122: =BMM!H139 -> 0
A123: 20 | B123: 1240 | C123: =BMM!H140 -> 0
A124: 20 | B124: 1250 | C124: =BMM!H141 -> 0
A125: 20 | B125: 1260 | C125: =BMM!H142 -> 0
A126: 20 | B126: 1270 | C126: =BMM!H143 -> 0
A127: 20 | B127: 1280 | C127: =BMM!H144 -> 0
A128: 20 | B128: 1290 | C128: =BMM!H145 -> 0
A129: 20 | B129: 1300 | C129: =BMM!H146 -> 0
A130: 20 | B130: 1310 | C130: =BMM!H147 -> 0
A131: 20 | B131: 1320 | C131: =BMM!H148 -> 0
A132: 20 | B132: 1330 | C132: =BMM!H149 -> 0
A133: 20 | B133: 1340 | C133: =BMM!H150 -> 0
A134: 20 | B134: 1350 | C134: =BMM!H151 -> 0
A135: 20 | B135: 1360 | C135: =BMM!H152 -> 0
A136: 20 | B136: 1370 | C136: =BMM!H153 -> 0
A137: 20 | B137: 1380 | C137: =BMM!H154 -> 0
A138: 20 | B138: 1390 | C138: =BMM!H155 -> 0
A139: 20 | B139: 1400 | C139: =BMM!H156 -> 0
A140: 20 | B140: 1410 | C140: =BMM!H157 -> 0
A141: 20 | B141: 1420 | C141: =BMM!H158 -> 0
A142: 20 | B142: 1430 | C142: =BMM!H159 -> 0
A143: 20 | B143: 1440 | C143: =BMM!H160 -> 0
A144: 20 | B144: 1450 | C144: =BMM!H161 -> 0
A145: 20 | B145: 1460 | C145: =BMM!H162 -> 0
A146: 20 | B146: 1470 | C146: =BMM!H163 -> 0
A147: 20 | B147: 1480 | C147: =BMM!H164 -> 0
A148: 20 | B148: 1490 | C148: =BMM!H165 -> 0
A149: 20 | B149: 1500 | C149: =BMM!H166 -> 0
A150: 20 | B150: 1510 | C150: =BMM!H167 -> 0
A151: 20 | B151: 1520 | C151: =BMM!H168 -> 0
A152: 20 | B152: 1530 | C152: =BMM!H169 -> 0
A153: 20 | B153: 1540 | C153: =BMM!H170 -> 0
A154: 20 | B154: 1550 | C154: =BMM!H171 -> 0
A155: 20 | B155: 1560 | C155: =BMM!H172 -> 0
A156: 20 | B156: 1570 | C156: =BMM!H173 -> 0
A157: 20 | B157: 1580 | C157: =BMM!H174 -> 0
A158: 20 | B158: 1590 | C158: =BMM!H175 -> 0
A159: 20 | B159: 1600 | C159: =BMM!H176 -> 0
A160: 20 | B160: 1610 | C160: =BMM!H177 -> 0
A161: 20 | B161: 1620 | C161: =BMM!H178 -> 0
A162: 20 | B162: 1630 | C162: =BMM!H179 -> 0
A163: 20 | B163: 1640 | C163: =BMM!H180 -> 0
A164: 20 | B164: 1650 | C164: =BMM!H181 -> 0
A165: 20 | B165: 1660 | C165: =BMM!H182 -> 0
A166: 20 | B166: 1670 | C166: =BMM!H183 -> 0
A167: 20 | B167: 1680 | C167: =BMM!H184 -> 0
A168: 20 | B168: 1690 | C168: =BMM!H185 -> 0
A169: 20 | B169: 1700 | C169: =BMM!H186 -> 0
A170: 20 | B170: 1710 | C170: =BMM!H187 -> 0
A171: 20 | B171: 1720 | C171: =BMM!H188 -> 0
A172: 20 | B172: 1730 | C172: =BMM!H189 -> 0
A173: 20 | B173: 1740 | C173: =BMM!H190 -> 0
A174: 20 | B174: 1750 | C174: =BMM!H191 -> 0
A175: 20 | B175: 1760 | C175: =BMM!H192 -> 0
A176: 20 | B176: 1770 | C176: =BMM!H193 -> 0
A177: 20 | B177: 1780 | C177: =BMM!H194 -> 0
A178: 20 | B178: 1790 | C178: =BMM!H195 -> 0
A179: 20 | B179: 1800 | C179: =BMM!H196 -> 0
A180: 20 | B180: 1810 | C180: =BMM!H197 -> 0
A181: 20 | B181: 1820 | C181: =BMM!H198 -> 0
A182: 20 | B182: 1830 | C182: =BMM!H199 -> 0
A183: 20 | B183: 1840 | C183: =BMM!H200 -> 0
A184: 20 | B184: 1850 | C184: =BMM!H201 -> 0
A185: 20 | B185: 1860 | C185: =BMM!H202 -> 0
A186: 20 | B186: 1870 | C186: =BMM!H203 -> 0
A187: 20 | B187: 1880 | C187: =BMM!H204 -> 0
A188: 20 | B188: 1890 | C188: =BMM!H205 -> 0
A189: 20 | B189: 1900 | C189: =BMM!H206 -> 0
A190: 20 | B190: 1910 | C190: =BMM!H207 -> 0
A191: 20 | B191: 1920 | C191: =BMM!H208 -> 0
A192: 20 | B192: 1930 | C192: =BMM!H209 -> 0
A193: 20 | B193: 1940 | C193: =BMM!H210 -> 0
A194: 20 | B194: 1950 | C194: =BMM!H211 -> 0
A195: 20 | B195: 1960 | C195: =BMM!H212 -> 0
A196: 20 | B196: 1970 | C196: =BMM!H213 -> 0
A197: 20 | B197: 1980 | C197: =BMM!H214 -> 0
A198: 30 | B198: 1530 | C198: =BMM!H215 -> 0
A199: 30 | B199: 1540 | C199: =BMM!H216 -> 0
A200: 30 | B200: 1550 | C200: =BMM!H217 -> 0
... 788 more rows

Sheet MC (hidden)
E2: MEMÓRIA DE CÁLCULO ISOLAMENTO TÉRMICO | P2: AUTORIZAÇÃO: | R2: =INFO!C8 -> 0.4
P3: REVISÃO: | R3: =INFO!C8 -> 0.4
P4: BM | R4: 1
P5: REVISÃO BM: | R5: 0.4
P6: DATA: | R6: =INFO!C32 -> 2023-10-30
P7: UNIDADE | R7: /
B8: ITEM | C8: ITEM \ LINHA | D8: DESCRIÇÃO | E8: TIPO | F8: FATOR | G8: QUANTIDADE PREVISTO | H8: UNIDADE | I8: CUSTO UNITÁRIO | J8: VALOR PREVISTO | K8: REALIZADO ANTERIOR | N8: REALIZADO NO MÊS | Q8: ACUMULADO ATUAL
K9: % | L9: QUANTIDADE | M9: VALOR (R$) | N9: % | O9: QUANTIDADE | P9: VALOR (R$) | Q9: % | R9: QUANTIDADE | S9: VALOR (R$)
B11: 1 | C11: =B11 -> 1 | D11: ISOLAMENTO TÉRMICO A QUENTE | T11: =IFERROR(IF(OR(T12,T15,T18)="","",1),"") -> 1
C12: =C11&".1" -> 1.1 | D12: REMOÇÃO DE ISOLAMENTO TÉRMICO | T12: =IFERROR(IF(OR(T13,T14)="","",1),"") -> 1
C13: =$C12&".1" -> 1.1.1 | D13: TUBULAÇÃO | E13: Q | F13: 1 | G13: =SUMIF(TUB!AT:AT,MC!E13,TUB!X:X) -> 0 | H13: m² | I13: =IFERROR(J13/G13,0) -> 0 | J13: =SUMIF(TUB!AT:AT,MC!E13,TUB!AA:AA) -> 0 | L13: =G13*K13 -> 0 | M13: =L13*I13 -> 0 | N13: =IFERROR((P13/J13),0) -> 0 | O13: =G13*N13 -> 0 | P13: =IFERROR(SUMIF(TUB!AT:AT,MC!E13,TUB!BJ:BJ),0) -> 0 | Q13: =K13+N13 -> 0 | R13: =L13+O13 -> 0 | S13: =M13+P13 -> 0 | T13: =IF(G13<0.001,"",1) -> 
C14: =$C12&".2" -> 1.1.2 | D14: EQUIPAMENTO | E14: Q | F14: 1 | G14: =SUMIF(EQUIP!BL:BL,MC!E14,EQUIP!AR:AR) -> 7289.859577 | H14: m² | I14: =IFERROR(J14/G14,0) -> 56.7 | J14: =SUMIF(EQUIP!BL:BL,MC!E14,EQUIP!AT:AT) -> 413335.038 | L14: =G14*K14 -> 0 | M14: =L14*I14 -> 0 | N14: =IFERROR((P14/J14),0) -> 0 | O14: =G14*N14 -> 0 | P14: =IFERROR(SUMIF(EQUIP!BL:BL,MC!E14,EQUIP!CB:CB),0) -> 0 | Q14: =K14+N14 -> 0 | R14: =L14+O14 -> 0 | S14: =M14+P14 -> 0 | T14: =IF(G14<0.001,"",1) -> 1
C15: =C11&".2" -> 1.2 | D15: APLICAÇÃO DE ISOLAMENTO TÉRMICO
C16: =$C15&".1" -> 1.2.1 | D16: TUBULAÇÃO | E16: Q | F16: 1 | G16: =SUMIF(TUB!AT:AT,MC!E16,TUB!AD:AD) -> 457.5848138 | H16: m² | I16: =IFERROR(J16/G16,0) -> 200.7538072 | J16: =SUMIF(TUB!AT:AT,MC!E16,TUB!AG:AG) -> 91861.89347 | L16: =G16*K16 -> 0 | M16: =L16*I16 -> 0 | N16: =IFERROR((P16/J16),0) -> 0 | O16: =G16*N16 -> 0 | P16: =IFERROR(SUMIF(TUB!AT:AT,MC!E16,TUB!BK:BK),0) -> 0 | Q16: 0 | R16: =L16+O16 -> 0 | S16: =M16+P16 -> 0 | T16: 1
C17: =$C15&".2" -> 1.2.2 | D17: EQUIPAMENTO | E17: Q | F17: 1 | G17: =SUMIF(EQUIP!BL:BL,MC!E17,EQUIP!AV:AV) -> 7289.859577 | H17: m² | I17: =IFERROR(J17/G17,0) -> 182.02 | J17: =SUMIF(EQUIP!BL:BL,MC!E17,EQUIP!AX:AX) -> 1326900.24 | L17: =G17*K17 -> 0 | M17: =L17*I17 -> 0 | N17: =IFERROR((P17/J17),0) -> 0 | O17: =G17*N17 -> 0 | P17: =IFERROR(SUMIF(EQUIP!BL:BL,MC!E17,EQUIP!CC:CC),0) -> 0 | Q17: 0 | R17: =L17+O17 -> 0 | S17: =M17+P17 -> 0 | T17: 1
C18: =C11&".3" -> 1.3 | D18: MATERIAL DE ISOLAMENTO TÉRMICO
C19: =$C18&".1" -> 1.3.1 | D19: TUBULAÇÃO | E19: Q | F19: 1 | G19: =SUMIF(TUB!AT:AT,MC!E19,TUB!AJ:AJ) -> 0 | H19: m² | I19: =IFERROR(J19/G19,0) -> 0 | J19: =SUMIF(TUB!AT:AT,MC!E19,TUB!AM:AM) -> 0 | L19: =G19*K19 -> 0 | M19: =L19*I19 -> 0 | N19: =IFERROR((P19/J19),0) -> 0 | O19: =G19*N19 -> 0 | P19: =IFERROR(SUMIF(TUB!AT:AT,MC!E19,TUB!BL:BL),0) -> 0 | Q19: 0 | R19: =L19+O19 -> 0 | S19: =M19+P19 -> 0
C20: =$C18&".2" -> 1.3.2 | D20: EQUIPAMENTO | E20: Q | F20: 1 | G20: =SUMIF(EQUIP!BL:BL,MC!E20,EQUIP!AZ:AZ) -> 2635.304788 | H20: m² | I20: =IFERROR(J20/G20,0) -> 185.1610689 | J20: =SUMIF(EQUIP!BL:BL,MC!E20,EQUIP!BB:BB) -> 487955.8516 | L20: =G20*K20 -> 0 | M20: =L20*I20 -> 0 | N20: =IFERROR((P20/J20),0) -> 0 | O20: =G20*N20 -> 0 | P20: =IFERROR(SUMIF(EQUIP!BL:BL,MC!E20,EQUIP!CD:CD),0) -> 0 | Q20: 0 | R20: =L20+O20 -> 0 | S20: =M20+P20 -> 0 | T20: 1
B22: 2 | C22: =B22 -> 2 | D22: ISOLAMENTO TÉRMICO A FRIO
C23: =C22&".1" -> 2.1 | D23: REMOÇÃO DE ISOLAMENTO TÉRMICO
C24: =$C23&".1" -> 2.1.1 | D24: TUBULAÇÃO | E24: F | F24: 1 | G24: =SUMIF(TUB!AT:AT,MC!E24,TUB!X:X) -> 0 | H24: m² | I24: =IFERROR(J24/G24,0) -> 0 | J24: =SUMIF(TUB!AT:AT,MC!E24,TUB!AA:AA) -> 0 | L24: =G24*K24 -> 0 | M24: =L24*I24 -> 0 | N24: =IFERROR((P24/J24),0) -> 0 | O24: =G24*N24 -> 0 | P24: =IFERROR(SUMIF(TUB!AT:AT,MC!E24,TUB!BJ:BJ),0) -> 0 | Q24: 0 | R24: =L24+O24 -> 0 | S24: =M24+P24 -> 0
C25: =$C23&".2" -> 2.1.2 | D25: EQUIPAMENTO | E25: F | F25: 1 | G25: =SUMIF(EQUIP!BL:BL,MC!E25,EQUIP!AR:AR) -> 0 | H25: m² | I25: =IFERROR(J25/G25,0) -> 0 | J25: =SUMIF(EQUIP!BL:BL,MC!E25,EQUIP!AT:AT) -> 0 | L25: =G25*K25 -> 0 | M25: =L25*I25 -> 0 | N25: =IFERROR((P25/J25),0) -> 0 | O25: =G25*N25 -> 0 | P25: =IFERROR(SUMIF(EQUIP!BL:BL,MC!E25,EQUIP!CB:CB),0) -> 0 | Q25: 0 | R25: =L25+O25 -> 0 | S25: =M25+P25 -> 0
C26: =C22&".2" -> 2.2 | D26: APLICAÇÃO DE ISOLAMENTO TÉRMICO
C27: =$C26&".1" -> 2.2.1 | D27: TUBULAÇÃO | E27: F | F27: 1 | G27: =SUMIF(TUB!AT:AT,MC!E27,TUB!AD:AD) -> 0 | H27: m² | I27: =IFERROR(J27/G27,0) -> 0 | J27: =SUMIF(TUB!AT:AT,MC!E27,TUB!AG:AG) -> 0 | L27: =G27*K27 -> 0 | M27: =L27*I27 -> 0 | N27: =IFERROR((P27/J27),0) -> 0 | O27: =G27*N27 -> 0 | P27: =IFERROR(SUMIF(TUB!AT:AT,MC!E27,TUB!BK:BK),0) -> 0 | Q27: 0 | R27: =L27+O27 -> 0 | S27: =M27+P27 -> 0
C28: =$C26&".2" -> 2.2.2 | D28: EQUIPAMENTO | E28: F | F28: 1 | G28: =SUMIF(EQUIP!BL:BL,MC!E28,EQUIP!AV:AV) -> 0 | H28: m² | I28: =IFERROR(J28/G28,0) -> 0 | J28: =SUMIF(EQUIP!BL:BL,MC!E28,EQUIP!AX:AX) -> 0 | L28: =G28*K28 -> 0 | M28: =L28*I28 -> 0 | N28: =IFERROR((P28/J28),0) -> 0 | O28: =G28*N28 -> 0 | P28: =IFERROR(SUMIF(EQUIP!BL:BL,MC!E28,EQUIP!CC:CC),0) -> 0 | Q28: 0 | R28: =L28+O28 -> 0 | S28: =M28+P28 -> 0
C29: =C22&".3" -> 2.3 | D29: MATERIAL DE ISOLAMENTO TÉRMICO
C30: =$C29&".1" -> 2.3.1 | D30: TUBULAÇÃO | E30: F | F30: 1 | G30: =SUMIF(TUB!AT:AT,MC!E30,TUB!AJ:AJ) -> 0 | H30: m² | I30: =IFERROR(J30/G30,0) -> 0 | J30: =SUMIF(TUB!AT:AT,MC!E30,TUB!AM:AM) -> 0 | L30: =G30*K30 -> 0 | M30: =L30*I30 -> 0 | N30: =IFERROR((P30/J30),0) -> 0 | O30: =G30*N30 -> 0 | P30: =IFERROR(SUMIF(TUB!AT:AT,MC!E30,TUB!BL:BL),0) -> 0 | Q30: 0 | R30: =L30+O30 -> 0 | S30: =M30+P30 -> 0
C31: =$C29&".2" -> 2.3.2 | D31: EQUIPAMENTO | E31: F | F31: 1 | G31: =SUMIF(EQUIP!BL:BL,MC!E31,EQUIP!AZ:AZ) -> 0 | H31: m² | I31: =IFERROR(J31/G31,0) -> 0 | J31: =SUMIF(EQUIP!BL:BL,MC!E31,EQUIP!BB:BB) -> 0 | L31: =G31*K31 -> 0 | M31: =L31*I31 -> 0 | N31: =IFERROR((P31/J31),0) -> 0 | O31: =G31*N31 -> 0 | P31: =IFERROR(SUMIF(EQUIP!BL:BL,MC!E31,EQUIP!CD:CD),0) -> 0 | Q31: 0 | R31: =L31+O31 -> 0 | S31: =M31+P31 -> 0
B33: 3 | C33: =B33 -> 3 | D33: OUTROS SERVIÇOS | T33: 1 | Z33: FUNILEIRO
C34: =C33&".1" -> 3.1 | D34: MÃO DE OBRA | Z34: ISOLADOR
A35: =B35 -> 100/20 | B35: 100/20 | C35: =$C$34&".1" -> 3.1.1 | D35: FUNILEIRO | F35: 1 | G35: =TIMELINE!EA37 -> 0 | H35: hh | I35: =VLOOKUP(B35,FONTE!$AB$5:$AD$108,3,0) -> 54.1 | J35: =I35*G35*F35 -> 0 | K35: =IFERROR(L35/G35,) -> 0 | M35: =L35*I35 -> 0 | N35: =IFERROR(O35/G35,0) -> 0 | P35: =O35*I35 -> 0 | Q35: =K35+N35 -> 0 | R35: 0 | S35: =M35+P35 -> 0 | Z35: REFRATARISTA
A36: =B36 -> 100/110 | B36: 100/110 | C36: =$C$34&".2" -> 3.1.2 | D36: ISOLADOR | F36: 1 | G36: =TIMELINE!DZ37 -> 0 | H36: hh | I36: =VLOOKUP(B36,FONTE!$AB$5:$AD$108,3,0) -> 49.49 | J36: 0 | K36: 0 | M36: 0 | N36: 0 | P36: 0 | Q36: 0 | R36: 0 | S36: 0 | Z36: ENCARREGADO
A37: 100/220 | B37: 100/220 | C37: =$C$34&".3" -> 3.1.3 | D37: REFRATARISTA (SPOT) | F37: 1 | G37: =TIMELINE!EB37 -> 1128.4 | H37: hh | I37: =VLOOKUP(B37,FONTE!$AB$5:$AD$108,3,0) -> 91.27 | J37: 102989.068 | K37: 0 | M37: 0 | N37: 0 | P37: 0 | Q37: 0 | R37: 0 | S37: 0 | T37: 1
A38: 100/150 | B38: 100/150 | C38: =$C$34&".4" -> 3.1.4 | D38: ENCARREGADO | F38: 1 | G38: =TIMELINE!EC42 -> 282.1 | H38: hh | I38: =VLOOKUP(B38,FONTE!$AB$5:$AD$108,3,0) -> 61 | J38: 17208.1 | K38: 0 | M38: 0 | N38: 0 | P38: 0 | Q38: 0 | R38: 0 | S38: 0 | T38: 1
B39: 100/130 | C39: =$C$34&".5" -> 3.1.5 | D39: SUPERVISOR | F39: 1 | G39: =TIMELINE!EC41 -> 0 | H39: hh | I39: =VLOOKUP(B39,FONTE!$AB$5:$AD$108,3,0) -> 80.57 | J39: 0 | K39: 0 | M39: =L39*I39 -> 0 | N39: =IFERROR(O39/G39,0) -> 0 | P39: =O39*I39 -> 0 | Q39: =K39+N39 -> 0 | R39: =L39+O39 -> 0 | S39: =M39+P39 -> 0
B40: 100/140 | C40: =$C$34&".6" -> 3.1.6 | D40: TÉC. DE SEGURANÇA | F40: 1 | G40: =TIMELINE!EC43 -> 0 | H40: hh | I40: =VLOOKUP(B40,FONTE!$AB$5:$AD$108,3,0) -> 56.4 | J40: 0 | K40: 0 | M40: 0 | N40: 0 | P40: 0 | Q40: 0 | R40: 0 | S40: 0
A41: 0 | C41: =C33&".2" -> 3.2 | D41: MÃO DE OBRA | Z41: ISOLADOR
A42: 0 | C42: =$C$34&".1" -> 3.1.1 | D42: FUNILEIRO | F42: 1 | H42: hh | I42: =IFERROR(VLOOKUP(B42,FONTE!$AB$5:$AD$108,3,0),0) -> 0 | J42: =I42*G42*F42 -> 0 | K42: 0 | M42: 0 | N42: 0 | P42: 0 | Q42: 0 | R42: 0 | S42: 0 | Z42: REFRATARISTA
A43: 0 | C43: =$C$34&".2" -> 3.1.2 | D43: ISOLADOR | F43: 1 | H43: hh | I43: =IFERROR(VLOOKUP(B43,FONTE!$AB$5:$AD$108,3,0),0) -> 0 | J43: =I43*G43*F43 -> 0 | K43: 0 | M43: 0 | N43: 0 | P43: 0 | Q43: 0 | R43: 0 | S43: 0 | Z43: ENCARREGADO
A44: 0 | C44: =$C$34&".3" -> 3.1.3 | D44: REFRATARISTA | F44: 1 | H44: hh | I44: =IFERROR(VLOOKUP(B44,FONTE!$AB$5:$AD$108,3,0),0) -> 0 | J44: =I44*G44*F44 -> 0 | K44: 0 | M44: 0 | N44: 0 | P44: 0 | Q44: 0 | R44: 0 | S44: 0
A45: 0 | C45: =$C$34&".4" -> 3.1.4 | D45: ENCARREGADO | F45: 1 | H45: hh | I45: =IFERROR(VLOOKUP(B45,FONTE!$AB$5:$AD$108,3,0),0) -> 0 | J45: =I45*G45*F45 -> 0 | K45: 0 | M45: 0 | N45: 0 | P45: 0 | Q45: 0 | R45: 0 | S45: 0
C46: =$C$34&".5" -> 3.1.5 | D46: SUPERVISOR | F46: 1 | H46: hh | I46: =IFERROR(VLOOKUP(B46,FONTE!$AB$5:$AD$108,3,0),0) -> 0 | J46: =I46*G46*F46 -> 0 | K46: =IFERROR(L46/G46,) -> 0 | M46: =L46*I46 -> 0 | N46: =IFERROR(O46/G46,0) -> 0 | P46: =O46*I46 -> 0 | Q46: =K46+N46 -> 0 | R46: =L46+O46 -> 0 | S46: =M46+P46 -> 0
C47: =$C$34&".6" -> 3.1.6 | D47: TÉC. DE SEGURANÇA | F47: 1 | H47: hh | I47: =IFERROR(VLOOKUP(B47,FONTE!$AB$5:$AD$108,3,0),0) -> 0 | J47: 0 | K47: 0 | M47: 0 | N47: 0 | P47: 0 | Q47: 0 | R47: 0 | S47: 0
A48: 0 | C48: =C33&".3" -> 3.3 | D48: MÃO DE OBRA | Z48: ISOLADOR
A49: 0 | C49: =$C$34&".1" -> 3.1.1 | D49: FUNILEIRO | F49: 1 | H49: hh | I49: =IFERROR(VLOOKUP(B49,FONTE!$AB$5:$AD$108,3,0),0) -> 0 | J49: =I49*G49*F49 -> 0 | K49: =IFERROR(L49/G49,) -> 0 | M49: =L49*I49 -> 0 | N49: =IFERROR(O49/G49,0) -> 0 | P49: =O49*I49 -> 0 | Q49: =K49+N49 -> 0 | R49: 0 | S49: =M49+P49 -> 0 | Z49: REFRATARISTA
A50: 0 | C50: =$C$34&".2" -> 3.1.2 | D50: ISOLADOR | F50: 1 | H50: hh | I50: =IFERROR(VLOOKUP(B50,FONTE!$AB$5:$AD$108,3,0),0) -> 0 | J50: =I50*G50*F50 -> 0 | K50: =IFERROR(L50/G50,) -> 0 | M50: =L50*I50 -> 0 | N50: =IFERROR(O50/G50,0) -> 0 | P50: =O50*I50 -> 0 | Q50: 0 | R50: 0 | S50: =M50+P50 -> 0 | Z50: ENCARREGADO
A51: 0 | C51: =$C$34&".3" -> 3.1.3 | D51: REFRATARISTA | F51: 1 | H51: hh | I51: =IFERROR(VLOOKUP(B51,FONTE!$AB$5:$AD$108,3,0),0) -> 0 | J51: =I51*G51*F51 -> 0 | K51: =IFERROR(L51/G51,) -> 0 | M51: =L51*I51 -> 0 | N51: =IFERROR(O51/G51,0) -> 0 | P51: =O51*I51 -> 0 | Q51: 0 | R51: 0 | S51: =M51+P51 -> 0
A52: 0 | C52: =$C$34&".4" -> 3.1.4 | D52: ENCARREGADO | F52: 1 | H52: hh | I52: =IFERROR(VLOOKUP(B52,FONTE!$AB$5:$AD$108,3,0),0) -> 0 | J52: =I52*G52*F52 -> 0 | K52: =IFERROR(L52/G52,) -> 0 | M52: =L52*I52 -> 0 | N52: =IFERROR(O52/G52,0) -> 0 | P52: =O52*I52 -> 0 | Q52: 0 | R52: 0 | S52: =M52+P52 -> 0
C53: =$C$34&".5" -> 3.1.5 | D53: SUPERVISOR | F53: 1 | H53: hh | I53: =IFERROR(VLOOKUP(B53,FONTE!$AB$5:$AD$108,3,0),0) -> 0 | J53: =I53*G53*F53 -> 0 | K53: =IFERROR(L53/G53,) -> 0 | M53: =L53*I53 -> 0 | N53: =IFERROR(O53/G53,0) -> 0 | P53: =O53*I53 -> 0 | Q53: =K53+N53 -> 0 | R53: =L53+O53 -> 0 | S53: =M53+P53 -> 0
C54: =$C$34&".6" -> 3.1.6 | D54: TÉC. DE SEGURANÇA | F54: 1 | H54: hh | I54: =IFERROR(VLOOKUP(B54,FONTE!$AB$5:$AD$108,3,0),0) -> 0 | J54: 0 | K54: 0 | M54: 0 | N54: 0 | P54: 0 | Q54: 0 | R54: 0 | S54: 0
A55: 0 | C55: =C33&".4" -> 3.4
A56: 0 | C56: =$C$34&".1" -> 3.1.1 | D56: FUNILEIRO | F56: 1 | H56: hh | I56: =IFERROR(VLOOKUP(B56,FONTE!$AB$5:$AD$108,3,0),0) -> 0 | J56: =I56*G56*F56 -> 0 | K56: =IFERROR(L56/G56,) -> 0 | M56: =L56*I56 -> 0 | N56: =IFERROR(O56/G56,0) -> 0 | P56: =O56*I56 -> 0 | Q56: =K56+N56 -> 0 | R56: 0 | S56: 0
A57: 0 | C57: =$C$34&".2" -> 3.1.2 | D57: ISOLADOR | F57: 1 | H57: hh | I57: =IFERROR(VLOOKUP(B57,FONTE!$AB$5:$AD$108,3,0),0) -> 0 | J57: =I57*G57*F57 -> 0 | K57: =IFERROR(L57/G57,) -> 0 | M57: =L57*I57 -> 0 | N57: =IFERROR(O57/G57,0) -> 0 | P57: =O57*I57 -> 0 | Q57: 0 | R57: 0 | S57: 0
A58: 0 | C58: =$C$34&".3" -> 3.1.3 | D58: REFRATARISTA | F58: 1 | H58: hh | I58: =IFERROR(VLOOKUP(B58,FONTE!$AB$5:$AD$108,3,0),0) -> 0 | J58: =I58*G58*F58 -> 0 | K58: =IFERROR(L58/G58,) -> 0 | M58: =L58*I58 -> 0 | N58: =IFERROR(O58/G58,0) -> 0 | P58: =O58*I58 -> 0 | Q58: 0 | R58: 0 | S58: 0
A59: 0 | C59: =$C$34&".4" -> 3.1.4 | D59: ENCARREGADO | F59: 1 | H59: hh | I59: =IFERROR(VLOOKUP(B59,FONTE!$AB$5:$AD$108,3,0),0) -> 0 | J59: =I59*G59*F59 -> 0 | K59: =IFERROR(L59/G59,) -> 0 | M59: =L59*I59 -> 0 | N59: =IFERROR(O59/G59,0) -> 0 | P59: =O59*I59 -> 0 | Q59: 0 | R59: 0 | S59: 0
C60: =$C$34&".5" -> 3.1.5 | D60: SUPERVISOR
C61: =$C$34&".6" -> 3.1.6 | D61: TÉC. DE SEGURANÇA
E62: M² | F62: 1 | G62: =SUMIF(EQUIP!J:J,"ARMFLEX",EQUIP!AP:AP) -> 0 | H62: M² | J62: =I62*G62 -> 0 | K62: =IFERROR(L62/G62,) -> 0 | M62: =L62*I62 -> 0 | N62: =IFERROR(O62/G62,0) -> 0 | P62: =O62*I62 -> 0 | Q62: 0 | R62: 0 | S62: 0
B63: VALOR TOTAL | I63: =SUM(J11:J62) -> 2440250.191 | L63: =SUM(M11:M62) -> 0 | O63: =SUM(P11:P62) -> 0 | R63: =L63+O63 -> 0 | T63: 1
T64: 1
M65: DADOS CONTRATUAIS | T65: 1
C66: OBSERVAÇÕES | M66: VALOR DA AS | Q66: =I63 -> 2440250.191 | T66: 1
A67: 1 | T67: 1
A68: 2 | C68: =IF(INFO!C39="","",INFO!C39) -> CURVA DE AVANÇO FÍSICO_ | M68: VALOR ANTERIOR | Q68: =L63 -> 0 | T68: 1
A69: 3 | C69: =IF(INFO!C40="","",INFO!C40) -> TIME LINE | M69: VALOR MEDIDO NO MÊS | Q69: =O63 -> 0 | T69: 1
A70: 4 | C70: =IF(INFO!C41="","",INFO!C41) -> APOIOS NECESSÁRIOS: | M70: VALOR TOTAL FATURADO | Q70: =R63 -> 0 | T70: 1
A71: 5 | B71: =IF(C71="","","5)") ->  | C71: =IF(INFO!C42="","",INFO!C42) ->  | M71: SALDO DA AS | Q71: =Q66-Q70 -> 2440250.191 | T71: 1
A72: 6 | B72: =IF(C72="","","6)") ->  | C72: =IF(INFO!C43="","",INFO!C43) ->  | M72: % ANTERIOR | Q72: =IFERROR(Q68/Q66,0) -> 0 | T72: 1
A73: 7 | B73: =IF(C73="","","7)") ->  | C73: =IF(INFO!C44="","",INFO!C44) ->  | M73: % NO MÊS | Q73: =IFERROR(Q69/Q66,0) -> 0 | T73: 1
A74: 8 | B74: =IF(C74="","","8)") ->  | C74: =IF(INFO!C45="","",INFO!C45) ->  | M74: % ACUMULADO | Q74: =IFERROR(Q70/Q66,0) -> 0 | T74: 1
A75: 9 | B75: =IF(C75="","","9)") ->  | C75: =IF(INFO!C46="","",INFO!C46) ->  | M75: % SALDO | Q75: =IFERROR(Q71/Q66,0) -> 1 | T75: 1
A76: 10 | B76: =IF(C76="","","10)") ->  | C76: =IF(INFO!C47="","",INFO!C47) ->  | T76: 1
A77: 12 | T77: 1

Sheet TIMELINE (hidden)
DT2: ESTIMATIVA DE CUSTO SERVIÇO DE ISOLAMENTO TÉRMICO HOMEM HORA | EK2: PERCENTUAL HH | EL2: ISO | EM2: REF | EN2: FUN | EO2: TOTAL | EP2: TIPO DE HORAS
EL3: 0 | EM3: 1 | EN3: 0 | EO3: =SUM($EL$3:$EN$3) -> 1 | EP3: Serv Curta Duração 90d
K5: =K6 -> 2022-09-12 | L5: 2022-09-13 | M5: 2022-09-14 | N5: 2022-09-15 | O5: 2022-09-16 | P5: 2022-09-17 | Q5: 2022-09-18 | R5: 2022-09-19 | S5: 2022-09-20 | T5: 2022-09-21 | U5: 2022-09-22 | V5: 2022-09-23 | W5: 2022-09-24 | X5: 2022-09-25 | Y5: 2022-09-26 | Z5: 2022-09-27 | AA5: 2022-09-28 | AB5: 2022-09-29 | AC5: 2022-09-30 | AD5: 2022-10-01 | AE5: 2022-10-02 | AF5: 2022-10-03 | AG5: 2022-10-04 | AH5: 2022-10-05 | AI5: 2022-10-06 | AJ5: 2022-10-07 | AK5: 2022-10-08 | AL5: 2022-10-09 | AM5: 2022-10-10 | AN5: 2022-10-11 | AO5: 2022-10-12 | AP5: 2022-10-13 | AQ5: 2022-10-14 | AR5: 2022-10-15 | AS5: 2022-10-16 | AT5: 2022-10-17 | AU5: 2022-10-18 | AV5: 2022-10-19 | AW5: 2022-10-20 | AX5: 2022-10-21 | AY5: 2022-10-22 | AZ5: 2022-10-23 | BA5: 2022-10-24 | BB5: 2022-10-25 | BC5: 2022-10-26 | BD5: 2022-10-27 | BE5: 2022-10-28 | BF5: 2022-10-29 | BG5: 2022-10-30 | BH5: 2022-10-31 | BI5: 2022-11-01 | BJ5: 2022-11-02 | BK5: 2022-11-03 | BL5: 2022-11-04 | BM5: 2022-11-05 | BN5: 2022-11-06 | BO5: 2022-11-07 | BP5: 2022-11-08 | BQ5: 2022-11-09 | BR5: 2022-11-10 | BS5: 2022-11-11 | BT5: 2022-11-12 | BU5: 2022-11-13 | BV5: 2022-11-14 | BW5: 2022-11-15 | BX5: 2022-11-16 | BY5: 2022-11-17 | BZ5: 2022-11-18 | CA5: 2022-11-19 | CB5: 2022-11-20 | CC5: 2022-11-21 | CD5: 2022-11-22 | CE5: 2022-11-23 | CF5: 2022-11-24 | CG5: 2022-11-25 | CH5: 2022-11-26 | CI5: 2022-11-27 | CJ5: 2022-11-28 | CK5: 2022-11-29 | CL5: 2022-11-30 | CM5: 2022-12-01 | CN5: 2022-12-02 | CO5: 2022-12-03 | CP5: 2022-12-04 | CQ5: 2022-12-05 | CR5: 2022-12-06 | CS5: 2022-12-07 | CT5: 2022-12-08 | CU5: 2022-12-09 | CV5: 2022-12-10 | CW5: 2022-12-11 | CX5: 2022-12-12 | CY5: 2022-12-13 | CZ5: 2022-12-14 | DA5: 2022-12-15 | DB5: 2022-12-16 | DC5: 2022-12-17 | DD5: 2022-12-18 | DE5: 2022-12-19 | DF5: 2022-12-20 | DG5: 2022-12-21 | DH5: 2022-12-22 | DI5: 2022-12-23 | DJ5: 2022-12-24 | DK5: 2022-12-25 | DL5: =DL6 -> 2022-12-26 | DM5: 2022-12-27 | DN5: 2022-12-28 | DO5: 2022-12-29 | DP5: 2022-12-30 | DQ5: 2022-12-31 | DT5: ITEM | DU5: DESCRIÇÃO | DV5: TIPO | DW5: ÁREA | DX5: ATIVIDADE | DY5: FUNÇÃO | DZ5: HORAS EQUIPE
